Workbook

Sheet LDC Info
AA3: Algoma Power Inc.
AA4: Atikokan Hydro Inc.
AA5: Attawapiskat Power Corporation
AA6: Bluewater Power Distribution Corporation
AA7: Brant County Power Inc.
AA8: Brantford Power Inc.
AA9: Burlington Hydro Inc.
AA10: Cambridge and North Dumfries Hydro Inc.
AA11: Canadian Niagara Power Inc.
AA12: Centre Wellington Hydro Ltd.
AA13: Chapleau Public Utilities Corporation
D14: Utility Name | E14: Rideau St. Lawrence Distribution Inc. | AA14: COLLUS PowerStream Corp.
AA15: Cooperative Hydro Embrun Inc.
D16: Assigned EB Number | E16: EB-2015-0100 | AA16: E.L.K. Energy Inc.
AA17: Enersource Hydro Mississauga Inc.
D18: Name of Contact and Title | E18: Peter Soules, Chief Financial Officer | AA18: Entegrus Powerlines Inc.
AA19: EnWin Utilities Ltd.
D20: Phone Number | E20: (613) 925-3851 | AA20: Erie Thames Powerlines Corporation
AA21: Espanola Regional Hydro Distribution Corporation
D22: Email Address | E22: psoules@rslu.ca | AA22: Essex Powerlines Corporation
AA23: Festival Hydro Inc.
D24: Test Year | E24: 2016 | AA24: Fort Albany Power Corporation
AA25: Fort Frances Power Corporation
D26: Bridge Year | E26: =IF(ISBLANK(E24), "", E24-1) -> 2015 | AA26: Greater Sudbury Hydro Inc.
AA27: Grimsby Power Inc.
D28: Last Rebasing Year | E28: 2012 | AA28: Guelph Hydro Electric Systems Inc.
AA29: Haldimand County Hydro Inc.
A30: Identify the accounting standard used for the test year | AA30: Halton Hills Hydro Inc.
E31: MIFRS | AA31: Hearst Power Distribution Company Limited
AA32: Horizon Utilities Corporation
A33: Did you update your depreciation and capitalization policies? | AA33: Hydro 2000 Inc.
E34: No | AA34: Hydro Hawkesbury Inc.
AA35: Hydro One Brampton Networks Inc.
A36: When did you update your depreciation and capitalization policies? | AA36: Hydro One Networks Inc.
E37: 2001-01-01 | F37: 2012 | AA37: Hydro One Remote Communities Inc.
AA38: Hydro Ottawa Limited
A39: Identify the year that the applicant has adopted or is expected to adopt IFRS for financial reporting purposes | AA39: Innpower Corporation
E40: 2015 or Later | AA40: Kashechewan Power Corporation
AA41: Kenora Hydro Electric Corporation Ltd.
AA42: Kingston Hydro Corporation
A43: Are you applying for cost recovery for the test and/or future year(s) for Green Energy initiatives? | AA43: Kitchener-Wilmot Hydro Inc.
E44: No | AA44: Lakefront Utilities Inc.
AA45: Lakeland Power Distribution Ltd.
A46: ="Is " & E14 & " an embedded distributor?" -> Is Rideau St. Lawrence Distribution Inc. an embedded distributor? | E46: Yes | AA46: London Hydro Inc.
AA47: Midland Power Utility Corporation
AA48: Milton Hydro Distribution Inc.
B49: Notes | AA49: Newmarket-Tay Power Distribution Ltd.
AA50: Niagara Peninsula Energy Inc.
C51: Pale green cells represent input cells. | AA51: Niagara-on-the-Lake Hydro Inc.
AA52: Norfolk Power Distribution Inc.
C53: Pale blue cells represent drop-down lists. The applicant should select the appropriate item from the drop-down list. | AA53: North Bay Hydro Distribution Limited
AA54: Northern Ontario Wires Inc.
C55: White cells contain fixed values, automatically generated values or formulae. | AA55: Oakville Hydro Electricity Distribution Inc.
AA56: Orangeville Hydro Limited
AA57: Orillia Power Distribution Corporation
AA58: Oshawa PUC Networks Inc.
AA59: Ottawa River Power Corporation
AA60: Peterborough Distribution Incorporated
AA61: PowerStream Inc.
AA62: PUC Distribution Inc.
AA63: Renfrew Hydro Inc.
AA64: Rideau St. Lawrence Distribution Inc.
AA65: Sioux Lookout Hydro Inc.
AA66: St. Thomas Energy Inc.
AA67: Thunder Bay Hydro Electricity Distribution Inc.
AA68: Tillsonburg Hydro Inc.
AA69: Toronto Hydro-Electric System Limited
AA70: Veridian Connections Inc.
AA71: Wasaga Distribution Inc.
AA72: Waterloo North Hydro Inc.
AA73: Welland Hydro-Electric System Corp.
AA74: Wellington North Power Inc.
AA75: West Coast Huron Energy Inc.
AA76: Westario Power Inc.
AA77: Whitby Hydro Electric Corporation
AA78: Woodstock Hydro Services Inc.

Sheet Index
A15: 1 | B15: LDC Information Sheet | E15: 28 | F15: App.2-G: Service Reliability Indicators
A16: 2 | B16: Index | E16: 29 | F16: App.2-H: Other Operating Revenue
A17: 3 | B17: Cost of Service Application Flowchart | E17: 30 | F17: App.2-I: Load Forecast CDM Adjustment Workform
A18: 4 | B18: List of Key References | E18: 31 | F18: App.2-IA: Actual and Forecast Load and Customer Data
A19: 5 | B19: App.2-AA: Capital Projects Table | E19: 32 | F19: App.2-JA: OM&A Summary Analysis
A20: 6 | B20: App.2-AB: Capital Expenditures | E20: 33 | F20: App.2-JB: Recoverable OM&A Cost Driver Table
A21: 7 | B21: App. 2-AC: Customer Engagement Worksheet | E21: 34 | F21: App.2-JC: OM&A Programs Table
A22: 8 | B22: App.2-B: General Accounting Instructions | E22: 35 | F22: App.2-K: Employee Costs
A23: 9 | B23: App.2-BA: Fixed Asset Continuity Schedule | E23: 36 | F23: App.2-L: Recoverable OM&A Cost per Customer and per FTE
A24: 10 | B24: Appendix 2-BB: Service Life Comparison | E24: 37 | F24: App.2-M: Regulatory Costs Schedule
A25: 11 | B25: App.2-CA: 2012 Depreciation and Amortization Expense (Old CGAAP) | E25: 38 | F25: App.2-N: Shared Servcies and Corporate Cost Allocation
A26: 12 | B26: App.2-CB: 2012 Depreciation and Amortization Expense (New CGAAP) | E26: 39 | F26: App.2-OA: Capital Structure and Cost of Capital
A27: 13 | B27: App.2-CC: 2013 Depreciation and Amortization Expense (New CGAAP) | E27: 40 | F27: App.2-OB: Debt Instruments
A28: 14 | B28: App.2-CD: 2014 Depreciation and Amortization Expense (MIFRS) | E28: 41 | F28: App.2-P: Cost Allocation
A29: 15 | B29: App.2-CE: 2015 Depreciation and Amortization Expense (MIFRS) | E29: 42 | F29: App.2-PA: New Rate Design Policy For Residential Customers
A30: 16 | B30: App.2-CF: 2015 Depreciation and Amortization Expense (MIFRS) | E30: 43 | F30: App.2-Q: Cost of Serving Embedded Distributor(s)
A31: 17 | B31: App.2-CG: 2013 Depreciation and Amortization Expense (Old CGAAP) | E31: 44 | F31: App.2-R: Loss Factors
A32: 18 | B32: App.2-CH: 2013 Depreciation and Amortization Expense (New CGAAP) | E32: 45 | F32: App.2-S: Stranded Meter Treatment
A33: 19 | B33: App.2-CI: 2014 Depreciation and Amortization Expense (MIFRS) | E33: 46 | F33: App.2-TA: Account 1592, PILs and Tax Variances
A34: 20 | B34: App.2-CJ: 2015 Depreciation and Amortization Expense (MIFRS) | E34: 47 | F34: App.2-TB: Account 1592, HST-OVAT Input Tax Credits
A35: 21 | B35: App.2-CK: 2016 Depreciation and Amortization Expense (MIFRS) | E35: 48 | F35: App.2-U: One-Time Incremental IFRS Transition Costs
A36: 22 | B36: App.2-D: Overhead Expenses | E36: 49 | F36: App.2-V: Revenue Reconciliation
A37: 23 | B37: App.2-EA: Account 1575 PP&E Deferral Account (2015 IFRS Adopters) | E37: 50 | F37: App.2-W: Bill Impacts
A38: 24 | B38: App.2-EB: Account 1576 - Accounting Changes Under CGAAP (2012 Changes) | E38: 51 | F38: App.2-Y: Transition to MIFRS Summary Impact
A39: 25 | B39: App.2-EC: Account 1576 - Accounting Changes Under CGAAP (2013 Changes) | E39: 52 | F39: App. 2-Z: Tariff Schedule
A40: 26 | B40: App.2-FA: Renewable Generation Connection Investment Summary
A41: 27 | B41: App.2-FB: Calculation of Renewable Generation Connection Direct Benefits/Provincial Amount: Renewable Enabling Improvement Investments
A42: 28 | B42: App.2-FC: Calculation of Renewable Generation Connection Direct Benefits/Provincial Amount: Renewable Expansion Investments

Sheet COS Flowchart
B4: Cost of Service Rate Application Schematic
B6: The Cost of Service Rate Application Schematic is a flowchart appended to Chapter 2 of the Filing Requirements as a guide for the components of an application and how demand and costs interrelate to derive the revenue requirement and then how the revenue requirement is allocated between classes and through fixed/variable splits to derive rates that will be compensatory for the annual revenue requirement, based on the the forecasted demand. There is no form to be filled out; therefore, this Schedule is not required to be filed.

Sheet List of Key References
B3: List of Key References
A5: A list of key references for understanding the Filing Requirements has been embedded in the document below. To access the list of references and associated hyperlinks double-click the icon below.

Sheet App.2-AA_Capital Projects
G1: File Number: | H1: =EBNUMBER -> EB-2015-0100
G2: Exhibit:
G3: Tab:
G4: Schedule:
G5: Page:
G7: Date:
A9: Appendix 2-AA
A10: Capital Projects Table
A13: Projects | B13: =C13-1 -> 2011 | C13: =D13-1 -> 2012 | D13: =E13-1 -> 2013 | E13: =BridgeYear - 1 -> 2014 | F13: =BridgeYear & " Bridge Year" -> 2015 Bridge Year | G13: =TestYear & " Test Year" -> 2016 Test Year
A14: Reporting Basis | B14: CGAAP | C14: CGAAP | D14: CGAAP | E14: CGAAP | F14: MIFRS | G14: MIFRS
A15: System Access
A16: Sewage Plant Westport | G16: ='[12]OH Capital'!$G$7 -> 119570.4208
A17: Municipal Building Morrisburg | D17: 51280
A18: Arena Cardinal | D18: 51443 | E18: 2100
A19: Miscellaneous | B19: =67115 -> 67115 | C19: =33538 -> 33538 | D19: =271968-102723 -> 169245 | E19: =107687-2100 -> 105587 | F19: =12003 -> 12003 | G19: =161526-119570 -> 41956
A21: Sub-Total | B21: =SUM(B16:B19) -> 67115 | C21: 33538 | D21: 271968 | E21: 107687 | F21: 12003 | G21: 161526.4208
A23: System Renewal
A24: Iroquois Backup Transformer | F24: 194618 | G24: 50000
A25: Transformer Replacements | B25: 5843 | C25: 24098 | D25: 19857 | E25: =2010 -> 2010 | F25: 33488 | G25: =+'[12]OH Capital'!$G$10 -> 52374
A26: Miscellaneous | B26: =196434-39860-5843 -> 150731 | C26: =292408-48923-24098 -> 219387 | D26: =86427-12498-19857 -> 54072 | E26: =183561-26854-2010 -> 154697 | F26: =488030-271232-33488-9976 -> 173334 | G26: =216930-119999-12322 -> 84609
A27: Meter Replacements | B27: 32026 | C27: 33136 | D27: 10698 | E27: 17402 | F27: 14327.04 | G27: 5625
A28: Wholesale Meters | B28: 7834 | C28: 15787 | D28: 1800 | E28: 9452 | F28: 17933.75
A29: Prescott MS1 and MS2 | F29: 44353.58 | G29: 12000
A31: Sub-Total | B31: =SUM(B24:B30) -> 196434 | C31: 292408 | D31: 86427 | E31: 183561 | F31: 478054.37 | G31: 204608
A33: System Services
A34: Substations | D34: =14150+13250+43623 -> 71023
A35: Miscellaneous | B35: 13822 | E35: 4180
A37: Sub-Total | B37: =SUM(B34:B36) -> 13822 | C37: 0 | D37: 71023 | E37: 4180 | F37: 0 | G37: 0
A39: General Plant
A40: Computer Hardware | B40: =9528-1467 -> 8061 | C40: 9126 | D40: 42870 | E40: 13244 | F40: ='App.2-BA_Fixed Asset Cont'!E312+'App.2-BA_Fixed Asset Cont'!E313 -> 54230.53 | G40: 15000
A41: Computer Software | C41: 23483 | D41: 33460 | E41: 92521 | F41: ='App.2-BA_Fixed Asset Cont'!E290 -> 6743 | G41: 15000
A42: Communication Equipment | F42: ='App.2-BA_Fixed Asset Cont'!E320 -> 25511.25
A43: Vehicles | B43: 297851 | C43: 6364 | D43: 2094 | E43: 46494 | F43: 48250 | G43: ='[12]Capital GL'!$I$34 -> 390000
A44: Miscellaneous | B44: 2487 | C44: 2411 | D44: 13480 | E44: 6426 | F44: ='App.2-BA_Fixed Asset Cont'!E317 -> 3619.15 | G44: 10000
A45: System Supervisory Equipment
A47: Sub-Total | B47: =SUM(B40:B44) -> 308399 | C47: =SUM(C40:C44) -> 41384 | D47: =SUM(D40:D44) -> 91904 | E47: =SUM(E40:E44) -> 158685 | F47: =SUM(F40:F45) -> 138353.93 | G47: =SUM(G40:G45) -> 430000
A49: Total | B49: =SUMPRODUCT(--($A15:$A48="Sub-Total"), B$15:B$48)+B48 -> 585770 | C49: 367330 | D49: 521322 | E49: 454113 | F49: 628411.3 | G49: 796134.4208
A50: Less Renewable Generation Facility Assets and Other Non-Rate-Regulated Utility Assets (input as negative)
A51: Total | B51: =B49+B50 -> 585770 | C51: 367330 | D51: 521322 | E51: 454113 | F51: 628411.3 | G51: 796134.4208
A53: Notes: | B53: 585770 | C53: 367330 | D53: 521322 | E53: 454113 | F53: =598917+39470-9976 -> 628411 | G53: =808456-12322 -> 796134
B54: =+B53-B51 -> 0 | C54: 0 | D54: 0 | E54: 0 | F54: -0.3 | G54: -0.4208333334
A55: 1 Please provide a breakdown of the major components of each capital project undertaken in each year. Please ensure that all projects below the materiality threshold are included in the miscellaneous line. Add more projects as required.
A56: 2 The applicant should group projects appropriately and avoid presentations that result in classification of significant components of the capital budget in the miscellaneous category.

Sheet App.2-AB_Capital Expenditures
S1: File Number: | U1: =EBNUMBER -> EB-2015-0100
S2: Exhibit:
S3: Tab:
S4: Schedule:
S5: Page:
S7: Date:
A9: Appendix 2-AB
A10: Table 2 - Capital Expenditure Summary from Chapter 5 Consolidated Distribution System Plan Filing Requirements
A12: First year of Forecast Period: | B12: 2016
A13: CATEGORY | B13: Historical Period (previous plan1 & actual) | Q13: Forecast Period (planned)
B14: =E14-1 -> 2011 | E14: =H14-1 -> 2012 | H14: =K14-1 -> 2013 | K14: =N14-1 -> 2014 | N14: =Q14-1 -> 2015 | Q14: =B12 -> 2016 | R14: =Q14+1 -> 2017 | S14: =R14+1 -> 2018 | T14: =S14+1 -> 2019 | U14: =T14+1 -> 2020
B15: Plan | C15: Actual | D15: Var | E15: Plan | F15: Actual | G15: Var | H15: Plan | I15: Actual | J15: Var | K15: Plan | L15: Actual | M15: Var | N15: Plan | O15: Actual2 | P15: Var
B16: $ '000 | D16: % | E16: $ '000 | G16: % | H16: $ '000 | J16: % | K16: $ '000 | M16: % | N16: $ '000 | P16: % | Q16: $ '000
A17: System Access | B17: NA | C17: ='App.2-AA_Capital Projects'!B21 -> 67115 | D17: =IF(ISERROR((C17-B17)/B17),"--",(C17-B17)/B17) -> -- | E17: NA | F17: =+'App.2-AA_Capital Projects'!C21 -> 33538 | G17: =IF(ISERROR((F17-E17)/E17),"--",(F17-E17)/E17) -> -- | H17: NA | I17: =+'App.2-AA_Capital Projects'!D21 -> 271968 | J17: =IF(ISERROR((I17-H17)/H17),"--",(I17-H17)/H17) -> -- | K17: NA | L17: =+'App.2-AA_Capital Projects'!E21 -> 107687 | M17: =IF(ISERROR((L17-K17)/K17),"--",(L17-K17)/K17) -> -- | N17: NA | O17: =+'App.2-AA_Capital Projects'!F21 -> 12003 | P17: =IF(ISERROR((O17-N17)/N17),"--",(O17-N17)/N17) -> -- | Q17: ='App.2-AA_Capital Projects'!G21 -> 161526.4208 | R17: ='[12]Capital OEB'!E3 -> 0 | S17: ='[12]Capital OEB'!F3 -> 0 | T17: ='[12]Capital OEB'!G3 -> 0 | U17: ='[12]Capital OEB'!H3 -> 0
A18: System Renewal | B18: NA | C18: =+'App.2-AA_Capital Projects'!B31 -> 196434 | D18: -- | E18: NA | F18: =+'App.2-AA_Capital Projects'!C31 -> 292408 | G18: -- | H18: NA | I18: =+'App.2-AA_Capital Projects'!D31 -> 86427 | J18: -- | K18: NA | L18: =+'App.2-AA_Capital Projects'!E31 -> 183561 | M18: -- | N18: NA | O18: =+'App.2-AA_Capital Projects'!F31 -> 478054.37 | P18: -- | Q18: ='App.2-AA_Capital Projects'!G31 -> 204608 | R18: ='[12]Capital OEB'!E8 -> 388831.7333 | S18: ='[12]Capital OEB'!F8 -> 389632.1467 | T18: ='[12]Capital OEB'!G8 -> 411987.2 | U18: ='[12]Capital OEB'!H8 -> 246730.3391
A19: System Service | B19: NA | C19: =+'App.2-AA_Capital Projects'!B37 -> 13822 | D19: -- | E19: NA | F19: =+'App.2-AA_Capital Projects'!C37 -> 0 | G19: -- | H19: NA | I19: =+'App.2-AA_Capital Projects'!D37 -> 71023 | J19: -- | K19: NA | L19: =+'App.2-AA_Capital Projects'!E37 -> 4180 | M19: -- | N19: NA | O19: =+'App.2-AA_Capital Projects'!F37 -> 0 | P19: -- | Q19: ='App.2-AA_Capital Projects'!G37 -> 0 | R19: ='[12]Capital OEB'!$E$14 -> 0 | S19: ='[12]Capital OEB'!F14 -> 0 | T19: ='[12]Capital OEB'!G14 -> 0 | U19: ='[12]Capital OEB'!H14 -> 76730.8
A20: General Plant | B20: NA | C20: =+'App.2-AA_Capital Projects'!B47 -> 308399 | D20: -- | E20: NA | F20: =+'App.2-AA_Capital Projects'!C47 -> 41384 | G20: -- | H20: NA | I20: =+'App.2-AA_Capital Projects'!D47 -> 91904 | J20: -- | K20: NA | L20: =+'App.2-AA_Capital Projects'!E47 -> 158685 | M20: -- | N20: NA | O20: =+'App.2-AA_Capital Projects'!F47 -> 138353.93 | P20: -- | Q20: ='App.2-AA_Capital Projects'!G47 -> 430000 | R20: ='[12]Capital OEB'!E19 -> 70000 | S20: ='[12]Capital OEB'!F19 -> 60000 | T20: ='[12]Capital OEB'!G19 -> 45000 | U20: ='[12]Capital OEB'!H19 -> 130000
A21: TOTAL EXPENDITURE | B21: =SUM(B17:B20) -> 0 | C21: =SUM(C17:C20) -> 585770 | D21: -- | E21: 0 | F21: 367330 | G21: -- | H21: 0 | I21: 521322 | J21: -- | K21: 0 | L21: 454113 | M21: -- | N21: 0 | O21: 628411.3 | P21: -- | Q21: 796134.4208 | R21: 458831.7333 | S21: 449632.1467 | T21: 456987.2 | U21: =SUM(U17:U20) -> 453461.1391
A22: System O&M | D22: -- | G22: -- | J22: -- | M22: -- | P22: --
A24: Notes to the Table:
A25: 1. Historical “previous plan” data is not required unless a plan has previously been filed
A26: 2. Indicate the number of months of 'actual' data included in the last year of the Historical Period (normally a 'bridge' year):
A28: Explanatory Notes on Variances (complete only if applicable)
A29: Notes on shifts in forecast vs. historical budgets by category
A32: Notes on year over year Plan vs. Actual variances for Total Expenditures
A35: Notes on Plan vs. Actual variance trends for individual expenditure categories

Sheet App. 2-AC_Customer Engagement
B1: File Number: | C1: =EBNUMBER -> EB-2015-0100
B2: Exhibit:
B3: Tab:
B4: Schedule:
B5: Page:
B7: Date:
A9: Appendix 2-AC
A10: Customer Engagement Activities Summary
A12: Provide a list of customer engagement activities | B12: Provide a list of customer needs and preferences identified through each engagement activity | C12: Actions taken to respond to identified needs and preferences. If no action was taken, explain why.
A13: Customer Satisfaction Survey | B13: Consistent, reliable supply of electricity | C13: Replacement of aging infrastructure, regular maintenance
B14: Accurate billing | C14: Maintain high percentage of accurate bills
A16: Open House Meeting | B16: No specific needs identified
A19: Meetings with Municipal Councils | B19: Coordination with local municipalities | C19: Adjustments to the Distribution System Plan to coodinate projects.
A20: Newspaper Advertising | B20: Customer desires for CDM programs to reduce their bills | C20: CDM programs have been delivered.
A22: Bill Inserts | B22: Online access to account information, eBilling. | C22: The bill inserts promote CDM programs, eBilling program, and municipal information.
A24: Face To Face Meetings | B24: Need for lower bills, local access. | C24: We work with our customers, suggesting changes that can be made to reduce consumption. Our office is open to the public, and there are many customers who speak with us in person about their bills, local issues concerning electricity, and questions concerning their properties.
A26: Website | B26: Account access, eBilling, and general questions. | C26: In response to customer demand, RSL added the functionality for online access to the website. The next change was the addition of eBilling functionality.Our website provides another convenient method for our customers to reach us. Emails can be sent to us 24/7, and are responded to quickly.
A28: Twitter | B28: RSL information, outage notifications. | C28: Twitter is used to inform customers of scheduled and unscheduled outages. We also provide energy-saving tips.
A32: Note: Use "ALT-ENTER" to go to the next line within a cell

Sheet App.2-B_Acct Instructions
A1: General Instructions to MIFRS Appendices
A2: Types of Schedules to File
A4: The purpose of this tab is to provide general instructions. The specific instructions to each appendix are listed in footnotes of each appendix.
A6: The typical applicant is expected to have made capitalization and depreciation policy changes under CGAAP as permitted by the Board on January 1, 2012 or mandated by the Board by January 1, 2013, and adopted IFRS for reporting purposes on January 1, 2015 (transition date January 1, 2014). In general, applicants under the two scenarios should provide the following information in the appendices:
E9: Accounting Policy Changes in 2012 and Adopted IFRS in 2015 | F9: Accounting Policy Changes in 2013 and Adopted IFRS in 2015
E10: (Date of Transition to IFRS 2014)
A11: Information to be filed in 2016 CoS Application | B11: 2016 | C11: Test | E11: MIFRS | F11: MIFRS
B12: 2015 | C12: Bridge | E12: MIFRS | F12: MIFRS
B13: 2014 | C13: Historical | E13: MIFRS and Revised CGAAP* | F13: MIFRS and Revised CGAAP*
B14: 2013 | C14: Historical | E14: Revised CGAAP | F14: CGAAP and Revised CGAAP
B15: 2012 | C15: Historical | E15: CGAAP and Revised CGAAP | F15: CGAAP
B16: 2011 and Prior | C16: Historical | E16: CGAAP | F16: CGAAP
A18: 1) For the year that the applicant implemented changes to its capitalization and depreciation policies (2012 or 2013), the applicant must file two appendices, one before and one after the policy changes.
A21: 2) For the transition year (2014), the applicant may file two appendices, one under Revised CGAAP and one under MIFRS, depending on the materiality of impacts. See the specific instructions under each appendix below for further details.
A26: Appendix 2-BA - Fixed Asset Schedule
A28: Applicants are to provide Appendix 2-BA in accordance with the years and corresponding accounting standards noted in the above table to provide a year over year continuity in fixed assets.
A29: *For the transition year (2014), the applicant should file two appendices, one under Revised CGAAP and one under MIFRS if the change between Revised CGAAP and MIFRS is material. If the change from the accounting standards is not material, the applicant may choose to only provide one appendix under MIFRS. However, the applicant must also indicate the fixed asset net book value balance under Revised CGAAP, the total dollar value of the change and explain why it is not material.
A33: Regulatory Gross Assets of Property, Plant and Equipment
A35: For an applicant that adopted IFRS on January 1, 2015 for financial reporting purposes, the applicant must establish the continuity of historic cost by using the December 31, 2013 regulatory gross assets of property, plant and equipment as the opening January 1, 2014 regulatory gross assets. The applicant must provide schedules (including Appendix 2-BA, Fixed Asset Continuity Schedule) which must identify the following details to substantiate the continuity of historic cost for regulatory purposes:
A38: · December 31, 2013 regulatory gross assets of property, plant and equipment, by asset class; and
A39: · January 1, 2014 regulatory gross assets of property, plant and equipment, by asset class.
A41: Accumulated Depreciation
A43: For an applicant that adopted IFRS on January 1, 2015 for financial reporting purposes, the applicant must establish the continuity of historic cost by using the December 31, 2013 regulatory accumulated depreciation as the opening January 1, 2014 regulatory accumulated depreciation. The applicant must provide schedules (including Appendix 2-BA, Fixed Asset Continuity Schedule) which must identify the following details to substantiate the continuity of historic cost for regulatory purposes:
A46: · December 31, 2013 regulatory accumulated depreciation, by asset class; and
A47: · January 1, 2014 regulatory accumulated depreciation, by asset class.
A49: Appendix 2-C - Depreciation and Amortization
A51: Applicants are to provide Appendix 2-C starting in the year capitalization and depreciation policy changes were implemented in accordance with the years and corresponding accounting standards listed in the above table.
A52: If an applicant changed capitalization and depreciation policies effective January 1, 2012 and adopted IFRS for reporting purposes effective January 1, 2015, the applicant must complete Appendix 2-CA to 2-CF (inclusive).
A53: If an applicant changed capitalization and depreciation policies effective January 1, 2013 and adopted IFRS for reporting purposes effective January 1, 2015, the applicant must complete Appendix 2-CG to 2-CK (inclusive).
A54: *Depreciation accounting policy changes were mandated by the Board by January 1, 2013. These accounting changes should be implemented consistent with the Board’s regulatory accounting policies as set out for MIFRS as contained in the Report of the Board, Transition to International Financial Reporting Standards (EB-2008-0408), the Depreciation Study for Use by Electricity Distributors (EB-2010-0178) and the Revised 2012 Accounting Procedures Handbook for Electricity Distributors. In general, no further changes to an applicant's depreciation policy (i.e. assets' service lives) are expected after the Board mandated changes by January 1, 2013. The set of Appendix CA to CK assumes this to be the case. If the applicant has made any changes to its depreciation policy subsequent to the Board mandated changes, applicants must identify the change, explain the nature of the change, the reason for the change, quantify the impact of the change, and quantify the depreciation expense before and after the change.
A57: Appendix 2-E - Account 1575, IFRS-CGAAP Transitional PP&E Amounts (2-EA), Account 1576, Accounting Changes Under CGAAP (2-EB, 2-EC)
A59: If an applicant changed capitalization and depreciation policies effective January 1, 2012 and adopted IFRS for reporting purposes effective January 1, 2015, the applicant must complete Appendix 2-EA and 2-EB. If the applicant did not make any further PP&E accounting policy changes beyond the capitalization and depreciation policy changes as permitted by the Board on January 1, 2012 (i.e. no further changes made on transition to IFRS), the applicant must indicate this and does not need to complete Appendix 2-EA.
A61: If an applicant changed capitalization and depreciation policies effective January 1, 2013 and adopted IFRS for reporting purposes effective January 1, 2015, the applicant must complete Appendix 2-EA and 2-EC. If the applicant did not make any further PP&E accounting policy changes beyond the capitalization and depreciation policy changes as mandated by the Board by January 1, 2013 (i.e. no further changes made on transition to IFRS), the applicant must indicate this and does not need to complete Appendix 2-EA.
A63: Please refer to section 2.12.4 and 2.12.5 of the Filing Requirements for further details.
A65: Appendix 2-YA - Summary of Impacts to Revenue Requirement from Transition to MIFRS
A67: For applicants adopting MIFRS, the applicants must provide a summary of the dollar impacts of MIFRS to each component of the revenue requirement (e.g. rate base, operating costs, etc), including the overall impact on the proposed revenue requirement. Accordingly, the applicants must identify financial differences and resulting revenue requirement impacts arising from the adoption of MIFRS as compared to CGAAP prior to capitalization and depreciation policy changes.

Sheet App.2-BA_Fixed Asset Cont
L1: File Number: | M1: =EBNUMBER -> EB-2015-0100 | Z1: File Number: | AA1: =EBNUMBER -> EB-2015-0100
L2: Exhibit: | Z2: Exhibit:
L3: Tab: | Z3: Tab:
L4: Schedule: | Z4: Schedule:
L5: Page: | Z5: Page:
L7: Date: | Z7: Date:
A9: Appendix 2-BA
A10: Fixed Asset Continuity Schedule 1
E12: Accounting Standard | F12: CGAAP
E13: Year | F13: 2012
D15: Cost | J15: Accumulated Depreciation
A16: CCA Class 2 | B16: OEB Account 3 | C16: Description 3 | D16: Opening Balance | E16: Additions 4 | F16: Disposals | G16: Closing Balance | I16: Opening Balance | J16: Additions | K16: Disposals | L16: Closing Balance | M16: Net Book Value
A17: 12 | B17: 1611 | C17: Computer Software (Formally known as Account 1925) | D17: 299412.36 | E17: 23483.34 | F17: =IFERROR(#REF!,N17) -> 0 | G17: =D17+E17+F17 -> 322895.7 | I17: -134463.67 | J17: -60067.02 | K17: =IFERROR(#REF!,N17) -> 0 | L17: =I17+J17+K17 -> -194530.69 | M17: =G17+L17 -> 128365.01
A18: CEC | B18: 1612 | C18: Land Rights (Formally known as Account 1906) | G18: =D18+E18+F18 -> 0 | L18: =I18+J18+K18 -> 0 | M18: =G18+L18 -> 0
A19: N/A | B19: 1805 | C19: Land | D19: 84205.25 | G19: =D19+E19+F19 -> 84205.25 | L19: =I19+J19+K19 -> 0 | M19: =G19+L19 -> 84205.25
A20: 47 | B20: 1808 | C20: Buildings | D20: 82287.41 | E20: 0 | F20: 0 | G20: =D20+E20+F20 -> 82287.41 | I20: -8294.15 | J20: -1635.53 | K20: 0 | L20: =I20+J20+K20 -> -9929.68 | M20: =G20+L20 -> 72357.73
A21: 13 | B21: 1810 | C21: Leasehold Improvements | G21: 0 | L21: 0 | M21: 0
A22: 47 | B22: 1815 | C22: Transformer Station Equipment >50 kV | G22: 0 | L22: 0 | M22: 0
A23: 47 | B23: 1820 | C23: Distribution Station Equipment <50 kV( Substations) | D23: 382642.34 | E23: 5871.36 | F23: 0 | G23: 388513.7 | I23: -145358.43 | J23: -15176.38 | K23: 0 | L23: -160534.81 | M23: 227978.89
A24: 47 | B24: 1820 | C24: Distribution Station Equipment <50 kV( Wholesale Meters) | D24: 319825.85 | E24: 15786.5 | F24: 0 | G24: 335612.35 | I24: -64461.65 | J24: -12815.06 | K24: 0 | L24: =I24+J24+K24 -> -77276.71 | M24: =G24+L24 -> 258335.64
A25: 47 | B25: 1825 | C25: Storage Battery Equipment | G25: 0 | L25: 0 | M25: 0
A26: 47 | B26: 1830 | C26: Poles, Towers & Fixtures | D26: 510814.85 | E26: 81585.31 | F26: -7791.11 | G26: 584609.05 | I26: -94898.2 | J26: -12113.92 | K26: 2417.67 | L26: -104594.45 | M26: 480014.6
A27: 47 | B27: 1835 | C27: Overhead Conductors & Devices | D27: 1872943.55 | E27: 105634.92 | F27: 0 | G27: 1978578.47 | I27: -652270.622 | J27: -24352.73 | K27: 0 | L27: -676623.352 | M27: 1301955.118
A28: 47 | B28: 1840 | C28: Underground Conduit | D28: 36862.35 | E28: 4381.1 | F28: 0 | G28: 41243.45 | I28: -10309.7 | J28: -676.64 | K28: 0 | L28: -10986.34 | M28: 30257.11
A29: 47 | B29: 1845 | C29: Underground Conductors & Devices | D29: 823262.64 | E29: 14333.71 | F29: 0 | G29: 837596.35 | I29: -289845.83 | J29: -16810.16 | K29: 0 | L29: -306655.99 | M29: 530940.36
A30: 47 | B30: 1850 | C30: Line Transformers | D30: 1041343.07 | E30: 69089.61 | F30: -10577.33 | G30: 1099855.35 | I30: -291582.29 | J30: -20076.39 | K30: 7310.82 | L30: -304347.86 | M30: 795507.49
A31: 47 | B31: 1855 | C31: Services (Overhead & Underground) | D31: 271026.7 | E31: 14495.22 | F31: 0 | G31: 285521.92 | I31: -48923.11 | J31: -4533.12 | K31: 0 | L31: -53456.23 | M31: 232065.69
A32: 47 | B32: 1860 | C32: Meters (Non Smart Meters) | D32: 187370.19 | F32: 0 | G32: 187370.19 | I32: =-43099.9 -> -43099.9 | J32: =-[13]Depn!O31 -> -7190.72 | K32: 0 | L32: -50290.62 | M32: 137079.57
A33: 47 | B33: 1860 | C33: Meters (Smart Meters) | D33: 1102917.3 | E33: =[13]Depn!$B$40 -> 33135.89 | F33: 0 | G33: 1136053.19 | I33: -164860.7 | J33: =-[13]Depn!O32 -> -74632.35 | K33: 0 | L33: -239493.05 | M33: 896560.14
A34: N/A | B34: 1905 | C34: Land | G34: 0 | L34: 0 | M34: 0
A35: 47 | B35: 1908 | C35: Buildings & Fixtures | G35: 0 | L35: 0 | M35: 0
A36: 13 | B36: 1910 | C36: Leasehold Improvements | D36: 8796.45 | E36: 0 | F36: 0 | G36: 8796.45 | I36: -3078.37 | J36: -879.7 | K36: 0 | L36: -3958.07 | M36: 4838.38
A37: 8 | B37: 1915 | C37: Office Furniture & Equipment (10 years) | G37: 0 | L37: 0 | M37: 0
A38: 8 | B38: 1915 | C38: Office Furniture & Equipment (5 years) | G38: 0 | L38: 0 | M38: 0
A39: 10 | B39: 1920 | C39: Computer Equipment - Hardware | D39: 186007.44 | E39: 9125.53 | G39: 195132.97 | I39: -134168.22 | J39: -25468.97 | K39: 0 | L39: -159637.19 | M39: 35495.78
A40: 45 | B40: 1920 | C40: Computer Equip.-Hardware(Post Mar. 22/04) | G40: 0 | L40: 0 | M40: 0
A41: 45.1 | B41: 1920 | C41: Computer Equip.-Hardware(Post Mar. 19/07) | G41: 0 | L41: 0 | M41: 0
A42: 10 | B42: 1930 | C42: Transportation Equipment | D42: 624946.23 | E42: 6364.36 | G42: 631310.59 | I42: -131266.53 | J42: -82457.79 | K42: 0 | L42: -213724.32 | M42: 417586.27
A43: 8 | B43: 1935 | C43: Stores Equipment | G43: 0 | L43: 0 | M43: 0
A44: 8 | B44: 1940 | C44: Tools, Shop & Garage Equipment | D44: 135456.26 | E44: 2411 | F44: 0 | G44: 137867.26 | I44: -111020.24 | J44: -4255.19 | K44: 0 | L44: -115275.43 | M44: 22591.83
A45: 8 | B45: 1945 | C45: Measurement & Testing Equipment | G45: 0 | L45: 0 | M45: 0
A46: 8 | B46: 1950 | C46: Power Operated Equipment | G46: 0 | L46: 0 | M46: 0
A47: 8 | B47: 1955 | C47: Communications Equipment | G47: 0 | L47: 0 | M47: 0
A48: 8 | B48: 1955 | C48: Communication Equipment (Smart Meters) | G48: 0 | L48: 0 | M48: 0
A49: 8 | B49: 1960 | C49: Miscellaneous Equipment | G49: 0 | L49: 0 | M49: 0
A50: 47 | B50: 1970 | C50: Load Management Controls Customer Premises | G50: 0 | L50: 0 | M50: 0
A51: 47 | B51: 1975 | C51: Load Management Controls Utility Premises | G51: 0 | L51: 0 | M51: 0
A52: 47 | B52: 1980 | C52: System Supervisor Equipment | G52: 0 | L52: 0 | M52: 0
A53: 47 | B53: 1985 | C53: Miscellaneous Fixed Assets | G53: 0 | L53: 0 | M53: 0
A54: 47 | B54: 1990 | C54: Other Tangible Property | G54: 0 | L54: 0 | M54: 0
A55: 47 | B55: 1995 | C55: Contributions & Grants | D55: -430179.46 | E55: -38433.31 | F55: 0 | G55: -468612.77 | I55: 87894.32 | J55: 9123.25 | K55: 0 | L55: 97017.57 | M55: -371595.2
A56: 47 | B56: 2440 | C56: Deferred Revenue5 | G56: 0 | L56: =I56+J56+K56 -> 0 | M56: =G56+L56 -> 0
G57: 0 | L57: =I57+J57+K57 -> 0 | M57: =G57+L57 -> 0
C58: Sub-Total | D58: =SUM(D17:D57) -> 7539940.78 | E58: =SUM(E17:E57) -> 347264.54 | F58: =SUM(F17:F57) -> -18368.44 | G58: =SUM(G17:G57) -> 7868836.88 | I58: =SUM(I17:I57) -> -2240007.292 | J58: =SUM(J17:J57) -> -354018.42 | K58: =SUM(K17:K57) -> 9728.49 | L58: =SUM(L17:L57) -> -2584297.222 | M58: =SUM(M17:M57) -> 5284539.658
C59: Less Socialized Renewable Energy Generation Investments (input as negative) | G59: =D59+E59+F59 -> 0 | L59: =I59+J59+K59 -> 0 | M59: =G59+L59 -> 0
C60: Less Other Non Rate-Regulated Utility Assets (input as negative) | G60: =D60+E60+F60 -> 0 | L60: =I60+J60+K60 -> 0 | M60: =G60+L60 -> 0
C61: Total PP&E | D61: =SUM(D58:D60) -> 7539940.78 | E61: =SUM(E58:E60) -> 347264.54 | F61: =SUM(F58:F60) -> -18368.44 | G61: =SUM(G58:G60) -> 7868836.88 | I61: =SUM(I58:I60) -> -2240007.292 | J61: =SUM(J58:J60) -> -354018.42 | K61: =SUM(K58:K60) -> 9728.49 | L61: =SUM(L58:L60) -> -2584297.222 | M61: =SUM(M58:M60) -> 5284539.658
C62: Depreciation Expense adj. from gain or loss on the retirement of assets (pool of like assets), if applicable6
C63: Total | J63: =J61+J62 -> -354018.42
I65: Less: Fully Allocated Depreciation
A66: 10 | C66: Transportation | I66: Transportation
A67: 8 | C67: Stores Equipment | I67: Stores Equipment
I68: Net Depreciation | K68: =J63-K66-K67 -> -354018.42
A70: Notes:
A72: 1 | B72: Tables in the format outlined above covering all fixed asset accounts should be submitted for the Test Year, Bridge Year and all relevant historical years. At a minimum , the applicant must provide data for the earlier of: 1) all historical years back to its last rebasing; or 2) at least three years of historical actuals, in addition to Bridge Year and Test Year forecasts.
A75: 2 | B75: The "CCA Class" for fixed assets should agree with the CCA Class used for tax purposes in Tax Returns. Fixed Assets sub-components may be used where the underlying asset components are classified under multiple CCA Classes for tax purposes. If an applicant uses any different classes from those shown in the table, an explanation should be provided. (also see note 3).
A78: 3 | B78: The table may need to be customized for a utility's asset categories or for any new asset accounts announced or authorized by the Board.
A80: 4 | B80: The additions in column (E) must not include construction work in progress (CWIP).
A82: 5 | B82: Effective on the date of IFRS adoption, customer contributions will no longer be recorded in Account 1995 Contributions & Grants, but will be recorded in Account 2440, Deferred Revenues.
A84: 6 | B84: Where a distributor for general financial reporting purposes under IFRS has accounted for the amount of gain or loss on the retirement of assets in a pool of like assets as a charge or credit to income, for reporting and rate application filings, the distributor shall reclassify such gains and losses as depreciation expense, and disclose the amount separately.
A90: Appendix 2-BA
A91: Fixed Asset Continuity Schedule 1
E93: Accounting Standard | F93: CGAAP
E94: Year | F94: 2013
D96: Cost | J96: Accumulated Depreciation
A97: CCA Class 2 | B97: OEB Account 3 | C97: Description 3 | D97: Opening Balance | E97: Additions 4 | F97: Disposals | G97: Closing Balance | I97: Opening Balance | J97: Additions | K97: Disposals | L97: Closing Balance | M97: Net Book Value
A98: 12 | B98: 1611 | C98: Computer Software (Formally known as Account 1925) | D98: =G17 -> 322895.7 | E98: 33460.37 | G98: =D98+E98+F98 -> 356356.07 | I98: =L17 -> -194530.69 | J98: -58795.03 | L98: =I98+J98+K98 -> -253325.72 | M98: =G98+L98 -> 103030.35
A99: CEC | B99: 1612 | C99: Land Rights (Formally known as Account 1906) | D99: 0 | G99: =D99+E99+F99 -> 0 | I99: 0 | L99: =I99+J99+K99 -> 0 | M99: =G99+L99 -> 0
A100: N/A | B100: 1805 | C100: Land | D100: 84205.25 | G100: =D100+E100+F100 -> 84205.25 | I100: 0 | L100: =I100+J100+K100 -> 0 | M100: =G100+L100 -> 84205.25
A101: 47 | B101: 1808 | C101: Buildings | D101: 82287.41 | G101: =D101+E101+F101 -> 82287.41 | I101: -9929.68 | J101: =-1635.53 -> -1635.53 | L101: =I101+J101+K101 -> -11565.21 | M101: =G101+L101 -> 70722.2
A102: 13 | B102: 1810 | C102: Leasehold Improvements | D102: 0 | G102: 0 | I102: 0 | L102: 0 | M102: 0
A103: 47 | B103: 1815 | C103: Transformer Station Equipment >50 kV | D103: 0 | G103: 0 | I103: 0 | L103: 0 | M103: 0
A104: 47 | B104: 1820 | C104: Distribution Station Equipment <50 kV( Substations) | D104: 388513.7 | E104: 80998.15 | G104: 469511.85 | I104: -160534.81 | J104: -16200.38 | L104: -176735.19 | M104: 292776.66
A105: 47 | B105: 1820 | C105: Distribution Station Equipment <50 kV( Wholesale Meters) | D105: 335612.35 | E105: 1800 | G105: 337412.35 | I105: -77276.71 | J105: -13166.79 | L105: -90443.5 | M105: 246968.85
A106: 47 | B106: 1825 | C106: Storage Battery Equipment | D106: 0 | G106: 0 | I106: 0 | L106: 0 | M106: 0
A107: 47 | B107: 1830 | C107: Poles, Towers & Fixtures | D107: 584609.05 | E107: 83532.29 | F107: -5885.91 | G107: 662255.43 | I107: -104594.45 | J107: -13809.38 | K107: 1583.4 | L107: -116820.43 | M107: 545435
A108: 47 | B108: 1835 | C108: Overhead Conductors & Devices | D108: 1978578.47 | E108: 98159.35 | G108: 2076737.82 | I108: -676623.352 | J108: -26065.81 | L108: -702689.162 | M108: 1374048.658
A109: 47 | B109: 1840 | C109: Underground Conduit | D109: 41243.45 | E109: 3223.37 | G109: 44466.82 | I109: -10986.34 | J109: -752.68 | L109: -11739.02 | M109: 32727.8
A110: 47 | B110: 1845 | C110: Underground Conductors & Devices | D110: 837596.35 | E110: 58555.89 | G110: 896152.24 | I110: -306655.99 | J110: -17721.28 | L110: -324377.27 | M110: 571774.97
A111: 47 | B111: 1850 | C111: Line Transformers | D111: 1099855.35 | E111: 91643.57 | G111: 1191498.92 | I111: -304347.86 | J111: -21814.98 | L111: -326162.84 | M111: 865336.08
A112: 47 | B112: 1855 | C112: Services (Overhead & Underground) | D112: 285521.92 | E112: 6693.46 | G112: 292215.38 | I112: -53456.23 | J112: -4709.7 | L112: -58165.93 | M112: 234049.45
A113: 47 | B113: 1860 | C113: Meters( Non Smart Meters) | D113: 187370.19 | G113: 187370.19 | I113: -50290.62 | J113: =-[14]Depn!$Q$33 -> -7190.73 | L113: -57481.35 | M113: 129888.84
A114: 47 | B114: 1860 | C114: Meters(Smart Meters) | D114: 1136053.19 | E114: =16664.34 -> 16664.34 | F114: -5966.92 | G114: 1146750.61 | I114: -239493.05 | J114: =-[14]Depn!$Q$34 -> -76491.18 | K114: =[14]Depn!$I$31 -> 1590.42 | L114: -314393.81 | M114: 832356.8
A115: N/A | B115: 1905 | C115: Land | D115: 0 | G115: 0 | I115: 0 | L115: 0 | M115: 0
A116: 47 | B116: 1908 | C116: Buildings & Fixtures | D116: 0 | G116: 0 | I116: 0 | L116: 0 | M116: 0
A117: 13 | B117: 1910 | C117: Leasehold Improvements | D117: 8796.45 | G117: 8796.45 | I117: -3958.07 | J117: -879.71 | L117: -4837.78 | M117: 3958.67
A118: 8 | B118: 1915 | C118: Office Furniture & Equipment (10 years) | D118: 0 | G118: 0 | I118: 0 | L118: 0 | M118: 0
A119: 8 | B119: 1915 | C119: Office Furniture & Equipment (5 years) | D119: 0 | G119: 0 | I119: 0 | L119: 0 | M119: 0
A120: 10 | B120: 1920 | C120: Computer Equipment - Hardware | D120: 195132.97 | E120: 42869.6 | G120: 238002.57 | I120: -159637.19 | J120: -19963.06 | L120: -179600.25 | M120: 58402.32
A121: 45 | B121: 1920 | C121: Computer Equip.-Hardware(Post Mar. 22/04) | D121: 0 | G121: 0 | I121: 0 | L121: 0 | M121: 0
A122: 45.1 | B122: 1920 | C122: Computer Equip.-Hardware(Post Mar. 19/07) | D122: 0 | G122: 0 | I122: 0 | L122: 0 | M122: 0
A123: 10 | B123: 1930 | C123: Transportation Equipment | D123: 631310.59 | E123: 2093.7 | G123: 633404.29 | I123: -213724.32 | J123: -79192.83 | L123: -292917.15 | M123: 340487.14
A124: 8 | B124: 1935 | C124: Stores Equipment | D124: 0 | G124: 0 | I124: 0 | L124: 0 | M124: 0
A125: 8 | B125: 1940 | C125: Tools, Shop & Garage Equipment | D125: 137867.26 | E125: 13479.96 | G125: 151347.22 | I125: -115275.43 | J125: -4504.37 | L125: -119779.8 | M125: 31567.42
A126: 8 | B126: 1945 | C126: Measurement & Testing Equipment | D126: 0 | G126: 0 | I126: 0 | L126: 0 | M126: 0
A127: 8 | B127: 1950 | C127: Power Operated Equipment | D127: 0 | G127: 0 | I127: 0 | L127: 0 | M127: 0
A128: 8 | B128: 1955 | C128: Communications Equipment | D128: 0 | G128: 0 | I128: 0 | L128: 0 | M128: 0
A129: 8 | B129: 1955 | C129: Communication Equipment (Smart Meters) | D129: 0 | G129: 0 | I129: 0 | L129: 0 | M129: 0
A130: 8 | B130: 1960 | C130: Miscellaneous Equipment | D130: 0 | G130: 0 | I130: 0 | L130: 0 | M130: 0
A131: 47 | B131: 1970 | C131: Load Management Controls Customer Premises | D131: 0 | G131: 0 | I131: 0 | L131: 0 | M131: 0
A132: 47 | B132: 1975 | C132: Load Management Controls Utility Premises | D132: 0 | G132: 0 | I132: 0 | L132: 0 | M132: 0
A133: 47 | B133: 1980 | C133: System Supervisor Equipment | D133: 0 | G133: 0 | I133: 0 | L133: 0 | M133: 0
A134: 47 | B134: 1985 | C134: Miscellaneous Fixed Assets | D134: 0 | G134: 0 | I134: 0 | L134: 0 | M134: 0
A135: 47 | B135: 1990 | C135: Other Tangible Property | D135: 0 | G135: 0 | I135: 0 | L135: 0 | M135: 0
A136: 47 | B136: 1995 | C136: Contributions & Grants | D136: -468612.77 | E136: -165303.65 | G136: -633916.42 | I136: 97017.57 | J136: 10896.16 | L136: 107913.73 | M136: -526002.69
A137: 47 | B137: 2440 | C137: Deferred Revenue5 | G137: 0 | L137: 0 | M137: 0
G138: 0 | L138: 0 | M138: 0
C139: Sub-Total | D139: =SUM(D98:D138) -> 7868836.88 | E139: =SUM(E98:E138) -> 367870.4 | F139: =SUM(F98:F138) -> -11852.83 | G139: =SUM(G98:G138) -> 8224854.45 | I139: =SUM(I98:I138) -> -2584297.222 | J139: =SUM(J98:J138) -> -351997.28 | K139: =SUM(K98:K138) -> 3173.82 | L139: =SUM(L98:L138) -> -2933120.682 | M139: =SUM(M98:M138) -> 5291733.768
C140: Less Socialized Renewable Energy Generation Investments (input as negative) | G140: =D140+E140+F140 -> 0 | L140: =I140+J140+K140 -> 0 | M140: =G140+L140 -> 0
C141: Less Other Non Rate-Regulated Utility Assets (input as negative) | G141: =D141+E141+F141 -> 0 | L141: =I141+J141+K141 -> 0 | M141: =G141+L141 -> 0
C142: Total PP&E | D142: =SUM(D139:D141) -> 7868836.88 | E142: =SUM(E139:E141) -> 367870.4 | F142: =SUM(F139:F141) -> -11852.83 | G142: =SUM(G139:G141) -> 8224854.45 | I142: =SUM(I139:I141) -> -2584297.222 | J142: =SUM(J139:J141) -> -351997.28 | K142: =SUM(K139:K141) -> 3173.82 | L142: =SUM(L139:L141) -> -2933120.682 | M142: =SUM(M139:M141) -> 5291733.768
C143: Depreciation Expense adj. from gain or loss on the retirement of assets (pool of like assets), if applicable6
C144: Total | J144: =J142+J143 -> -351997.28
I146: Less: Fully Allocated Depreciation
A147: 10 | C147: Transportation | I147: Transportation
A148: 8 | C148: Stores Equipment | I148: Stores Equipment
I149: Net Depreciation | K149: =J144-K147-K148 -> -351997.28
A154: Appendix 2-BA
A155: Fixed Asset Continuity Schedule 1
E157: Accounting Standard | F157: CGAAP
E158: Year | F158: 2014
D160: Cost | J160: Accumulated Depreciation
A161: CCA Class 2 | B161: OEB Account 3 | C161: Description 3 | D161: Opening Balance | E161: Additions 4 | F161: Disposals | G161: Closing Balance | I161: Opening Balance | J161: Additions | K161: Disposals | L161: Closing Balance | M161: Net Book Value
A162: 12 | B162: 1611 | C162: Computer Software (Formally known as Account 1925) | D162: =G98 -> 356356.07 | E162: 92520.58 | G162: =D162+E162+F162 -> 448876.65 | I162: =L98 -> -253325.72 | J162: -56853.36 | L162: =I162+J162+K162 -> -310179.08 | M162: =G162+L162 -> 138697.57
A163: CEC | B163: 1612 | C163: Land Rights (Formally known as Account 1906) | D163: =G99 -> 0 | G163: =D163+E163+F163 -> 0 | I163: =L99 -> 0 | L163: =I163+J163+K163 -> 0 | M163: =G163+L163 -> 0
A164: N/A | B164: 1805 | C164: Land | D164: 84205.25 | G164: =D164+E164+F164 -> 84205.25 | I164: 0 | L164: =I164+J164+K164 -> 0 | M164: =G164+L164 -> 84205.25
A165: 47 | B165: 1808 | C165: Buildings | D165: 82287.41 | E165: 18611.42 | G165: =D165+E165+F165 -> 100898.83 | I165: -11565.21 | J165: -1821.64 | L165: =I165+J165+K165 -> -13386.85 | M165: =G165+L165 -> 87511.98
A166: 13 | B166: 1810 | C166: Leasehold Improvements | D166: 0 | G166: 0 | I166: 0 | L166: 0 | M166: 0
A167: 47 | B167: 1815 | C167: Transformer Station Equipment >50 kV | D167: 0 | G167: 0 | I167: 0 | L167: 0 | M167: 0
A168: 47 | B168: 1820 | C168: Distribution Station Equipment <50 kV( Substations) | D168: 469511.85 | E168: 10541.81 | G168: 480053.66 | I168: -176735.19 | J168: -17290.92 | L168: -194026.11 | M168: 286027.55
A169: 47 | B169: 1820 | C169: Distribution Station Equipment <50 kV( Wholesale Meters) | D169: 337412.35 | E169: 9451.7 | G169: 346864.05 | I169: -90443.5 | J169: -13391.82 | L169: -103835.32 | M169: 243028.73
A170: 47 | B170: 1825 | C170: Storage Battery Equipment | D170: 0 | G170: 0 | I170: 0 | L170: 0 | M170: 0
A171: 47 | B171: 1830 | C171: Poles, Towers & Fixtures | D171: 662255.43 | E171: 70213.34 | F171: -3562.52 | G171: 728906.25 | I171: -116820.43 | J171: -15319.83 | K171: 1476.47 | L171: -130663.79 | M171: 598242.46
A172: 47 | B172: 1835 | C172: Overhead Conductors & Devices | D172: 2076737.82 | E172: 57820.29 | G172: 2134558.11 | I172: -702689.162 | J172: -26584.88 | L172: -729274.042 | M172: 1405284.068
A173: 47 | B173: 1840 | C173: Underground Conduit | D173: 44466.82 | E173: 24279.77 | G173: 68746.59 | I173: -11739.02 | J173: -1027.72 | L173: -12766.74 | M173: 55979.85
A174: 47 | B174: 1845 | C174: Underground Conductors & Devices | D174: 896152.24 | E174: 62867.29 | G174: 959019.53 | I174: -324377.27 | J174: -19239.07 | L174: -343616.34 | M174: 615403.19
A175: 47 | B175: 1850 | C175: Line Transformers | D175: 1191498.92 | E175: 22494.25 | F175: -203.35 | G175: 1213789.82 | I175: -326162.84 | J175: -23082.45 | K175: 157.46 | L175: -349087.83 | M175: 864701.99
A176: 47 | B176: 1855 | C176: Services (Overhead & Underground) | D176: 292215.38 | E176: 4560 | G176: 296775.38 | I176: -58165.93 | J176: -4803.48 | L176: -62969.41 | M176: 233805.97
A177: 47 | B177: 1860 | C177: Meters( Non Smart Meters) | D177: 187370.19 | E177: =[15]Depn!B38 -> 0 | G177: 187370.19 | I177: -57481.35 | J177: =-[15]Depn!Q35 -> -7190.73 | L177: -64672.08 | M177: 122698.11
A178: 47 | B178: 1860 | C178: Meters(Smart Meters) | D178: 1146750.61 | E178: =[15]Depn!B39 -> 23652.7 | F178: -5298.1 | G178: 1165105.21 | I178: -314393.81 | J178: =-[15]Depn!Q36 -> -77023.78 | K178: 1765.12 | L178: -389652.47 | M178: 775452.74
A179: N/A | B179: 1905 | C179: Land | D179: 0 | G179: 0 | I179: 0 | L179: 0 | M179: 0
A180: 47 | B180: 1908 | C180: Buildings & Fixtures | D180: 0 | G180: 0 | I180: 0 | L180: 0 | M180: 0
A181: 13 | B181: 1910 | C181: Leasehold Improvements | D181: 8796.45 | G181: 8796.45 | I181: -4837.78 | J181: -879.71 | L181: -5717.49 | M181: 3078.96
A182: 8 | B182: 1915 | C182: Office Furniture & Equipment (10 years) | D182: 0 | G182: 0 | I182: 0 | L182: 0 | M182: 0
A183: 8 | B183: 1915 | C183: Office Furniture & Equipment (5 years) | D183: 0 | G183: 0 | I183: 0 | L183: 0 | M183: 0
A184: 10 | B184: 1920 | C184: Computer Equipment - Hardware | D184: 238002.57 | E184: 13243.71 | G184: 251246.28 | I184: -179600.25 | J184: -19115.88 | L184: -198716.13 | M184: 52530.15
A185: 45 | B185: 1920 | C185: Computer Equip.-Hardware(Post Mar. 22/04) | D185: 0 | G185: 0 | I185: 0 | L185: 0 | M185: 0
A186: 45.1 | B186: 1920 | C186: Computer Equip.-Hardware(Post Mar. 19/07) | D186: 0 | G186: 0 | I186: 0 | L186: 0 | M186: 0
A187: 10 | B187: 1930 | C187: Transportation Equipment | D187: 633404.29 | E187: 46494.17 | G187: 679898.46 | I187: -292917.15 | J187: -84051.62 | L187: -376968.77 | M187: 302929.69
A188: 8 | B188: 1935 | C188: Stores Equipment | D188: 0 | G188: 0 | I188: 0 | L188: 0 | M188: 0
A189: 8 | B189: 1940 | C189: Tools, Shop & Garage Equipment | D189: 151347.22 | E189: 6426.01 | G189: 157773.23 | I189: -119779.8 | J189: -5499.67 | L189: -125279.47 | M189: 32493.76
A190: 8 | B190: 1945 | C190: Measurement & Testing Equipment | D190: 0 | G190: 0 | I190: 0 | L190: 0 | M190: 0
A191: 8 | B191: 1950 | C191: Power Operated Equipment | D191: 0 | G191: 0 | I191: 0 | L191: 0 | M191: 0
A192: 8 | B192: 1955 | C192: Communications Equipment | D192: 0 | G192: 0 | I192: 0 | L192: 0 | M192: 0
A193: 8 | B193: 1955 | C193: Communication Equipment (Smart Meters) | D193: 0 | G193: 0 | I193: 0 | L193: 0 | M193: 0
A194: 8 | B194: 1960 | C194: Miscellaneous Equipment | D194: 0 | G194: 0 | I194: 0 | L194: 0 | M194: 0
A195: 47 | B195: 1970 | C195: Load Management Controls Customer Premises | D195: 0 | G195: 0 | I195: 0 | L195: 0 | M195: 0
A196: 47 | B196: 1975 | C196: Load Management Controls Utility Premises | D196: 0 | G196: 0 | I196: 0 | L196: 0 | M196: 0
A197: 47 | B197: 1980 | C197: System Supervisor Equipment | D197: 0 | G197: 0 | I197: 0 | L197: 0 | M197: 0
A198: 47 | B198: 1985 | C198: Miscellaneous Fixed Assets | D198: 0 | G198: 0 | I198: 0 | L198: 0 | M198: 0
A199: 47 | B199: 1990 | C199: Other Tangible Property | D199: 0 | G199: 0 | I199: 0 | L199: 0 | M199: 0
A200: 47 | B200: 1995 | C200: Contributions & Grants | D200: -633916.42 | E200: -30723.29 | G200: -664639.71 | I200: 107913.73 | J200: 13011.28 | L200: 120925.01 | M200: -543714.7
A201: 47 | B201: 2440 | C201: Deferred Revenue5 | G201: 0 | L201: 0 | M201: 0
G202: 0 | L202: 0 | M202: 0
C203: Sub-Total | D203: =SUM(D162:D202) -> 8224854.45 | E203: =SUM(E162:E202) -> 432453.75 | F203: =SUM(F162:F202) -> -9063.97 | G203: =SUM(G162:G202) -> 8648244.23 | I203: =SUM(I162:I202) -> -2933120.682 | J203: =SUM(J162:J202) -> -360165.28 | K203: =SUM(K162:K202) -> 3399.05 | L203: =SUM(L162:L202) -> -3289886.912 | M203: =SUM(M162:M202) -> 5358357.318
C204: Less Socialized Renewable Energy Generation Investments (input as negative) | G204: =D204+E204+F204 -> 0 | L204: =I204+J204+K204 -> 0 | M204: =G204+L204 -> 0
C205: Less Other Non Rate-Regulated Utility Assets (input as negative) | G205: =D205+E205+F205 -> 0 | L205: =I205+J205+K205 -> 0 | M205: =G205+L205 -> 0
C206: Total PP&E | D206: =SUM(D203:D205) -> 8224854.45 | E206: =SUM(E203:E205) -> 432453.75 | F206: =SUM(F203:F205) -> -9063.97 | G206: =SUM(G203:G205) -> 8648244.23 | I206: =SUM(I203:I205) -> -2933120.682 | J206: =SUM(J203:J205) -> -360165.28 | K206: =SUM(K203:K205) -> 3399.05 | L206: =SUM(L203:L205) -> -3289886.912 | M206: =SUM(M203:M205) -> 5358357.318
C207: Depreciation Expense adj. from gain or loss on the retirement of assets (pool of like assets), if applicable6
C208: Total | J208: =J206+J207 -> -360165.28
I210: Less: Fully Allocated Depreciation
A211: 10 | C211: Transportation | I211: Transportation
A212: 8 | C212: Stores Equipment | I212: Stores Equipment
I213: Net Depreciation | K213: =J208-K211-K212 -> -360165.28
A218: Appendix 2-BA
A219: Fixed Asset Continuity Schedule 1
E221: Accounting Standard | F221: MIFRS
E222: Year | F222: 2014
D224: Cost | J224: Accumulated Depreciation
A225: CCA Class 2 | B225: OEB Account 3 | C225: Description 3 | D225: Opening Balance | E225: Additions 4 | F225: Disposals | G225: Closing Balance | I225: Opening Balance | J225: Additions | K225: Disposals | L225: Closing Balance | M225: Net Book Value
A226: 12 | B226: 1611 | C226: Computer Software (Formally known as Account 1925) | D226: =+D162 -> 356356.07 | E226: 92520.58 | G226: =D226+E226+F226 -> 448876.65 | I226: =+I162 -> -253325.72 | J226: =+J162 -> -56853.36 | L226: =I226+J226+K226 -> -310179.08 | M226: =G226+L226 -> 138697.57
A227: CEC | B227: 1612 | C227: Land Rights (Formally known as Account 1906) | D227: 0 | E227: 0 | G227: =D227+E227+F227 -> 0 | I227: =+I163 -> 0 | J227: 0 | L227: =I227+J227+K227 -> 0 | M227: =G227+L227 -> 0
A228: N/A | B228: 1805 | C228: Land | D228: 84205.25 | E228: 0 | G228: =D228+E228+F228 -> 84205.25 | I228: =+I164 -> 0 | J228: 0 | L228: =I228+J228+K228 -> 0 | M228: =G228+L228 -> 84205.25
A229: 47 | B229: 1808 | C229: Buildings | D229: 82287.41 | E229: 18611.42 | G229: =D229+E229+F229 -> 100898.83 | I229: =+I165 -> -11565.21 | J229: -1821.64 | L229: =I229+J229+K229 -> -13386.85 | M229: =G229+L229 -> 87511.98
A230: 13 | B230: 1810 | C230: Leasehold Improvements | D230: 0 | E230: 0 | G230: 0 | I230: =+I166 -> 0 | J230: 0 | L230: 0 | M230: 0
A231: 47 | B231: 1815 | C231: Transformer Station Equipment >50 kV | D231: 0 | E231: 0 | G231: 0 | I231: =+I167 -> 0 | J231: 0 | L231: 0 | M231: 0
A232: 47 | B232: 1820 | C232: Distribution Station Equipment <50 kV( Substations) | D232: 469511.85 | E232: 10541.81 | G232: 480053.66 | I232: =+I168 -> -176735.19 | J232: -17290.92 | L232: -194026.11 | M232: 286027.55
A233: 47 | B233: 1820 | C233: Distribution Station Equipment <50 kV( Wholesale Meters) | D233: 337412.35 | E233: 9451.7 | G233: 346864.05 | I233: =+I169 -> -90443.5 | J233: -13391.82 | L233: -103835.32 | M233: 243028.73
A234: 47 | B234: 1825 | C234: Storage Battery Equipment | D234: 0 | E234: 0 | G234: 0 | I234: =+I170 -> 0 | J234: 0 | L234: 0 | M234: 0
A235: 47 | B235: 1830 | C235: Poles, Towers & Fixtures | D235: 662255.43 | E235: 70213.34 | F235: =+F171 -> -3562.52 | G235: 728906.25 | I235: =+I171 -> -116820.43 | J235: -15319.83 | K235: =+K171 -> 1476.47 | L235: -130663.79 | M235: 598242.46
... 156 more rows

Sheet Appendix 2-BB Service Life
M1: File Number: | O1: 0
M2: Exhibit:
M3: Tab:
M4: Schedule:
M5: Page:
M7: Date:
A9: Appendix 2-BB
A10: Service Life Comparison
A11: Table F-1 from Kinetrics Report1
C15: Asset Details | F15: Useful Life | J15: USoA Account Number | K15: USoA Account Description | L15: Current | N15: Proposed | P15: Outside Range of Min, Max TUL?
A16: Parent* | B16: # | C16: Category| Component | Type | F16: MIN UL | G16: TUL | H16: MAX UL | L16: Years | M16: Rate | N16: Years | O16: Rate | P16: Below Min TUL | Q16: Above Max TUL
A17: OH | B17: 1 | C17: Fully Dressed Wood Poles | D17: Overall | F17: 35 | G17: 45 | H17: 75 | J17: 1830 | K17: Poles, Towers and Fixture - Fully Dressed Wood Poles | L17: 45 | M17: =IF(ISERROR(1/L17), "", 1/L17) -> 0.02222222222 | N17: =L17 -> 45 | O17: =IF(ISERROR(1/N17), "", 1/N17) -> 0.02222222222 | P17: =IF(ISBLANK(N17),"",IF(N17<F17,"Yes","No")) -> No | Q17: =IF(ISBLANK(N17),"",IF(N17>H17,"Yes","No")) -> No
D18: Cross Arm | E18: Wood | F18: 20 | G18: 40 | H18: 55 | M18: =IF(ISERROR(1/L18), "", 1/L18) ->  | O18: =IF(ISERROR(1/N18), "", 1/N18) ->  | P18: =IF(ISBLANK(N18),"",IF(N18<F18,"Yes","No")) ->  | Q18: =IF(ISBLANK(N18),"",IF(N18>H18,"Yes","No")) -> 
E19: Steel | F19: 30 | G19: 70 | H19: 95
B20: 2 | C20: Fully Dressed Concrete Poles | D20: Overall | F20: 50 | G20: 60 | H20: 80
D21: Cross Arm | E21: Wood | F21: 20 | G21: 40 | H21: 55
E22: Steel | F22: 30 | G22: 70 | H22: 95
B23: 3 | C23: Fully Dressed Steel Poles | D23: Overall | F23: 60 | G23: 60 | H23: 80
D24: Cross Arm | E24: Wood | F24: 20 | G24: 40 | H24: 55
E25: Steel | F25: 30 | G25: 70 | H25: 95
B26: 4 | C26: OH Line Switch | F26: 30 | G26: 45 | H26: 55
B27: 5 | C27: OH Line Switch Motor | F27: 15 | G27: 25 | H27: 25
B28: 6 | C28: OH Line Switch RTU | F28: 15 | G28: 20 | H28: 20
B29: 7 | C29: OH Integral Switches | F29: 35 | G29: 45 | H29: 60
B30: 8 | C30: OH Conductors | F30: 50 | G30: 60 | H30: 75 | J30: 1835 | K30: Overhead Conductors & Devices | L30: 60 | M30: 0.01666666667 | N30: =L30 -> 60 | O30: 0.01666666667 | P30: No | Q30: No
B31: 9 | C31: OH Transformers & Voltage Regulators | F31: 30 | G31: 40 | H31: 60 | J31: 1850 | K31: Line Transformers | L31: 45 | M31: 0.02222222222 | N31: =L31 -> 45 | O31: 0.02222222222 | P31: No | Q31: No
B32: 10 | C32: OH Shunt Capacitor Banks | F32: 25 | G32: 30 | H32: 40
B33: 11 | C33: Reclosers | F33: 25 | G33: 40 | H33: 55
A34: TS & MS | B34: 12 | C34: Power Transformers | D34: Overall | F34: 30 | G34: 45 | H34: 60 | J34: 1820 | K34: Distribution Station Equipment - Substations | L34: 45 | M34: 0.02222222222 | N34: =L34 -> 45 | O34: 0.02222222222 | P34: No | Q34: No
D35: Bushing | F35: 10 | G35: 20 | H35: 30
D36: Tap Changer | F36: 20 | G36: 30 | H36: 60
B37: 13 | C37: Station Service Transformer | F37: 30 | G37: 45 | H37: 55
B38: 14 | C38: Station Grounding Transformer | F38: 30 | G38: 40 | H38: 40
B39: 15 | C39: Station DC System | D39: Overall | F39: 10 | G39: 20 | H39: 30
D40: Battery Bank | F40: 10 | G40: 15 | H40: 15
D41: Charger | F41: 20 | G41: 20 | H41: 30
B42: 16 | C42: Station Metal Clad Switchgear | D42: Overall | F42: 30 | G42: 40 | H42: 60 | J42: 1820 | K42: Distribution Station Equipment - Switchgear | L42: 40 | M42: 0.025 | N42: =L42 -> 40 | O42: 0.025 | P42: No | Q42: No
D43: Removable Breaker | F43: 25 | G43: 40 | H43: 60
B44: 17 | C44: Station Independent Breakers | F44: 35 | G44: 45 | H44: 65
B45: 18 | C45: Station Switch | F45: 30 | G45: 50 | H45: 60
B46: 19 | C46: Electromechanical Relays | F46: 25 | G46: 35 | H46: 50
B47: 20 | C47: Solid State Relays | F47: 10 | G47: 30 | H47: 45
B48: 21 | C48: Digital & Numeric Relays | F48: 15 | G48: 20 | H48: 20
B49: 22 | C49: Rigid Busbars | F49: 30 | G49: 55 | H49: 60
B50: 23 | C50: Steel Structure | F50: 35 | G50: 50 | H50: 90
A51: UG | B51: 24 | C51: Primary Paper Insulated Lead Covered (PILC) Cables | F51: 60 | G51: 65 | H51: 75
B52: 25 | C52: Primary Ethylene-Propylene Rubber (EPR) Cables | F52: 20 | G52: 25 | H52: 25
B53: 26 | C53: Primary Non-Tree Retardant (TR) Cross Linked Polyethylene (XLPE) Cables Direct Buried | F53: 20 | G53: 25 | H53: 30
B54: 27 | C54: Primary Non-TR XLPE Cables in Duct | F54: 20 | G54: 25 | H54: 30
B55: 29 | C55: Primary TR XLPE Cables in Duct | F55: 35 | G55: 40 | H55: 55 | J55: 1845 | K55: Underground Conductors & Devices | L55: 40 | N55: 40 | O55: 0.025 | P55: No | Q55: No
B56: 30 | C56: Secondary PILC Cables | F56: 70 | G56: 75 | H56: 80
B57: 31 | C57: Secondary Cables Direct Buried | F57: 25 | G57: 35 | H57: 40
B58: 32 | C58: Secondary Cables in Duct | F58: 35 | G58: 40 | H58: 60 | J58: 1855 | K58: Services | L58: 60 | M58: 0.01666666667 | N58: =L58 -> 60 | O58: 0.01666666667 | P58: No | Q58: No
B59: 33 | C59: Network Tranformers | D59: Overall | F59: 20 | G59: 35 | H59: 50
D60: Protector | F60: 20 | G60: 35 | H60: 40
B61: 34 | C61: Pad-Mounted Transformers | F61: 25 | G61: 40 | H61: 45 | J61: 1850 | K61: Line Transformers | L61: 45 | M61: 0.02222222222 | N61: =L61 -> 45 | O61: 0.02222222222 | P61: No | Q61: No
B62: 35 | C62: Submersible/Vault Transformers | F62: 25 | G62: 35 | H62: 45
B63: 36 | C63: UG Foundation | F63: 35 | G63: 55 | H63: 70 | J63: 1840 | K63: Underground Conduit | L63: 50 | M63: 0.02 | N63: =L63 -> 50 | O63: 0.02 | P63: No | Q63: No
B64: 37 | C64: UG Vaults | D64: Overall | F64: 40 | G64: 60 | H64: 80
D65: Roof | F65: 20 | G65: 30 | H65: 45
B66: 38 | C66: UG Vault Switches | F66: 20 | G66: 35 | H66: 50
B67: 39 | C67: Pad-Mounted Switchgear | F67: 20 | G67: 30 | H67: 45
B68: 40 | C68: Ducts | F68: 30 | G68: 50 | H68: 85
B69: 41 | C69: Concrete Encased Duct Banks | F69: 35 | G69: 55 | H69: 80
B70: 42 | C70: Cable Chambers | F70: 50 | G70: 60 | H70: 80
A71: S | B71: 43 | C71: Remote SCADA | F71: 15 | G71: 20 | H71: 30 | J71: 1980 | K71: System Supervisory Equipment | L71: 15 | M71: 0.06666666667 | N71: 15 | O71: 0.06666666667 | P71: No | Q71: No
A74: Table F-2 from Kinetrics Report1
C76: Asset Details | F76: Useful Life Range | J76: USoA Account Number | K76: USoA Account Description | L76: Current | N76: Proposed | P76: Outside Range of Min, Max TUL?
B77: # | C77: Category| Component | Type | L77: Years | M77: Rate | N77: Years | O77: Rate | P77: Below Min Range | Q77: Above Max Range
B78: 1 | C78: Office Equipment | F78: 5 | G78: 15 | J78: 1955 | K78: Communications Equipment - Phone System | L78: 5 | M78: =IF(ISERROR(1/L78), "", 1/L78) -> 0.2 | N78: =L78 -> 5 | O78: =IF(ISERROR(1/N78), "", 1/N78) -> 0.2 | P78: =IF(ISBLANK(N78),"",IF(N78<F78,"Yes","No")) -> No | Q78: =IF(ISBLANK(N78),"",IF(N78>G78,"Yes","No")) -> No
B79: 2 | C79: Vehicles | D79: Trucks & Buckets | F79: 5 | G79: 15 | J79: 1930 | K79: Transportation Equipment - Trucks & Buckets | L79: 8 | M79: =IF(ISERROR(1/L79), "", 1/L79) -> 0.125 | N79: =L79 -> 8 | O79: =IF(ISERROR(1/N79), "", 1/N79) -> 0.125 | P79: =IF(ISBLANK(N79),"",IF(N79<F79,"Yes","No")) -> No | Q79: =IF(ISBLANK(N79),"",IF(N79>G79,"Yes","No")) -> No
D80: Trailers | F80: 5 | G80: 20 | J80: 1930 | K80: Transportation Equipment - Trailers | L80: 10 | M80: 0.1 | N80: =L80 -> 10 | O80: 0.1 | P80: No | Q80: No
D81: Vans | F81: 5 | G81: 10 | J81: 1930 | K81: Transportation Equipment - Pickup Trucks | L81: 5 | M81: 0.2 | N81: =L81 -> 5 | O81: 0.2 | P81: No | Q81: No
B82: 3 | C82: Administrative Buildings | F82: 50 | G82: 75
B83: 4 | C83: Leasehold Improvements | F83: Lease dependent | J83: 1910 | K83: Leasehold Improvements | L83: 10 | M83: 0.1 | N83: =L83 -> 10 | O83: 0.1
B84: 5 | C84: Station Buildings | D84: Station Buildings | F84: 50 | G84: 75 | J84: 1808 | K84: Buildings -Station Buildings | L84: 50 | M84: 0.02 | N84: =L84 -> 50 | O84: 0.02 | P84: No | Q84: No
D85: Parking | F85: 25 | G85: 30
D86: Fence | F86: 25 | G86: 60
D87: Roof | F87: 20 | G87: 30
B88: 6 | C88: Computer Equipment | D88: Hardware | F88: 3 | G88: 5 | J88: 1920 | K88: Computer Equipment - Hardware | L88: 5 | M88: 0.2 | N88: =L88 -> 5 | O88: 0.2 | P88: No | Q88: No
D89: Software | F89: 2 | G89: 5 | J89: 1611 | K89: Computer Equipment - Software | L89: 5 | M89: 0.2 | N89: =L89 -> 5 | O89: 0.2 | P89: No | Q89: No
B90: 7 | C90: Equipment | D90: Power Operated | F90: 5 | G90: 10
D91: Stores | F91: 5 | G91: 10
D92: Tools, Shop, Garage Equipment | F92: 5 | G92: 10 | J92: 1940 | K92: Tools, Shops Garage Equipment | L92: 10 | M92: 0.1 | N92: =L92 -> 10 | O92: 0.1 | P92: No | Q92: No
D93: Measurement & Testing Equipment | F93: 5 | G93: 10
B94: 8 | C94: Communication | D94: Towers | F94: 60 | G94: 70
D95: Wireless | F95: 2 | G95: 10 | J95: 1955 | K95: Communication Equipment | L95: 5 | M95: 0.2 | N95: =L95 -> 5 | O95: 0.2 | P95: No | Q95: No
B96: 9 | C96: Residential Energy Meters | F96: 25 | G96: 35
B97: 10 | C97: Industrial/Commercial Energy Meters | F97: 25 | G97: 35 | J97: 1860 | K97: Meters - Industrial/Commercial Energy Meters | L97: 25 | M97: 0.04 | N97: =L97 -> 25 | O97: 0.04 | P97: No | Q97: No
B98: 11 | C98: Wholesale Energy Meters | F98: 15 | G98: 30 | J98: 1820 | K98: Distribution Station Equipment - Wholesale meters | L98: 25 | M98: 0.04 | N98: =L98 -> 25 | O98: 0.04 | P98: No | Q98: No
B99: 12 | C99: Current & Potential Transformer (CT & PT) | F99: 35 | G99: 50
B100: 13 | C100: Smart Meters | F100: 5 | G100: 15 | J100: 1860 | K100: Meters - Smart Meters | L100: 15 | M100: 0.06666666667 | N100: =L100 -> 15 | O100: 0.06666666667 | P100: No | Q100: No
B101: 14 | C101: Repeaters - Smart Metering | F101: 10 | G101: 15
B102: 15 | C102: Data Collectors - Smart Metering | F102: 15 | G102: 20
A105: * TS & MS = Transformer and Municipal Stations UG = Underground Systems S = Monitoring and Control Systems
A107: Note 1: | B107: Tables F-1 and F-2 above are to be used as a reference in order to complete columns J, K, L and N.
B108: See pages 17-19 of Kinetrics Report

Sheet App.2-CA_OldCGAAP_DepExp_2012
K1: File Number: | L1: =EBNUMBER -> EB-2015-0100
K2: Exhibit:
K3: Tab:
K4: Schedule:
K5: Page:
K7: Date:
A9: Appendix 2-CA
A10: Depreciation and Amortization Expense
B11: Assumes the applicant made capitalization and depreciation expense accounting policy changes under CGAAP effective January 1, 2012 and has adopted IFRS for financial reporting purposes effective January 1, 2015.
B13: 1575 Variance in 2012 COS | C13: Year | D13: 2012 | E13: Former CGAAP
A15: Account | B15: Description | C15: Opening Regulatory Gross PP&E as at Jan 1, 2012 | D15: Less Fully Depreciated | E15: Net for Depreciation | F15: Additions | G15: Total for Depreciation 1 | H15: Years | I15: Depreciation Rate | J15: Depreciation Expense | K15: 2012 Depreciation Expense per Appendix 2-BA Fixed Assets, Column J (l) | L15: Variance 2
C16: (a) | D16: (b) | E16: (c) | F16: (d) | G16: (e) = (c) + ½ x (d) | H16: (f) | I16: (g) = 1 / (f) | J16: (h) = (e) / (f) | L16: (m) = (h) - (l)
A17: 1611 | B17: Computer Software (Formally known as Account 1925) | C17: =298429+923 -> 299352 | D17: 11546 | E17: =C17-D17 -> 287806 | F17: 23483 | G17: =E17+0.5*F17 -> 299547.5 | H17: 5 | I17: =IF(H17=0,0,1/H17) -> 0.2 | J17: =IF(H17=0,0,G17/H17) -> 59909.5 | K17: =-'App.2-BA_Fixed Asset Cont'!J17 -> 60067.02 | L17: =IF(ISERROR(+J17-K17), 0, +J17-K17) -> -157.52
A18: 1612 | B18: Land Rights (Formally known as Account 1906) | E18: =C18-D18 -> 0 | G18: =E18+0.5*F18 -> 0 | I18: 0 | J18: 0 | L18: 0
A19: 1805 | B19: Land | C19: 84205 | E19: 84205 | G19: 84205 | I19: 0 | J19: 0 | L19: 0
A20: 1808 | B20: Buildings | C20: 82287 | E20: 82287 | G20: 82287 | H20: 50 | I20: 0.02 | J20: 1645.74 | K20: =-'App.2-BA_Fixed Asset Cont'!J20 -> 1635.53 | L20: 10.21
A21: 1810 | B21: Leasehold Improvements | E21: 0 | G21: 0 | I21: 0 | J21: 0 | L21: 0
A22: 1815 | B22: Transformer Station Equipment >50 kV | E22: 0 | G22: 0 | I22: 0 | J22: 0 | L22: 0
A23: 1820 | B23: Distribution Station Equipment <50 kV | C23: 702468 | E23: 702468 | F23: 21658 | G23: 713297 | H23: 25 | I23: 0.04 | J23: 28531.88 | K23: =-'App.2-BA_Fixed Asset Cont'!J23-'App.2-BA_Fixed Asset Cont'!J24 -> 27991.44 | L23: 540.44
A24: 1825 | B24: Storage Battery Equipment | E24: 0 | G24: 0 | I24: 0 | J24: 0 | L24: 0
A25: 1830 | B25: Poles, Towers & Fixtures | C25: =554656-43841 -> 510815 | E25: 510815 | F25: 81585 | G25: 551607.5 | H25: 25 | I25: 0.04 | J25: 22064.3 | K25: =-'App.2-BA_Fixed Asset Cont'!J26 -> 12113.92 | L25: 9950.38
A26: 1835 | B26: Overhead Conductors & Devices | C26: =1829103+43841 -> 1872944 | E26: 1872944 | F26: 105635 | G26: 1925761.5 | H26: 25 | I26: 0.04 | J26: 77030.46 | K26: =-'App.2-BA_Fixed Asset Cont'!J27 -> 24352.73 | L26: 52677.73
A27: 1840 | B27: Underground Conduit | C27: 36862 | E27: 36862 | F27: 4381 | G27: 39052.5 | H27: 25 | I27: 0.04 | J27: 1562.1 | K27: =-'App.2-BA_Fixed Asset Cont'!J28 -> 676.64 | L27: 885.46
A28: 1845 | B28: Underground Conductors & Devices | C28: 823263 | E28: 823263 | F28: 14334 | G28: 830430 | H28: 25 | I28: 0.04 | J28: 33217.2 | K28: =-'App.2-BA_Fixed Asset Cont'!J29 -> 16810.16 | L28: 16407.04
A29: 1850 | B29: Line Transformers | C29: 1041343 | E29: 1041343 | F29: 69090 | G29: 1075888 | H29: 25 | I29: 0.04 | J29: 43035.52 | K29: =-'App.2-BA_Fixed Asset Cont'!J30 -> 20076.39 | L29: 22959.13
A30: 1855 | B30: Services (Overhead & Underground) | C30: 271027 | E30: 271027 | F30: 14495 | G30: 278274.5 | H30: 25 | I30: 0.04 | J30: 11130.98 | K30: =-'App.2-BA_Fixed Asset Cont'!J31 -> 4533.12 | L30: 6597.86
A31: 1860 | B31: Meters | C31: 187370 | E31: 187370 | F31: 5053 | G31: 189896.5 | H31: 25 | I31: 0.04 | J31: 7595.86 | K31: =-'App.2-BA_Fixed Asset Cont'!J32 -> 7190.72 | L31: 405.14
A32: 1860 | B32: Meters (Smart Meters) | C32: 1102917 | E32: 1102917 | F32: 28083 | G32: 1116958.5 | H32: 15 | I32: 0.06666666667 | J32: 74463.9 | K32: =-'App.2-BA_Fixed Asset Cont'!J33 -> 74632.35 | L32: -168.45
A33: 1905 | B33: Land | E33: 0 | G33: 0 | I33: 0 | J33: 0 | L33: 0
A34: 1908 | B34: Buildings & Fixtures | E34: 0 | G34: 0 | I34: 0 | J34: 0 | L34: 0
A35: 1910 | B35: Leasehold Improvements | C35: 8796 | E35: 8796 | G35: 8796 | H35: 10 | I35: 0.1 | J35: 879.6 | K35: =-'App.2-BA_Fixed Asset Cont'!J36 -> 879.7 | L35: -0.1
A36: 1915 | B36: Office Furniture & Equipment (10 years) | E36: 0 | G36: 0 | I36: 0 | J36: 0 | L36: 0
A37: 1915 | B37: Office Furniture & Equipment (5 years) | E37: 0 | G37: 0 | I37: 0 | J37: 0 | L37: 0
A38: 1920 | B38: Computer Equipment - Hardware | C38: 186007 | D38: 92556 | E38: 93451 | F38: 9126 | G38: 98014 | H38: 5 | I38: 0.2 | J38: 19602.8 | K38: =-'App.2-BA_Fixed Asset Cont'!J39 -> 25468.97 | L38: -5866.17
A39: 1920 | B39: Computer Equip.-Hardware(Post Mar. 22/04) | E39: 0 | G39: 0 | I39: 0 | J39: 0 | L39: 0
A40: 1920 | B40: Computer Equip.-Hardware(Post Mar. 19/07) | E40: 0 | G40: 0 | I40: 0 | J40: 0 | L40: 0
A41: 1930 | B41: Transportation Equipment | C41: 624946 | E41: 624946 | F41: 6364 | G41: 628128 | H41: 7.5 | I41: 0.1333333333 | J41: 83750.4 | K41: =-'App.2-BA_Fixed Asset Cont'!J42 -> 82457.79 | L41: 1292.61
A42: 1935 | B42: Stores Equipment | E42: 0 | G42: 0 | I42: 0 | J42: 0 | L42: 0
A43: 1940 | B43: Tools, Shop & Garage Equipment | C43: 135456 | D43: 99018 | E43: 36438 | F43: 2411 | G43: 37643.5 | H43: 10 | I43: 0.1 | J43: 3764.35 | K43: =-'App.2-BA_Fixed Asset Cont'!J44 -> 4255.19 | L43: -490.84
A44: 1945 | B44: Measurement & Testing Equipment | E44: 0 | G44: 0 | I44: 0 | J44: 0 | L44: 0
A45: 1950 | B45: Power Operated Equipment | E45: 0 | G45: 0 | I45: 0 | J45: 0 | L45: 0
A46: 1955 | B46: Communications Equipment | E46: 0 | G46: 0 | I46: 0 | J46: 0 | L46: 0
A47: 1955 | B47: Communication Equipment (Smart Meters) | E47: 0 | G47: 0 | I47: 0 | J47: 0 | L47: 0
A48: 1960 | B48: Miscellaneous Equipment | E48: 0 | G48: 0 | I48: 0 | J48: 0 | L48: 0
A49: 1970 | B49: Load Management Controls Customer Premises | E49: 0 | G49: 0 | I49: 0 | J49: 0 | L49: 0
A50: 1975 | B50: Load Management Controls Utility Premises | E50: 0 | G50: 0 | I50: 0 | J50: 0 | L50: 0
A51: 1980 | B51: System Supervisor Equipment | E51: 0 | G51: 0 | I51: 0 | J51: 0 | L51: 0
A52: 1985 | B52: Miscellaneous Fixed Assets | E52: 0 | G52: 0 | I52: 0 | J52: 0 | L52: 0
A53: 1990 | B53: Other Tangible Property | E53: 0 | G53: 0 | I53: 0 | J53: 0 | L53: 0
A54: 1995 | B54: Contributions & Grants | C54: -430179 | E54: -430179 | F54: -38433 | G54: -449395.5 | H54: 25 | I54: 0.04 | J54: -17975.82 | K54: =-'App.2-BA_Fixed Asset Cont'!J55 -> -9123.25 | L54: -8852.57
B55: Total | C55: =SUM(C17:C54) -> 7539879 | D55: =SUM(D17:D54) -> 203120 | E55: =SUM(E17:E54) -> 7336759 | F55: =SUM(F17:F54) -> 347265 | G55: =SUM(G17:G54) -> 7510391.5 | J55: =SUM(J17:J54) -> 450208.77 | K55: =SUM(K17:K54) -> 354018.42 | L55: =SUM(L17:L54) -> 96190.35
A57: Notes:
A59: 1 | B59: Board policy of the "half-year" rule - the applicant must ensure that additions in the year attract a half-year depreciation expense in the first year. Deviations from this standard practice must be supported in the application.
A60: 2 | B60: The applicant must provide an explanation of material variances in evidence.
A62: General | B62: Applicants must provide a breakdown of depreciation and amortization expense in the above format for all relevant accounts. Asset Retirement Obligations (AROs), depreciation and accretion expense should be disclosed separately consistent with the Notes of historical Audited Financial Statements.

Sheet App.2-CB_NewCGAAP_DepExp_2012
N1: File Number: | O1: =EBNUMBER -> EB-2015-0100
N2: Exhibit:
N3: Tab:
N4: Schedule:
N5: Page:
N7: Date:
A9: Appendix 2-CB
A10: Depreciation and Amortization Expense
A11: Assumes the applicant made capitalization and depreciation expense accounting policy changes under CGAAP effective January 1, 2012 and has adopted IFRS for financial reporting purposes effective January 1, 2015.
C13: Year | D13: 2012 | E13: CGAAP
A15: Account | B15: Description | C15: Opening NBV as at Jan 1, 2012 5 | D15: Additions | E15: Average Remaining Life of Opening NBV 4 | F15: Years (new additions only) 3 | G15: Depreciation Rate on New Additions | H15: Depreciation Expense on Opening NBV | I15: Depreciation Expense on Additions 1 | J15: 2012 Depreciation Expense | K15: 2012 Depreciation Expense per Appendix 2-BA Fixed Assets, Column J (l) | L15: Variance 2 | M15: Depreciation Expense on 2012 Full Year Additions | N15: Less Depreciation Expense on Assets Fully Depreciated during the year (o) | O15: 2012 Full Year Depreciation 6
C16: (a) | D16: (d) | E16: (i) | F16: (f) | G16: (g) = 1 / (f) | H16: (j) = (a) / (i) | I16: (h)=((d)*0.5)/(f) | J16: (k) = (j) + (h) | L16: (m) = (k) - (l) | M16: (n) = (d)/(f) | O16: (p) = (j) + (n) - (o)
A17: 1611 | B17: Computer Software (Formally known as Account 1925) | C17: 164948.69 | D17: 23483.34 | E17: 2.857803772 | F17: 5 | G17: =IF(F17=0,0,1/F17) -> 0.2 | H17: =IF(E17=0,0,+C17/E17) -> 57718.69 | I17: =IF(F17=0,0,+(D17*0.5)/F17) -> 2348.334 | J17: =IF(ISERROR(+H17+I17), 0, +H17+I17) -> 60067.024 | K17: 60067.02 | L17: =IF(ISERROR(+J17-K17), 0, +J17-K17) -> 0.004000000001 | M17: =IF(F17=0,0,+(D17)/F17) -> 4696.668 | N17: =587.84+6378.52 -> 6966.36 | O17: =IF(ISERROR(+M17+H17-N17), 0, +M17+H17-N17) -> 55448.998 | P17: -60067.02
A18: 1612 | B18: Land Rights (Formally known as Account 1906) | G18: 0 | H18: 0 | I18: 0 | J18: 0 | L18: 0 | M18: 0 | O18: =IF(ISERROR(+M18+H18-N18), 0, +M18+H18-N18) -> 0
A19: 1805 | B19: Land | C19: 84205.25 | G19: 0 | H19: 0 | I19: 0 | J19: 0 | L19: 0 | M19: 0 | O19: 0
A20: 1808 | B20: Buildings | C20: 73993.26 | E20: 45.02860794 | G20: 0 | H20: 1643.25 | I20: 0 | J20: 1643.25 | K20: 1635.53 | L20: 7.72 | M20: 0 | O20: 1643.25 | P20: -1643.25
A21: 1810 | B21: Leasehold Improvements | G21: 0 | H21: 0 | I21: 0 | J21: 0 | L21: 0 | M21: 0 | O21: 0
A22: 1815 | B22: Transformer Station Equipment >50 kV | G22: 0 | H22: 0 | I22: 0 | J22: 0 | L22: 0 | M22: 0 | O22: 0
A23: 1820 | B23: Distribution Station Equipment <50 kV (Substations) | C23: 237283.91 | D23: 5871.36 | E23: 34.15955885 | F23: 45 | G23: 0.02222222222 | H23: 6946.34 | I23: 65.23733333 | J23: 7011.577333 | K23: 15176.38 | L23: -8164.802667 | M23: 130.4746667 | O23: 7076.814667 | P23: -15176.38
A24: 1820 | B24: Distribution Station Equipment <50 kV (Wholesale Meters) | C24: 255364.2 | D24: 15786.5 | E24: 20.43023106 | F24: 25 | G24: =IF(F24=0,0,1/F24) -> 0.04 | H24: =IF(E24=0,0,+C24/E24) -> 12499.33 | I24: =IF(F24=0,0,+(D24*0.5)/F24) -> 315.73 | J24: =IF(ISERROR(+H24+I24), 0, +H24+I24) -> 12815.06 | K24: 12815.06 | L24: =IF(ISERROR(+J24-K24), 0, +J24-K24) -> -5.456968211e-12 | M24: =IF(F24=0,0,+(D24)/F24) -> 631.46 | O24: 13130.79 | P24: -12815.06
A25: 1825 | B25: Storage Battery Equipment | G25: 0 | H25: 0 | I25: 0 | J25: 0 | L25: 0 | M25: 0 | O25: 0
A26: 1830 | B26: Poles, Towers & Fixtures | C26: 415916.65 | D26: 81585.31 | E26: 37.44121589 | F26: 45 | G26: 0.02222222222 | H26: 11108.52413 | I26: 906.5034444 | J26: 12015.02757 | K26: 12113.92 | L26: -98.89242994 | M26: 1813.006889 | N26: =76.88+61.85 -> 138.73 | O26: 12782.80101 | P26: -12113.92
A27: 1835 | B27: Overhead Conductors & Devices | C27: 1220672.928 | D27: 105634.92 | E27: 52.00450801 | F27: 60 | G27: 0.01666666667 | H27: 23472.4445 | I27: 880.291 | J27: 24352.7355 | K27: 24352.73 | L27: 0.005498811086 | M27: 1760.582 | O27: 25233.0265 | P27: -24352.73
A28: 1840 | B28: Underground Conduit | C28: 26552.65 | D28: 4381.1 | E28: 41.9586326 | F28: 50 | G28: 0.02 | H28: 632.82925 | I28: 43.811 | J28: 676.64025 | K28: 676.64 | L28: 0.0002500000001 | M28: 87.622 | O28: 720.45125 | P28: -676.64
A29: 1845 | B29: Underground Conductors & Devices | C29: 533416.81 | D29: 14333.71 | E29: 32.07365326 | F29: 40 | G29: 0.025 | H29: 16630.99634 | I29: 179.171375 | J29: 16810.16771 | K29: 16810.16 | L29: 0.007713297346 | M29: 358.34275 | O29: 16989.33909 | P29: -16810.16
A30: 1850 | B30: Line Transformers | C30: 749760.78 | D30: 69089.61 | E30: 38.83016857 | F30: 45 | G30: 0.02222222222 | H30: 19308.71813 | I30: 767.6623333 | J30: 20076.38047 | K30: 20076.39 | L30: -0.009534839683 | M30: 1535.324667 | N30: 47.34 | O30: 20796.7028 | P30: -20076.39
A31: 1855 | B31: Services (Overhead & Underground) | C31: 222103.59 | D31: 14495.22 | E31: 50.34 | F31: 60 | G31: 0.01666666667 | H31: 4412.069726 | I31: 120.7935 | J31: 4532.863226 | K31: 4533.12 | L31: -0.2567741359 | M31: 241.587 | O31: 4653.656726 | P31: -4533.12
A32: 1860 | B32: Meters( Non Smart Meters) | C32: 144270.29 | D32: =[13]Depn!$G$47 -> 5052.52 | E32: 20.06335988 | F32: 25 | G32: 0.04 | H32: 7190.734296 | I32: 101.0504 | J32: 7291.784696 | K32: =-'App.2-BA_Fixed Asset Cont'!J32 -> 7190.72 | L32: 101.0646956 | M32: 202.1008 | O32: 7392.835096 | P32: -7190.72
A33: 1860 | B33: Meters(Smart Meters) | C33: 938056.6 | D33: =[13]Depn!$G$58 -> 28083.37 | E33: 12.75784576 | F33: 15 | G33: 0.06666666667 | H33: 73527.82103 | I33: 936.1123333 | J33: 74463.93336 | K33: =-'App.2-BA_Fixed Asset Cont'!J33 -> 74632.35 | L33: -168.4166358 | M33: 1872.224667 | N33: 198.81 | O33: 75201.2357 | P33: -74632.35
A34: 1905 | B34: Land | G34: 0 | H34: 0 | I34: 0 | J34: 0 | K34: 0 | L34: 0 | M34: 0 | O34: 0
A35: 1908 | B35: Buildings & Fixtures | G35: 0 | H35: 0 | I35: 0 | J35: 0 | K35: 0 | L35: 0 | M35: 0 | O35: 0
A36: 1910 | B36: Leasehold Improvements | C36: 5718.08 | E36: 6.5 | G36: 0 | H36: 879.7046154 | I36: 0 | J36: 879.7046154 | K36: 879.7 | L36: 0.004615384615 | M36: 0 | O36: 879.7046154 | P36: -879.7
A37: 1915 | B37: Office Furniture & Equipment (10 years) | G37: 0 | H37: 0 | I37: 0 | J37: 0 | K37: 0 | L37: 0 | M37: 0 | O37: 0
A38: 1915 | B38: Office Furniture & Equipment (5 years) | G38: 0 | H38: 0 | I38: 0 | J38: 0 | K38: 0 | L38: 0 | M38: 0 | O38: 0
A39: 1920 | B39: Computer Equipment - Hardware | C39: 51839.22 | D39: 9125.53 | E39: 2.111025551 | F39: 5 | G39: 0.2 | H39: 24556.41524 | I39: 912.553 | J39: 25468.96824 | K39: 25468.97 | L39: -0.00176190475 | M39: 1825.106 | N39: 10465.42 | O39: 15916.10124 | P39: -25468.97
A40: 1920 | B40: Computer Equip.-Hardware(Post Mar. 22/04) | G40: 0 | H40: 0 | I40: 0 | J40: 0 | K40: 0 | L40: 0 | M40: 0 | O40: 0
A41: 1920 | B41: Computer Equip.-Hardware(Post Mar. 19/07) | G41: 0 | H41: 0 | I41: 0 | J41: 0 | K41: 0 | L41: 0 | M41: 0 | O41: 0
A42: 1930 | B42: Transportation Equipment | C42: 493680 | D42: 6364.36 | E42: 6.01608055 | F42: 8 | G42: 0.125 | H42: 82060.07148 | I42: 397.7725 | J42: 82457.84398 | K42: 82457.79 | L42: 0.05397962924 | M42: 795.545 | N42: 3872.11 | O42: 78983.50648 | P42: -82457.79
A43: 1935 | B43: Stores Equipment | G43: 0 | H43: 0 | I43: 0 | J43: 0 | K43: 0 | L43: 0 | M43: 0 | O43: 0
A44: 1940 | B44: Tools, Shop & Garage Equipment | C44: 24436.02 | D44: 2411 | E44: 5.910083927 | F44: 10 | G44: 0.1 | H44: 4134.63164 | I44: 120.55 | J44: 4255.18164 | K44: 4255.19 | L44: -0.008359763387 | M44: 241.1 | N44: 545.37 | O44: 3830.36164 | P44: -4255.19
A45: 1945 | B45: Measurement & Testing Equipment | G45: 0 | H45: 0 | I45: 0 | J45: 0 | K45: 0 | L45: 0 | M45: 0 | O45: 0
A46: 1950 | B46: Power Operated Equipment | G46: 0 | H46: 0 | I46: 0 | J46: 0 | K46: 0 | L46: 0 | M46: 0 | O46: 0
A47: 1955 | B47: Communications Equipment | G47: 0 | H47: 0 | I47: 0 | J47: 0 | K47: 0 | L47: 0 | M47: 0 | O47: 0
A48: 1955 | B48: Communication Equipment (Smart Meters) | G48: 0 | H48: 0 | I48: 0 | J48: 0 | K48: 0 | L48: 0 | M48: 0 | O48: 0
A49: 1960 | B49: Miscellaneous Equipment | G49: 0 | H49: 0 | I49: 0 | J49: 0 | K49: 0 | L49: 0 | M49: 0 | O49: 0
A50: 1970 | B50: Load Management Controls Customer Premises | G50: 0 | H50: 0 | I50: 0 | J50: 0 | K50: 0 | L50: 0 | M50: 0 | O50: 0
A51: 1975 | B51: Load Management Controls Utility Premises | G51: 0 | H51: 0 | I51: 0 | J51: 0 | K51: 0 | L51: 0 | M51: 0 | O51: 0
A52: 1980 | B52: System Supervisor Equipment | G52: 0 | H52: 0 | I52: 0 | J52: 0 | K52: 0 | L52: 0 | M52: 0 | O52: 0
A53: 1985 | B53: Miscellaneous Fixed Assets | G53: 0 | H53: 0 | I53: 0 | J53: 0 | K53: 0 | L53: 0 | M53: 0 | O53: 0
A54: 1990 | B54: Other Tangible Property | G54: 0 | H54: 0 | I54: 0 | J54: 0 | K54: 0 | L54: 0 | M54: 0 | O54: 0
A55: 1995 | B55: Contributions & Grants | C55: -342285.14 | D55: -38433.31 | E55: 39.2948981 | F55: 46.57576868 | G55: 0.02147039176 | H55: -8710.676361 | I55: -412.5891111 | J55: -9123.265472 | K55: -9123.25 | L55: -0.01547212529 | M55: -825.1782222 | O55: -9535.854583 | P55: 9123.25
B56: Total | C56: =SUM(C17:C55) -> 5299933.788 | D56: =SUM(D17:D55) -> 347264.54 | H56: =SUM(H17:H55) -> 338011.894 | I56: 7682.983108 | J56: 345694.8771 | K56: 354018.42 | L56: -8323.542882 | M56: 15365.96622 | N56: 22234.14 | O56: 331143.7202
A58: Notes:
A60: 1 | B60: Board policy of the "half-year" rule - the applicant must ensure that additions in the year attract a half-year depreciation expense in the first year. Deviations from this standard practice must be supported in the application.
A61: 2 | B61: The applicant must provide an explanation of material variances in evidence.
A62: 3 | B62: The applicant should ensure that the years for new additions of assets are the asset useful lives determined by management in accordance with the Board's regulatory accounting policies. The capitalization and depreciation expense accounting changes should be implemented consistent with the Board’s regulatory accounting policies as set out for modified IFRS as contained in the Report of the Board, Transition to International Financial Reporting Standards, EB-2008-0408, the Kinectrics Report, and the Revised 2012 Accounting Procedures Handbook for Electricity Distributors (“APH”).
A63: 4 | B63: A recalculation should be performed to determine the average remaining life of opening balance of assets (i.e. excluding 2012 additions) under the change in policies under CGAAP. For example, Asset A had a useful life of 20 years under CGAAP without the change in policies. On January 1, 2012, the effective date of the changes in policies, Asset A was 3 years depreciated. As a result, Asset A would have a remaining service life of 17 years (20 years less 3 years) as of January 1, 2012. Due to making the change in policies under CGAAP, management re-assessed the asset useful lives and concluded that the revised useful life of Asset A is now 30 years. Therefore, the average remaining useful life of the opening balance of Asset A is determined to be 27 years (30 years less 3 years) under the revised CGAAP as of January 1, 2012.
A64: 5 | B64: NBV must exclude assets still on the books but which have been fully amortized or depreciated.
A65: 6 | B65: This column refers to the calculated full year depreciation but excludes the depreciation expense on assets fully depreciated during the year. This column is used for the purpose of calculating depreciation expense in the following year on the next worksheet.
A67: General: | B67: Applicants must provide a breakdown of depreciation and amortization expense in the above format for all relevant accounts. Asset Retirement Obligations (AROs), depreciation and accretion expense should be disclosed separately consistent with the Notes of historical Audited Financial Statements.

Sheet App.2-CC_NewCGAAP_DepExp_2013
J1: File Number: | K1: =EBNUMBER -> EB-2015-0100
J2: Exhibit:
J3: Tab:
J4: Schedule:
J5: Page:
J7: Date:
A9: Appendix 2-CC
A10: Depreciation and Amortization Expense
A11: Assumes the applicant made capitalization and depreciation expense accounting policy changes under CGAAP effective January 1, 2012 and has adopted IFRS for financial reporting purposes effective January 1, 2015.
C13: 2013 | D13: CGAAP
A15: Account | B15: Description | C15: Additions | D15: Years (new additions only) | E15: Depreciation Rate on New Additions | F15: 2013 Depreciation Expense 1 | G15: 2013 Depreciation Expense per Apppendix 2-BA Fixed Assets, Column J (l) | H15: Variance 2 | I15: Depreciation Expense on 2013 Full Year Additions | J15: Less Depreciation Expense on Assets Fully Depreciated during the year (o) | K15: 2013 Full Year Depreciation 3
C16: (d) | D16: (f) | E16: (g) = 1 / (f) | F16: (h)=2012 Full Year Deprecation + ((d)*0.5)/(f) | H16: (m) = (h) - (l) | I16: (n)=((d))/(f) | K16: (p) = 2012 Full Year Depreciation + (n) - (o)
A17: 1611 | B17: Computer Software (Formally known as Account 1925) | C17: 33460.37 | D17: 5 | E17: =IF(D17=0,0,1/D17) -> 0.2 | F17: =IF(D17=0,+'App.2-CB_NewCGAAP_DepExp_2012'!O17,+'App.2-CB_NewCGAAP_DepExp_2012'!O17+((C17*0.5)/D17)) -> 58795.035 | G17: =-'App.2-BA_Fixed Asset Cont'!J98 -> 58795.03 | H17: =IF(ISERROR(+F17-G17), 0, +F17-G17) -> 0.005000000005 | I17: =IF(D17=0,0,+(C17)/D17) -> 6692.074 | J17: =6378.52+3839.26+4322 -> 14539.78 | K17: =IF(ISERROR(+I17+'App.2-CB_NewCGAAP_DepExp_2012'!O17-J17), 0, +I17+'App.2-CB_NewCGAAP_DepExp_2012'!O17-J17) -> 47601.292
A18: 1612 | B18: Land Rights (Formally known as Account 1906) | E18: 0 | F18: =IF(D18=0,+'App.2-CB_NewCGAAP_DepExp_2012'!O18,+'App.2-CB_NewCGAAP_DepExp_2012'!O18+((C18*0.5)/D18)) -> 0 | G18: =-'App.2-BA_Fixed Asset Cont'!J99 -> 0 | H18: 0 | I18: 0 | K18: =IF(ISERROR(+I18+'App.2-CB_NewCGAAP_DepExp_2012'!O18-J18), 0, +I18+'App.2-CB_NewCGAAP_DepExp_2012'!O18-J18) -> 0
A19: 1805 | B19: Land | E19: 0 | F19: =IF(D19=0,+'App.2-CB_NewCGAAP_DepExp_2012'!O19,+'App.2-CB_NewCGAAP_DepExp_2012'!O19+((C19*0.5)/D19)) -> 0 | G19: =-'App.2-BA_Fixed Asset Cont'!J100 -> 0 | H19: 0 | I19: 0 | K19: =IF(ISERROR(+I19+'App.2-CB_NewCGAAP_DepExp_2012'!O19-J19), 0, +I19+'App.2-CB_NewCGAAP_DepExp_2012'!O19-J19) -> 0
A20: 1808 | B20: Buildings | E20: 0 | F20: =IF(D20=0,+'App.2-CB_NewCGAAP_DepExp_2012'!O20,+'App.2-CB_NewCGAAP_DepExp_2012'!O20+((C20*0.5)/D20)) -> 1643.25 | G20: =-'App.2-BA_Fixed Asset Cont'!J101 -> 1635.53 | H20: 7.72 | I20: 0 | J20: 0 | K20: =IF(ISERROR(+I20+'App.2-CB_NewCGAAP_DepExp_2012'!O20-J20), 0, +I20+'App.2-CB_NewCGAAP_DepExp_2012'!O20-J20) -> 1643.25
A21: 1810 | B21: Leasehold Improvements | E21: 0 | F21: =IF(D21=0,+'App.2-CB_NewCGAAP_DepExp_2012'!O21,+'App.2-CB_NewCGAAP_DepExp_2012'!O21+((C21*0.5)/D21)) -> 0 | G21: =-'App.2-BA_Fixed Asset Cont'!J102 -> 0 | H21: 0 | I21: 0 | K21: =IF(ISERROR(+I21+'App.2-CB_NewCGAAP_DepExp_2012'!O21-J21), 0, +I21+'App.2-CB_NewCGAAP_DepExp_2012'!O21-J21) -> 0
A22: 1815 | B22: Transformer Station Equipment >50 kV | E22: 0 | F22: =IF(D22=0,+'App.2-CB_NewCGAAP_DepExp_2012'!O22,+'App.2-CB_NewCGAAP_DepExp_2012'!O22+((C22*0.5)/D22)) -> 0 | G22: =-'App.2-BA_Fixed Asset Cont'!J103 -> 0 | H22: 0 | I22: 0 | K22: =IF(ISERROR(+I22+'App.2-CB_NewCGAAP_DepExp_2012'!O22-J22), 0, +I22+'App.2-CB_NewCGAAP_DepExp_2012'!O22-J22) -> 0
A23: 1820 | B23: Distribution Station Equipment <50 kV (Substations) | C23: 80998.15 | D23: 42.24109788 | E23: 0.02367362711 | F23: =IF(D23=0,+'App.2-CB_NewCGAAP_DepExp_2012'!O23,+'App.2-CB_NewCGAAP_DepExp_2012'!O23+((C23*0.5)/D23)) -> 8035.574667 | G23: =-'App.2-BA_Fixed Asset Cont'!J104 -> 16200.38 | H23: -8164.805333 | I23: 1917.52 | J23: 0 | K23: =IF(ISERROR(+I23+'App.2-CB_NewCGAAP_DepExp_2012'!O23-J23), 0, +I23+'App.2-CB_NewCGAAP_DepExp_2012'!O23-J23) -> 8994.334667
A24: 1820 | B24: Distribution Station Equipment <50 kV (Wholesale Meters) | C24: 1800 | D24: 25 | E24: =IF(D24=0,0,1/D24) -> 0.04 | F24: =IF(D24=0,+'App.2-CB_NewCGAAP_DepExp_2012'!O24,+'App.2-CB_NewCGAAP_DepExp_2012'!O24+((C24*0.5)/D24)) -> 13166.79 | G24: =-'App.2-BA_Fixed Asset Cont'!J105 -> 13166.79 | H24: =IF(ISERROR(+F24-G24), 0, +F24-G24) -> -7.275957614e-12 | I24: =IF(D24=0,0,+(C24)/D24) -> 72 | J24: 0 | K24: =IF(ISERROR(+I24+'App.2-CB_NewCGAAP_DepExp_2012'!O24-J24), 0, +I24+'App.2-CB_NewCGAAP_DepExp_2012'!O24-J24) -> 13202.79
A25: 1825 | B25: Storage Battery Equipment | E25: 0 | F25: =IF(D25=0,+'App.2-CB_NewCGAAP_DepExp_2012'!O25,+'App.2-CB_NewCGAAP_DepExp_2012'!O25+((C25*0.5)/D25)) -> 0 | G25: =-'App.2-BA_Fixed Asset Cont'!J106 -> 0 | H25: 0 | I25: 0 | K25: =IF(ISERROR(+I25+'App.2-CB_NewCGAAP_DepExp_2012'!O25-J25), 0, +I25+'App.2-CB_NewCGAAP_DepExp_2012'!O25-J25) -> 0
A26: 1830 | B26: Poles, Towers & Fixtures | C26: 83532.29 | D26: 45 | E26: 0.02222222222 | F26: =IF(D26=0,+'App.2-CB_NewCGAAP_DepExp_2012'!O26,+'App.2-CB_NewCGAAP_DepExp_2012'!O26+((C26*0.5)/D26)) -> 13710.93757 | G26: =-'App.2-BA_Fixed Asset Cont'!J107 -> 13809.38 | H26: -98.44242994 | I26: 1856.273111 | J26: =61.85+32.11 -> 93.96 | K26: =IF(ISERROR(+I26+'App.2-CB_NewCGAAP_DepExp_2012'!O26-J26), 0, +I26+'App.2-CB_NewCGAAP_DepExp_2012'!O26-J26) -> 14545.11413
A27: 1835 | B27: Overhead Conductors & Devices | C27: 98159.35 | D27: 60 | E27: 0.01666666667 | F27: =IF(D27=0,+'App.2-CB_NewCGAAP_DepExp_2012'!O27,+'App.2-CB_NewCGAAP_DepExp_2012'!O27+((C27*0.5)/D27)) -> 26051.02108 | G27: =-'App.2-BA_Fixed Asset Cont'!J108 -> 26065.81 | H27: -14.78891786 | I27: 1635.989167 | J27: 0 | K27: =IF(ISERROR(+I27+'App.2-CB_NewCGAAP_DepExp_2012'!O27-J27), 0, +I27+'App.2-CB_NewCGAAP_DepExp_2012'!O27-J27) -> 26869.01567
A28: 1840 | B28: Underground Conduit | C28: 3223.37 | D28: 50 | E28: 0.02 | F28: =IF(D28=0,+'App.2-CB_NewCGAAP_DepExp_2012'!O28,+'App.2-CB_NewCGAAP_DepExp_2012'!O28+((C28*0.5)/D28)) -> 752.68495 | G28: =-'App.2-BA_Fixed Asset Cont'!J109 -> 752.68 | H28: 0.00495 | I28: 64.4674 | J28: 0 | K28: =IF(ISERROR(+I28+'App.2-CB_NewCGAAP_DepExp_2012'!O28-J28), 0, +I28+'App.2-CB_NewCGAAP_DepExp_2012'!O28-J28) -> 784.91865
A29: 1845 | B29: Underground Conductors & Devices | C29: 58555.89 | D29: 40 | E29: 0.025 | F29: =IF(D29=0,+'App.2-CB_NewCGAAP_DepExp_2012'!O29,+'App.2-CB_NewCGAAP_DepExp_2012'!O29+((C29*0.5)/D29)) -> 17721.28771 | G29: =-'App.2-BA_Fixed Asset Cont'!J110 -> 17721.28 | H29: 0.007713297346 | I29: 1463.89725 | J29: 0 | K29: =IF(ISERROR(+I29+'App.2-CB_NewCGAAP_DepExp_2012'!O29-J29), 0, +I29+'App.2-CB_NewCGAAP_DepExp_2012'!O29-J29) -> 18453.23634
A30: 1850 | B30: Line Transformers | C30: 91643.57 | D30: 45 | E30: 0.02222222222 | F30: =IF(D30=0,+'App.2-CB_NewCGAAP_DepExp_2012'!O30,+'App.2-CB_NewCGAAP_DepExp_2012'!O30+((C30*0.5)/D30)) -> 21814.96469 | G30: =-'App.2-BA_Fixed Asset Cont'!J111 -> 21814.98 | H30: -0.01531261746 | I30: 2036.523778 | J30: 0.71 | K30: =IF(ISERROR(+I30+'App.2-CB_NewCGAAP_DepExp_2012'!O30-J30), 0, +I30+'App.2-CB_NewCGAAP_DepExp_2012'!O30-J30) -> 22832.51658
A31: 1855 | B31: Services (Overhead & Underground) | C31: 6693.46 | D31: 60 | E31: 0.01666666667 | F31: =IF(D31=0,+'App.2-CB_NewCGAAP_DepExp_2012'!O31,+'App.2-CB_NewCGAAP_DepExp_2012'!O31+((C31*0.5)/D31)) -> 4709.435559 | G31: =-'App.2-BA_Fixed Asset Cont'!J112 -> 4709.7 | H31: -0.2644408025 | I31: 111.5576667 | J31: 0 | K31: =IF(ISERROR(+I31+'App.2-CB_NewCGAAP_DepExp_2012'!O31-J31), 0, +I31+'App.2-CB_NewCGAAP_DepExp_2012'!O31-J31) -> 4765.214393
A32: 1860 | B32: Meters | C32: ='App.2-BA_Fixed Asset Cont'!E113 -> 0 | D32: 25 | E32: 0.04 | F32: =IF(D32=0,+'App.2-CB_NewCGAAP_DepExp_2012'!O32,+'App.2-CB_NewCGAAP_DepExp_2012'!O32+((C32*0.5)/D32)) -> 7392.835096 | G32: =-'App.2-BA_Fixed Asset Cont'!J113 -> 7190.73 | H32: 202.1050956 | I32: 0 | J32: 0 | K32: =IF(ISERROR(+I32+'App.2-CB_NewCGAAP_DepExp_2012'!O32-J32), 0, +I32+'App.2-CB_NewCGAAP_DepExp_2012'!O32-J32) -> 7392.835096
A33: 1860 | B33: Meters (Smart Meters) | C33: ='App.2-BA_Fixed Asset Cont'!E114 -> 16664.34 | D33: 15 | E33: 0.06666666667 | F33: =IF(D33=0,+'App.2-CB_NewCGAAP_DepExp_2012'!O33,+'App.2-CB_NewCGAAP_DepExp_2012'!O33+((C33*0.5)/D33)) -> 75756.7137 | G33: =-'App.2-BA_Fixed Asset Cont'!J114 -> 76491.18 | H33: -734.4663025 | I33: 1110.956 | J33: =198.81+176.5 -> 375.31 | K33: =IF(ISERROR(+I33+'App.2-CB_NewCGAAP_DepExp_2012'!O33-J33), 0, +I33+'App.2-CB_NewCGAAP_DepExp_2012'!O33-J33) -> 75936.8817
A34: 1905 | B34: Land | E34: 0 | F34: =IF(D34=0,+'App.2-CB_NewCGAAP_DepExp_2012'!O34,+'App.2-CB_NewCGAAP_DepExp_2012'!O34+((C34*0.5)/D34)) -> 0 | G34: =-'App.2-BA_Fixed Asset Cont'!J115 -> 0 | H34: 0 | I34: 0 | K34: =IF(ISERROR(+I34+'App.2-CB_NewCGAAP_DepExp_2012'!O34-J34), 0, +I34+'App.2-CB_NewCGAAP_DepExp_2012'!O34-J34) -> 0
A35: 1908 | B35: Buildings & Fixtures | E35: 0 | F35: =IF(D35=0,+'App.2-CB_NewCGAAP_DepExp_2012'!O35,+'App.2-CB_NewCGAAP_DepExp_2012'!O35+((C35*0.5)/D35)) -> 0 | G35: =-'App.2-BA_Fixed Asset Cont'!J116 -> 0 | H35: 0 | I35: 0 | K35: =IF(ISERROR(+I35+'App.2-CB_NewCGAAP_DepExp_2012'!O35-J35), 0, +I35+'App.2-CB_NewCGAAP_DepExp_2012'!O35-J35) -> 0
A36: 1910 | B36: Leasehold Improvements | E36: 0 | F36: =IF(D36=0,+'App.2-CB_NewCGAAP_DepExp_2012'!O36,+'App.2-CB_NewCGAAP_DepExp_2012'!O36+((C36*0.5)/D36)) -> 879.7046154 | G36: =-'App.2-BA_Fixed Asset Cont'!J117 -> 879.71 | H36: -0.005384615385 | I36: 0 | K36: =IF(ISERROR(+I36+'App.2-CB_NewCGAAP_DepExp_2012'!O36-J36), 0, +I36+'App.2-CB_NewCGAAP_DepExp_2012'!O36-J36) -> 879.7046154
A37: 1915 | B37: Office Furniture & Equipment (10 years) | E37: 0 | F37: =IF(D37=0,+'App.2-CB_NewCGAAP_DepExp_2012'!O37,+'App.2-CB_NewCGAAP_DepExp_2012'!O37+((C37*0.5)/D37)) -> 0 | G37: =-'App.2-BA_Fixed Asset Cont'!J118 -> 0 | H37: 0 | I37: 0 | K37: =IF(ISERROR(+I37+'App.2-CB_NewCGAAP_DepExp_2012'!O37-J37), 0, +I37+'App.2-CB_NewCGAAP_DepExp_2012'!O37-J37) -> 0
A38: 1915 | B38: Office Furniture & Equipment (5 years) | E38: 0 | F38: =IF(D38=0,+'App.2-CB_NewCGAAP_DepExp_2012'!O38,+'App.2-CB_NewCGAAP_DepExp_2012'!O38+((C38*0.5)/D38)) -> 0 | G38: =-'App.2-BA_Fixed Asset Cont'!J119 -> 0 | H38: 0 | I38: 0 | K38: =IF(ISERROR(+I38+'App.2-CB_NewCGAAP_DepExp_2012'!O38-J38), 0, +I38+'App.2-CB_NewCGAAP_DepExp_2012'!O38-J38) -> 0
A39: 1920 | B39: Computer Equipment - Hardware | C39: 42869.6 | D39: 5 | E39: 0.2 | F39: =IF(D39=0,+'App.2-CB_NewCGAAP_DepExp_2012'!O39,+'App.2-CB_NewCGAAP_DepExp_2012'!O39+((C39*0.5)/D39)) -> 20203.06124 | G39: =-'App.2-BA_Fixed Asset Cont'!J120 -> 19963.06 | H39: 240.0012381 | I39: 8573.92 | J39: =3479.58+1843.33+1375.7 -> 6698.61 | K39: =IF(ISERROR(+I39+'App.2-CB_NewCGAAP_DepExp_2012'!O39-J39), 0, +I39+'App.2-CB_NewCGAAP_DepExp_2012'!O39-J39) -> 17791.41124
A40: 1920 | B40: Computer Equip.-Hardware(Post Mar. 22/04) | E40: 0 | F40: =IF(D40=0,+'App.2-CB_NewCGAAP_DepExp_2012'!O40,+'App.2-CB_NewCGAAP_DepExp_2012'!O40+((C40*0.5)/D40)) -> 0 | G40: =-'App.2-BA_Fixed Asset Cont'!J121 -> 0 | H40: 0 | I40: 0 | K40: =IF(ISERROR(+I40+'App.2-CB_NewCGAAP_DepExp_2012'!O40-J40), 0, +I40+'App.2-CB_NewCGAAP_DepExp_2012'!O40-J40) -> 0
A41: 1920 | B41: Computer Equip.-Hardware(Post Mar. 19/07) | E41: 0 | F41: =IF(D41=0,+'App.2-CB_NewCGAAP_DepExp_2012'!O41,+'App.2-CB_NewCGAAP_DepExp_2012'!O41+((C41*0.5)/D41)) -> 0 | G41: =-'App.2-BA_Fixed Asset Cont'!J122 -> 0 | H41: 0 | I41: 0 | K41: =IF(ISERROR(+I41+'App.2-CB_NewCGAAP_DepExp_2012'!O41-J41), 0, +I41+'App.2-CB_NewCGAAP_DepExp_2012'!O41-J41) -> 0
A42: 1930 | B42: Transportation Equipment | C42: 2093.7 | D42: 5 | E42: 0.2 | F42: =IF(D42=0,+'App.2-CB_NewCGAAP_DepExp_2012'!O42,+'App.2-CB_NewCGAAP_DepExp_2012'!O42+((C42*0.5)/D42)) -> 79192.87648 | G42: =-'App.2-BA_Fixed Asset Cont'!J123 -> 79192.83 | H42: 0.04647962922 | I42: 418.74 | K42: =IF(ISERROR(+I42+'App.2-CB_NewCGAAP_DepExp_2012'!O42-J42), 0, +I42+'App.2-CB_NewCGAAP_DepExp_2012'!O42-J42) -> 79402.24648
A43: 1935 | B43: Stores Equipment | E43: 0 | F43: =IF(D43=0,+'App.2-CB_NewCGAAP_DepExp_2012'!O43,+'App.2-CB_NewCGAAP_DepExp_2012'!O43+((C43*0.5)/D43)) -> 0 | G43: =-'App.2-BA_Fixed Asset Cont'!J124 -> 0 | H43: 0 | I43: 0 | K43: =IF(ISERROR(+I43+'App.2-CB_NewCGAAP_DepExp_2012'!O43-J43), 0, +I43+'App.2-CB_NewCGAAP_DepExp_2012'!O43-J43) -> 0
A44: 1940 | B44: Tools, Shop & Garage Equipment | C44: 13479.96 | D44: 10 | E44: 0.1 | F44: =IF(D44=0,+'App.2-CB_NewCGAAP_DepExp_2012'!O44,+'App.2-CB_NewCGAAP_DepExp_2012'!O44+((C44*0.5)/D44)) -> 4504.35964 | G44: =-'App.2-BA_Fixed Asset Cont'!J125 -> 4504.37 | H44: -0.01035976338 | I44: 1347.996 | K44: =IF(ISERROR(+I44+'App.2-CB_NewCGAAP_DepExp_2012'!O44-J44), 0, +I44+'App.2-CB_NewCGAAP_DepExp_2012'!O44-J44) -> 5178.35764
A45: 1945 | B45: Measurement & Testing Equipment | E45: 0 | F45: =IF(D45=0,+'App.2-CB_NewCGAAP_DepExp_2012'!O45,+'App.2-CB_NewCGAAP_DepExp_2012'!O45+((C45*0.5)/D45)) -> 0 | G45: =-'App.2-BA_Fixed Asset Cont'!J126 -> 0 | H45: 0 | I45: 0 | K45: =IF(ISERROR(+I45+'App.2-CB_NewCGAAP_DepExp_2012'!O45-J45), 0, +I45+'App.2-CB_NewCGAAP_DepExp_2012'!O45-J45) -> 0
A46: 1950 | B46: Power Operated Equipment | E46: 0 | F46: =IF(D46=0,+'App.2-CB_NewCGAAP_DepExp_2012'!O46,+'App.2-CB_NewCGAAP_DepExp_2012'!O46+((C46*0.5)/D46)) -> 0 | G46: =-'App.2-BA_Fixed Asset Cont'!J127 -> 0 | H46: 0 | I46: 0 | K46: =IF(ISERROR(+I46+'App.2-CB_NewCGAAP_DepExp_2012'!O46-J46), 0, +I46+'App.2-CB_NewCGAAP_DepExp_2012'!O46-J46) -> 0
A47: 1955 | B47: Communications Equipment | E47: 0 | F47: =IF(D47=0,+'App.2-CB_NewCGAAP_DepExp_2012'!O47,+'App.2-CB_NewCGAAP_DepExp_2012'!O47+((C47*0.5)/D47)) -> 0 | G47: =-'App.2-BA_Fixed Asset Cont'!J128 -> 0 | H47: 0 | I47: 0 | K47: =IF(ISERROR(+I47+'App.2-CB_NewCGAAP_DepExp_2012'!O47-J47), 0, +I47+'App.2-CB_NewCGAAP_DepExp_2012'!O47-J47) -> 0
A48: 1955 | B48: Communication Equipment (Smart Meters) | E48: 0 | F48: =IF(D48=0,+'App.2-CB_NewCGAAP_DepExp_2012'!O48,+'App.2-CB_NewCGAAP_DepExp_2012'!O48+((C48*0.5)/D48)) -> 0 | G48: =-'App.2-BA_Fixed Asset Cont'!J129 -> 0 | H48: 0 | I48: 0 | K48: =IF(ISERROR(+I48+'App.2-CB_NewCGAAP_DepExp_2012'!O48-J48), 0, +I48+'App.2-CB_NewCGAAP_DepExp_2012'!O48-J48) -> 0
A49: 1960 | B49: Miscellaneous Equipment | E49: 0 | F49: =IF(D49=0,+'App.2-CB_NewCGAAP_DepExp_2012'!O49,+'App.2-CB_NewCGAAP_DepExp_2012'!O49+((C49*0.5)/D49)) -> 0 | G49: =-'App.2-BA_Fixed Asset Cont'!J130 -> 0 | H49: 0 | I49: 0 | K49: =IF(ISERROR(+I49+'App.2-CB_NewCGAAP_DepExp_2012'!O49-J49), 0, +I49+'App.2-CB_NewCGAAP_DepExp_2012'!O49-J49) -> 0
A50: 1970 | B50: Load Management Controls Customer Premises | E50: 0 | F50: =IF(D50=0,+'App.2-CB_NewCGAAP_DepExp_2012'!O50,+'App.2-CB_NewCGAAP_DepExp_2012'!O50+((C50*0.5)/D50)) -> 0 | G50: =-'App.2-BA_Fixed Asset Cont'!J131 -> 0 | H50: 0 | I50: 0 | K50: =IF(ISERROR(+I50+'App.2-CB_NewCGAAP_DepExp_2012'!O50-J50), 0, +I50+'App.2-CB_NewCGAAP_DepExp_2012'!O50-J50) -> 0
A51: 1975 | B51: Load Management Controls Utility Premises | E51: 0 | F51: =IF(D51=0,+'App.2-CB_NewCGAAP_DepExp_2012'!O51,+'App.2-CB_NewCGAAP_DepExp_2012'!O51+((C51*0.5)/D51)) -> 0 | G51: =-'App.2-BA_Fixed Asset Cont'!J132 -> 0 | H51: 0 | I51: 0 | K51: =IF(ISERROR(+I51+'App.2-CB_NewCGAAP_DepExp_2012'!O51-J51), 0, +I51+'App.2-CB_NewCGAAP_DepExp_2012'!O51-J51) -> 0
A52: 1980 | B52: System Supervisor Equipment | E52: 0 | F52: =IF(D52=0,+'App.2-CB_NewCGAAP_DepExp_2012'!O52,+'App.2-CB_NewCGAAP_DepExp_2012'!O52+((C52*0.5)/D52)) -> 0 | G52: =-'App.2-BA_Fixed Asset Cont'!J133 -> 0 | H52: 0 | I52: 0 | K52: =IF(ISERROR(+I52+'App.2-CB_NewCGAAP_DepExp_2012'!O52-J52), 0, +I52+'App.2-CB_NewCGAAP_DepExp_2012'!O52-J52) -> 0
A53: 1985 | B53: Miscellaneous Fixed Assets | E53: 0 | F53: =IF(D53=0,+'App.2-CB_NewCGAAP_DepExp_2012'!O53,+'App.2-CB_NewCGAAP_DepExp_2012'!O53+((C53*0.5)/D53)) -> 0 | G53: =-'App.2-BA_Fixed Asset Cont'!J134 -> 0 | H53: 0 | I53: 0 | K53: =IF(ISERROR(+I53+'App.2-CB_NewCGAAP_DepExp_2012'!O53-J53), 0, +I53+'App.2-CB_NewCGAAP_DepExp_2012'!O53-J53) -> 0
A54: 1990 | B54: Other Tangible Property | E54: 0 | F54: =IF(D54=0,+'App.2-CB_NewCGAAP_DepExp_2012'!O54,+'App.2-CB_NewCGAAP_DepExp_2012'!O54+((C54*0.5)/D54)) -> 0 | G54: =-'App.2-BA_Fixed Asset Cont'!J135 -> 0 | H54: 0 | I54: 0 | K54: =IF(ISERROR(+I54+'App.2-CB_NewCGAAP_DepExp_2012'!O54-J54), 0, +I54+'App.2-CB_NewCGAAP_DepExp_2012'!O54-J54) -> 0
A55: 1995 | B55: Contributions & Grants | C55: -165303.65 | D55: 47.78832811 | E55: 0.02092561175 | F55: =IF(D55=0,+'App.2-CB_NewCGAAP_DepExp_2012'!O55,+'App.2-CB_NewCGAAP_DepExp_2012'!O55+((C55*0.5)/D55)) -> -11265.39458 | G55: =-'App.2-BA_Fixed Asset Cont'!J136 -> -10896.16 | H55: -369.2345832 | I55: -3459.08 | K55: =IF(ISERROR(+I55+'App.2-CB_NewCGAAP_DepExp_2012'!O55-J55), 0, +I55+'App.2-CB_NewCGAAP_DepExp_2012'!O55-J55) -> -12994.93458
B56: Total | C56: =SUM(C17:C55) -> 367870.4 | F56: =SUM(F17:F55) -> 343065.1374 | G56: 351997.28 | H56: -8932.142588 | I56: 23842.83437 | J56: 21708.37 | K56: 333278.1846
A58: Notes:
A59: 1 | B59: Board policy of the "half-year" rule - the applicant must ensure that additions in the year attract a half-year depreciation expense in the first year. Deviations from this standard practice must be supported in the application.
A60: 2 | B60: The applicant must provide an explanation of material variances in evidence.
A61: 3 | B61: This column refers to the calculated full year depreciation but excludes the depreciation expense on assets fully depreciated during the year. This column is used for the purpose of calculating depreciation expense in the following year on the next worksheet.
A63: General: | B63: Applicants must provide a breakdown of depreciation and amortization expense in the above format for all relevant accounts. Asset Retirement Obligations (AROs), depreciation and accretion expense should be disclosed separately consistent with the Notes of historical Audited Financial Statements.

Sheet App.2-CD_MIFRS_DepExp_2014
J1: File Number: | K1: =EBNUMBER -> EB-2015-0100
J2: Exhibit:
J3: Tab:
J4: Schedule:
J5: Page:
J7: Date:
A9: Appendix 2-CD
A10: Depreciation and Amortization Expense
A11: Assumes the applicant made capitalization and depreciation expense accounting policy changes under CGAAP effective January 1, 2012 and has adopted IFRS for financial reporting purposes effective January 1, 2015.
E13: 2014 | F13: MIFRS
A15: Account | B15: Description | C15: Additions | D15: Years (new additions only) | E15: Depreciation Rate on New Additions | F15: 2014 Depreciation Expense 1 | G15: 2014 Depreciation Expense per Apppendix 2-BA Fixed Assets, Column J (l) | H15: Variance 2 | I15: Depreciation Expense on 2014 Full Year Additions | J15: Less Depreciation Expense on Assets Fully Depreciated during the year (o) | K15: 2014 Full Year Depreciation 3
C16: (d) | D16: (f) | E16: (g) = 1 / (f) | F16: (h)=2013 Full Year Deprecation + ((d)*0.5)/(f) | H16: (m) = (h) - (l) | I16: (n)=((d))/(f) | K16: (p) = 2013 Full Year Depreciation + (n) - (o)
A17: 1611 | B17: Computer Software (Formally known as Account 1925) | C17: 92520.58 | D17: 5 | E17: =IF(D17=0,0,1/D17) -> 0.2 | F17: =IF(D17=0,+'App.2-CC_NewCGAAP_DepExp_2013'!K17,+'App.2-CC_NewCGAAP_DepExp_2013'!K17+((C17*0.5)/D17)) -> 56853.35 | G17: =-'App.2-BA_Fixed Asset Cont'!J162 -> 56853.36 | H17: =IF(ISERROR(+F17-G17), 0, +F17-G17) -> -0.009999999995 | I17: =IF(D17=0,0,+(C17)/D17) -> 18504.116 | J17: =3839.26+4322+3522.4+7383.5 -> 19067.16 | K17: =IF(ISERROR(+I17+'App.2-CC_NewCGAAP_DepExp_2013'!K17-J17), 0, +I17+'App.2-CC_NewCGAAP_DepExp_2013'!K17-J17) -> 47038.248
A18: 1612 | B18: Land Rights (Formally known as Account 1906) | E18: 0 | F18: =IF(D18=0,+'App.2-CC_NewCGAAP_DepExp_2013'!K18,+'App.2-CC_NewCGAAP_DepExp_2013'!K18+((C18*0.5)/D18)) -> 0 | G18: =-'App.2-BA_Fixed Asset Cont'!J163 -> 0 | H18: 0 | I18: =IF(D18=0,0,+(C18)/D18) -> 0 | K18: =IF(ISERROR(+I18+'App.2-CC_NewCGAAP_DepExp_2013'!K18-J18), 0, +I18+'App.2-CC_NewCGAAP_DepExp_2013'!K18-J18) -> 0
A19: 1805 | B19: Land | E19: 0 | F19: =IF(D19=0,+'App.2-CC_NewCGAAP_DepExp_2013'!K19,+'App.2-CC_NewCGAAP_DepExp_2013'!K19+((C19*0.5)/D19)) -> 0 | G19: =-'App.2-BA_Fixed Asset Cont'!J164 -> 0 | H19: 0 | I19: 0 | K19: =IF(ISERROR(+I19+'App.2-CC_NewCGAAP_DepExp_2013'!K19-J19), 0, +I19+'App.2-CC_NewCGAAP_DepExp_2013'!K19-J19) -> 0
A20: 1808 | B20: Buildings | C20: 18611.42 | D20: 50 | E20: 0.02 | F20: =IF(D20=0,+'App.2-CC_NewCGAAP_DepExp_2013'!K20,+'App.2-CC_NewCGAAP_DepExp_2013'!K20+((C20*0.5)/D20)) -> 1829.3642 | G20: =-'App.2-BA_Fixed Asset Cont'!J165 -> 1821.64 | H20: 7.7242 | I20: 372.2284 | K20: =IF(ISERROR(+I20+'App.2-CC_NewCGAAP_DepExp_2013'!K20-J20), 0, +I20+'App.2-CC_NewCGAAP_DepExp_2013'!K20-J20) -> 2015.4784
A21: 1810 | B21: Leasehold Improvements | E21: 0 | F21: =IF(D21=0,+'App.2-CC_NewCGAAP_DepExp_2013'!K21,+'App.2-CC_NewCGAAP_DepExp_2013'!K21+((C21*0.5)/D21)) -> 0 | G21: =-'App.2-BA_Fixed Asset Cont'!J166 -> 0 | H21: 0 | I21: 0 | K21: =IF(ISERROR(+I21+'App.2-CC_NewCGAAP_DepExp_2013'!K21-J21), 0, +I21+'App.2-CC_NewCGAAP_DepExp_2013'!K21-J21) -> 0
A22: 1815 | B22: Transformer Station Equipment >50 kV | E22: 0 | F22: =IF(D22=0,+'App.2-CC_NewCGAAP_DepExp_2013'!K22,+'App.2-CC_NewCGAAP_DepExp_2013'!K22+((C22*0.5)/D22)) -> 0 | G22: =-'App.2-BA_Fixed Asset Cont'!J167 -> 0 | H22: 0 | I22: 0 | K22: =IF(ISERROR(+I22+'App.2-CC_NewCGAAP_DepExp_2013'!K22-J22), 0, +I22+'App.2-CC_NewCGAAP_DepExp_2013'!K22-J22) -> 0
A23: 1820 | B23: Distribution Station Equipment <50 kV (Substations) | C23: 10541.81 | D23: 40 | E23: 0.025 | F23: =IF(D23=0,+'App.2-CC_NewCGAAP_DepExp_2013'!K23,+'App.2-CC_NewCGAAP_DepExp_2013'!K23+((C23*0.5)/D23)) -> 9126.107292 | G23: =-'App.2-BA_Fixed Asset Cont'!J168 -> 17290.92 | H23: -8164.812708 | I23: 263.54525 | K23: =IF(ISERROR(+I23+'App.2-CC_NewCGAAP_DepExp_2013'!K23-J23), 0, +I23+'App.2-CC_NewCGAAP_DepExp_2013'!K23-J23) -> 9257.879917
A24: 1820 | B24: Distribution Station Equipment <50 kV (Wholesale Meters) | C24: 9451.7 | D24: 25 | E24: =IF(D24=0,0,1/D24) -> 0.04 | F24: =IF(D24=0,+'App.2-CC_NewCGAAP_DepExp_2013'!K24,+'App.2-CC_NewCGAAP_DepExp_2013'!K24+((C24*0.5)/D24)) -> 13391.824 | G24: =-'App.2-BA_Fixed Asset Cont'!J169 -> 13391.82 | H24: =IF(ISERROR(+F24-G24), 0, +F24-G24) -> 0.003999999994 | I24: =IF(D24=0,0,+(C24)/D24) -> 378.068 | K24: =IF(ISERROR(+I24+'App.2-CC_NewCGAAP_DepExp_2013'!K24-J24), 0, +I24+'App.2-CC_NewCGAAP_DepExp_2013'!K24-J24) -> 13580.858
A25: 1825 | B25: Storage Battery Equipment | E25: 0 | F25: =IF(D25=0,+'App.2-CC_NewCGAAP_DepExp_2013'!K25,+'App.2-CC_NewCGAAP_DepExp_2013'!K25+((C25*0.5)/D25)) -> 0 | G25: =-'App.2-BA_Fixed Asset Cont'!J170 -> 0 | H25: 0 | I25: 0 | K25: =IF(ISERROR(+I25+'App.2-CC_NewCGAAP_DepExp_2013'!K25-J25), 0, +I25+'App.2-CC_NewCGAAP_DepExp_2013'!K25-J25) -> 0
A26: 1830 | B26: Poles, Towers & Fixtures | C26: 70213.34 | D26: 45 | E26: 0.02222222222 | F26: =IF(D26=0,+'App.2-CC_NewCGAAP_DepExp_2013'!K26,+'App.2-CC_NewCGAAP_DepExp_2013'!K26+((C26*0.5)/D26)) -> 15325.26235 | G26: =-'App.2-BA_Fixed Asset Cont'!J171 -> 15319.83 | H26: 5.432347834 | I26: 1560.296444 | J26: =32.11+65.25 -> 97.36 | K26: =IF(ISERROR(+I26+'App.2-CC_NewCGAAP_DepExp_2013'!K26-J26), 0, +I26+'App.2-CC_NewCGAAP_DepExp_2013'!K26-J26) -> 16008.05057
A27: 1835 | B27: Overhead Conductors & Devices | C27: 57820.29 | D27: 60 | E27: 0.01666666667 | F27: =IF(D27=0,+'App.2-CC_NewCGAAP_DepExp_2013'!K27,+'App.2-CC_NewCGAAP_DepExp_2013'!K27+((C27*0.5)/D27)) -> 27350.85142 | G27: =-'App.2-BA_Fixed Asset Cont'!J172 -> 26584.88 | H27: 765.9714155 | I27: 963.6715 | K27: =IF(ISERROR(+I27+'App.2-CC_NewCGAAP_DepExp_2013'!K27-J27), 0, +I27+'App.2-CC_NewCGAAP_DepExp_2013'!K27-J27) -> 27832.68717
A28: 1840 | B28: Underground Conduit | C28: 24279.77 | D28: 50 | E28: 0.02 | F28: =IF(D28=0,+'App.2-CC_NewCGAAP_DepExp_2013'!K28,+'App.2-CC_NewCGAAP_DepExp_2013'!K28+((C28*0.5)/D28)) -> 1027.71635 | G28: =-'App.2-BA_Fixed Asset Cont'!J173 -> 1027.72 | H28: -0.00365 | I28: 485.5954 | K28: =IF(ISERROR(+I28+'App.2-CC_NewCGAAP_DepExp_2013'!K28-J28), 0, +I28+'App.2-CC_NewCGAAP_DepExp_2013'!K28-J28) -> 1270.51405
A29: 1845 | B29: Underground Conductors & Devices | C29: 62867.29 | D29: 40 | E29: 0.025 | F29: =IF(D29=0,+'App.2-CC_NewCGAAP_DepExp_2013'!K29,+'App.2-CC_NewCGAAP_DepExp_2013'!K29+((C29*0.5)/D29)) -> 19239.07746 | G29: =-'App.2-BA_Fixed Asset Cont'!J174 -> 19239.07 | H29: 0.007463297341 | I29: 1571.68225 | K29: =IF(ISERROR(+I29+'App.2-CC_NewCGAAP_DepExp_2013'!K29-J29), 0, +I29+'App.2-CC_NewCGAAP_DepExp_2013'!K29-J29) -> 20024.91859
A30: 1850 | B30: Line Transformers | C30: 22494.25 | D30: 45 | E30: 0.02222222222 | F30: =IF(D30=0,+'App.2-CC_NewCGAAP_DepExp_2013'!K30,+'App.2-CC_NewCGAAP_DepExp_2013'!K30+((C30*0.5)/D30)) -> 23082.45269 | G30: =-'App.2-BA_Fixed Asset Cont'!J175 -> 23082.45 | H30: 0.002687382537 | I30: 499.8722222 | J30: 0.71 | K30: =IF(ISERROR(+I30+'App.2-CC_NewCGAAP_DepExp_2013'!K30-J30), 0, +I30+'App.2-CC_NewCGAAP_DepExp_2013'!K30-J30) -> 23331.6788
A31: 1855 | B31: Services (Overhead & Underground) | C31: 4560 | D31: 60 | E31: 0.01666666667 | F31: =IF(D31=0,+'App.2-CC_NewCGAAP_DepExp_2013'!K31,+'App.2-CC_NewCGAAP_DepExp_2013'!K31+((C31*0.5)/D31)) -> 4803.214393 | G31: =-'App.2-BA_Fixed Asset Cont'!J176 -> 4803.48 | H31: -0.2656074692 | I31: 76 | K31: =IF(ISERROR(+I31+'App.2-CC_NewCGAAP_DepExp_2013'!K31-J31), 0, +I31+'App.2-CC_NewCGAAP_DepExp_2013'!K31-J31) -> 4841.214393
A32: 1860 | B32: Meters | C32: ='App.2-BA_Fixed Asset Cont'!E177 -> 0 | D32: 25 | E32: 0.04 | F32: =IF(D32=0,+'App.2-CC_NewCGAAP_DepExp_2013'!K32,+'App.2-CC_NewCGAAP_DepExp_2013'!K32+((C32*0.5)/D32)) -> 7392.835096 | G32: =-'App.2-BA_Fixed Asset Cont'!J177 -> 7190.73 | H32: 202.1050956 | I32: 0 | K32: =IF(ISERROR(+I32+'App.2-CC_NewCGAAP_DepExp_2013'!K32-J32), 0, +I32+'App.2-CC_NewCGAAP_DepExp_2013'!K32-J32) -> 7392.835096
A33: 1860 | B33: Meters (Smart Meters) | C33: ='App.2-BA_Fixed Asset Cont'!E178 -> 23652.7 | D33: 15 | E33: 0.06666666667 | F33: =IF(D33=0,+'App.2-CC_NewCGAAP_DepExp_2013'!K33,+'App.2-CC_NewCGAAP_DepExp_2013'!K33+((C33*0.5)/D33)) -> 76725.30503 | G33: =-'App.2-BA_Fixed Asset Cont'!J178 -> 77023.78 | H33: -298.4749692 | I33: 1576.846667 | J33: =176.5+138 -> 314.5 | K33: =IF(ISERROR(+I33+'App.2-CC_NewCGAAP_DepExp_2013'!K33-J33), 0, +I33+'App.2-CC_NewCGAAP_DepExp_2013'!K33-J33) -> 77199.22836
A34: 1905 | B34: Land | E34: 0 | F34: =IF(D34=0,+'App.2-CC_NewCGAAP_DepExp_2013'!K34,+'App.2-CC_NewCGAAP_DepExp_2013'!K34+((C34*0.5)/D34)) -> 0 | G34: =-'App.2-BA_Fixed Asset Cont'!J179 -> 0 | H34: 0 | I34: 0 | K34: =IF(ISERROR(+I34+'App.2-CC_NewCGAAP_DepExp_2013'!K34-J34), 0, +I34+'App.2-CC_NewCGAAP_DepExp_2013'!K34-J34) -> 0
A35: 1908 | B35: Buildings & Fixtures | E35: 0 | F35: =IF(D35=0,+'App.2-CC_NewCGAAP_DepExp_2013'!K35,+'App.2-CC_NewCGAAP_DepExp_2013'!K35+((C35*0.5)/D35)) -> 0 | G35: =-'App.2-BA_Fixed Asset Cont'!J180 -> 0 | H35: 0 | I35: 0 | K35: =IF(ISERROR(+I35+'App.2-CC_NewCGAAP_DepExp_2013'!K35-J35), 0, +I35+'App.2-CC_NewCGAAP_DepExp_2013'!K35-J35) -> 0
A36: 1910 | B36: Leasehold Improvements | E36: 0 | F36: =IF(D36=0,+'App.2-CC_NewCGAAP_DepExp_2013'!K36,+'App.2-CC_NewCGAAP_DepExp_2013'!K36+((C36*0.5)/D36)) -> 879.7046154 | G36: =-'App.2-BA_Fixed Asset Cont'!J181 -> 879.71 | H36: -0.005384615385 | I36: 0 | K36: =IF(ISERROR(+I36+'App.2-CC_NewCGAAP_DepExp_2013'!K36-J36), 0, +I36+'App.2-CC_NewCGAAP_DepExp_2013'!K36-J36) -> 879.7046154
A37: 1915 | B37: Office Furniture & Equipment (10 years) | E37: 0 | F37: =IF(D37=0,+'App.2-CC_NewCGAAP_DepExp_2013'!K37,+'App.2-CC_NewCGAAP_DepExp_2013'!K37+((C37*0.5)/D37)) -> 0 | G37: =-'App.2-BA_Fixed Asset Cont'!J182 -> 0 | H37: 0 | I37: 0 | K37: =IF(ISERROR(+I37+'App.2-CC_NewCGAAP_DepExp_2013'!K37-J37), 0, +I37+'App.2-CC_NewCGAAP_DepExp_2013'!K37-J37) -> 0
A38: 1915 | B38: Office Furniture & Equipment (5 years) | E38: 0 | F38: =IF(D38=0,+'App.2-CC_NewCGAAP_DepExp_2013'!K38,+'App.2-CC_NewCGAAP_DepExp_2013'!K38+((C38*0.5)/D38)) -> 0 | G38: =-'App.2-BA_Fixed Asset Cont'!J183 -> 0 | H38: 0 | I38: 0 | K38: =IF(ISERROR(+I38+'App.2-CC_NewCGAAP_DepExp_2013'!K38-J38), 0, +I38+'App.2-CC_NewCGAAP_DepExp_2013'!K38-J38) -> 0
A39: 1920 | B39: Computer Equipment - Hardware | C39: 13243.71 | D39: 5 | E39: 0.2 | F39: =IF(D39=0,+'App.2-CC_NewCGAAP_DepExp_2013'!K39,+'App.2-CC_NewCGAAP_DepExp_2013'!K39+((C39*0.5)/D39)) -> 19115.78224 | G39: =-'App.2-BA_Fixed Asset Cont'!J184 -> 19115.88 | H39: -0.09776190475 | I39: 2648.742 | J39: =1843.23+1375.7+230.49 -> 3449.42 | K39: =IF(ISERROR(+I39+'App.2-CC_NewCGAAP_DepExp_2013'!K39-J39), 0, +I39+'App.2-CC_NewCGAAP_DepExp_2013'!K39-J39) -> 16990.73324
A40: 1920 | B40: Computer Equip.-Hardware(Post Mar. 22/04) | E40: 0 | F40: =IF(D40=0,+'App.2-CC_NewCGAAP_DepExp_2013'!K40,+'App.2-CC_NewCGAAP_DepExp_2013'!K40+((C40*0.5)/D40)) -> 0 | G40: =-'App.2-BA_Fixed Asset Cont'!J185 -> 0 | H40: 0 | I40: 0 | K40: =IF(ISERROR(+I40+'App.2-CC_NewCGAAP_DepExp_2013'!K40-J40), 0, +I40+'App.2-CC_NewCGAAP_DepExp_2013'!K40-J40) -> 0
A41: 1920 | B41: Computer Equip.-Hardware(Post Mar. 19/07) | E41: 0 | F41: =IF(D41=0,+'App.2-CC_NewCGAAP_DepExp_2013'!K41,+'App.2-CC_NewCGAAP_DepExp_2013'!K41+((C41*0.5)/D41)) -> 0 | G41: =-'App.2-BA_Fixed Asset Cont'!J186 -> 0 | H41: 0 | I41: 0 | K41: =IF(ISERROR(+I41+'App.2-CC_NewCGAAP_DepExp_2013'!K41-J41), 0, +I41+'App.2-CC_NewCGAAP_DepExp_2013'!K41-J41) -> 0
A42: 1930 | B42: Transportation Equipment | C42: 46494.17 | D42: 5 | E42: 0.2 | F42: =IF(D42=0,+'App.2-CC_NewCGAAP_DepExp_2013'!K42,+'App.2-CC_NewCGAAP_DepExp_2013'!K42+((C42*0.5)/D42)) -> 84051.66348 | G42: =-'App.2-BA_Fixed Asset Cont'!J187 -> 84051.62 | H42: 0.04347962924 | I42: 9298.834 | J42: 3520.52 | K42: =IF(ISERROR(+I42+'App.2-CC_NewCGAAP_DepExp_2013'!K42-J42), 0, +I42+'App.2-CC_NewCGAAP_DepExp_2013'!K42-J42) -> 85180.56048
A43: 1935 | B43: Stores Equipment | E43: 0 | F43: =IF(D43=0,+'App.2-CC_NewCGAAP_DepExp_2013'!K43,+'App.2-CC_NewCGAAP_DepExp_2013'!K43+((C43*0.5)/D43)) -> 0 | G43: =-'App.2-BA_Fixed Asset Cont'!J188 -> 0 | H43: 0 | I43: 0 | K43: =IF(ISERROR(+I43+'App.2-CC_NewCGAAP_DepExp_2013'!K43-J43), 0, +I43+'App.2-CC_NewCGAAP_DepExp_2013'!K43-J43) -> 0
A44: 1940 | B44: Tools, Shop & Garage Equipment | C44: 6426.01 | D44: 10 | E44: 0.1 | F44: =IF(D44=0,+'App.2-CC_NewCGAAP_DepExp_2013'!K44,+'App.2-CC_NewCGAAP_DepExp_2013'!K44+((C44*0.5)/D44)) -> 5499.65814 | G44: =-'App.2-BA_Fixed Asset Cont'!J189 -> 5499.67 | H44: -0.01185976338 | I44: 642.601 | K44: =IF(ISERROR(+I44+'App.2-CC_NewCGAAP_DepExp_2013'!K44-J44), 0, +I44+'App.2-CC_NewCGAAP_DepExp_2013'!K44-J44) -> 5820.95864
A45: 1945 | B45: Measurement & Testing Equipment | E45: 0 | F45: =IF(D45=0,+'App.2-CC_NewCGAAP_DepExp_2013'!K45,+'App.2-CC_NewCGAAP_DepExp_2013'!K45+((C45*0.5)/D45)) -> 0 | G45: =-'App.2-BA_Fixed Asset Cont'!J190 -> 0 | H45: 0 | I45: 0 | K45: =IF(ISERROR(+I45+'App.2-CC_NewCGAAP_DepExp_2013'!K45-J45), 0, +I45+'App.2-CC_NewCGAAP_DepExp_2013'!K45-J45) -> 0
A46: 1950 | B46: Power Operated Equipment | E46: 0 | F46: =IF(D46=0,+'App.2-CC_NewCGAAP_DepExp_2013'!K46,+'App.2-CC_NewCGAAP_DepExp_2013'!K46+((C46*0.5)/D46)) -> 0 | G46: =-'App.2-BA_Fixed Asset Cont'!J191 -> 0 | H46: 0 | I46: 0 | K46: =IF(ISERROR(+I46+'App.2-CC_NewCGAAP_DepExp_2013'!K46-J46), 0, +I46+'App.2-CC_NewCGAAP_DepExp_2013'!K46-J46) -> 0
A47: 1955 | B47: Communications Equipment | E47: 0 | F47: =IF(D47=0,+'App.2-CC_NewCGAAP_DepExp_2013'!K47,+'App.2-CC_NewCGAAP_DepExp_2013'!K47+((C47*0.5)/D47)) -> 0 | G47: =-'App.2-BA_Fixed Asset Cont'!J192 -> 0 | H47: 0 | I47: 0 | K47: =IF(ISERROR(+I47+'App.2-CC_NewCGAAP_DepExp_2013'!K47-J47), 0, +I47+'App.2-CC_NewCGAAP_DepExp_2013'!K47-J47) -> 0
A48: 1955 | B48: Communication Equipment (Smart Meters) | E48: 0 | F48: =IF(D48=0,+'App.2-CC_NewCGAAP_DepExp_2013'!K48,+'App.2-CC_NewCGAAP_DepExp_2013'!K48+((C48*0.5)/D48)) -> 0 | G48: =-'App.2-BA_Fixed Asset Cont'!J193 -> 0 | H48: 0 | I48: 0 | K48: =IF(ISERROR(+I48+'App.2-CC_NewCGAAP_DepExp_2013'!K48-J48), 0, +I48+'App.2-CC_NewCGAAP_DepExp_2013'!K48-J48) -> 0
A49: 1960 | B49: Miscellaneous Equipment | E49: 0 | F49: =IF(D49=0,+'App.2-CC_NewCGAAP_DepExp_2013'!K49,+'App.2-CC_NewCGAAP_DepExp_2013'!K49+((C49*0.5)/D49)) -> 0 | G49: =-'App.2-BA_Fixed Asset Cont'!J194 -> 0 | H49: 0 | I49: 0 | K49: =IF(ISERROR(+I49+'App.2-CC_NewCGAAP_DepExp_2013'!K49-J49), 0, +I49+'App.2-CC_NewCGAAP_DepExp_2013'!K49-J49) -> 0
A50: 1970 | B50: Load Management Controls Customer Premises | E50: 0 | F50: =IF(D50=0,+'App.2-CC_NewCGAAP_DepExp_2013'!K50,+'App.2-CC_NewCGAAP_DepExp_2013'!K50+((C50*0.5)/D50)) -> 0 | G50: =-'App.2-BA_Fixed Asset Cont'!J195 -> 0 | H50: 0 | I50: 0 | K50: =IF(ISERROR(+I50+'App.2-CC_NewCGAAP_DepExp_2013'!K50-J50), 0, +I50+'App.2-CC_NewCGAAP_DepExp_2013'!K50-J50) -> 0
A51: 1975 | B51: Load Management Controls Utility Premises | E51: 0 | F51: =IF(D51=0,+'App.2-CC_NewCGAAP_DepExp_2013'!K51,+'App.2-CC_NewCGAAP_DepExp_2013'!K51+((C51*0.5)/D51)) -> 0 | G51: =-'App.2-BA_Fixed Asset Cont'!J196 -> 0 | H51: 0 | I51: 0 | K51: =IF(ISERROR(+I51+'App.2-CC_NewCGAAP_DepExp_2013'!K51-J51), 0, +I51+'App.2-CC_NewCGAAP_DepExp_2013'!K51-J51) -> 0
A52: 1980 | B52: System Supervisor Equipment | E52: 0 | F52: =IF(D52=0,+'App.2-CC_NewCGAAP_DepExp_2013'!K52,+'App.2-CC_NewCGAAP_DepExp_2013'!K52+((C52*0.5)/D52)) -> 0 | G52: =-'App.2-BA_Fixed Asset Cont'!J197 -> 0 | H52: 0 | I52: 0 | K52: =IF(ISERROR(+I52+'App.2-CC_NewCGAAP_DepExp_2013'!K52-J52), 0, +I52+'App.2-CC_NewCGAAP_DepExp_2013'!K52-J52) -> 0
A53: 1985 | B53: Miscellaneous Fixed Assets | E53: 0 | F53: =IF(D53=0,+'App.2-CC_NewCGAAP_DepExp_2013'!K53,+'App.2-CC_NewCGAAP_DepExp_2013'!K53+((C53*0.5)/D53)) -> 0 | G53: =-'App.2-BA_Fixed Asset Cont'!J198 -> 0 | H53: 0 | I53: 0 | K53: =IF(ISERROR(+I53+'App.2-CC_NewCGAAP_DepExp_2013'!K53-J53), 0, +I53+'App.2-CC_NewCGAAP_DepExp_2013'!K53-J53) -> 0
A54: 1990 | B54: Other Tangible Property | E54: 0 | F54: =IF(D54=0,+'App.2-CC_NewCGAAP_DepExp_2013'!K54,+'App.2-CC_NewCGAAP_DepExp_2013'!K54+((C54*0.5)/D54)) -> 0 | G54: =-'App.2-BA_Fixed Asset Cont'!J199 -> 0 | H54: 0 | I54: 0 | K54: =IF(ISERROR(+I54+'App.2-CC_NewCGAAP_DepExp_2013'!K54-J54), 0, +I54+'App.2-CC_NewCGAAP_DepExp_2013'!K54-J54) -> 0
A55: 1995 | B55: Contributions & Grants | C55: -30723.29 | D55: 40.28332984 | E55: =IF(D55=0,0,1/D55) -> 0.02482416434 | F55: =IF(D55=0,+'App.2-CC_NewCGAAP_DepExp_2013'!K55,+'App.2-CC_NewCGAAP_DepExp_2013'!K55+((C55*0.5)/D55)) -> -13376.27458 | G55: =-'App.2-BA_Fixed Asset Cont'!J200 -> -13011.28 | H55: -364.9945832 | I55: -762.68 | K55: =IF(ISERROR(+I55+'App.2-CC_NewCGAAP_DepExp_2013'!K55-J55), 0, +I55+'App.2-CC_NewCGAAP_DepExp_2013'!K55-J55) -> -13757.61458
B56: Total | C56: =SUM(C17:C55) -> 432453.75 | F56: =SUM(F17:F55) -> 352317.8942 | G56: 360165.28 | H56: -7847.385835 | I56: 38079.41913 | J56: 26449.67 | K56: 344907.9337
B57: Depreciation exp. adj. from gain or loss on the retirement of assets (pool of like assets)
B58: Total Depreciation Expense | F58: =+F57+F56 -> 352317.8942
A60: Notes:
A61: 1 | B61: Board policy of the "half-year" rule - the applicant must ensure that additions in the year attract a half-year depreciation expense in the first year. Deviations from this standard practice must be supported in the application.
A62: 2 | B62: The applicant must provide an explanation of material variances in evidence.
A63: 3 | B63: This column refers to the calculated full year depreciation but excludes the depreciation expense on assets fully depreciated during the year. This column is used for the purpose of calculating depreciation expense in the following year on the next worksheet.
A65: General: | B65: Applicants must provide a breakdown of depreciation and amortization expense in the above format for all relevant accounts. Asset Retirement Obligations (AROs), depreciation and accretion expense should be disclosed separately consistent with the Notes of historical Audited Financial Statements.

Sheet App.2-CE_MIFRS_DepExp_2015
G1: File Number: | H1: =EBNUMBER -> EB-2015-0100
G2: Exhibit:
G3: Tab:
G4: Schedule:
G5: Page:
G7: Date:
A9: Appendix 2-CE
A10: Depreciation and Amortization Expense
A11: Assumes the applicant made capitalization and depreciation expense accounting policy changes under CGAAP effective January 1, 2012 and has adopted IFRS for financial reporting purposes effective January 1, 2015.
C13: 2015 | D13: MIFRS
A15: Account | B15: Description | C15: Additions | D15: Years (new additions only) | E15: Depreciation Rate on New Additions | F15: 2015 Depreciation Expense 1 | G15: 2015 Depreciation Expense per Appendix 2-BA Fixed Assets, Column J (l) | H15: Variance 2 | I15: Depreciation Expense on 2015 Full Year Additions | J15: Less Depreciation Expense on Assets Fully Depreciated during the year (o) | K15: 2015 Full Year Depreciation 3
C16: (d) | D16: (f) | E16: (g) = 1 / (f) | F16: (h)=2014 Full Year Depreciation + ((d)*0.5)/(f) | H16: (m) = (h) - (l) | I16: (n)=((d))/(f) | K16: (p) = 2014 Full Year Depreciation + (n) - (o)
A17: 1611 | B17: Computer Software (Formally known as Account 1925) | C17: ='App.2-BA_Fixed Asset Cont'!E290 -> 6743 | D17: 5 | E17: =IF(D17=0,0,1/D17) -> 0.2 | F17: =IF(D17=0,'App.2-CD_MIFRS_DepExp_2014'!K17,+'App.2-CD_MIFRS_DepExp_2014'!K17+((C17*0.5)/D17)) -> 47712.548 | G17: =-'App.2-BA_Fixed Asset Cont'!J290 -> 47712.53 | H17: =IF(ISERROR(+F17-G17), 0, +F17-G17) -> 0.018 | I17: =IF(D17=0,0,+(C17)/D17) -> 1348.6 | J17: =3522.4+1601.54-1283.32+7383.5+2801.51 -> 14025.63 | K17: =IF(ISERROR(+I17+'App.2-CD_MIFRS_DepExp_2014'!K17-J17), 0, +I17+'App.2-CD_MIFRS_DepExp_2014'!K17-J17) -> 34361.218
A18: 1612 | B18: Land Rights (Formally known as Account 1906) | E18: 0 | F18: =IF(D18=0,'App.2-CD_MIFRS_DepExp_2014'!K18,+'App.2-CD_MIFRS_DepExp_2014'!K18+((C18*0.5)/D18)) -> 0 | G18: =-'App.2-BA_Fixed Asset Cont'!J291 -> 0 | H18: 0 | I18: =IF(D18=0,0,+(C18)/D18) -> 0 | K18: =IF(ISERROR(+I18+'App.2-CD_MIFRS_DepExp_2014'!K18-J18), 0, +I18+'App.2-CD_MIFRS_DepExp_2014'!K18-J18) -> 0
A19: 1805 | B19: Land | C19: ='App.2-BA_Fixed Asset Cont'!E292 -> 7361.85 | E19: 0 | F19: =IF(D19=0,'App.2-CD_MIFRS_DepExp_2014'!K19,+'App.2-CD_MIFRS_DepExp_2014'!K19+((C19*0.5)/D19)) -> 0 | G19: =-'App.2-BA_Fixed Asset Cont'!J292 -> 0 | H19: 0 | I19: 0 | K19: =IF(ISERROR(+I19+'App.2-CD_MIFRS_DepExp_2014'!K19-J19), 0, +I19+'App.2-CD_MIFRS_DepExp_2014'!K19-J19) -> 0
A20: 1808 | B20: Buildings | C20: ='App.2-BA_Fixed Asset Cont'!E293 -> 2150 | D20: 50 | E20: 0.02 | F20: =IF(D20=0,'App.2-CD_MIFRS_DepExp_2014'!K20,+'App.2-CD_MIFRS_DepExp_2014'!K20+((C20*0.5)/D20)) -> 2036.9784 | G20: =-'App.2-BA_Fixed Asset Cont'!J293 -> 2029.26 | H20: 7.7184 | I20: 43 | K20: =IF(ISERROR(+I20+'App.2-CD_MIFRS_DepExp_2014'!K20-J20), 0, +I20+'App.2-CD_MIFRS_DepExp_2014'!K20-J20) -> 2058.4784
A21: 1810 | B21: Leasehold Improvements | E21: 0 | F21: =IF(D21=0,'App.2-CD_MIFRS_DepExp_2014'!K21,+'App.2-CD_MIFRS_DepExp_2014'!K21+((C21*0.5)/D21)) -> 0 | G21: =-'App.2-BA_Fixed Asset Cont'!J294 -> 0 | H21: 0 | I21: 0 | K21: =IF(ISERROR(+I21+'App.2-CD_MIFRS_DepExp_2014'!K21-J21), 0, +I21+'App.2-CD_MIFRS_DepExp_2014'!K21-J21) -> 0
A22: 1815 | B22: Transformer Station Equipment >50 kV | E22: 0 | F22: =IF(D22=0,'App.2-CD_MIFRS_DepExp_2014'!K22,+'App.2-CD_MIFRS_DepExp_2014'!K22+((C22*0.5)/D22)) -> 0 | G22: =-'App.2-BA_Fixed Asset Cont'!J295 -> 0 | H22: 0 | I22: 0 | K22: =IF(ISERROR(+I22+'App.2-CD_MIFRS_DepExp_2014'!K22-J22), 0, +I22+'App.2-CD_MIFRS_DepExp_2014'!K22-J22) -> 0
A23: 1820 | B23: Distribution Station Equipment <50 kV (Substations) | C23: ='App.2-BA_Fixed Asset Cont'!E296 -> 261305.16 | D23: 45 | E23: 0.02222222222 | F23: =IF(D23=0,'App.2-CD_MIFRS_DepExp_2014'!K23,+'App.2-CD_MIFRS_DepExp_2014'!K23+((C23*0.5)/D23)) -> 12161.27058 | G23: =-'App.2-BA_Fixed Asset Cont'!J296 -> -20773.13 | H23: 32934.40058 | I23: 5806.781333 | K23: =IF(ISERROR(+I23+'App.2-CD_MIFRS_DepExp_2014'!K23-J23), 0, +I23+'App.2-CD_MIFRS_DepExp_2014'!K23-J23) -> 15064.66125
A24: 1820 | B24: Distribution Station Equipment <50 kV (Wholesale Meters) | C24: ='App.2-BA_Fixed Asset Cont'!E297 -> 17933.75 | D24: 25 | E24: =IF(D24=0,0,1/D24) -> 0.04 | F24: =IF(D24=0,'App.2-CD_MIFRS_DepExp_2014'!K24,+'App.2-CD_MIFRS_DepExp_2014'!K24+((C24*0.5)/D24)) -> 13939.533 | G24: =-'App.2-BA_Fixed Asset Cont'!J297 -> 13939.54 | H24: =IF(ISERROR(+F24-G24), 0, +F24-G24) -> -0.007000000005 | I24: =IF(D24=0,0,+(C24)/D24) -> 717.35 | K24: =IF(ISERROR(+I24+'App.2-CD_MIFRS_DepExp_2014'!K24-J24), 0, +I24+'App.2-CD_MIFRS_DepExp_2014'!K24-J24) -> 14298.208
A25: 1825 | B25: Storage Battery Equipment | E25: 0 | F25: =IF(D25=0,'App.2-CD_MIFRS_DepExp_2014'!K25,+'App.2-CD_MIFRS_DepExp_2014'!K25+((C25*0.5)/D25)) -> 0 | G25: =-'App.2-BA_Fixed Asset Cont'!J298 -> 0 | H25: 0 | I25: 0 | K25: =IF(ISERROR(+I25+'App.2-CD_MIFRS_DepExp_2014'!K25-J25), 0, +I25+'App.2-CD_MIFRS_DepExp_2014'!K25-J25) -> 0
A26: 1830 | B26: Poles, Towers & Fixtures | C26: ='App.2-BA_Fixed Asset Cont'!E299 -> 67188.8 | D26: 45 | E26: 0.02222222222 | F26: =IF(D26=0,'App.2-CD_MIFRS_DepExp_2014'!K26,+'App.2-CD_MIFRS_DepExp_2014'!K26+((C26*0.5)/D26)) -> 16754.59279 | G26: =-'App.2-BA_Fixed Asset Cont'!J299 -> 16750.45 | H26: 4.142792279 | I26: 1493.084444 | J26: 31.99 | K26: =IF(ISERROR(+I26+'App.2-CD_MIFRS_DepExp_2014'!K26-J26), 0, +I26+'App.2-CD_MIFRS_DepExp_2014'!K26-J26) -> 17469.14501
A27: 1835 | B27: Overhead Conductors & Devices | C27: ='App.2-BA_Fixed Asset Cont'!E300 -> 41416.78 | D27: 60 | E27: 0.01666666667 | F27: =IF(D27=0,'App.2-CD_MIFRS_DepExp_2014'!K27,+'App.2-CD_MIFRS_DepExp_2014'!K27+((C27*0.5)/D27)) -> 28177.827 | G27: =-'App.2-BA_Fixed Asset Cont'!J300 -> 28304.42 | H27: -126.5930012 | I27: 690.2796667 | K27: =IF(ISERROR(+I27+'App.2-CD_MIFRS_DepExp_2014'!K27-J27), 0, +I27+'App.2-CD_MIFRS_DepExp_2014'!K27-J27) -> 28522.96683
A28: 1840 | B28: Underground Conduit | C28: ='App.2-BA_Fixed Asset Cont'!E301 -> 1231.4 | D28: 50 | E28: 0.02 | F28: =IF(D28=0,'App.2-CD_MIFRS_DepExp_2014'!K28,+'App.2-CD_MIFRS_DepExp_2014'!K28+((C28*0.5)/D28)) -> 1282.82805 | G28: =-'App.2-BA_Fixed Asset Cont'!J301 -> 1282.83 | H28: -0.00195 | I28: 24.628 | K28: =IF(ISERROR(+I28+'App.2-CD_MIFRS_DepExp_2014'!K28-J28), 0, +I28+'App.2-CD_MIFRS_DepExp_2014'!K28-J28) -> 1295.14205
A29: 1845 | B29: Underground Conductors & Devices | C29: ='App.2-BA_Fixed Asset Cont'!E302 -> 11558.29 | D29: 40 | E29: 0.025 | F29: =IF(D29=0,'App.2-CD_MIFRS_DepExp_2014'!K29,+'App.2-CD_MIFRS_DepExp_2014'!K29+((C29*0.5)/D29)) -> 20169.39721 | G29: =-'App.2-BA_Fixed Asset Cont'!J302 -> 20169.39 | H29: 0.007213297344 | I29: 288.95725 | K29: =IF(ISERROR(+I29+'App.2-CD_MIFRS_DepExp_2014'!K29-J29), 0, +I29+'App.2-CD_MIFRS_DepExp_2014'!K29-J29) -> 20313.87584
A30: 1850 | B30: Line Transformers | C30: ='App.2-BA_Fixed Asset Cont'!E303 -> 57648.05 | D30: 45 | E30: 0.02222222222 | F30: =IF(D30=0,'App.2-CD_MIFRS_DepExp_2014'!K30,+'App.2-CD_MIFRS_DepExp_2014'!K30+((C30*0.5)/D30)) -> 23972.21269 | G30: =-'App.2-BA_Fixed Asset Cont'!J303 -> 23947.29 | H30: 24.92268738 | I30: 1281.067778 | J30: 9.58 | K30: =IF(ISERROR(+I30+'App.2-CD_MIFRS_DepExp_2014'!K30-J30), 0, +I30+'App.2-CD_MIFRS_DepExp_2014'!K30-J30) -> 24603.16658
A31: 1855 | B31: Services (Overhead & Underground) | C31: ='App.2-BA_Fixed Asset Cont'!E304 -> 17911.44 | D31: 60 | E31: 0.01666666667 | F31: =IF(D31=0,'App.2-CD_MIFRS_DepExp_2014'!K31,+'App.2-CD_MIFRS_DepExp_2014'!K31+((C31*0.5)/D31)) -> 4990.476393 | G31: =-'App.2-BA_Fixed Asset Cont'!J304 -> 4990.74 | H31: -0.2636074692 | I31: 298.524 | K31: =IF(ISERROR(+I31+'App.2-CD_MIFRS_DepExp_2014'!K31-J31), 0, +I31+'App.2-CD_MIFRS_DepExp_2014'!K31-J31) -> 5139.738393
A32: 1860 | B32: Meters | C32: ='App.2-BA_Fixed Asset Cont'!E305 -> 0 | D32: 25 | E32: 0.04 | F32: =IF(D32=0,'App.2-CD_MIFRS_DepExp_2014'!K32,+'App.2-CD_MIFRS_DepExp_2014'!K32+((C32*0.5)/D32)) -> 7392.835096 | G32: =-'App.2-BA_Fixed Asset Cont'!J305 -> 7190.73 | H32: 202.1050956 | I32: 0 | K32: =IF(ISERROR(+I32+'App.2-CD_MIFRS_DepExp_2014'!K32-J32), 0, +I32+'App.2-CD_MIFRS_DepExp_2014'!K32-J32) -> 7392.835096
A33: 1860 | B33: Meters (Smart Meters) | C33: ='App.2-BA_Fixed Asset Cont'!E306 -> 14327.04 | D33: 15 | E33: 0.06666666667 | F33: =IF(D33=0,'App.2-CD_MIFRS_DepExp_2014'!K33,+'App.2-CD_MIFRS_DepExp_2014'!K33+((C33*0.5)/D33)) -> 77676.79636 | G33: =-'App.2-BA_Fixed Asset Cont'!J306 -> 77817.79 | H33: -140.9936358 | I33: 955.136 | J33: =147.62 -> 147.62 | K33: =IF(ISERROR(+I33+'App.2-CD_MIFRS_DepExp_2014'!K33-J33), 0, +I33+'App.2-CD_MIFRS_DepExp_2014'!K33-J33) -> 78006.74436
A34: 1905 | B34: Land | E34: 0 | F34: =IF(D34=0,'App.2-CD_MIFRS_DepExp_2014'!K34,+'App.2-CD_MIFRS_DepExp_2014'!K34+((C34*0.5)/D34)) -> 0 | G34: =-'App.2-BA_Fixed Asset Cont'!J307 -> 0 | H34: 0 | I34: 0 | K34: =IF(ISERROR(+I34+'App.2-CD_MIFRS_DepExp_2014'!K34-J34), 0, +I34+'App.2-CD_MIFRS_DepExp_2014'!K34-J34) -> 0
A35: 1908 | B35: Buildings & Fixtures | E35: 0 | F35: =IF(D35=0,'App.2-CD_MIFRS_DepExp_2014'!K35,+'App.2-CD_MIFRS_DepExp_2014'!K35+((C35*0.5)/D35)) -> 0 | G35: =-'App.2-BA_Fixed Asset Cont'!J308 -> 0 | H35: 0 | I35: 0 | K35: =IF(ISERROR(+I35+'App.2-CD_MIFRS_DepExp_2014'!K35-J35), 0, +I35+'App.2-CD_MIFRS_DepExp_2014'!K35-J35) -> 0
A36: 1910 | B36: Leasehold Improvements | E36: 0 | F36: =IF(D36=0,'App.2-CD_MIFRS_DepExp_2014'!K36,+'App.2-CD_MIFRS_DepExp_2014'!K36+((C36*0.5)/D36)) -> 879.7046154 | G36: =-'App.2-BA_Fixed Asset Cont'!J309 -> 879.7 | H36: 0.004615384615 | I36: 0 | K36: =IF(ISERROR(+I36+'App.2-CD_MIFRS_DepExp_2014'!K36-J36), 0, +I36+'App.2-CD_MIFRS_DepExp_2014'!K36-J36) -> 879.7046154
A37: 1915 | B37: Office Furniture & Equipment (10 years) | E37: 0 | F37: =IF(D37=0,'App.2-CD_MIFRS_DepExp_2014'!K37,+'App.2-CD_MIFRS_DepExp_2014'!K37+((C37*0.5)/D37)) -> 0 | G37: =-'App.2-BA_Fixed Asset Cont'!J310 -> 0 | H37: 0 | I37: 0 | K37: =IF(ISERROR(+I37+'App.2-CD_MIFRS_DepExp_2014'!K37-J37), 0, +I37+'App.2-CD_MIFRS_DepExp_2014'!K37-J37) -> 0
A38: 1915 | B38: Office Furniture & Equipment (5 years) | E38: 0 | F38: =IF(D38=0,'App.2-CD_MIFRS_DepExp_2014'!K38,+'App.2-CD_MIFRS_DepExp_2014'!K38+((C38*0.5)/D38)) -> 0 | G38: =-'App.2-BA_Fixed Asset Cont'!J311 -> 0 | H38: 0 | I38: 0 | K38: =IF(ISERROR(+I38+'App.2-CD_MIFRS_DepExp_2014'!K38-J38), 0, +I38+'App.2-CD_MIFRS_DepExp_2014'!K38-J38) -> 0
A39: 1920 | B39: Computer Equipment - Hardware | C39: ='App.2-BA_Fixed Asset Cont'!E312 -> 14760.54 | D39: 5 | E39: 0.2 | F39: =IF(D39=0,'App.2-CD_MIFRS_DepExp_2014'!K39,+'App.2-CD_MIFRS_DepExp_2014'!K39+((C39*0.5)/D39)) -> 18466.78724 | G39: =-'App.2-BA_Fixed Asset Cont'!J312 -> 18546.87 | H39: -80.0827619 | I39: 2952.108 | J39: =230.49+952.78+903.5 -> 2086.77 | K39: =IF(ISERROR(+I39+'App.2-CD_MIFRS_DepExp_2014'!K39-J39), 0, +I39+'App.2-CD_MIFRS_DepExp_2014'!K39-J39) -> 17856.07124
A40: 1920 | B40: Computer Equip.-Hardware for Smart Meters | C40: ='App.2-BA_Fixed Asset Cont'!E313 -> 39469.99 | D40: 5 | E40: 0.2 | F40: =IF(D40=0,'App.2-CD_MIFRS_DepExp_2014'!K40,+'App.2-CD_MIFRS_DepExp_2014'!K40+((C40*0.5)/D40)) -> 3946.999 | G40: =-'App.2-BA_Fixed Asset Cont'!J313 -> 35522.991 | H40: -31575.992 | I40: 7893.998 | J40: =C40/5/2 -> 3946.999 | K40: =IF(ISERROR(+I40+'App.2-CD_MIFRS_DepExp_2014'!K40-J40), 0, +I40+'App.2-CD_MIFRS_DepExp_2014'!K40-J40) -> 3946.999
A41: 1920 | B41: Computer Equip.-Hardware(Post Mar. 19/07) | E41: 0 | F41: =IF(D41=0,'App.2-CD_MIFRS_DepExp_2014'!K41,+'App.2-CD_MIFRS_DepExp_2014'!K41+((C41*0.5)/D41)) -> 0 | G41: =-'App.2-BA_Fixed Asset Cont'!J314 -> 0 | H41: 0 | I41: 0 | K41: =IF(ISERROR(+I41+'App.2-CD_MIFRS_DepExp_2014'!K41-J41), 0, +I41+'App.2-CD_MIFRS_DepExp_2014'!K41-J41) -> 0
A42: 1930 | B42: Transportation Equipment | C42: ='App.2-BA_Fixed Asset Cont'!E315 -> 48250.4 | D42: 5 | E42: 0.2 | F42: =IF(D42=0,'App.2-CD_MIFRS_DepExp_2014'!K42,+'App.2-CD_MIFRS_DepExp_2014'!K42+((C42*0.5)/D42)) -> 90005.60048 | G42: =-'App.2-BA_Fixed Asset Cont'!J315 -> 90005.52 | H42: 0.08047962922 | I42: 9650.08 | J42: =3520.52+111.12+192.15 -> 3823.79 | K42: =IF(ISERROR(+I42+'App.2-CD_MIFRS_DepExp_2014'!K42-J42), 0, +I42+'App.2-CD_MIFRS_DepExp_2014'!K42-J42) -> 91006.85048
A43: 1935 | B43: Stores Equipment | E43: 0 | F43: =IF(D43=0,'App.2-CD_MIFRS_DepExp_2014'!K43,+'App.2-CD_MIFRS_DepExp_2014'!K43+((C43*0.5)/D43)) -> 0 | G43: =-'App.2-BA_Fixed Asset Cont'!J316 -> 0 | H43: 0 | I43: 0 | K43: =IF(ISERROR(+I43+'App.2-CD_MIFRS_DepExp_2014'!K43-J43), 0, +I43+'App.2-CD_MIFRS_DepExp_2014'!K43-J43) -> 0
A44: 1940 | B44: Tools, Shop & Garage Equipment | C44: ='App.2-BA_Fixed Asset Cont'!E317 -> 3619.15 | D44: 10 | E44: 0.1 | F44: =IF(D44=0,'App.2-CD_MIFRS_DepExp_2014'!K44,+'App.2-CD_MIFRS_DepExp_2014'!K44+((C44*0.5)/D44)) -> 6001.91614 | G44: =-'App.2-BA_Fixed Asset Cont'!J317 -> 6001.93 | H44: -0.01385976338 | I44: 361.915 | J44: =193.71+414.95 -> 608.66 | K44: =IF(ISERROR(+I44+'App.2-CD_MIFRS_DepExp_2014'!K44-J44), 0, +I44+'App.2-CD_MIFRS_DepExp_2014'!K44-J44) -> 5574.21364
A45: 1945 | B45: Measurement & Testing Equipment | E45: 0 | F45: =IF(D45=0,'App.2-CD_MIFRS_DepExp_2014'!K45,+'App.2-CD_MIFRS_DepExp_2014'!K45+((C45*0.5)/D45)) -> 0 | G45: =-'App.2-BA_Fixed Asset Cont'!J318 -> 0 | H45: 0 | I45: 0 | K45: =IF(ISERROR(+I45+'App.2-CD_MIFRS_DepExp_2014'!K45-J45), 0, +I45+'App.2-CD_MIFRS_DepExp_2014'!K45-J45) -> 0
A46: 1950 | B46: Power Operated Equipment | E46: 0 | F46: =IF(D46=0,'App.2-CD_MIFRS_DepExp_2014'!K46,+'App.2-CD_MIFRS_DepExp_2014'!K46+((C46*0.5)/D46)) -> 0 | G46: =-'App.2-BA_Fixed Asset Cont'!J319 -> 0 | H46: 0 | I46: 0 | K46: =IF(ISERROR(+I46+'App.2-CD_MIFRS_DepExp_2014'!K46-J46), 0, +I46+'App.2-CD_MIFRS_DepExp_2014'!K46-J46) -> 0
A47: 1955 | B47: Communications Equipment | C47: ='App.2-BA_Fixed Asset Cont'!E320 -> 25511.25 | D47: 5 | E47: 0.2 | F47: =IF(D47=0,'App.2-CD_MIFRS_DepExp_2014'!K47,+'App.2-CD_MIFRS_DepExp_2014'!K47+((C47*0.5)/D47)) -> 2551.125 | G47: =-'App.2-BA_Fixed Asset Cont'!J320 -> 2551.13 | H47: -0.005 | I47: 5102.25 | K47: =IF(ISERROR(+I47+'App.2-CD_MIFRS_DepExp_2014'!K47-J47), 0, +I47+'App.2-CD_MIFRS_DepExp_2014'!K47-J47) -> 5102.25
A48: 1955 | B48: Communication Equipment (Smart Meters) | E48: 0 | F48: =IF(D48=0,'App.2-CD_MIFRS_DepExp_2014'!K48,+'App.2-CD_MIFRS_DepExp_2014'!K48+((C48*0.5)/D48)) -> 0 | G48: =-'App.2-BA_Fixed Asset Cont'!J321 -> 0 | H48: 0 | I48: 0 | K48: =IF(ISERROR(+I48+'App.2-CD_MIFRS_DepExp_2014'!K48-J48), 0, +I48+'App.2-CD_MIFRS_DepExp_2014'!K48-J48) -> 0
A49: 1960 | B49: Miscellaneous Equipment | E49: 0 | F49: =IF(D49=0,'App.2-CD_MIFRS_DepExp_2014'!K49,+'App.2-CD_MIFRS_DepExp_2014'!K49+((C49*0.5)/D49)) -> 0 | G49: =-'App.2-BA_Fixed Asset Cont'!J322 -> 0 | H49: 0 | I49: 0 | K49: =IF(ISERROR(+I49+'App.2-CD_MIFRS_DepExp_2014'!K49-J49), 0, +I49+'App.2-CD_MIFRS_DepExp_2014'!K49-J49) -> 0
A50: 1970 | B50: Load Management Controls Customer Premises | E50: 0 | F50: =IF(D50=0,'App.2-CD_MIFRS_DepExp_2014'!K50,+'App.2-CD_MIFRS_DepExp_2014'!K50+((C50*0.5)/D50)) -> 0 | G50: =-'App.2-BA_Fixed Asset Cont'!J323 -> 0 | H50: 0 | I50: 0 | K50: =IF(ISERROR(+I50+'App.2-CD_MIFRS_DepExp_2014'!K50-J50), 0, +I50+'App.2-CD_MIFRS_DepExp_2014'!K50-J50) -> 0
A51: 1975 | B51: Load Management Controls Utility Premises | E51: 0 | F51: =IF(D51=0,'App.2-CD_MIFRS_DepExp_2014'!K51,+'App.2-CD_MIFRS_DepExp_2014'!K51+((C51*0.5)/D51)) -> 0 | G51: =-'App.2-BA_Fixed Asset Cont'!J324 -> 0 | H51: 0 | I51: 0 | K51: =IF(ISERROR(+I51+'App.2-CD_MIFRS_DepExp_2014'!K51-J51), 0, +I51+'App.2-CD_MIFRS_DepExp_2014'!K51-J51) -> 0
A52: 1980 | B52: System Supervisor Equipment | C52: ='App.2-BA_Fixed Asset Cont'!E325 -> 0 | D52: 15 | E52: 0.06666666667 | F52: =IF(D52=0,'App.2-CD_MIFRS_DepExp_2014'!K52,+'App.2-CD_MIFRS_DepExp_2014'!K52+((C52*0.5)/D52)) -> 0 | G52: =-'App.2-BA_Fixed Asset Cont'!J325 -> 0 | H52: 0 | I52: 0 | K52: =IF(ISERROR(+I52+'App.2-CD_MIFRS_DepExp_2014'!K52-J52), 0, +I52+'App.2-CD_MIFRS_DepExp_2014'!K52-J52) -> 0
A53: 1985 | B53: Miscellaneous Fixed Assets | E53: 0 | F53: =IF(D53=0,'App.2-CD_MIFRS_DepExp_2014'!K53,+'App.2-CD_MIFRS_DepExp_2014'!K53+((C53*0.5)/D53)) -> 0 | G53: =-'App.2-BA_Fixed Asset Cont'!J326 -> 0 | H53: 0 | I53: 0 | K53: =IF(ISERROR(+I53+'App.2-CD_MIFRS_DepExp_2014'!K53-J53), 0, +I53+'App.2-CD_MIFRS_DepExp_2014'!K53-J53) -> 0
A54: 1990 | B54: Other Tangible Property | E54: 0 | F54: =IF(D54=0,'App.2-CD_MIFRS_DepExp_2014'!K54,+'App.2-CD_MIFRS_DepExp_2014'!K54+((C54*0.5)/D54)) -> 0 | G54: =-'App.2-BA_Fixed Asset Cont'!J327 -> 0 | H54: 0 | I54: 0 | K54: =IF(ISERROR(+I54+'App.2-CD_MIFRS_DepExp_2014'!K54-J54), 0, +I54+'App.2-CD_MIFRS_DepExp_2014'!K54-J54) -> 0
A55: 1995 | B55: Contributions & Grants | C55: ='App.2-BA_Fixed Asset Cont'!E329 -> -5200 | D55: 45 | E55: 0.02222222222 | F55: =IF(D55=0,'App.2-CD_MIFRS_DepExp_2014'!K55,+'App.2-CD_MIFRS_DepExp_2014'!K55+((C55*0.5)/D55)) -> -13815.39236 | G55: =-'App.2-BA_Fixed Asset Cont'!J329 -> -14066.45 | H55: 251.057639 | I55: -115.5555556 | K55: =IF(ISERROR(+I55+'App.2-CD_MIFRS_DepExp_2014'!K55-J55), 0, +I55+'App.2-CD_MIFRS_DepExp_2014'!K55-J55) -> -13873.17014
B56: Total | C56: =SUM(C17:C55) -> 633186.89 | F56: =SUM(F17:F55) -> 364304.0357 | G56: 362803.531 | H56: 1500.50469 | I56: 38792.20392 | J56: 24681.039 | K56: 359019.0986
B57: Depreciation exp. adj. from gain or loss on the retirement of assets (pool of like assets)
B58: Total Depreciation expense to be included in the test year revenue requirement | F58: =SUM(F56:F57) -> 364304.0357
A59: Notes:
A60: 1 | B60: Board policy of the "half-year" rule - the applicant must ensure that additions in the year attract a half-year depreciation expense in the first year. Deviations from this standard practice must be supported in the application.
A61: 2 | B61: The applicant must provide an explanation of material variances in evidence.
A62: 3 | B62: This column refers to the calculated full year depreciation but excludes the depreciation expense on assets fully depreciated during the year. This column is used for the purpose of calculating depreciation expense in the following year on the next worksheet.
A64: General: | B64: Applicants must provide a breakdown of depreciation and amortization expense in the above format for all relevant accounts. Asset Retirement Obligations (AROs), depreciation and accretion expense should be disclosed separately consistent with the Notes of historical Audited Financial Statements.

Sheet App.2-CF_MIFRS_DepExp_2016
G1: File Number: | H1: =EBNUMBER -> EB-2015-0100
G2: Exhibit:
G3: Tab:
G4: Schedule:
G5: Page:
G7: Date:
A9: Appendix 2-CF
A10: Depreciation and Amortization Expense
A11: Assumes the applicant made capitalization and depreciation expense accounting policy changes under CGAAP effective January 1, 2012 and has adopted IFRS for financial reporting purposes effective January 1, 2015.
C13: 2016 | D13: MIFRS
A15: Account | B15: Description | C15: Additions | D15: Years (new additions only) | E15: Depreciation Rate on New Additions | F15: 2016 Depreciation Expense 1 | G15: 2016 Depreciation Expense per Appendix 2-BA Fixed Assets, Column J (l) | H15: Variance 2
C16: (d) | D16: (f) | E16: (g) = 1 / (f) | F16: (h)=2015 Full Year Depreciation + ((d)*0.5)/(f) | H16: (m) = (h) - (l)
A17: 1611 | B17: Computer Software (Formally known as Account 1925) | C17: ='App.2-BA_Fixed Asset Cont'!E354 -> 15000 | D17: 5 | E17: =IF(D17=0,0,1/D17) -> 0.2 | F17: =IF(D17=0,'App.2-CE_MIFRS_DepExp_2015'!K17,+'App.2-CE_MIFRS_DepExp_2015'!K17+((C17*0.5)/D17)) -> 35861.218 | G17: =-'App.2-BA_Fixed Asset Cont'!J354 -> 35861.21 | H17: =IF(ISERROR(+F17-G17), 0, +F17-G17) -> 0.007999999994
A18: 1612 | B18: Land Rights (Formally known as Account 1906) | E18: 0 | F18: =IF(D18=0,'App.2-CE_MIFRS_DepExp_2015'!K18,+'App.2-CE_MIFRS_DepExp_2015'!K18+((C18*0.5)/D18)) -> 0 | G18: =-'App.2-BA_Fixed Asset Cont'!J355 -> 0 | H18: 0
A19: 1805 | B19: Land | E19: 0 | F19: =IF(D19=0,'App.2-CE_MIFRS_DepExp_2015'!K19,+'App.2-CE_MIFRS_DepExp_2015'!K19+((C19*0.5)/D19)) -> 0 | G19: =-'App.2-BA_Fixed Asset Cont'!J356 -> 0 | H19: 0
A20: 1808 | B20: Buildings | E20: 0 | F20: =IF(D20=0,'App.2-CE_MIFRS_DepExp_2015'!K20,+'App.2-CE_MIFRS_DepExp_2015'!K20+((C20*0.5)/D20)) -> 2058.4784 | G20: =-'App.2-BA_Fixed Asset Cont'!J357 -> 2050.76 | H20: 7.7184
A21: 1810 | B21: Leasehold Improvements | E21: 0 | F21: =IF(D21=0,'App.2-CE_MIFRS_DepExp_2015'!K21,+'App.2-CE_MIFRS_DepExp_2015'!K21+((C21*0.5)/D21)) -> 0 | G21: =-'App.2-BA_Fixed Asset Cont'!J358 -> 0 | H21: 0
A22: 1815 | B22: Transformer Station Equipment >50 kV | E22: 0 | F22: =IF(D22=0,'App.2-CE_MIFRS_DepExp_2015'!K22,+'App.2-CE_MIFRS_DepExp_2015'!K22+((C22*0.5)/D22)) -> 0 | G22: =-'App.2-BA_Fixed Asset Cont'!J359 -> 0 | H22: 0
A23: 1820 | B23: Distribution Station Equipment <50 kV (Substations) | C23: ='App.2-BA_Fixed Asset Cont'!E360 -> 78000 | D23: 45 | E23: 0.02222222222 | F23: =IF(D23=0,'App.2-CE_MIFRS_DepExp_2015'!K23,+'App.2-CE_MIFRS_DepExp_2015'!K23+((C23*0.5)/D23)) -> 15931.32792 | G23: =-'App.2-BA_Fixed Asset Cont'!J360 -> 15883.31667 | H23: 48.01125
A24: 1820 | B24: Distribution Station Equipment <50 kV (Wholesale Meters) | C24: ='App.2-BA_Fixed Asset Cont'!E361 -> 0 | D24: 25 | E24: =IF(D24=0,0,1/D24) -> 0.04 | F24: =IF(D24=0,'App.2-CE_MIFRS_DepExp_2015'!K24,+'App.2-CE_MIFRS_DepExp_2015'!K24+((C24*0.5)/D24)) -> 14298.208 | G24: =-'App.2-BA_Fixed Asset Cont'!J361 -> 14298.21 | H24: -0.002000000004
A25: 1825 | B25: Storage Battery Equipment | E25: 0 | F25: =IF(D25=0,'App.2-CE_MIFRS_DepExp_2015'!K25,+'App.2-CE_MIFRS_DepExp_2015'!K25+((C25*0.5)/D25)) -> 0 | G25: =-'App.2-BA_Fixed Asset Cont'!J362 -> 0 | H25: 0
A26: 1830 | B26: Poles, Towers & Fixtures | C26: ='App.2-BA_Fixed Asset Cont'!E363 -> 102267.6 | D26: 45 | E26: 0.02222222222 | F26: =IF(D26=0,'App.2-CE_MIFRS_DepExp_2015'!K26,+'App.2-CE_MIFRS_DepExp_2015'!K26+((C26*0.5)/D26)) -> 18605.45168 | G26: =-'App.2-BA_Fixed Asset Cont'!J363 -> 18498.59 | H26: 106.8616812
A27: 1835 | B27: Overhead Conductors & Devices | C27: ='App.2-BA_Fixed Asset Cont'!E364 -> 97260.6 | D27: 60 | E27: 0.01666666667 | F27: =IF(D27=0,'App.2-CE_MIFRS_DepExp_2015'!K27,+'App.2-CE_MIFRS_DepExp_2015'!K27+((C27*0.5)/D27)) -> 29333.47183 | G27: =-'App.2-BA_Fixed Asset Cont'!J364 -> 29344.31 | H27: -10.83816786
A28: 1840 | B28: Underground Conduit | E28: 0 | F28: =IF(D28=0,'App.2-CE_MIFRS_DepExp_2015'!K28,+'App.2-CE_MIFRS_DepExp_2015'!K28+((C28*0.5)/D28)) -> 1295.14205 | G28: =-'App.2-BA_Fixed Asset Cont'!J365 -> 1295.15 | H28: -0.00795
A29: 1845 | B29: Underground Conductors & Devices | E29: 0 | F29: =IF(D29=0,'App.2-CE_MIFRS_DepExp_2015'!K29,+'App.2-CE_MIFRS_DepExp_2015'!K29+((C29*0.5)/D29)) -> 20313.87584 | G29: =-'App.2-BA_Fixed Asset Cont'!J366 -> 20313.87 | H29: 0.005838297344
A30: 1850 | B30: Line Transformers | C30: ='App.2-BA_Fixed Asset Cont'!E367 -> 69832 | D30: 45 | E30: 0.02222222222 | F30: =IF(D30=0,'App.2-CE_MIFRS_DepExp_2015'!K30,+'App.2-CE_MIFRS_DepExp_2015'!K30+((C30*0.5)/D30)) -> 25379.07769 | G30: =-'App.2-BA_Fixed Asset Cont'!J367 -> 25340.11 | H30: 38.96768738
A31: 1855 | B31: Services (Overhead & Underground) | C31: ='App.2-BA_Fixed Asset Cont'!E368 -> 22200 | D31: 60 | E31: 0.01666666667 | F31: =IF(D31=0,'App.2-CE_MIFRS_DepExp_2015'!K31,+'App.2-CE_MIFRS_DepExp_2015'!K31+((C31*0.5)/D31)) -> 5324.738393 | G31: =-'App.2-BA_Fixed Asset Cont'!J368 -> 5325 | H31: -0.2616074692
A32: 1860 | B32: Meters | C32: ='App.2-BA_Fixed Asset Cont'!E369 -> 0 | D32: 25 | E32: 0.04 | F32: =IF(D32=0,'App.2-CE_MIFRS_DepExp_2015'!K32,+'App.2-CE_MIFRS_DepExp_2015'!K32+((C32*0.5)/D32)) -> 7392.835096 | G32: =-'App.2-BA_Fixed Asset Cont'!J369 -> 7190.73 | H32: 202.1050956
A33: 1860 | B33: Meters (Smart Meters) | C33: ='App.2-BA_Fixed Asset Cont'!E370 -> 8895.4625 | D33: 15 | E33: 0.06666666667 | F33: =IF(D33=0,'App.2-CE_MIFRS_DepExp_2015'!K33,+'App.2-CE_MIFRS_DepExp_2015'!K33+((C33*0.5)/D33)) -> 78303.25978 | G33: =-'App.2-BA_Fixed Asset Cont'!J370 -> 78591.85 | H33: -288.5902192
A34: 1905 | B34: Land | E34: 0 | F34: =IF(D34=0,'App.2-CE_MIFRS_DepExp_2015'!K34,+'App.2-CE_MIFRS_DepExp_2015'!K34+((C34*0.5)/D34)) -> 0 | G34: =-'App.2-BA_Fixed Asset Cont'!J371 -> 0 | H34: 0
A35: 1908 | B35: Buildings & Fixtures | E35: 0 | F35: =IF(D35=0,'App.2-CE_MIFRS_DepExp_2015'!K35,+'App.2-CE_MIFRS_DepExp_2015'!K35+((C35*0.5)/D35)) -> 0 | G35: =-'App.2-BA_Fixed Asset Cont'!J372 -> 0 | H35: 0
A36: 1910 | B36: Leasehold Improvements | E36: 0 | F36: =IF(D36=0,'App.2-CE_MIFRS_DepExp_2015'!K36,+'App.2-CE_MIFRS_DepExp_2015'!K36+((C36*0.5)/D36)) -> 879.7046154 | G36: =-'App.2-BA_Fixed Asset Cont'!J373 -> 879.7 | H36: 0.004615384615
A37: 1915 | B37: Office Furniture & Equipment (10 years) | E37: 0 | F37: =IF(D37=0,'App.2-CE_MIFRS_DepExp_2015'!K37,+'App.2-CE_MIFRS_DepExp_2015'!K37+((C37*0.5)/D37)) -> 0 | G37: =-'App.2-BA_Fixed Asset Cont'!J374 -> 0 | H37: 0
A38: 1915 | B38: Office Furniture & Equipment (5 years) | E38: 0 | F38: =IF(D38=0,'App.2-CE_MIFRS_DepExp_2015'!K38,+'App.2-CE_MIFRS_DepExp_2015'!K38+((C38*0.5)/D38)) -> 0 | G38: =-'App.2-BA_Fixed Asset Cont'!J375 -> 0 | H38: 0
A39: 1920 | B39: Computer Equipment - Hardware | C39: ='App.2-BA_Fixed Asset Cont'!E376 -> 15000 | D39: 5 | E39: 0.2 | F39: =IF(D39=0,'App.2-CE_MIFRS_DepExp_2015'!K39,+'App.2-CE_MIFRS_DepExp_2015'!K39+((C39*0.5)/D39)) -> 19356.07124 | G39: =-'App.2-BA_Fixed Asset Cont'!J376 -> 19436.16 | H39: -80.0887619
A40: 1920 | B40: Computer Equip.-Hardware for Smart Meters | C40: ='App.2-BA_Fixed Asset Cont'!E377 -> 0 | D40: 5 | E40: 0.2 | F40: =IF(D40=0,'App.2-CE_MIFRS_DepExp_2015'!K40,+'App.2-CE_MIFRS_DepExp_2015'!K40+((C40*0.5)/D40)) -> 3946.999 | G40: =-'App.2-BA_Fixed Asset Cont'!J377 -> 3946.999 | H40: -3.637978807e-12
A41: 1920 | B41: Computer Equip.-Hardware(Post Mar. 19/07) | E41: 0 | F41: =IF(D41=0,'App.2-CE_MIFRS_DepExp_2015'!K41,+'App.2-CE_MIFRS_DepExp_2015'!K41+((C41*0.5)/D41)) -> 0 | G41: =-'App.2-BA_Fixed Asset Cont'!J378 -> 0 | H41: 0
A42: 1930 | B42: Transportation Equipment | C42: ='App.2-BA_Fixed Asset Cont'!E379 -> 390000 | D42: 8 | E42: 0.125 | F42: =IF(D42=0,'App.2-CE_MIFRS_DepExp_2015'!K42,+'App.2-CE_MIFRS_DepExp_2015'!K42+((C42*0.5)/D42)) -> 115381.8505 | G42: =-'App.2-BA_Fixed Asset Cont'!J379 -> 115381.81 | H42: 0.04047962923
A43: 1935 | B43: Stores Equipment | E43: 0 | F43: =IF(D43=0,'App.2-CE_MIFRS_DepExp_2015'!K43,+'App.2-CE_MIFRS_DepExp_2015'!K43+((C43*0.5)/D43)) -> 0 | G43: =-'App.2-BA_Fixed Asset Cont'!J380 -> 0 | H43: 0
A44: 1940 | B44: Tools, Shop & Garage Equipment | C44: ='App.2-BA_Fixed Asset Cont'!E381 -> 10000 | D44: 10 | E44: 0.1 | F44: =IF(D44=0,'App.2-CE_MIFRS_DepExp_2015'!K44,+'App.2-CE_MIFRS_DepExp_2015'!K44+((C44*0.5)/D44)) -> 6074.21364 | G44: =-'App.2-BA_Fixed Asset Cont'!J381 -> 6489.16 | H44: -414.9463598
A45: 1945 | B45: Measurement & Testing Equipment | E45: 0 | F45: =IF(D45=0,'App.2-CE_MIFRS_DepExp_2015'!K45,+'App.2-CE_MIFRS_DepExp_2015'!K45+((C45*0.5)/D45)) -> 0 | G45: =-'App.2-BA_Fixed Asset Cont'!J382 -> 0 | H45: 0
A46: 1950 | B46: Power Operated Equipment | E46: 0 | F46: =IF(D46=0,'App.2-CE_MIFRS_DepExp_2015'!K46,+'App.2-CE_MIFRS_DepExp_2015'!K46+((C46*0.5)/D46)) -> 0 | G46: =-'App.2-BA_Fixed Asset Cont'!J383 -> 0 | H46: 0
A47: 1955 | B47: Communications Equipment | C47: ='App.2-BA_Fixed Asset Cont'!E384 -> 0 | E47: 0 | F47: =IF(D47=0,'App.2-CE_MIFRS_DepExp_2015'!K47,+'App.2-CE_MIFRS_DepExp_2015'!K47+((C47*0.5)/D47)) -> 5102.25 | G47: =-'App.2-BA_Fixed Asset Cont'!J384 -> 5102.248889 | H47: 0.001111111112
A48: 1955 | B48: Communication Equipment (Smart Meters) | E48: 0 | F48: =IF(D48=0,'App.2-CE_MIFRS_DepExp_2015'!K48,+'App.2-CE_MIFRS_DepExp_2015'!K48+((C48*0.5)/D48)) -> 0 | G48: =-'App.2-BA_Fixed Asset Cont'!J385 -> 0 | H48: 0
A49: 1960 | B49: Miscellaneous Equipment | E49: 0 | F49: =IF(D49=0,'App.2-CE_MIFRS_DepExp_2015'!K49,+'App.2-CE_MIFRS_DepExp_2015'!K49+((C49*0.5)/D49)) -> 0 | G49: =-'App.2-BA_Fixed Asset Cont'!J386 -> 0 | H49: 0
A50: 1970 | B50: Load Management Controls Customer Premises | E50: 0 | F50: =IF(D50=0,'App.2-CE_MIFRS_DepExp_2015'!K50,+'App.2-CE_MIFRS_DepExp_2015'!K50+((C50*0.5)/D50)) -> 0 | G50: =-'App.2-BA_Fixed Asset Cont'!J387 -> 0 | H50: 0
A51: 1975 | B51: Load Management Controls Utility Premises | E51: 0 | F51: =IF(D51=0,'App.2-CE_MIFRS_DepExp_2015'!K51,+'App.2-CE_MIFRS_DepExp_2015'!K51+((C51*0.5)/D51)) -> 0 | G51: =-'App.2-BA_Fixed Asset Cont'!J388 -> 0 | H51: 0
A52: 1980 | B52: System Supervisor Equipment | C52: ='App.2-BA_Fixed Asset Cont'!E389 -> 0 | D52: 15 | E52: 0.06666666667 | F52: =IF(D52=0,'App.2-CE_MIFRS_DepExp_2015'!K52,+'App.2-CE_MIFRS_DepExp_2015'!K52+((C52*0.5)/D52)) -> 0 | G52: =-'App.2-BA_Fixed Asset Cont'!J389 -> 0 | H52: 0
A53: 1985 | B53: Miscellaneous Fixed Assets | E53: 0 | F53: =IF(D53=0,'App.2-CE_MIFRS_DepExp_2015'!K53,+'App.2-CE_MIFRS_DepExp_2015'!K53+((C53*0.5)/D53)) -> 0 | G53: =-'App.2-BA_Fixed Asset Cont'!J390 -> 0 | H53: 0
A54: 1990 | B54: Other Tangible Property | E54: 0 | F54: =IF(D54=0,'App.2-CE_MIFRS_DepExp_2015'!K54,+'App.2-CE_MIFRS_DepExp_2015'!K54+((C54*0.5)/D54)) -> 0 | G54: =-'App.2-BA_Fixed Asset Cont'!J391 -> 0 | H54: 0
A55: 1995 | B55: Contributions & Grants | C55: ='App.2-BA_Fixed Asset Cont'!E393 -> -161525.6625 | D55: =[34]Sheet1!$H$80 -> 48.47899621 | E55: 0.0206274898 | F55: =IF(D55=0,'App.2-CE_MIFRS_DepExp_2015'!K55,+'App.2-CE_MIFRS_DepExp_2015'!K55+((C55*0.5)/D55)) -> -15539.10462 | G55: =-'App.2-BA_Fixed Asset Cont'!J393 -> -15790.16456 | H55: 251.0599386
B56: Total | C56: =SUM(C17:C55) -> 646930 | F56: =SUM(F17:F55) -> 389299.069 | G56: =SUM(G17:G55) -> 389439.02 | H56: =SUM(H17:H55) -> -139.950969
B57: Depreciation exp. adj. from gain or loss on the retirement of assets (pool of like assets)
B58: Total Depreciation expense to be included in the test year revenue requirement | F58: =SUM(F56:F57) -> 389299.069
A59: Notes:
A60: 1 | B60: Board policy of the "half-year" rule - the applicant must ensure that additions in the year attract a half-year depreciation expense in the first year. Deviations from this standard practice must be supported in the application.
A61: 2 | B61: The applicant must provide an explanation of material variances in evidence.
A64: General: | B64: Applicants must provide a breakdown of depreciation and amortization expense in the above format for all relevant accounts. Asset Retirement Obligations (AROs), depreciation and accretion expense should be disclosed separately consistent with the Notes of historical Audited Financial Statements.

Sheet App.2-CG_OldCGAAP_DepExp_2013
K1: File Number: | L1: =EBNUMBER -> EB-2015-0100
K2: Exhibit:
K3: Tab:
K4: Schedule:
K5: Page:
K7: Date:
A9: Appendix 2-CG
A10: Depreciation and Amortization Expense
B11: Assumes the applicant made capitalization and depreciation expense accounting policy changes under CGAAP effective January 1, 2013 and has adopted IFRS for financial reporting purposes effective January 1, 2015.
C13: Year | D13: 2013 | E13: Former CGAAP
A15: Account | B15: Description | C15: Opening Regulatory Gross PP&E as at Jan 1, 2013 | D15: Less Fully Depreciated | E15: Net for Depreciation | F15: Additions | G15: Total for Depreciation 1 | H15: Years | I15: Depreciation Rate | J15: Depreciation Expense | K15: 2013 Depreciation Expense per Appendix 2-BA Fixed Assets, Column J (l) | L15: Variance 2
C16: (a) | D16: (b) | E16: (c) | F16: (d) | G16: (e) = (c) + ½ x (d) | H16: (f) | I16: (g) = 1 / (f) | J16: (h) = (e) / (f) | L16: (m) = (h) - (l)
A17: 1611 | B17: Computer Software (Formally known as Account 1925) | E17: =C17-D17 -> 0 | G17: =E17+0.5*F17 -> 0 | I17: =IF(H17=0,0,1/H17) -> 0 | J17: =IF(H17=0,0,G17/H17) -> 0 | L17: =IF(ISERROR(+J17-K17), 0, +J17-K17) -> 0
A18: 1612 | B18: Land Rights (Formally known as Account 1906) | E18: =C18-D18 -> 0 | G18: =E18+0.5*F18 -> 0 | I18: 0 | J18: 0 | L18: 0
A19: 1805 | B19: Land | E19: 0 | G19: 0 | I19: 0 | J19: 0 | L19: 0
A20: 1808 | B20: Buildings | E20: 0 | G20: 0 | I20: 0 | J20: 0 | L20: 0
A21: 1810 | B21: Leasehold Improvements | E21: 0 | G21: 0 | I21: 0 | J21: 0 | L21: 0
A22: 1815 | B22: Transformer Station Equipment >50 kV | E22: 0 | G22: 0 | I22: 0 | J22: 0 | L22: 0
A24: 1820 | B24: Distribution Station Equipment <50 kV | E24: 0 | G24: 0 | I24: 0 | J24: 0 | L24: 0
A25: 1825 | B25: Storage Battery Equipment | E25: 0 | G25: 0 | I25: 0 | J25: 0 | L25: 0
A26: 1830 | B26: Poles, Towers & Fixtures | E26: 0 | G26: 0 | I26: 0 | J26: 0 | L26: 0
A27: 1835 | B27: Overhead Conductors & Devices | E27: 0 | G27: 0 | I27: 0 | J27: 0 | L27: 0
A28: 1840 | B28: Underground Conduit | E28: 0 | G28: 0 | I28: 0 | J28: 0 | L28: 0
A29: 1845 | B29: Underground Conductors & Devices | E29: 0 | G29: 0 | I29: 0 | J29: 0 | L29: 0
A30: 1850 | B30: Line Transformers | E30: 0 | G30: 0 | I30: 0 | J30: 0 | L30: 0
A31: 1855 | B31: Services (Overhead & Underground) | E31: 0 | G31: 0 | I31: 0 | J31: 0 | L31: 0
A32: 1860 | B32: Meters | E32: 0 | G32: 0 | I32: 0 | J32: 0 | L32: 0
A33: 1860 | B33: Meters (Smart Meters) | E33: 0 | G33: 0 | I33: 0 | J33: 0 | L33: 0
A34: 1905 | B34: Land | E34: 0 | G34: 0 | I34: 0 | J34: 0 | L34: 0
A35: 1908 | B35: Buildings & Fixtures | E35: 0 | G35: 0 | I35: 0 | J35: 0 | L35: 0
A36: 1910 | B36: Leasehold Improvements | E36: 0 | G36: 0 | I36: 0 | J36: 0 | L36: 0
A37: 1915 | B37: Office Furniture & Equipment (10 years) | E37: 0 | G37: 0 | I37: 0 | J37: 0 | L37: 0
A38: 1915 | B38: Office Furniture & Equipment (5 years) | E38: 0 | G38: 0 | I38: 0 | J38: 0 | L38: 0
A39: 1920 | B39: Computer Equipment - Hardware | E39: 0 | G39: 0 | I39: 0 | J39: 0 | L39: 0
A40: 1920 | B40: Computer Equip.-Hardware(Post Mar. 22/04) | E40: 0 | G40: 0 | I40: 0 | J40: 0 | L40: 0
A41: 1920 | B41: Computer Equip.-Hardware(Post Mar. 19/07) | E41: 0 | G41: 0 | I41: 0 | J41: 0 | L41: 0
A42: 1930 | B42: Transportation Equipment | E42: 0 | G42: 0 | I42: 0 | J42: 0 | L42: 0
A43: 1935 | B43: Stores Equipment | E43: 0 | G43: 0 | I43: 0 | J43: 0 | L43: 0
A44: 1940 | B44: Tools, Shop & Garage Equipment | E44: 0 | G44: 0 | I44: 0 | J44: 0 | L44: 0
A45: 1945 | B45: Measurement & Testing Equipment | E45: 0 | G45: 0 | I45: 0 | J45: 0 | L45: 0
A46: 1950 | B46: Power Operated Equipment | E46: 0 | G46: 0 | I46: 0 | J46: 0 | L46: 0
A47: 1955 | B47: Communications Equipment | E47: 0 | G47: 0 | I47: 0 | J47: 0 | L47: 0
A48: 1955 | B48: Communication Equipment (Smart Meters) | E48: 0 | G48: 0 | I48: 0 | J48: 0 | L48: 0
A49: 1960 | B49: Miscellaneous Equipment | E49: 0 | G49: 0 | I49: 0 | J49: 0 | L49: 0
A50: 1970 | B50: Load Management Controls - Customer Premises | E50: 0 | G50: 0 | I50: 0 | J50: 0 | L50: 0
A51: 1975 | B51: Load Management Controls Utility Premises | E51: 0 | G51: 0 | I51: 0 | J51: 0 | L51: 0
A52: 1980 | B52: System Supervisor Equipment | E52: 0 | G52: 0 | I52: 0 | J52: 0 | L52: 0
A53: 1985 | B53: Miscellaneous Fixed Assets | E53: 0 | G53: 0 | I53: 0 | J53: 0 | L53: 0
A54: 1990 | B54: Other Tangible Property | E54: 0 | G54: 0 | I54: 0 | J54: 0 | L54: 0
A55: 1995 | B55: Contributions & Grants | E55: 0 | G55: 0 | I55: 0 | J55: 0 | L55: 0
B56: Total | C56: =SUM(C17:C55) -> 0 | D56: =SUM(D17:D55) -> 0 | E56: =SUM(E17:E55) -> 0 | F56: =SUM(F17:F55) -> 0 | G56: =SUM(G17:G55) -> 0 | J56: =SUM(J17:J55) -> 0 | K56: =SUM(K17:K55) -> 0 | L56: =SUM(L17:L55) -> 0
A58: Notes:
A60: 1 | B60: Board policy of the "half-year" rule - the applicant must ensure that additions in the year attract a half-year depreciation expense in the first year. Deviations from this standard practice must be supported in the application.
A61: 2 | B61: The applicant must provide an explanation of material variances in evidence.
A63: General | B63: Applicants must provide a breakdown of depreciation and amortization expense in the above format for all relevant accounts. Asset Retirement Obligations (AROs), depreciation and accretion expense should be disclosed separately consistent with the Notes of historical Audited Financial Statements.

Sheet App.2-CH_NewCGAAP_DepExp_2013
N1: File Number: | O1: =EBNUMBER -> EB-2015-0100
N2: Exhibit:
N3: Tab:
N4: Schedule:
N5: Page:
N7: Date:
A9: Appendix 2-CH
A10: Depreciation and Amortization Expense
A11: Assumes the applicant made capitalization and depreciation expense accounting policy changes under CGAAP effective January 1, 2013 and has adopted IFRS for financial reporting purposes effective January 1, 2015.
C13: Year | D13: 2013 | E13: Revised CGAAP
A15: Account | B15: Description | C15: Opening NBV as at Jan 1, 2013 5 | D15: Additions | E15: Average Remaining Life of Opening NBV 4 | F15: Years (new additions only) 3 | G15: Depreciation Rate on New Additions | H15: Depreciation Expense on Opening NBV | I15: Depreciation Expense on Additions 1 | J15: 2013 Depreciation Expense | K15: 2013 Depreciation Expense per Appendix 2-BA Fixed Assets, Column J (l) | L15: Variance 2 | M15: Depreciation Expense on 2013 Full Year Additions | N15: Less Depreciation Expense on Assets Fully Depreciated during the year (o) | O15: 2013 Full Year Depreciation 6
C16: (a) | D16: (d) | E16: (i) | F16: (f) | G16: (g) = 1 / (f) | H16: (j) = (a) / (i) | I16: (h)=((d)*0.5)/(f) | J16: (k) = (j) + (h) | L16: (m) = (k) - (l) | M16: (n) = (d)/(f) | O16: (p) = (j) + (n) - (o)
A17: 1611 | B17: Computer Software (Formally known as Account 1925) | G17: =IF(F17=0,0,1/F17) -> 0 | H17: =IF(E17=0,0,+C17/E17) -> 0 | I17: =IF(F17=0,0,+(D17*0.5)/F17) -> 0 | J17: =IF(ISERROR(+H17+I17), 0, +H17+I17) -> 0 | L17: =IF(ISERROR(+J17-K17), 0, +J17-K17) -> 0 | M17: =IF(F17=0,0,+(D17)/F17) -> 0 | O17: =IF(ISERROR(+M17+H17-N17), 0, +M17+H17-N17) -> 0
A18: 1612 | B18: Land Rights (Formally known as Account 1906) | G18: 0 | H18: 0 | I18: 0 | J18: 0 | L18: 0 | M18: 0 | O18: =IF(ISERROR(+M18+H18-N18), 0, +M18+H18-N18) -> 0
A19: 1805 | B19: Land | G19: 0 | H19: 0 | I19: 0 | J19: 0 | L19: 0 | M19: 0 | O19: 0
A20: 1808 | B20: Buildings | G20: 0 | H20: 0 | I20: 0 | J20: 0 | L20: 0 | M20: 0 | O20: 0
A21: 1810 | B21: Leasehold Improvements | G21: 0 | H21: 0 | I21: 0 | J21: 0 | L21: 0 | M21: 0 | O21: 0
A22: 1815 | B22: Transformer Station Equipment >50 kV | G22: 0 | H22: 0 | I22: 0 | J22: 0 | L22: 0 | M22: 0 | O22: 0
A23: 1820 | B23: Distribution Station Equipment <50 kV | G23: 0 | H23: 0 | I23: 0 | J23: 0 | L23: 0 | M23: 0 | O23: 0
A24: 1825 | B24: Storage Battery Equipment | G24: 0 | H24: 0 | I24: 0 | J24: 0 | L24: 0 | M24: 0 | O24: 0
A25: 1830 | B25: Poles, Towers & Fixtures | G25: 0 | H25: 0 | I25: 0 | J25: 0 | L25: 0 | M25: 0 | O25: 0
A26: 1835 | B26: Overhead Conductors & Devices | G26: 0 | H26: 0 | I26: 0 | J26: 0 | L26: 0 | M26: 0 | O26: 0
A27: 1840 | B27: Underground Conduit | G27: 0 | H27: 0 | I27: 0 | J27: 0 | L27: 0 | M27: 0 | O27: 0
A28: 1845 | B28: Underground Conductors & Devices | G28: 0 | H28: 0 | I28: 0 | J28: 0 | L28: 0 | M28: 0 | O28: 0
A29: 1850 | B29: Line Transformers | G29: 0 | H29: 0 | I29: 0 | J29: 0 | L29: 0 | M29: 0 | O29: 0
A30: 1855 | B30: Services (Overhead & Underground) | G30: 0 | H30: 0 | I30: 0 | J30: 0 | L30: 0 | M30: 0 | O30: 0
A31: 1860 | B31: Meters | G31: 0 | H31: 0 | I31: 0 | J31: 0 | L31: 0 | M31: 0 | O31: 0
A32: 1860 | B32: Meters (Smart Meters) | G32: 0 | H32: 0 | I32: 0 | J32: 0 | L32: 0 | M32: 0 | O32: 0
A33: 1905 | B33: Land | G33: 0 | H33: 0 | I33: 0 | J33: 0 | L33: 0 | M33: 0 | O33: 0
A34: 1908 | B34: Buildings & Fixtures | G34: 0 | H34: 0 | I34: 0 | J34: 0 | L34: 0 | M34: 0 | O34: 0
A35: 1910 | B35: Leasehold Improvements | G35: 0 | H35: 0 | I35: 0 | J35: 0 | L35: 0 | M35: 0 | O35: 0
A36: 1915 | B36: Office Furniture & Equipment (10 years) | G36: 0 | H36: 0 | I36: 0 | J36: 0 | L36: 0 | M36: 0 | O36: 0
A37: 1915 | B37: Office Furniture & Equipment (5 years) | G37: 0 | H37: 0 | I37: 0 | J37: 0 | L37: 0 | M37: 0 | O37: 0
A38: 1920 | B38: Computer Equipment - Hardware | G38: 0 | H38: 0 | I38: 0 | J38: 0 | L38: 0 | M38: 0 | O38: 0
A39: 1920 | B39: Computer Equip.-Hardware(Post Mar. 22/04) | G39: 0 | H39: 0 | I39: 0 | J39: 0 | L39: 0 | M39: 0 | O39: 0
A40: 1920 | B40: Computer Equip.-Hardware(Post Mar. 19/07) | G40: 0 | H40: 0 | I40: 0 | J40: 0 | L40: 0 | M40: 0 | O40: 0
A41: 1930 | B41: Transportation Equipment | G41: 0 | H41: 0 | I41: 0 | J41: 0 | L41: 0 | M41: 0 | O41: 0
A42: 1935 | B42: Stores Equipment | G42: 0 | H42: 0 | I42: 0 | J42: 0 | L42: 0 | M42: 0 | O42: 0
A43: 1940 | B43: Tools, Shop & Garage Equipment | G43: 0 | H43: 0 | I43: 0 | J43: 0 | L43: 0 | M43: 0 | O43: 0
A44: 1945 | B44: Measurement & Testing Equipment | G44: 0 | H44: 0 | I44: 0 | J44: 0 | L44: 0 | M44: 0 | O44: 0
A45: 1950 | B45: Power Operated Equipment | G45: 0 | H45: 0 | I45: 0 | J45: 0 | L45: 0 | M45: 0 | O45: 0
A46: 1955 | B46: Communications Equipment | G46: 0 | H46: 0 | I46: 0 | J46: 0 | L46: 0 | M46: 0 | O46: 0
A47: 1955 | B47: Communication Equipment (Smart Meters) | G47: 0 | H47: 0 | I47: 0 | J47: 0 | L47: 0 | M47: 0 | O47: 0
A48: 1960 | B48: Miscellaneous Equipment | G48: 0 | H48: 0 | I48: 0 | J48: 0 | L48: 0 | M48: 0 | O48: 0
A49: 1970 | B49: Load Management Controls - Customer Premises | G49: 0 | H49: 0 | I49: 0 | J49: 0 | L49: 0 | M49: 0 | O49: 0
A50: 1975 | B50: Load Management Controls Utility Premises | G50: 0 | H50: 0 | I50: 0 | J50: 0 | L50: 0 | M50: 0 | O50: 0
A51: 1980 | B51: System Supervisor Equipment | G51: 0 | H51: 0 | I51: 0 | J51: 0 | L51: 0 | M51: 0 | O51: 0
A52: 1985 | B52: Miscellaneous Fixed Assets | G52: 0 | H52: 0 | I52: 0 | J52: 0 | L52: 0 | M52: 0 | O52: 0
A53: 1990 | B53: Other Tangible Property | G53: 0 | H53: 0 | I53: 0 | J53: 0 | L53: 0 | M53: 0 | O53: 0
A54: 1995 | B54: Contributions & Grants | G54: 0 | H54: 0 | I54: 0 | J54: 0 | L54: 0 | M54: 0 | O54: 0
B55: Total | C55: =SUM(C17:C54) -> 0 | D55: =SUM(D17:D54) -> 0 | H55: =SUM(H17:H54) -> 0 | I55: 0 | J55: 0 | K55: 0 | L55: 0 | M55: 0 | N55: 0 | O55: 0
A57: Notes:
A59: 1 | B59: Board policy of the "half-year" rule - the applicant must ensure that additions in the year attract a half-year depreciation expense in the first year. Deviations from this standard practice must be supported in the application.
A60: 2 | B60: The applicant must provide an explanation of material variances in evidence.
A61: 3 | B61: The applicant should ensure that the years for new additions of assets are the asset useful lives determined by management in accordance with the Board's regulatory accounting policies. The capitalization and depreciation expense accounting changes should be implemented consistent with the Board’s regulatory accounting policies as set out for MIFRS as contained in the Report of the Board, Transition to International Financial Reporting Standards, EB-2008-0408, the Kinectrics Report, and the Revised 2012 Accounting Procedures Handbook for Electricity Distributors.
A62: 4 | B62: A recalculation should be performed to determine the average remaining life of opening balance of assets (i.e. excluding 2013 additions) under the change in policies under CGAAP. For example, Asset A had a useful life of 20 years under CGAAP without the change in policies. On January 1, 2013, the effective date of the changes in policies, Asset A was 3 years depreciated. As a result, Asset A would have a remaining service life of 17 years (20 years less 3 years) as of January 1, 2013. Due to making the change in policies under CGAAP, management re-assessed the asset useful lives and concluded that the revised useful life of Asset A is now 30 years. Therefore, the average remaining useful life of the opening balance of Asset A is determined to be 27 years (30 years less 3 years) under the revised CGAAP as of January 1, 2013.
A63: 5 | B63: NBV must exclude assets still on the books but which have been fully amortized or depreciated.
A64: 6 | B64: This column refers to the calculated full year depreciation but excludes the depreciation expense on assets fully depreciated during the year. This column is used for the purpose of calculating depreciation expense in the following year on the next worksheet.
A66: General: | B66: Applicants must provide a breakdown of depreciation and amortization expense in the above format for all relevant accounts. Asset Retirement Obligations (AROs), depreciation and accretion expense should be disclosed separately consistent with the Notes of historical Audited Financial Statements.

Sheet App.2-CI_MIFRS_DepExp_2014
J1: File Number: | K1: =EBNUMBER -> EB-2015-0100
J2: Exhibit:
J3: Tab:
J4: Schedule:
J5: Page:
J7: Date:
A9: Appendix 2-CI
A10: Depreciation and Amortization Expense
A11: Assumes the applicant made capitalization and depreciation expense accounting policy changes under CGAAP effective January 1, 2013 and has adopted IFRS for financial reporting purposes effective January 1, 2015.
E13: 2014 | F13: MIFRS
A15: Account | B15: Description | C15: Additions | D15: Years (new additions only) | E15: Depreciation Rate on New Additions | F15: 2014 Depreciation Expense 1 | G15: 2014 Depreciation Expense per Apppendix 2-BA Fixed Assets, Column J (l) | H15: Variance 2 | I15: Depreciation Expense on 2014 Full Year Additions | J15: Less Depreciation Expense on Assets Fully Depreciated during the year (o) | K15: 2014 Full Year Depreciation 3
C16: (d) | D16: (f) | E16: (g) = 1 / (f) | F16: (h)=2013 Full Year Deprecation + ((d)*0.5)/(f) | H16: (m) = (h) - (l) | I16: (n)=((d))/(f) | K16: (p) = 2013 Full Year Depreciation + (n) - (o)
A17: 1611 | B17: Computer Software (Formally known as Account 1925) | E17: =IF(D17=0,0,1/D17) -> 0 | F17: =IF(D17=0,+'App.2-CH_NewCGAAP_DepExp_2013'!O17,+'App.2-CH_NewCGAAP_DepExp_2013'!O17+((C17*0.5)/D17)) -> 0 | H17: =IF(ISERROR(+F17-G17), 0, +F17-G17) -> 0 | I17: =IF(D17=0,0,+(C17)/D17) -> 0 | K17: =IF(ISERROR(+I17+'App.2-CH_NewCGAAP_DepExp_2013'!O17-J17), 0, +I17+'App.2-CH_NewCGAAP_DepExp_2013'!O17-J17) -> 0
A18: 1612 | B18: Land Rights (Formally known as Account 1906) | E18: 0 | F18: =IF(D18=0,+'App.2-CH_NewCGAAP_DepExp_2013'!O18,+'App.2-CH_NewCGAAP_DepExp_2013'!O18+((C18*0.5)/D18)) -> 0 | H18: 0 | I18: 0 | K18: =IF(ISERROR(+I18+'App.2-CH_NewCGAAP_DepExp_2013'!O18-J18), 0, +I18+'App.2-CH_NewCGAAP_DepExp_2013'!O18-J18) -> 0
A19: 1805 | B19: Land | E19: 0 | F19: =IF(D19=0,+'App.2-CH_NewCGAAP_DepExp_2013'!O19,+'App.2-CH_NewCGAAP_DepExp_2013'!O19+((C19*0.5)/D19)) -> 0 | H19: 0 | I19: 0 | K19: =IF(ISERROR(+I19+'App.2-CH_NewCGAAP_DepExp_2013'!O19-J19), 0, +I19+'App.2-CH_NewCGAAP_DepExp_2013'!O19-J19) -> 0
A20: 1808 | B20: Buildings | E20: 0 | F20: =IF(D20=0,+'App.2-CH_NewCGAAP_DepExp_2013'!O20,+'App.2-CH_NewCGAAP_DepExp_2013'!O20+((C20*0.5)/D20)) -> 0 | H20: 0 | I20: 0 | K20: =IF(ISERROR(+I20+'App.2-CH_NewCGAAP_DepExp_2013'!O20-J20), 0, +I20+'App.2-CH_NewCGAAP_DepExp_2013'!O20-J20) -> 0
A21: 1810 | B21: Leasehold Improvements | E21: 0 | F21: =IF(D21=0,+'App.2-CH_NewCGAAP_DepExp_2013'!O21,+'App.2-CH_NewCGAAP_DepExp_2013'!O21+((C21*0.5)/D21)) -> 0 | H21: 0 | I21: 0 | K21: =IF(ISERROR(+I21+'App.2-CH_NewCGAAP_DepExp_2013'!O21-J21), 0, +I21+'App.2-CH_NewCGAAP_DepExp_2013'!O21-J21) -> 0
A22: 1815 | B22: Transformer Station Equipment >50 kV | E22: 0 | F22: =IF(D22=0,+'App.2-CH_NewCGAAP_DepExp_2013'!O22,+'App.2-CH_NewCGAAP_DepExp_2013'!O22+((C22*0.5)/D22)) -> 0 | H22: 0 | I22: 0 | K22: =IF(ISERROR(+I22+'App.2-CH_NewCGAAP_DepExp_2013'!O22-J22), 0, +I22+'App.2-CH_NewCGAAP_DepExp_2013'!O22-J22) -> 0
A23: 1820 | B23: Distribution Station Equipment <50 kV | E23: 0 | F23: =IF(D23=0,+'App.2-CH_NewCGAAP_DepExp_2013'!O23,+'App.2-CH_NewCGAAP_DepExp_2013'!O23+((C23*0.5)/D23)) -> 0 | H23: 0 | I23: 0 | K23: =IF(ISERROR(+I23+'App.2-CH_NewCGAAP_DepExp_2013'!O23-J23), 0, +I23+'App.2-CH_NewCGAAP_DepExp_2013'!O23-J23) -> 0
A24: 1825 | B24: Storage Battery Equipment | E24: 0 | F24: =IF(D24=0,+'App.2-CH_NewCGAAP_DepExp_2013'!O24,+'App.2-CH_NewCGAAP_DepExp_2013'!O24+((C24*0.5)/D24)) -> 0 | H24: 0 | I24: 0 | K24: =IF(ISERROR(+I24+'App.2-CH_NewCGAAP_DepExp_2013'!O24-J24), 0, +I24+'App.2-CH_NewCGAAP_DepExp_2013'!O24-J24) -> 0
A25: 1830 | B25: Poles, Towers & Fixtures | E25: 0 | F25: =IF(D25=0,+'App.2-CH_NewCGAAP_DepExp_2013'!O25,+'App.2-CH_NewCGAAP_DepExp_2013'!O25+((C25*0.5)/D25)) -> 0 | H25: 0 | I25: 0 | K25: =IF(ISERROR(+I25+'App.2-CH_NewCGAAP_DepExp_2013'!O25-J25), 0, +I25+'App.2-CH_NewCGAAP_DepExp_2013'!O25-J25) -> 0
A26: 1835 | B26: Overhead Conductors & Devices | E26: 0 | F26: =IF(D26=0,+'App.2-CH_NewCGAAP_DepExp_2013'!O26,+'App.2-CH_NewCGAAP_DepExp_2013'!O26+((C26*0.5)/D26)) -> 0 | H26: 0 | I26: 0 | K26: =IF(ISERROR(+I26+'App.2-CH_NewCGAAP_DepExp_2013'!O26-J26), 0, +I26+'App.2-CH_NewCGAAP_DepExp_2013'!O26-J26) -> 0
A27: 1840 | B27: Underground Conduit | E27: 0 | F27: =IF(D27=0,+'App.2-CH_NewCGAAP_DepExp_2013'!O27,+'App.2-CH_NewCGAAP_DepExp_2013'!O27+((C27*0.5)/D27)) -> 0 | H27: 0 | I27: 0 | K27: =IF(ISERROR(+I27+'App.2-CH_NewCGAAP_DepExp_2013'!O27-J27), 0, +I27+'App.2-CH_NewCGAAP_DepExp_2013'!O27-J27) -> 0
A28: 1845 | B28: Underground Conductors & Devices | E28: 0 | F28: =IF(D28=0,+'App.2-CH_NewCGAAP_DepExp_2013'!O28,+'App.2-CH_NewCGAAP_DepExp_2013'!O28+((C28*0.5)/D28)) -> 0 | H28: 0 | I28: 0 | K28: =IF(ISERROR(+I28+'App.2-CH_NewCGAAP_DepExp_2013'!O28-J28), 0, +I28+'App.2-CH_NewCGAAP_DepExp_2013'!O28-J28) -> 0
A29: 1850 | B29: Line Transformers | E29: 0 | F29: =IF(D29=0,+'App.2-CH_NewCGAAP_DepExp_2013'!O29,+'App.2-CH_NewCGAAP_DepExp_2013'!O29+((C29*0.5)/D29)) -> 0 | H29: 0 | I29: 0 | K29: =IF(ISERROR(+I29+'App.2-CH_NewCGAAP_DepExp_2013'!O29-J29), 0, +I29+'App.2-CH_NewCGAAP_DepExp_2013'!O29-J29) -> 0
A30: 1855 | B30: Services (Overhead & Underground) | E30: 0 | F30: =IF(D30=0,+'App.2-CH_NewCGAAP_DepExp_2013'!O30,+'App.2-CH_NewCGAAP_DepExp_2013'!O30+((C30*0.5)/D30)) -> 0 | H30: 0 | I30: 0 | K30: =IF(ISERROR(+I30+'App.2-CH_NewCGAAP_DepExp_2013'!O30-J30), 0, +I30+'App.2-CH_NewCGAAP_DepExp_2013'!O30-J30) -> 0
A31: 1860 | B31: Meters | E31: 0 | F31: =IF(D31=0,+'App.2-CH_NewCGAAP_DepExp_2013'!O31,+'App.2-CH_NewCGAAP_DepExp_2013'!O31+((C31*0.5)/D31)) -> 0 | H31: 0 | I31: 0 | K31: =IF(ISERROR(+I31+'App.2-CH_NewCGAAP_DepExp_2013'!O31-J31), 0, +I31+'App.2-CH_NewCGAAP_DepExp_2013'!O31-J31) -> 0
A32: 1860 | B32: Meters (Smart Meters) | E32: 0 | F32: =IF(D32=0,+'App.2-CH_NewCGAAP_DepExp_2013'!O32,+'App.2-CH_NewCGAAP_DepExp_2013'!O32+((C32*0.5)/D32)) -> 0 | H32: 0 | I32: 0 | K32: =IF(ISERROR(+I32+'App.2-CH_NewCGAAP_DepExp_2013'!O32-J32), 0, +I32+'App.2-CH_NewCGAAP_DepExp_2013'!O32-J32) -> 0
A33: 1905 | B33: Land | E33: 0 | F33: =IF(D33=0,+'App.2-CH_NewCGAAP_DepExp_2013'!O33,+'App.2-CH_NewCGAAP_DepExp_2013'!O33+((C33*0.5)/D33)) -> 0 | H33: 0 | I33: 0 | K33: =IF(ISERROR(+I33+'App.2-CH_NewCGAAP_DepExp_2013'!O33-J33), 0, +I33+'App.2-CH_NewCGAAP_DepExp_2013'!O33-J33) -> 0
A34: 1908 | B34: Buildings & Fixtures | E34: 0 | F34: =IF(D34=0,+'App.2-CH_NewCGAAP_DepExp_2013'!O34,+'App.2-CH_NewCGAAP_DepExp_2013'!O34+((C34*0.5)/D34)) -> 0 | H34: 0 | I34: 0 | K34: =IF(ISERROR(+I34+'App.2-CH_NewCGAAP_DepExp_2013'!O34-J34), 0, +I34+'App.2-CH_NewCGAAP_DepExp_2013'!O34-J34) -> 0
A35: 1910 | B35: Leasehold Improvements | E35: 0 | F35: =IF(D35=0,+'App.2-CH_NewCGAAP_DepExp_2013'!O35,+'App.2-CH_NewCGAAP_DepExp_2013'!O35+((C35*0.5)/D35)) -> 0 | H35: 0 | I35: 0 | K35: =IF(ISERROR(+I35+'App.2-CH_NewCGAAP_DepExp_2013'!O35-J35), 0, +I35+'App.2-CH_NewCGAAP_DepExp_2013'!O35-J35) -> 0
A36: 1915 | B36: Office Furniture & Equipment (10 years) | E36: 0 | F36: =IF(D36=0,+'App.2-CH_NewCGAAP_DepExp_2013'!O36,+'App.2-CH_NewCGAAP_DepExp_2013'!O36+((C36*0.5)/D36)) -> 0 | H36: 0 | I36: 0 | K36: =IF(ISERROR(+I36+'App.2-CH_NewCGAAP_DepExp_2013'!O36-J36), 0, +I36+'App.2-CH_NewCGAAP_DepExp_2013'!O36-J36) -> 0
A37: 1915 | B37: Office Furniture & Equipment (5 years) | E37: 0 | F37: =IF(D37=0,+'App.2-CH_NewCGAAP_DepExp_2013'!O37,+'App.2-CH_NewCGAAP_DepExp_2013'!O37+((C37*0.5)/D37)) -> 0 | H37: 0 | I37: 0 | K37: =IF(ISERROR(+I37+'App.2-CH_NewCGAAP_DepExp_2013'!O37-J37), 0, +I37+'App.2-CH_NewCGAAP_DepExp_2013'!O37-J37) -> 0
A38: 1920 | B38: Computer Equipment - Hardware | E38: 0 | F38: =IF(D38=0,+'App.2-CH_NewCGAAP_DepExp_2013'!O38,+'App.2-CH_NewCGAAP_DepExp_2013'!O38+((C38*0.5)/D38)) -> 0 | H38: 0 | I38: 0 | K38: =IF(ISERROR(+I38+'App.2-CH_NewCGAAP_DepExp_2013'!O38-J38), 0, +I38+'App.2-CH_NewCGAAP_DepExp_2013'!O38-J38) -> 0
A39: 1920 | B39: Computer Equip.-Hardware(Post Mar. 22/04) | E39: 0 | F39: =IF(D39=0,+'App.2-CH_NewCGAAP_DepExp_2013'!O39,+'App.2-CH_NewCGAAP_DepExp_2013'!O39+((C39*0.5)/D39)) -> 0 | H39: 0 | I39: 0 | K39: =IF(ISERROR(+I39+'App.2-CH_NewCGAAP_DepExp_2013'!O39-J39), 0, +I39+'App.2-CH_NewCGAAP_DepExp_2013'!O39-J39) -> 0
A40: 1920 | B40: Computer Equip.-Hardware(Post Mar. 19/07) | E40: 0 | F40: =IF(D40=0,+'App.2-CH_NewCGAAP_DepExp_2013'!O40,+'App.2-CH_NewCGAAP_DepExp_2013'!O40+((C40*0.5)/D40)) -> 0 | H40: 0 | I40: 0 | K40: =IF(ISERROR(+I40+'App.2-CH_NewCGAAP_DepExp_2013'!O40-J40), 0, +I40+'App.2-CH_NewCGAAP_DepExp_2013'!O40-J40) -> 0
A41: 1930 | B41: Transportation Equipment | E41: 0 | F41: =IF(D41=0,+'App.2-CH_NewCGAAP_DepExp_2013'!O41,+'App.2-CH_NewCGAAP_DepExp_2013'!O41+((C41*0.5)/D41)) -> 0 | H41: 0 | I41: 0 | K41: =IF(ISERROR(+I41+'App.2-CH_NewCGAAP_DepExp_2013'!O41-J41), 0, +I41+'App.2-CH_NewCGAAP_DepExp_2013'!O41-J41) -> 0
A42: 1935 | B42: Stores Equipment | E42: 0 | F42: =IF(D42=0,+'App.2-CH_NewCGAAP_DepExp_2013'!O42,+'App.2-CH_NewCGAAP_DepExp_2013'!O42+((C42*0.5)/D42)) -> 0 | H42: 0 | I42: 0 | K42: =IF(ISERROR(+I42+'App.2-CH_NewCGAAP_DepExp_2013'!O42-J42), 0, +I42+'App.2-CH_NewCGAAP_DepExp_2013'!O42-J42) -> 0
A43: 1940 | B43: Tools, Shop & Garage Equipment | E43: 0 | F43: =IF(D43=0,+'App.2-CH_NewCGAAP_DepExp_2013'!O43,+'App.2-CH_NewCGAAP_DepExp_2013'!O43+((C43*0.5)/D43)) -> 0 | H43: 0 | I43: 0 | K43: =IF(ISERROR(+I43+'App.2-CH_NewCGAAP_DepExp_2013'!O43-J43), 0, +I43+'App.2-CH_NewCGAAP_DepExp_2013'!O43-J43) -> 0
A44: 1945 | B44: Measurement & Testing Equipment | E44: 0 | F44: =IF(D44=0,+'App.2-CH_NewCGAAP_DepExp_2013'!O44,+'App.2-CH_NewCGAAP_DepExp_2013'!O44+((C44*0.5)/D44)) -> 0 | H44: 0 | I44: 0 | K44: =IF(ISERROR(+I44+'App.2-CH_NewCGAAP_DepExp_2013'!O44-J44), 0, +I44+'App.2-CH_NewCGAAP_DepExp_2013'!O44-J44) -> 0
A45: 1950 | B45: Power Operated Equipment | E45: 0 | F45: =IF(D45=0,+'App.2-CH_NewCGAAP_DepExp_2013'!O45,+'App.2-CH_NewCGAAP_DepExp_2013'!O45+((C45*0.5)/D45)) -> 0 | H45: 0 | I45: 0 | K45: =IF(ISERROR(+I45+'App.2-CH_NewCGAAP_DepExp_2013'!O45-J45), 0, +I45+'App.2-CH_NewCGAAP_DepExp_2013'!O45-J45) -> 0
A46: 1955 | B46: Communications Equipment | E46: 0 | F46: =IF(D46=0,+'App.2-CH_NewCGAAP_DepExp_2013'!O46,+'App.2-CH_NewCGAAP_DepExp_2013'!O46+((C46*0.5)/D46)) -> 0 | H46: 0 | I46: 0 | K46: =IF(ISERROR(+I46+'App.2-CH_NewCGAAP_DepExp_2013'!O46-J46), 0, +I46+'App.2-CH_NewCGAAP_DepExp_2013'!O46-J46) -> 0
A47: 1955 | B47: Communication Equipment (Smart Meters) | E47: 0 | F47: =IF(D47=0,+'App.2-CH_NewCGAAP_DepExp_2013'!O47,+'App.2-CH_NewCGAAP_DepExp_2013'!O47+((C47*0.5)/D47)) -> 0 | H47: 0 | I47: 0 | K47: =IF(ISERROR(+I47+'App.2-CH_NewCGAAP_DepExp_2013'!O47-J47), 0, +I47+'App.2-CH_NewCGAAP_DepExp_2013'!O47-J47) -> 0
A48: 1960 | B48: Miscellaneous Equipment | E48: 0 | F48: =IF(D48=0,+'App.2-CH_NewCGAAP_DepExp_2013'!O48,+'App.2-CH_NewCGAAP_DepExp_2013'!O48+((C48*0.5)/D48)) -> 0 | H48: 0 | I48: 0 | K48: =IF(ISERROR(+I48+'App.2-CH_NewCGAAP_DepExp_2013'!O48-J48), 0, +I48+'App.2-CH_NewCGAAP_DepExp_2013'!O48-J48) -> 0
A49: 1970 | B49: Load Management Controls - Customer Premises | E49: 0 | F49: =IF(D49=0,+'App.2-CH_NewCGAAP_DepExp_2013'!O49,+'App.2-CH_NewCGAAP_DepExp_2013'!O49+((C49*0.5)/D49)) -> 0 | H49: 0 | I49: 0 | K49: =IF(ISERROR(+I49+'App.2-CH_NewCGAAP_DepExp_2013'!O49-J49), 0, +I49+'App.2-CH_NewCGAAP_DepExp_2013'!O49-J49) -> 0
A50: 1975 | B50: Load Management Controls Utility Premises | E50: 0 | F50: =IF(D50=0,+'App.2-CH_NewCGAAP_DepExp_2013'!O50,+'App.2-CH_NewCGAAP_DepExp_2013'!O50+((C50*0.5)/D50)) -> 0 | H50: 0 | I50: 0 | K50: =IF(ISERROR(+I50+'App.2-CH_NewCGAAP_DepExp_2013'!O50-J50), 0, +I50+'App.2-CH_NewCGAAP_DepExp_2013'!O50-J50) -> 0
A51: 1980 | B51: System Supervisor Equipment | E51: 0 | F51: =IF(D51=0,+'App.2-CH_NewCGAAP_DepExp_2013'!O51,+'App.2-CH_NewCGAAP_DepExp_2013'!O51+((C51*0.5)/D51)) -> 0 | H51: 0 | I51: 0 | K51: =IF(ISERROR(+I51+'App.2-CH_NewCGAAP_DepExp_2013'!O51-J51), 0, +I51+'App.2-CH_NewCGAAP_DepExp_2013'!O51-J51) -> 0
A52: 1985 | B52: Miscellaneous Fixed Assets | E52: 0 | F52: =IF(D52=0,+'App.2-CH_NewCGAAP_DepExp_2013'!O52,+'App.2-CH_NewCGAAP_DepExp_2013'!O52+((C52*0.5)/D52)) -> 0 | H52: 0 | I52: 0 | K52: =IF(ISERROR(+I52+'App.2-CH_NewCGAAP_DepExp_2013'!O52-J52), 0, +I52+'App.2-CH_NewCGAAP_DepExp_2013'!O52-J52) -> 0
A53: 1990 | B53: Other Tangible Property | E53: 0 | F53: =IF(D53=0,+'App.2-CH_NewCGAAP_DepExp_2013'!O53,+'App.2-CH_NewCGAAP_DepExp_2013'!O53+((C53*0.5)/D53)) -> 0 | H53: 0 | I53: 0 | K53: =IF(ISERROR(+I53+'App.2-CH_NewCGAAP_DepExp_2013'!O53-J53), 0, +I53+'App.2-CH_NewCGAAP_DepExp_2013'!O53-J53) -> 0
A54: 1995 | B54: Contributions & Grants | E54: =IF(D54=0,0,1/D54) -> 0 | F54: =IF(D54=0,+'App.2-CH_NewCGAAP_DepExp_2013'!O54,+'App.2-CH_NewCGAAP_DepExp_2013'!O54+((C54*0.5)/D54)) -> 0 | H54: 0 | I54: 0 | K54: =IF(ISERROR(+I54+'App.2-CH_NewCGAAP_DepExp_2013'!O54-J54), 0, +I54+'App.2-CH_NewCGAAP_DepExp_2013'!O54-J54) -> 0
B55: Total | C55: =SUM(C17:C54) -> 0 | F55: =SUM(F17:F54) -> 0 | G55: 0 | H55: 0 | I55: 0 | J55: 0 | K55: 0
B56: Depreciation exp. adj. from gain or loss on the retirement of assets (pool of like assets)
B57: Total Depreciation Expense | F57: =SUM(F55:F56) -> 0
A59: Notes:
A60: 1 | B60: Board policy of the "half-year" rule - the applicant must ensure that additions in the year attract a half-year depreciation expense in the first year. Deviations from this standard practice must be supported in the application.
A61: 2 | B61: The applicant must provide an explanation of material variances in evidence.
A62: 3 | B62: This column refers to the calculated full year depreciation but excludes the depreciation expense on assets fully depreciated during the year. This column is used for the purpose of calculating depreciation expense in the following year on the next worksheet.
A64: General: | B64: Applicants must provide a breakdown of depreciation and amortization expense in the above format for all relevant accounts. Asset Retirement Obligations (AROs), depreciation and accretion expense should be disclosed separately consistent with the Notes of historical Audited Financial Statements.

Sheet App.2-CJ MIFRS_DepExp_2015
G1: File Number: | H1: =EBNUMBER -> EB-2015-0100
G2: Exhibit:
G3: Tab:
G4: Schedule:
G5: Page:
G7: Date:
A9: Appendix 2-CJ
A10: Depreciation and Amortization Expense
A11: Assumes the applicant made capitalization and depreciation expense accounting policy changes under CGAAP effective January 1, 2013 and has adopted IFRS for financial reporting purposes effective January 1, 2015.
D13: 2015 | E13: MIFRS
A15: Account | B15: Description | C15: Additions | D15: Years (new additions only) | E15: Depreciation Rate on New Additions | F15: 2015 Depreciation Expense 1 | G15: 2015 Depreciation Expense per Appendix 2-BA Fixed Assets, Column J (l) | H15: Variance 2 | I15: Depreciation Expense on 2015 Full Year Additions | J15: Less Depreciation Expense on Assets Fully Depreciated during the year (o) | K15: 2015 Full Year Depreciation 3
C16: (d) | D16: (f) | E16: (g) = 1 / (f) | F16: (h)=2014 Full Year Depreciation + ((d)*0.5)/(f) | H16: (m) = (h) - (l) | I16: (n)=((d))/(f) | K16: (p) = 2014 Full Year Depreciation + (n) - (o)
A17: 1611 | B17: Computer Software (Formally known as Account 1925) | E17: =IF(D17=0,0,1/D17) -> 0 | F17: =IF(D17=0,'App.2-CI_MIFRS_DepExp_2014'!K17,+'App.2-CI_MIFRS_DepExp_2014'!K17+((C17*0.5)/D17)) -> 0 | H17: =IF(ISERROR(+F17-G17), 0, +F17-G17) -> 0 | I17: =IF(D17=0,0,+(C17)/D17) -> 0 | K17: =IF(ISERROR(+I17+'App.2-CI_MIFRS_DepExp_2014'!K17-J17), 0, +I17+'App.2-CI_MIFRS_DepExp_2014'!K17-J17) -> 0
A18: 1612 | B18: Land Rights (Formally known as Account 1906) | E18: 0 | F18: =IF(D18=0,'App.2-CI_MIFRS_DepExp_2014'!K18,+'App.2-CI_MIFRS_DepExp_2014'!K18+((C18*0.5)/D18)) -> 0 | H18: 0 | I18: =IF(D18=0,0,+(C18)/D18) -> 0 | K18: =IF(ISERROR(+I18+'App.2-CI_MIFRS_DepExp_2014'!K18-J18), 0, +I18+'App.2-CI_MIFRS_DepExp_2014'!K18-J18) -> 0
A19: 1805 | B19: Land | E19: 0 | F19: =IF(D19=0,'App.2-CI_MIFRS_DepExp_2014'!K19,+'App.2-CI_MIFRS_DepExp_2014'!K19+((C19*0.5)/D19)) -> 0 | H19: 0 | I19: 0 | K19: =IF(ISERROR(+I19+'App.2-CI_MIFRS_DepExp_2014'!K19-J19), 0, +I19+'App.2-CI_MIFRS_DepExp_2014'!K19-J19) -> 0
A20: 1808 | B20: Buildings | E20: 0 | F20: =IF(D20=0,'App.2-CI_MIFRS_DepExp_2014'!K20,+'App.2-CI_MIFRS_DepExp_2014'!K20+((C20*0.5)/D20)) -> 0 | H20: 0 | I20: 0 | K20: =IF(ISERROR(+I20+'App.2-CI_MIFRS_DepExp_2014'!K20-J20), 0, +I20+'App.2-CI_MIFRS_DepExp_2014'!K20-J20) -> 0
A21: 1810 | B21: Leasehold Improvements | E21: 0 | F21: =IF(D21=0,'App.2-CI_MIFRS_DepExp_2014'!K21,+'App.2-CI_MIFRS_DepExp_2014'!K21+((C21*0.5)/D21)) -> 0 | H21: 0 | I21: 0 | K21: =IF(ISERROR(+I21+'App.2-CI_MIFRS_DepExp_2014'!K21-J21), 0, +I21+'App.2-CI_MIFRS_DepExp_2014'!K21-J21) -> 0
A22: 1815 | B22: Transformer Station Equipment >50 kV | E22: 0 | F22: =IF(D22=0,'App.2-CI_MIFRS_DepExp_2014'!K22,+'App.2-CI_MIFRS_DepExp_2014'!K22+((C22*0.5)/D22)) -> 0 | H22: 0 | I22: 0 | K22: =IF(ISERROR(+I22+'App.2-CI_MIFRS_DepExp_2014'!K22-J22), 0, +I22+'App.2-CI_MIFRS_DepExp_2014'!K22-J22) -> 0
A23: 1820 | B23: Distribution Station Equipment <50 kV | E23: 0 | F23: =IF(D23=0,'App.2-CI_MIFRS_DepExp_2014'!K23,+'App.2-CI_MIFRS_DepExp_2014'!K23+((C23*0.5)/D23)) -> 0 | H23: 0 | I23: 0 | K23: =IF(ISERROR(+I23+'App.2-CI_MIFRS_DepExp_2014'!K23-J23), 0, +I23+'App.2-CI_MIFRS_DepExp_2014'!K23-J23) -> 0
A24: 1825 | B24: Storage Battery Equipment | E24: 0 | F24: =IF(D24=0,'App.2-CI_MIFRS_DepExp_2014'!K24,+'App.2-CI_MIFRS_DepExp_2014'!K24+((C24*0.5)/D24)) -> 0 | H24: 0 | I24: 0 | K24: =IF(ISERROR(+I24+'App.2-CI_MIFRS_DepExp_2014'!K24-J24), 0, +I24+'App.2-CI_MIFRS_DepExp_2014'!K24-J24) -> 0
A25: 1830 | B25: Poles, Towers & Fixtures | E25: 0 | F25: =IF(D25=0,'App.2-CI_MIFRS_DepExp_2014'!K25,+'App.2-CI_MIFRS_DepExp_2014'!K25+((C25*0.5)/D25)) -> 0 | H25: 0 | I25: 0 | K25: =IF(ISERROR(+I25+'App.2-CI_MIFRS_DepExp_2014'!K25-J25), 0, +I25+'App.2-CI_MIFRS_DepExp_2014'!K25-J25) -> 0
A26: 1835 | B26: Overhead Conductors & Devices | E26: 0 | F26: =IF(D26=0,'App.2-CI_MIFRS_DepExp_2014'!K26,+'App.2-CI_MIFRS_DepExp_2014'!K26+((C26*0.5)/D26)) -> 0 | H26: 0 | I26: 0 | K26: =IF(ISERROR(+I26+'App.2-CI_MIFRS_DepExp_2014'!K26-J26), 0, +I26+'App.2-CI_MIFRS_DepExp_2014'!K26-J26) -> 0
A27: 1840 | B27: Underground Conduit | E27: 0 | F27: =IF(D27=0,'App.2-CI_MIFRS_DepExp_2014'!K27,+'App.2-CI_MIFRS_DepExp_2014'!K27+((C27*0.5)/D27)) -> 0 | H27: 0 | I27: 0 | K27: =IF(ISERROR(+I27+'App.2-CI_MIFRS_DepExp_2014'!K27-J27), 0, +I27+'App.2-CI_MIFRS_DepExp_2014'!K27-J27) -> 0
A28: 1845 | B28: Underground Conductors & Devices | E28: 0 | F28: =IF(D28=0,'App.2-CI_MIFRS_DepExp_2014'!K28,+'App.2-CI_MIFRS_DepExp_2014'!K28+((C28*0.5)/D28)) -> 0 | H28: 0 | I28: 0 | K28: =IF(ISERROR(+I28+'App.2-CI_MIFRS_DepExp_2014'!K28-J28), 0, +I28+'App.2-CI_MIFRS_DepExp_2014'!K28-J28) -> 0
A29: 1850 | B29: Line Transformers | E29: 0 | F29: =IF(D29=0,'App.2-CI_MIFRS_DepExp_2014'!K29,+'App.2-CI_MIFRS_DepExp_2014'!K29+((C29*0.5)/D29)) -> 0 | H29: 0 | I29: 0 | K29: =IF(ISERROR(+I29+'App.2-CI_MIFRS_DepExp_2014'!K29-J29), 0, +I29+'App.2-CI_MIFRS_DepExp_2014'!K29-J29) -> 0
A30: 1855 | B30: Services (Overhead & Underground) | E30: 0 | F30: =IF(D30=0,'App.2-CI_MIFRS_DepExp_2014'!K30,+'App.2-CI_MIFRS_DepExp_2014'!K30+((C30*0.5)/D30)) -> 0 | H30: 0 | I30: 0 | K30: =IF(ISERROR(+I30+'App.2-CI_MIFRS_DepExp_2014'!K30-J30), 0, +I30+'App.2-CI_MIFRS_DepExp_2014'!K30-J30) -> 0
A31: 1860 | B31: Meters | E31: 0 | F31: =IF(D31=0,'App.2-CI_MIFRS_DepExp_2014'!K31,+'App.2-CI_MIFRS_DepExp_2014'!K31+((C31*0.5)/D31)) -> 0 | H31: 0 | I31: 0 | K31: =IF(ISERROR(+I31+'App.2-CI_MIFRS_DepExp_2014'!K31-J31), 0, +I31+'App.2-CI_MIFRS_DepExp_2014'!K31-J31) -> 0
A32: 1860 | B32: Meters (Smart Meters) | E32: 0 | F32: =IF(D32=0,'App.2-CI_MIFRS_DepExp_2014'!K32,+'App.2-CI_MIFRS_DepExp_2014'!K32+((C32*0.5)/D32)) -> 0 | H32: 0 | I32: 0 | K32: =IF(ISERROR(+I32+'App.2-CI_MIFRS_DepExp_2014'!K32-J32), 0, +I32+'App.2-CI_MIFRS_DepExp_2014'!K32-J32) -> 0
A33: 1905 | B33: Land | E33: 0 | F33: =IF(D33=0,'App.2-CI_MIFRS_DepExp_2014'!K33,+'App.2-CI_MIFRS_DepExp_2014'!K33+((C33*0.5)/D33)) -> 0 | H33: 0 | I33: 0 | K33: =IF(ISERROR(+I33+'App.2-CI_MIFRS_DepExp_2014'!K33-J33), 0, +I33+'App.2-CI_MIFRS_DepExp_2014'!K33-J33) -> 0
A34: 1908 | B34: Buildings & Fixtures | E34: 0 | F34: =IF(D34=0,'App.2-CI_MIFRS_DepExp_2014'!K34,+'App.2-CI_MIFRS_DepExp_2014'!K34+((C34*0.5)/D34)) -> 0 | H34: 0 | I34: 0 | K34: =IF(ISERROR(+I34+'App.2-CI_MIFRS_DepExp_2014'!K34-J34), 0, +I34+'App.2-CI_MIFRS_DepExp_2014'!K34-J34) -> 0
A35: 1910 | B35: Leasehold Improvements | E35: 0 | F35: =IF(D35=0,'App.2-CI_MIFRS_DepExp_2014'!K35,+'App.2-CI_MIFRS_DepExp_2014'!K35+((C35*0.5)/D35)) -> 0 | H35: 0 | I35: 0 | K35: =IF(ISERROR(+I35+'App.2-CI_MIFRS_DepExp_2014'!K35-J35), 0, +I35+'App.2-CI_MIFRS_DepExp_2014'!K35-J35) -> 0
A36: 1915 | B36: Office Furniture & Equipment (10 years) | E36: 0 | F36: =IF(D36=0,'App.2-CI_MIFRS_DepExp_2014'!K36,+'App.2-CI_MIFRS_DepExp_2014'!K36+((C36*0.5)/D36)) -> 0 | H36: 0 | I36: 0 | K36: =IF(ISERROR(+I36+'App.2-CI_MIFRS_DepExp_2014'!K36-J36), 0, +I36+'App.2-CI_MIFRS_DepExp_2014'!K36-J36) -> 0
A37: 1915 | B37: Office Furniture & Equipment (5 years) | E37: 0 | F37: =IF(D37=0,'App.2-CI_MIFRS_DepExp_2014'!K37,+'App.2-CI_MIFRS_DepExp_2014'!K37+((C37*0.5)/D37)) -> 0 | H37: 0 | I37: 0 | K37: =IF(ISERROR(+I37+'App.2-CI_MIFRS_DepExp_2014'!K37-J37), 0, +I37+'App.2-CI_MIFRS_DepExp_2014'!K37-J37) -> 0
A38: 1920 | B38: Computer Equipment - Hardware | E38: 0 | F38: =IF(D38=0,'App.2-CI_MIFRS_DepExp_2014'!K38,+'App.2-CI_MIFRS_DepExp_2014'!K38+((C38*0.5)/D38)) -> 0 | H38: 0 | I38: 0 | K38: =IF(ISERROR(+I38+'App.2-CI_MIFRS_DepExp_2014'!K38-J38), 0, +I38+'App.2-CI_MIFRS_DepExp_2014'!K38-J38) -> 0
A39: 1920 | B39: Computer Equip.-Hardware(Post Mar. 22/04) | E39: 0 | F39: =IF(D39=0,'App.2-CI_MIFRS_DepExp_2014'!K39,+'App.2-CI_MIFRS_DepExp_2014'!K39+((C39*0.5)/D39)) -> 0 | H39: 0 | I39: 0 | K39: =IF(ISERROR(+I39+'App.2-CI_MIFRS_DepExp_2014'!K39-J39), 0, +I39+'App.2-CI_MIFRS_DepExp_2014'!K39-J39) -> 0
A40: 1920 | B40: Computer Equip.-Hardware(Post Mar. 19/07) | E40: 0 | F40: =IF(D40=0,'App.2-CI_MIFRS_DepExp_2014'!K40,+'App.2-CI_MIFRS_DepExp_2014'!K40+((C40*0.5)/D40)) -> 0 | H40: 0 | I40: 0 | K40: =IF(ISERROR(+I40+'App.2-CI_MIFRS_DepExp_2014'!K40-J40), 0, +I40+'App.2-CI_MIFRS_DepExp_2014'!K40-J40) -> 0
A41: 1930 | B41: Transportation Equipment | E41: 0 | F41: =IF(D41=0,'App.2-CI_MIFRS_DepExp_2014'!K41,+'App.2-CI_MIFRS_DepExp_2014'!K41+((C41*0.5)/D41)) -> 0 | H41: 0 | I41: 0 | K41: =IF(ISERROR(+I41+'App.2-CI_MIFRS_DepExp_2014'!K41-J41), 0, +I41+'App.2-CI_MIFRS_DepExp_2014'!K41-J41) -> 0
A42: 1935 | B42: Stores Equipment | E42: 0 | F42: =IF(D42=0,'App.2-CI_MIFRS_DepExp_2014'!K42,+'App.2-CI_MIFRS_DepExp_2014'!K42+((C42*0.5)/D42)) -> 0 | H42: 0 | I42: 0 | K42: =IF(ISERROR(+I42+'App.2-CI_MIFRS_DepExp_2014'!K42-J42), 0, +I42+'App.2-CI_MIFRS_DepExp_2014'!K42-J42) -> 0
A43: 1940 | B43: Tools, Shop & Garage Equipment | E43: 0 | F43: =IF(D43=0,'App.2-CI_MIFRS_DepExp_2014'!K43,+'App.2-CI_MIFRS_DepExp_2014'!K43+((C43*0.5)/D43)) -> 0 | H43: 0 | I43: 0 | K43: =IF(ISERROR(+I43+'App.2-CI_MIFRS_DepExp_2014'!K43-J43), 0, +I43+'App.2-CI_MIFRS_DepExp_2014'!K43-J43) -> 0
A44: 1945 | B44: Measurement & Testing Equipment | E44: 0 | F44: =IF(D44=0,'App.2-CI_MIFRS_DepExp_2014'!K44,+'App.2-CI_MIFRS_DepExp_2014'!K44+((C44*0.5)/D44)) -> 0 | H44: 0 | I44: 0 | K44: =IF(ISERROR(+I44+'App.2-CI_MIFRS_DepExp_2014'!K44-J44), 0, +I44+'App.2-CI_MIFRS_DepExp_2014'!K44-J44) -> 0
A45: 1950 | B45: Power Operated Equipment | E45: 0 | F45: =IF(D45=0,'App.2-CI_MIFRS_DepExp_2014'!K45,+'App.2-CI_MIFRS_DepExp_2014'!K45+((C45*0.5)/D45)) -> 0 | H45: 0 | I45: 0 | K45: =IF(ISERROR(+I45+'App.2-CI_MIFRS_DepExp_2014'!K45-J45), 0, +I45+'App.2-CI_MIFRS_DepExp_2014'!K45-J45) -> 0
A46: 1955 | B46: Communications Equipment | E46: 0 | F46: =IF(D46=0,'App.2-CI_MIFRS_DepExp_2014'!K46,+'App.2-CI_MIFRS_DepExp_2014'!K46+((C46*0.5)/D46)) -> 0 | H46: 0 | I46: 0 | K46: =IF(ISERROR(+I46+'App.2-CI_MIFRS_DepExp_2014'!K46-J46), 0, +I46+'App.2-CI_MIFRS_DepExp_2014'!K46-J46) -> 0
A47: 1955 | B47: Communication Equipment (Smart Meters) | E47: 0 | F47: =IF(D47=0,'App.2-CI_MIFRS_DepExp_2014'!K47,+'App.2-CI_MIFRS_DepExp_2014'!K47+((C47*0.5)/D47)) -> 0 | H47: 0 | I47: 0 | K47: =IF(ISERROR(+I47+'App.2-CI_MIFRS_DepExp_2014'!K47-J47), 0, +I47+'App.2-CI_MIFRS_DepExp_2014'!K47-J47) -> 0
A48: 1960 | B48: Miscellaneous Equipment | E48: 0 | F48: =IF(D48=0,'App.2-CI_MIFRS_DepExp_2014'!K48,+'App.2-CI_MIFRS_DepExp_2014'!K48+((C48*0.5)/D48)) -> 0 | H48: 0 | I48: 0 | K48: =IF(ISERROR(+I48+'App.2-CI_MIFRS_DepExp_2014'!K48-J48), 0, +I48+'App.2-CI_MIFRS_DepExp_2014'!K48-J48) -> 0
A49: 1970 | B49: Load Management Controls - Customer Premises | E49: 0 | F49: =IF(D49=0,'App.2-CI_MIFRS_DepExp_2014'!K49,+'App.2-CI_MIFRS_DepExp_2014'!K49+((C49*0.5)/D49)) -> 0 | H49: 0 | I49: 0 | K49: =IF(ISERROR(+I49+'App.2-CI_MIFRS_DepExp_2014'!K49-J49), 0, +I49+'App.2-CI_MIFRS_DepExp_2014'!K49-J49) -> 0
A50: 1975 | B50: Load Management Controls Utility Premises | E50: 0 | F50: =IF(D50=0,'App.2-CI_MIFRS_DepExp_2014'!K50,+'App.2-CI_MIFRS_DepExp_2014'!K50+((C50*0.5)/D50)) -> 0 | H50: 0 | I50: 0 | K50: =IF(ISERROR(+I50+'App.2-CI_MIFRS_DepExp_2014'!K50-J50), 0, +I50+'App.2-CI_MIFRS_DepExp_2014'!K50-J50) -> 0
A51: 1980 | B51: System Supervisor Equipment | E51: 0 | F51: =IF(D51=0,'App.2-CI_MIFRS_DepExp_2014'!K51,+'App.2-CI_MIFRS_DepExp_2014'!K51+((C51*0.5)/D51)) -> 0 | H51: 0 | I51: 0 | K51: =IF(ISERROR(+I51+'App.2-CI_MIFRS_DepExp_2014'!K51-J51), 0, +I51+'App.2-CI_MIFRS_DepExp_2014'!K51-J51) -> 0
A52: 1985 | B52: Miscellaneous Fixed Assets | E52: 0 | F52: =IF(D52=0,'App.2-CI_MIFRS_DepExp_2014'!K52,+'App.2-CI_MIFRS_DepExp_2014'!K52+((C52*0.5)/D52)) -> 0 | H52: 0 | I52: 0 | K52: =IF(ISERROR(+I52+'App.2-CI_MIFRS_DepExp_2014'!K52-J52), 0, +I52+'App.2-CI_MIFRS_DepExp_2014'!K52-J52) -> 0
A53: 1990 | B53: Other Tangible Property | E53: 0 | F53: =IF(D53=0,'App.2-CI_MIFRS_DepExp_2014'!K53,+'App.2-CI_MIFRS_DepExp_2014'!K53+((C53*0.5)/D53)) -> 0 | H53: 0 | I53: 0 | K53: =IF(ISERROR(+I53+'App.2-CI_MIFRS_DepExp_2014'!K53-J53), 0, +I53+'App.2-CI_MIFRS_DepExp_2014'!K53-J53) -> 0
A54: 1995 | B54: Contributions & Grants | E54: 0 | F54: =IF(D54=0,'App.2-CI_MIFRS_DepExp_2014'!K54,+'App.2-CI_MIFRS_DepExp_2014'!K54+((C54*0.5)/D54)) -> 0 | H54: 0 | I54: 0 | K54: =IF(ISERROR(+I54+'App.2-CI_MIFRS_DepExp_2014'!K54-J54), 0, +I54+'App.2-CI_MIFRS_DepExp_2014'!K54-J54) -> 0
B55: Total | C55: =SUM(C17:C54) -> 0 | F55: =SUM(F17:F54) -> 0 | G55: 0 | H55: 0 | I55: 0 | J55: 0 | K55: 0
B56: Depreciation exp. adj. from gain or loss on the retirement of assets (pool of like assets)
B57: Total Depreciation expense to be included in the test year revenue requirement | F57: =SUM(F55:F56) -> 0
A58: Notes:
A59: 1 | B59: Board policy of the "half-year" rule - the applicant must ensure that additions in the year attract a half-year depreciation expense in the first year. Deviations from this standard practice must be supported in the application.
A60: 2 | B60: The applicant must provide an explanation of material variances in evidence.
A61: 3 | B61: This column refers to the calculated full year depreciation but excludes the depreciation expense on assets fully depreciated during the year. This column is used for the purpose of calculating depreciation expense in the following year on the next worksheet.
A64: General: | B64: Applicants must provide a breakdown of depreciation and amortization expense in the above format for all relevant accounts. Asset Retirement Obligations (AROs), depreciation and accretion expense should be disclosed separately consistent with the Notes of historical Audited Financial Statements.

Sheet App.2-CK MIFRS_DepExp_2016
G1: File Number: | H1: =EBNUMBER -> EB-2015-0100
G2: Exhibit:
G3: Tab:
G4: Schedule:
G5: Page:
G7: Date:
A9: Appendix 2-CK
A10: Depreciation and Amortization Expense
A11: Assumes the applicant made capitalization and depreciation expense accounting policy changes under CGAAP effective January 1, 2013 and has adopted IFRS for financial reporting purposes effective January 1, 2015.
D13: 2016 | E13: MIFRS
A15: Account | B15: Description | C15: Additions | D15: Years (new additions only) | E15: Depreciation Rate on New Additions | F15: 2016 Depreciation Expense 1 | G15: 2016 Depreciation Expense per Appendix 2-BA Fixed Assets, Column J (l) | H15: Variance 2
C16: (d) | D16: (f) | E16: (g) = 1 / (f) | F16: (h)=2015 Full Year Depreciation + ((d)*0.5)/(f) | H16: (m) = (h) - (l)
A17: 1611 | B17: Computer Software (Formally known as Account 1925) | E17: =IF(D17=0,0,1/D17) -> 0 | F17: =IF(D17=0,'App.2-CJ MIFRS_DepExp_2015'!K17,+'App.2-CJ MIFRS_DepExp_2015'!K17+((C17*0.5)/D17)) -> 0 | H17: =IF(ISERROR(+F17-G17), 0, +F17-G17) -> 0
A18: 1612 | B18: Land Rights (Formally known as Account 1906) | E18: 0 | F18: =IF(D18=0,'App.2-CJ MIFRS_DepExp_2015'!K18,+'App.2-CJ MIFRS_DepExp_2015'!K18+((C18*0.5)/D18)) -> 0 | H18: 0
A19: 1805 | B19: Land | E19: 0 | F19: =IF(D19=0,'App.2-CJ MIFRS_DepExp_2015'!K19,+'App.2-CJ MIFRS_DepExp_2015'!K19+((C19*0.5)/D19)) -> 0 | H19: 0
A20: 1808 | B20: Buildings | E20: 0 | F20: =IF(D20=0,'App.2-CJ MIFRS_DepExp_2015'!K20,+'App.2-CJ MIFRS_DepExp_2015'!K20+((C20*0.5)/D20)) -> 0 | H20: 0
A21: 1810 | B21: Leasehold Improvements | E21: 0 | F21: =IF(D21=0,'App.2-CJ MIFRS_DepExp_2015'!K21,+'App.2-CJ MIFRS_DepExp_2015'!K21+((C21*0.5)/D21)) -> 0 | H21: 0
A22: 1815 | B22: Transformer Station Equipment >50 kV | E22: 0 | F22: =IF(D22=0,'App.2-CJ MIFRS_DepExp_2015'!K22,+'App.2-CJ MIFRS_DepExp_2015'!K22+((C22*0.5)/D22)) -> 0 | H22: 0
A23: 1820 | B23: Distribution Station Equipment <50 kV | E23: 0 | F23: =IF(D23=0,'App.2-CJ MIFRS_DepExp_2015'!K23,+'App.2-CJ MIFRS_DepExp_2015'!K23+((C23*0.5)/D23)) -> 0 | H23: 0
A24: 1825 | B24: Storage Battery Equipment | E24: 0 | F24: =IF(D24=0,'App.2-CJ MIFRS_DepExp_2015'!K24,+'App.2-CJ MIFRS_DepExp_2015'!K24+((C24*0.5)/D24)) -> 0 | H24: 0
A25: 1830 | B25: Poles, Towers & Fixtures | E25: 0 | F25: =IF(D25=0,'App.2-CJ MIFRS_DepExp_2015'!K25,+'App.2-CJ MIFRS_DepExp_2015'!K25+((C25*0.5)/D25)) -> 0 | H25: 0
A26: 1835 | B26: Overhead Conductors & Devices | E26: 0 | F26: =IF(D26=0,'App.2-CJ MIFRS_DepExp_2015'!K26,+'App.2-CJ MIFRS_DepExp_2015'!K26+((C26*0.5)/D26)) -> 0 | H26: 0
A27: 1840 | B27: Underground Conduit | E27: 0 | F27: =IF(D27=0,'App.2-CJ MIFRS_DepExp_2015'!K27,+'App.2-CJ MIFRS_DepExp_2015'!K27+((C27*0.5)/D27)) -> 0 | H27: 0
A28: 1845 | B28: Underground Conductors & Devices | E28: 0 | F28: =IF(D28=0,'App.2-CJ MIFRS_DepExp_2015'!K28,+'App.2-CJ MIFRS_DepExp_2015'!K28+((C28*0.5)/D28)) -> 0 | H28: 0
A29: 1850 | B29: Line Transformers | E29: 0 | F29: =IF(D29=0,'App.2-CJ MIFRS_DepExp_2015'!K29,+'App.2-CJ MIFRS_DepExp_2015'!K29+((C29*0.5)/D29)) -> 0 | H29: 0
A30: 1855 | B30: Services (Overhead & Underground) | E30: 0 | F30: =IF(D30=0,'App.2-CJ MIFRS_DepExp_2015'!K30,+'App.2-CJ MIFRS_DepExp_2015'!K30+((C30*0.5)/D30)) -> 0 | H30: 0
A31: 1860 | B31: Meters | E31: 0 | F31: =IF(D31=0,'App.2-CJ MIFRS_DepExp_2015'!K31,+'App.2-CJ MIFRS_DepExp_2015'!K31+((C31*0.5)/D31)) -> 0 | H31: 0
A32: 1860 | B32: Meters (Smart Meters) | E32: 0 | F32: =IF(D32=0,'App.2-CJ MIFRS_DepExp_2015'!K32,+'App.2-CJ MIFRS_DepExp_2015'!K32+((C32*0.5)/D32)) -> 0 | H32: 0
A33: 1905 | B33: Land | E33: 0 | F33: =IF(D33=0,'App.2-CJ MIFRS_DepExp_2015'!K33,+'App.2-CJ MIFRS_DepExp_2015'!K33+((C33*0.5)/D33)) -> 0 | H33: 0
A34: 1908 | B34: Buildings & Fixtures | E34: 0 | F34: =IF(D34=0,'App.2-CJ MIFRS_DepExp_2015'!K34,+'App.2-CJ MIFRS_DepExp_2015'!K34+((C34*0.5)/D34)) -> 0 | H34: 0
A35: 1910 | B35: Leasehold Improvements | E35: 0 | F35: =IF(D35=0,'App.2-CJ MIFRS_DepExp_2015'!K35,+'App.2-CJ MIFRS_DepExp_2015'!K35+((C35*0.5)/D35)) -> 0 | H35: 0
A36: 1915 | B36: Office Furniture & Equipment (10 years) | E36: 0 | F36: =IF(D36=0,'App.2-CJ MIFRS_DepExp_2015'!K36,+'App.2-CJ MIFRS_DepExp_2015'!K36+((C36*0.5)/D36)) -> 0 | H36: 0
A37: 1915 | B37: Office Furniture & Equipment (5 years) | E37: 0 | F37: =IF(D37=0,'App.2-CJ MIFRS_DepExp_2015'!K37,+'App.2-CJ MIFRS_DepExp_2015'!K37+((C37*0.5)/D37)) -> 0 | H37: 0
A38: 1920 | B38: Computer Equipment - Hardware | E38: 0 | F38: =IF(D38=0,'App.2-CJ MIFRS_DepExp_2015'!K38,+'App.2-CJ MIFRS_DepExp_2015'!K38+((C38*0.5)/D38)) -> 0 | H38: 0
A39: 1920 | B39: Computer Equip.-Hardware(Post Mar. 22/04) | E39: 0 | F39: =IF(D39=0,'App.2-CJ MIFRS_DepExp_2015'!K39,+'App.2-CJ MIFRS_DepExp_2015'!K39+((C39*0.5)/D39)) -> 0 | H39: 0
A40: 1920 | B40: Computer Equip.-Hardware(Post Mar. 19/07) | E40: 0 | F40: =IF(D40=0,'App.2-CJ MIFRS_DepExp_2015'!K40,+'App.2-CJ MIFRS_DepExp_2015'!K40+((C40*0.5)/D40)) -> 0 | H40: 0
A41: 1930 | B41: Transportation Equipment | E41: 0 | F41: =IF(D41=0,'App.2-CJ MIFRS_DepExp_2015'!K41,+'App.2-CJ MIFRS_DepExp_2015'!K41+((C41*0.5)/D41)) -> 0 | H41: 0
A42: 1935 | B42: Stores Equipment | E42: 0 | F42: =IF(D42=0,'App.2-CJ MIFRS_DepExp_2015'!K42,+'App.2-CJ MIFRS_DepExp_2015'!K42+((C42*0.5)/D42)) -> 0 | H42: 0
A43: 1940 | B43: Tools, Shop & Garage Equipment | E43: 0 | F43: =IF(D43=0,'App.2-CJ MIFRS_DepExp_2015'!K43,+'App.2-CJ MIFRS_DepExp_2015'!K43+((C43*0.5)/D43)) -> 0 | H43: 0
A44: 1945 | B44: Measurement & Testing Equipment | E44: 0 | F44: =IF(D44=0,'App.2-CJ MIFRS_DepExp_2015'!K44,+'App.2-CJ MIFRS_DepExp_2015'!K44+((C44*0.5)/D44)) -> 0 | H44: 0
A45: 1950 | B45: Power Operated Equipment | E45: 0 | F45: =IF(D45=0,'App.2-CJ MIFRS_DepExp_2015'!K45,+'App.2-CJ MIFRS_DepExp_2015'!K45+((C45*0.5)/D45)) -> 0 | H45: 0
A46: 1955 | B46: Communications Equipment | E46: 0 | F46: =IF(D46=0,'App.2-CJ MIFRS_DepExp_2015'!K46,+'App.2-CJ MIFRS_DepExp_2015'!K46+((C46*0.5)/D46)) -> 0 | H46: 0
A47: 1955 | B47: Communication Equipment (Smart Meters) | E47: 0 | F47: =IF(D47=0,'App.2-CJ MIFRS_DepExp_2015'!K47,+'App.2-CJ MIFRS_DepExp_2015'!K47+((C47*0.5)/D47)) -> 0 | H47: 0
A48: 1960 | B48: Miscellaneous Equipment | E48: 0 | F48: =IF(D48=0,'App.2-CJ MIFRS_DepExp_2015'!K48,+'App.2-CJ MIFRS_DepExp_2015'!K48+((C48*0.5)/D48)) -> 0 | H48: 0
A49: 1970 | B49: Load Management Controls - Customer Premises | E49: 0 | F49: =IF(D49=0,'App.2-CJ MIFRS_DepExp_2015'!K49,+'App.2-CJ MIFRS_DepExp_2015'!K49+((C49*0.5)/D49)) -> 0 | H49: 0
A50: 1975 | B50: Load Management Controls Utility Premises | E50: 0 | F50: =IF(D50=0,'App.2-CJ MIFRS_DepExp_2015'!K50,+'App.2-CJ MIFRS_DepExp_2015'!K50+((C50*0.5)/D50)) -> 0 | H50: 0
A51: 1980 | B51: System Supervisor Equipment | E51: 0 | F51: =IF(D51=0,'App.2-CJ MIFRS_DepExp_2015'!K51,+'App.2-CJ MIFRS_DepExp_2015'!K51+((C51*0.5)/D51)) -> 0 | H51: 0
A52: 1985 | B52: Miscellaneous Fixed Assets | E52: 0 | F52: =IF(D52=0,'App.2-CJ MIFRS_DepExp_2015'!K52,+'App.2-CJ MIFRS_DepExp_2015'!K52+((C52*0.5)/D52)) -> 0 | H52: 0
A53: 1990 | B53: Other Tangible Property | E53: 0 | F53: =IF(D53=0,'App.2-CJ MIFRS_DepExp_2015'!K53,+'App.2-CJ MIFRS_DepExp_2015'!K53+((C53*0.5)/D53)) -> 0 | H53: 0
A54: 1995 | B54: Contributions & Grants | E54: 0 | F54: =IF(D54=0,'App.2-CJ MIFRS_DepExp_2015'!K54,+'App.2-CJ MIFRS_DepExp_2015'!K54+((C54*0.5)/D54)) -> 0 | H54: 0
B55: Total | C55: =SUM(C17:C54) -> 0 | F55: =SUM(F17:F54) -> 0 | G55: =SUM(G17:G54) -> 0 | H55: =SUM(H17:H54) -> 0
B56: Depreciation exp. adj. from gain or loss on the retirement of assets (pool of like assets)
B57: Total Depreciation expense to be included in the test year revenue requirement | F57: =SUM(F55:F56) -> 0
A58: Notes:
A59: 1 | B59: Board policy of the "half-year" rule - the applicant must ensure that additions in the year attract a half-year depreciation expense in the first year. Deviations from this standard practice must be supported in the application.
A60: 2 | B60: The applicant must provide an explanation of material variances in evidence.
A62: General: | B62: Applicants must provide a breakdown of depreciation and amortization expense in the above format for all relevant accounts. Asset Retirement Obligations (AROs), depreciation and accretion expense should be disclosed separately consistent with the Notes of historical Audited Financial Statements.

Sheet App.2-D_Overhead
F1: File Number: | G1: =EBNUMBER -> EB-2015-0100
F2: Exhibit:
F3: Tab:
F4: Schedule:
F5: Page:
F7: Date:
A9: Appendix 2-D
A10: Overhead Expense
A12: Applicants are to provide a breakdown of OM&A before capitalization in the below table. OM&A before capitalization may be broken down by cost center, program, drivers or another format best suited to focus on capitalized vs. uncapitalized OM&A.
A14: OM&A Before Capitalization
B15: 2012 | C15: 2013 | D15: 2014 | E15: 2015 | F15: 2016
B16: Historical Year | C16: Historical Year | D16: Historical Year | E16: Bridge Year | F16: Test Year
A17: Operations | B17: =304403-36373-2408-182-2076-38-13063 -> 250263 | C17: =172502-35616-350-912-359-282-5606 -> 129377 | D17: =202676-35159-7265-2266-321-310-1674-3414 -> 152267 | E17: =[37]Sheet1!$E$140-SUM([38]Sheet1!$I$95:$I$102) -> 202641.62 | F17: =[37]Sheet1!$F$140-SUM([38]Sheet1!$I$126:$I$133) -> 218728.1886
A18: Maintenance | B18: =355486-4235-2897-40085-15785-12263-1840-9507-5655-4397 -> 258822 | C18: =442916-4874-2914-69337-18047-15603-2184-11470-4372-2431 -> 311684 | D18: =377142-1346-2147-50398-17813-12082-180-1871-20793-4561-2622 -> 263329 | E18: =[37]Sheet1!$E$141-SUM([38]Sheet1!$I$103:$I$112) -> 230082.55 | F18: =[37]Sheet1!$F$141-SUM([38]Sheet1!$I$134:$I$143) -> 262759.4501
A19: Billing and Collecting | B19: =453546-5630-41779-15667 -> 390470 | C19: =526500-6486-50431-17581 -> 452002 | D19: =553160-5527-55174-20553 -> 471906 | E19: =[37]Sheet1!$E$142-SUM([38]Sheet1!$I$113:$I$115) -> 449685.5929 | F19: =[37]Sheet1!$F$142-SUM([38]Sheet1!$I$144:$I$146) -> 466133.7978
A20: Community Relations | B20: =5007 -> 5007 | C20: 7874 | D20: =6146 -> 6146 | E20: =[37]Sheet1!$E$143 -> 6463.82 | F20: =[37]Sheet1!$F$143 -> 26597
A21: Administrative and General | B21: =724798-92430-37014 -> 595354 | C21: =727760-92013-42745 -> 593002 | D21: =820268-93696-45900 -> 680672 | E21: =[37]Sheet1!$E$144-SUM([38]Sheet1!$I$116:$I$118) -> 728809.13 | F21: =[37]Sheet1!$F$144-SUM([38]Sheet1!$I$147:$I$149) -> 740731.3486
A22: Fleet | B22: =20730+41557 -> 62287 | C22: =20275+37170 -> 57445 | D22: =16511+37658 -> 54169 | E22: =+[38]Sheet1!$H$121 -> 89334.4567 | F22: =[38]Sheet1!$H$153 -> 61803.58142
A23: Human Resources (burden) | B23: =28924+301768 -> 330692 | C23: =37902+346442 -> 384344 | D23: =26531+347414 -> 373945 | E23: =+[38]Sheet1!$G$121 -> 452247.5521 | F23: =[38]Sheet1!$G$153 -> 454574.1521
A27: Total OM&A Before Capitalization (B) | B27: =SUM(B17:B26) -> 1892895 | C27: =SUM(C17:C26) -> 1935728 | D27: =SUM(D17:D26) -> 2002434 | E27: =SUM(E17:E26) -> 2159264.722 | F27: =SUM(F17:F26) -> 2231327.519
A29: Applicants are to provide a breakdown of capitalized OM&A in the below table. Capitalized OM&A may be broken down using the categories listed in the table below if possible. Otherwise, applicants are to provide its own break down of capitalized OM&A.
A31: Capitalized OM&A | G31: Directly | H31: Explanation for Change in Overhead Capitalized
B32: 2012 | C32: 2013 | D32: 2014 | E32: 2015 | F32: 2016 | G32: Attributable?
B33: Historical Year | C33: Historical Year | D33: Historical Year | E33: Bridge Year | F33: Test Year | G33: (Y/N)
A34: Payroll Benefits | B34: 28924 | C34: 37901.84 | D34: 26531 | E34: =+[38]Sheet1!$B$105 -> 22773.5 | F34: =+[38]Sheet1!$B$136 -> 29920.5 | G34: Y
A35: Fleet | B35: 20730 | C35: 20274.84 | D35: 16511 | E35: =+[38]Sheet1!$C$105 -> 14172.5845 | F35: =+[38]Sheet1!$C$136 -> 18620.36202 | G35: Y
A47: Total Capitalized OM&A (A) | B47: =SUM(B34:B46) -> 49654 | C47: =SUM(C34:C46) -> 58176.68 | D47: =SUM(D34:D46) -> 43042 | E47: =SUM(E34:E46) -> 36946.0845 | F47: =SUM(F34:F46) -> 48540.86202
A49: % of Capitalized OM&A (=A/B) | B49: =IF(ISERROR(B47/B27),"0%",B47/B27) -> 0.02623177725 | C49: =IF(ISERROR(C47/C27),"0%",C47/C27) -> 0.0300541605 | D49: =IF(ISERROR(D47/D27),"0%",D47/D27) -> 0.02149484078 | E49: =IF(ISERROR(E47/E27),"0%",E47/E27) -> 0.01711049327 | F49: =IF(ISERROR(F47/F27),"0%",F47/F27) -> 0.0217542524

Sheet App.2-EA_Account 1575 (2015)
A1: Not Applicable | I1: File Number: | J1: =EBNUMBER -> EB-2015-0100
I2: Exhibit:
I3: Tab:
I4: Schedule:
I5: Page:
I7: Date:
A9: Appendix 2-EA
A10: Account 1575 - IFRS-CGAAP Transitional PP&E Amounts
A11: 2015 Adopters of IFRS for Financial Reporting Purposes
A13: For applicants that adopted IFRS on January 1, 2015 for financial reporting purposes
B17: =RebaseYear &" Rebasing Year" -> 2012 Rebasing Year | C17: 2012 | D17: 2013 | E17: 2014 | F17: 2015 | G17: 2016 Rebasing Year
A18: Reporting Basis | B18: CGAAP | C18: CGAAP | D18: CGAAP | E18: CGAAP | F18: MIFRS | G18: MIFRS
B19: Forecast | C19: Actual | D19: Actual | E19: Actual | F19: Forecast | G19: Forecast
E20: $ | F20: $
A21: PP&E Values under CGAAP
A22: Opening net PP&E - Note 1 | F22: =+E25 -> 0
A23: Net Additions - Note 4
A24: Net Depreciation (amounts should be negative) - Note 4
A25: Closing net PP&E (1) | E25: =E22+E23+E24 -> 0 | F25: =SUM(F22:F24) -> 0
A27: PP&E Values under MIFRS (Starts from 2014, the transition year)
A28: Opening net PP&E - Note 1 | F28: =+E31 -> 0
A29: Net Additions - Note 4
A30: Net Depreciation (amounts should be negative) - Note 4
A31: Closing net PP&E (2) | E31: =SUM(E28:E30) -> 0 | F31: =SUM(F28:F30) -> 0
A33: Difference in Closing net PP&E, former CGAAP vs. revised CGAAP | E33: =E25-E31 -> 0 | F33: =F25-F31 -> 0
A36: Effect on Deferral and Variance Account Rate Riders
A37: Closing balance in Account 1576 | G37: =IF(ISERROR(F33), 0, F33) -> 0 | I37: WACC
A38: Return on Rate Base Associated with Account 1576 balance at WACC - Note 2 | G38: =F33*J37*J38 -> 0 | H38: # of years of rate rider disposition period
A39: Amount included in Deferral and Variance Account Rate Rider Calculation | G39: =G37+G38 -> 0
A41: Notes:
A42: 1 For an applicant that adopted IFRS on January 1, 2015, the PP&E values as of January 1, 2014 under both CGAAP and MIFRS should be the same.
A43: 2 Return on rate base associated with deferred balance is calculated as:
A44: the deferral account closing balance as of 2015 rebasing year x WACC X # of years of rate rider disposition period
A45: * Please note that the calculation should be adjusted once WACC is updated and finalized in the rate application.
A46: 3 The PP&E deferral account is cleared by including the total balance in the deferral and variance account rate rider calculation.
A47: 4 Net additions are additions net of disposals; Net depreciation is additions to depreciation net of disposals.

Sheet App.2-EB_Account 1576 (2012)
A1: Not Applicable | I1: File Number: | J1: =EBNUMBER -> EB-2015-0100
I2: Exhibit:
I3: Tab:
I4: Schedule:
I5: Page:
I7: Date:
A9: Appendix 2-EB
A10: Account 1576 - Accounting Changes under CGAAP
A11: 2012 Changes in Accounting Policies under CGAAP
A13: For applicants that made capitalization and depreciation expense accounting policy changes under CGAAP effective January 1, 2012
B17: =RebaseYear &" Rebasing Year" -> 2012 Rebasing Year | C17: 2012 | D17: 2013 | E17: 2014 | F17: 2015 | G17: 2016 Rebasing Year
A18: Reporting Basis | B18: CGAAP | C18: CGAAP | D18: CGAAP | E18: CGAAP | F18: MIFRS | G18: MIFRS
B19: Forecast | C19: Actual | D19: Actual | E19: Actual | F19: Forecast | G19: Forecast
C20: $ | D20: $ | E20: $ | F20: $
A21: PP&E Values under former CGAAP
A22: Opening net PP&E - Note 1 | D22: =+C25 -> 0 | E22: =+D25 -> 0 | F22: =+E25 -> 0
A23: Net Additions - Note 4
A24: Net Depreciation (amounts should be negative) - Note 4
A25: Closing net PP&E (1) | C25: =C22+C23+C24 -> 0 | D25: =D22+D23+D24 -> 0 | E25: =E22+E23+E24 -> 0 | F25: =F22+F23+F24 -> 0
A27: PP&E Values under revised CGAAP (Starts from 2012)
A28: Opening net PP&E - Note 1 | D28: =+C31 -> 0 | E28: =+D31 -> 0 | F28: =+E31 -> 0
A29: Net Additions - Note 4
A30: Net Depreciation (amounts should be negative) - Note 4
A31: Closing net PP&E (2) | C31: =SUM(C28:C30) -> 0 | D31: =SUM(D28:D30) -> 0 | E31: =SUM(E28:E30) -> 0 | F31: =SUM(F28:F30) -> 0
A33: Difference in Closing net PP&E, former CGAAP vs. revised CGAAP | C33: =C25-C31 -> 0 | D33: =D25-D31 -> 0 | E33: =E25-E31 -> 0 | F33: =F25-F31 -> 0
A36: Effect on Deferral and Variance Account Rate Riders
A37: Closing balance in Account 1576 | G37: =IF(ISERROR(F33), 0, F33) -> 0 | I37: WACC
A38: Return on Rate Base Associated with Account 1576 balance at WACC - Note 2 | G38: =F33*J37*J38 -> 0 | H38: # of years of rate rider disposition period
A39: Amount included in Deferral and Variance Account Rate Rider Calculation | G39: =G37+G38 -> 0
A41: Notes:
A42: 1 For an applicant that made the capitalization and depreciation expense accounting policy changes on January 1, 2012, the PP&E values as of January 1, 2012 under both former CGAAP and revised CGAAP should be the same.
A43: 2 Return on rate base associated with Account 1576 balance is calculated as:
A44: the variance account ending balance as of 2015 rebasing year x WACC X # of years of rate rider disposition period
A45: * Please note that the calculation should be adjusted once WACC is updated and finalized in the rate application.
A46: 3 Account 1576 is cleared by including the total balance in the deferral and variance account rate rider calculation.
A47: 4 Net additions are additions net of disposals; Net depreciation is additions to depreciation net of disposals.

Sheet App.2-EC_Account 1576 (2013)
A1: Not Applicable | I1: File Number: | J1: =EBNUMBER -> EB-2015-0100
I2: Exhibit:
I3: Tab:
I4: Schedule:
I5: Page:
I7: Date:
A9: Appendix 2-EC
A10: Account 1576 - Accounting Changes under CGAAP
A11: 2013 Changes in Accounting Policies under CGAAP
A13: For applicants that made capitalization and depreciation expense accounting policy changes under CGAAP effective January 1, 2013
B17: =RebaseYear &" Rebasing Year" -> 2012 Rebasing Year | C17: 2012 | D17: 2013 | E17: 2014 | F17: 2015 | G17: 2016 Rebasing Year
A18: Reporting Basis | B18: CGAAP | C18: CGAAP | D18: CGAAP | E18: CGAAP | F18: MIFRS | G18: MIFRS
B19: Forecast | C19: Actual | D19: Actual | E19: Actual | F19: Forecast | G19: Forecast
D20: $ | E20: $ | F20: $
A21: PP&E Values under former CGAAP
A22: Opening net PP&E - Note 1 | E22: =+D25 -> 0 | F22: =+E25 -> 0
A23: Net Additions - Note 4
A24: Net Depreciation (amounts should be negative) - Note 4
A25: Closing net PP&E (1) | D25: =D22+D23+D24 -> 0 | E25: =E22+E23+E24 -> 0 | F25: =F22+F23+F24 -> 0
A27: PP&E Values under revised CGAAP (Starts from 2012)
A28: Opening net PP&E - Note 1 | E28: =+D31 -> 0 | F28: =+E31 -> 0
A29: Net Additions - Note 4
A30: Net Depreciation (amounts should be negative) - Note 4
A31: Closing net PP&E (2) | D31: =SUM(D28:D30) -> 0 | E31: =SUM(E28:E30) -> 0 | F31: =SUM(F28:F30) -> 0
A33: Difference in Closing net PP&E, former CGAAP vs. revised CGAAP | D33: =D25-D31 -> 0 | E33: =E25-E31 -> 0 | F33: =F25-F31 -> 0
A36: Effect on Deferral and Variance Account Rate Riders
A37: Closing balance in Account 1576 | G37: =IF(ISERROR(F33), 0, F33) -> 0 | I37: WACC
A38: Return on Rate Base Associated with Account 1576 balance at WACC - Note 2 | G38: =F33*J37*J38 -> 0 | H38: # of years of rate rider disposition period
A39: Amount included in Deferral and Variance Account Rate Rider Calculation | G39: =G37+G38 -> 0
A41: Notes:
A42: 1 For an applicant that made the capitalization and depreciation expense accounting policy changes on January 1, 2013, the PP&E values as of January 1, 2013 under both former CGAAP and revised CGAAP should be the same.
A43: 2 Return on rate base associated with Account 1576 balance is calculated as:
A44: the variance account ending balance as of 2015 rebasing year x WACC X # of years of rate rider disposition period
A45: * Please note that the calculation should be adjusted once WACC is updated and finalized in the rate application.
A46: 3 Account 1576 is cleared by including the total balance in the deferral and variance account rate rider calculation.
A47: 4 Net additions are additions net of disposals; Net depreciation is additions to depreciation net of disposals.

Sheet App.2-FA Proposed REG Invest.
J1: File Number: | K1: =EBNUMBER -> EB-2015-0100
J2: Exhibit:
J3: Tab:
J4: Schedule:
J5: Page:
J7: Date:
A9: Appendix 2-FA
A10: Renewable Generation Connection Investment Summary (past investments or over the future rate setting period)
A12: Enter the details of the Renewable Generation Connection projects as described in the appropriate section of the Filing Requirements.
A13: All costs entered on this page will be transferred to the appropriate cells in the appendices that follow.
A14: For Part A, Renewable Enabling Improvements (REI), these amounts will be transferred to Appendix 2 - FB
A15: For Part B, Expansions, these amounts will be transferred to Appendix 2 - FC
A17: If there are more than five projects proposed to be in-service in a certain year, please amend the tables below and ensure that the formulae for the Total Amounts in any given rate year are updated.
A18: Based on the current methodology and allocation, amounts allocated represent 6% for REI Connection Investments and 17% for Expansion Investments. (EB-2009-0349, 6-10-2010, p. 15, note 9)
A20: There are two scenarios described below. Separate sets of spreadsheets (2-FA, 2-FB, 2-FC) should be submited for each scenario as required.
A21: Scenario 1: Past Investments with No Recovery. The distributor has made investments in the past (during the IRM Years), but has not received approval for these projects and therefore did not receive
A22: revenue from the IESO under Regulation 330/09 and did not receive ratepayer revenue for the direct benefit portion of the investment.
A23: The WCA percentage, debt percentages, interest rates, kWh, tax rates, amortization period, CCA Class and percentage should correspond to the distributor's last Cost of Service approval.
A24: The Direct Benefit portion of the calculated Revenue Requirement for each year should be summed and can be applied for recovery from the distributor's ratepayers through a rate rider.
A25: The Provincial Recovery portion of the calculated Revenue Requirement for each year should be summed and can be applied for recovery from the IESO through a separate order.
A27: Scenario 2: Investments in the Test Year and Beyond. Distributor plans to make investments in 2016 and/or beyond. These investments should be added to 2-FA in the appropriate year.
A28: The WCA percentage, debt percentages, interest rates, kWh, tax rates, amortization period, CCA Class and percentage should correspond to the distributor's current application.
A30: Part A | G30: Test Year
A31: REI Investments (Direct Benefit at 6%) | C31: 2012 | D31: 2013 | E31: 2014 | F31: 2015 | G31: 2016 | H31: =G31+1 -> 2017 | I31: =H31+1 -> 2018 | J31: =I31+1 -> 2019 | K31: =J31+1 -> 2020
A32: Project 1
A33: Name: REI Connection Project
A34: Capital Costs | C34: 0 | D34: 0 | E34: 0 | F34: 0 | G34: 0 | H34: 0 | I34: 0 | J34: 0 | K34: 0
A35: OM&A (Start-Up) | C35: 0 | D35: 0 | E35: 0 | F35: 0 | G35: 0 | H35: 0 | I35: 0 | J35: 0 | K35: 0
A36: OM&A (Ongoing) | C36: 0 | D36: 0 | E36: 0 | F36: 0 | G36: 0 | H36: 0 | I36: 0 | J36: 0 | K36: 0
A38: Project 2
A39: Name: REI Connection Project
A40: Capital Costs | C40: 0 | D40: 0 | E40: 0 | F40: 0 | G40: 0 | H40: 0 | I40: 0 | J40: 0 | K40: 0
A41: OM&A (Start-Up) | C41: 0 | D41: 0 | E41: 0 | F41: 0 | G41: 0 | H41: 0 | I41: 0 | J41: 0 | K41: 0
A42: OM&A (Ongoing) | C42: 0 | D42: 0 | E42: 0 | F42: 0 | G42: 0 | H42: 0 | I42: 0 | J42: 0 | K42: 0
A44: Project 3
A45: Name: REI Connection Project
A46: Capital Costs | C46: 0 | D46: 0 | E46: 0 | F46: 0 | G46: 0 | H46: 0 | I46: 0 | J46: 0 | K46: 0
A47: OM&A (Start-Up) | C47: 0 | D47: 0 | E47: 0 | F47: 0 | G47: 0 | H47: 0 | I47: 0 | J47: 0 | K47: 0
A48: OM&A (Ongoing) | C48: 0 | D48: 0 | E48: 0 | F48: 0 | G48: 0 | H48: 0 | I48: 0 | J48: 0 | K48: 0
A50: Project 4
A51: Name: REI Connection Project
A52: Capital Costs | C52: 0 | D52: 0 | E52: 0 | F52: 0 | G52: 0 | H52: 0 | I52: 0 | J52: 0 | K52: 0
A53: OM&A (Start-Up) | C53: 0 | D53: 0 | E53: 0 | F53: 0 | G53: 0 | H53: 0 | I53: 0 | J53: 0 | K53: 0
A54: OM&A (Ongoing) | C54: 0 | D54: 0 | E54: 0 | F54: 0 | G54: 0 | H54: 0 | I54: 0 | J54: 0 | K54: 0
A56: Project 5
A57: Name: REI Connection Project
A58: Capital Costs | C58: 0 | D58: 0 | E58: 0 | F58: 0 | G58: 0 | H58: 0 | I58: 0 | J58: 0 | K58: 0
A59: OM&A (Start-Up) | C59: 0 | D59: 0 | E59: 0 | F59: 0 | G59: 0 | H59: 0 | I59: 0 | J59: 0 | K59: 0
A60: OM&A (Ongoing) | C60: 0 | D60: 0 | E60: 0 | F60: 0 | G60: 0 | H60: 0 | I60: 0 | J60: 0 | K60: 0
A62: Total Capital Costs | C62: =SUM(C58,C52,C46,C40,C34) -> 0 | D62: 0 | E62: 0 | F62: 0 | G62: =SUM(G58,G52,G46,G40,G34) -> 0 | H62: =SUM(H58,H52,H46,H40,H34) -> 0 | I62: 0 | J62: 0 | K62: 0
A63: Total OM&A (Start-Up) | C63: 0 | D63: 0 | E63: 0 | F63: 0 | G63: =SUM(G59,G53,G47,G41,G35) -> 0 | H63: 0 | I63: 0 | J63: 0 | K63: 0
A64: Total OM&A (Ongoing) | C64: 0 | D64: 0 | E64: 0 | F64: 0 | G64: =SUM(G60,G54,G48,G42,G36) -> 0 | H64: 0 | I64: 0 | J64: 0 | K64: 0
A67: Part B | G67: Test Year
A68: Expansion Investments (Direct Benefit at 17%) | C68: 2012 | D68: 2013 | E68: 2014 | F68: 2015 | G68: 2016 | H68: =G68+1 -> 2017 | I68: =H68+1 -> 2018 | J68: =I68+1 -> 2019 | K68: =J68+1 -> 2020
A69: Project 1
A70: Name: Expansion Connection Project
A71: Capital Costs | C71: 0 | D71: 0 | E71: 0 | F71: 0 | G71: 0 | H71: 0 | I71: 0 | J71: 0 | K71: 0
A72: OM&A (Start-Up) | C72: 0 | D72: 0 | E72: 0 | F72: 0 | G72: 0 | H72: 0 | I72: 0 | J72: 0 | K72: 0
A73: OM&A (Ongoing) | C73: 0 | D73: 0 | E73: 0 | F73: 0 | G73: 0 | H73: 0 | I73: 0 | J73: 0 | K73: 0
A75: Project 2
A76: Name: Expansion Connection Project
A77: Capital Costs | C77: 0 | D77: 0 | E77: 0 | F77: 0 | G77: 0 | H77: 0 | I77: 0 | J77: 0 | K77: 0
A78: OM&A (Start-Up) | C78: 0 | D78: 0 | E78: 0 | F78: 0 | G78: 0 | H78: 0 | I78: 0 | J78: 0 | K78: 0
A79: OM&A (Ongoing) | C79: 0 | D79: 0 | E79: 0 | F79: 0 | G79: 0 | H79: 0 | I79: 0 | J79: 0 | K79: 0
A81: Project 3
A82: Name: Expansion Connection Project
A83: Capital Costs | C83: 0 | D83: 0 | E83: 0 | F83: 0 | G83: 0 | H83: 0 | I83: 0 | J83: 0 | K83: 0
A84: OM&A (Start-Up) | C84: 0 | D84: 0 | E84: 0 | F84: 0 | G84: 0 | H84: 0 | I84: 0 | J84: 0 | K84: 0
A85: OM&A (Ongoing) | C85: 0 | D85: 0 | E85: 0 | F85: 0 | G85: 0 | H85: 0 | I85: 0 | J85: 0 | K85: 0
A87: Project 4
A88: Name: Expansion Connection Project
A89: Capital Costs | C89: 0 | D89: 0 | E89: 0 | F89: 0 | G89: 0 | H89: 0 | I89: 0 | J89: 0 | K89: 0
A90: OM&A (Start-Up) | C90: 0 | D90: 0 | E90: 0 | F90: 0 | G90: 0 | H90: 0 | I90: 0 | J90: 0 | K90: 0
A91: OM&A (Ongoing) | C91: 0 | D91: 0 | E91: 0 | F91: 0 | G91: 0 | H91: 0 | I91: 0 | J91: 0 | K91: 0
A93: Project 5
A94: Name: Expansion Connection Project
A95: Capital Costs | C95: 0 | D95: 0 | E95: 0 | F95: 0 | G95: 0 | H95: 0 | I95: 0 | J95: 0 | K95: 0
A96: OM&A (Start-Up) | C96: 0 | D96: 0 | E96: 0 | F96: 0 | G96: 0 | H96: 0 | I96: 0 | J96: 0 | K96: 0
A97: OM&A (Ongoing) | C97: 0 | D97: 0 | E97: 0 | F97: 0 | G97: 0 | H97: 0 | I97: 0 | J97: 0 | K97: 0
A99: Total Capital Costs | C99: =SUM(C95,C89,C83,C77,C71) -> 0 | D99: 0 | E99: 0 | F99: 0 | G99: =SUM(G95,G89,G83,G77,G71) -> 0 | H99: =SUM(H95,H89,H83,H77,H71) -> 0 | I99: 0 | J99: 0 | K99: 0
A100: Total OM&A (Start-Up) | C100: 0 | D100: 0 | E100: 0 | F100: 0 | G100: =SUM(G96,G90,G84,G78,G72) -> 0 | H100: 0 | I100: 0 | J100: 0 | K100: 0
A101: Total OM&A (Ongoing) | C101: 0 | D101: 0 | E101: 0 | F101: 0 | G101: =SUM(G97,G91,G85,G79,G73) -> 0 | H101: 0 | I101: 0 | J101: 0 | K101: 0

Sheet App.2-FB Calc of REG Improvemnt
N1: File Number: | O1: =EBNUMBER -> EB-2015-0100
N2: Exhibit:
N3: Tab:
N4: Schedule:
N5: Page:
N7: Date:
A9: Appendix 2-FB
A10: Calculation of Renewable Generation Connection Direct Benefits/Provincial Amount: Renewable Enabling Improvement Investments
A12: This table will calculate the distributor/provincial shares of the investments entered in Part A of Appendix 2-FA.
A13: Enter values in green shaded cells: WCA percentage, debt percentages, interest rates, kWh, tax rates, amortization period, CCA Class and percentage.
A14: For historical investments, enter these variables for your last cost of service test year. For 2016 and beyond, enter variables as in the application.
A15: Rate Riders are not calculated for Test Year as these assets and costs are already in the distributor's rate base/revenue requirement.
C17: 2012 | F17: 2013 | I17: 2014 | L17: 2015 | O17: 2016 Test Year | R17: 2017 | U17: 2018 | V17: 2016 | X17: 2019 | AA17: 2020
D18: Direct Benefit | E18: Provincial | G18: Direct Benefit | H18: Provincial | J18: Direct Benefit | K18: Provincial | M18: Direct Benefit | N18: Provincial | P18: Direct Benefit | Q18: Provincial | S18: Direct Benefit | T18: Provincial | V18: Direct Benefit | W18: Provincial | Y18: Direct Benefit | Z18: Provincial | AB18: Direct Benefit | AC18: Provincial
C19: Total | D19: 0.06 | E19: 0.94 | F19: Total | G19: 0.06 | H19: 0.94 | I19: Total | J19: 0.06 | K19: 0.94 | L19: Total | M19: 0.06 | N19: 0.94 | O19: Total | P19: 0.06 | Q19: 0.94 | R19: Total | S19: 0.06 | T19: 0.94 | U19: Total | V19: 0.06 | W19: 0.94 | X19: Total | Y19: 0.06 | Z19: 0.94 | AA19: Total | AB19: 0.06 | AC19: 0.94
A20: Net Fixed Assets (average) | C20: =D82 -> 0 | D20: =C20*D19 -> 0 | E20: =C20*E19 -> 0 | F20: =E82 -> 0 | G20: =F20*G19 -> 0 | H20: =F20*H19 -> 0 | I20: =F82 -> 0 | J20: =I20*J19 -> 0 | K20: =I20*K19 -> 0 | L20: =G82 -> 0 | M20: =L20*M19 -> 0 | N20: =L20*N19 -> 0 | O20: =H82 -> 0 | P20: =O20*P19 -> 0 | Q20: =O20*Q19 -> 0 | R20: =I82 -> 0 | S20: =R20*S19 -> 0 | T20: =R20*T19 -> 0 | U20: =J82 -> 0 | V20: =U20*V19 -> 0 | W20: =U20*W19 -> 0 | X20: =K82 -> 0 | Y20: =X20*Y19 -> 0 | Z20: =X20*Z19 -> 0 | AA20: =L82 -> 0 | AB20: =AA20*AB19 -> 0 | AC20: =AA20*AC19 -> 0
A21: Incremental OM&A (on-going, N/A for Provincial Recovery) | C21: ='App.2-FA Proposed REG Invest.'!C64 -> 0 | D21: =C21 -> 0 | F21: ='App.2-FA Proposed REG Invest.'!D64 -> 0 | G21: =F21 -> 0 | I21: ='App.2-FA Proposed REG Invest.'!E64 -> 0 | J21: =I21 -> 0 | L21: ='App.2-FA Proposed REG Invest.'!F64 -> 0 | M21: =L21 -> 0 | O21: ='App.2-FA Proposed REG Invest.'!G64 -> 0 | P21: =O21 -> 0 | R21: ='App.2-FA Proposed REG Invest.'!H64 -> 0 | S21: =R21 -> 0 | U21: ='App.2-FA Proposed REG Invest.'!I64 -> 0 | V21: =U21 -> 0 | X21: ='App.2-FA Proposed REG Invest.'!J64 -> 0 | Y21: =X21 -> 0 | AA21: ='App.2-FA Proposed REG Invest.'!K64 -> 0 | AB21: =AA21 -> 0
A22: Incremental OM&A (start-up, applicable for Provincial Recovery) | C22: ='App.2-FA Proposed REG Invest.'!C63 -> 0 | D22: =C22*D19 -> 0 | E22: =C22*E19 -> 0 | F22: ='App.2-FA Proposed REG Invest.'!D63 -> 0 | G22: =F22*G19 -> 0 | H22: =F22*H19 -> 0 | I22: ='App.2-FA Proposed REG Invest.'!E63 -> 0 | J22: =I22*J19 -> 0 | K22: =I22*K19 -> 0 | L22: ='App.2-FA Proposed REG Invest.'!F63 -> 0 | M22: =L22*M19 -> 0 | N22: =L22*N19 -> 0 | O22: ='App.2-FA Proposed REG Invest.'!G63 -> 0 | P22: =O22*P19 -> 0 | Q22: =O22*Q19 -> 0 | R22: ='App.2-FA Proposed REG Invest.'!H63 -> 0 | S22: =R22*S19 -> 0 | T22: =R22*T19 -> 0 | U22: ='App.2-FA Proposed REG Invest.'!I63 -> 0 | V22: =U22*V19 -> 0 | W22: =U22*W19 -> 0 | X22: ='App.2-FA Proposed REG Invest.'!J63 -> 0 | Y22: =X22*Y19 -> 0 | Z22: =X22*Z19 -> 0 | AA22: ='App.2-FA Proposed REG Invest.'!K63 -> 0 | AB22: =AA22*AB19 -> 0 | AC22: =AA22*AC19 -> 0
A23: WCA | D23: =(D21+D22)*$B$23 -> 0 | E23: =E22*$B$23 -> 0 | G23: =(G21+G22)*$B$23 -> 0 | H23: =H22*$B$23 -> 0 | J23: =(J21+J22)*$B$23 -> 0 | K23: =K22*$B$23 -> 0 | M23: =(M21+M22)*$B$23 -> 0 | N23: =N22*$B$23 -> 0 | P23: =(P21+P22)*$B$23 -> 0 | Q23: =Q22*$B$23 -> 0 | S23: =(S21+S22)*$B$23 -> 0 | T23: =T22*$B$23 -> 0 | V23: =(V21+V22)*$B$23 -> 0 | W23: =W22*$B$23 -> 0 | Y23: =(Y21+Y22)*$B$23 -> 0 | Z23: =Z22*$B$23 -> 0 | AB23: =(AB21+AB22)*$B$23 -> 0 | AC23: =AC22*$B$23 -> 0
A24: Rate Base | D24: =SUM(D20+D23) -> 0 | E24: =SUM(E20+E23) -> 0 | G24: =SUM(G20+G23) -> 0 | H24: =SUM(H20+H23) -> 0 | J24: =SUM(J20+J23) -> 0 | K24: =SUM(K20+K23) -> 0 | M24: =SUM(M20+M23) -> 0 | N24: =SUM(N20+N23) -> 0 | P24: =SUM(P20+P23) -> 0 | Q24: =SUM(Q20+Q23) -> 0 | S24: =SUM(S20+S23) -> 0 | T24: =SUM(T20+T23) -> 0 | V24: =SUM(V20+V23) -> 0 | W24: =SUM(W20+W23) -> 0 | Y24: =SUM(Y20+Y23) -> 0 | Z24: =SUM(Z20+Z23) -> 0 | AB24: =SUM(AB20+AB23) -> 0 | AC24: =SUM(AC20+AC23) -> 0
A27: Deemed ST Debt | D27: =D24*$B$27 -> 0 | E27: =E24*$B$27 -> 0 | G27: =G24*$B$27 -> 0 | H27: =H24*$B$27 -> 0 | J27: =J24*$B$27 -> 0 | K27: =K24*$B$27 -> 0 | M27: =M24*$B$27 -> 0 | N27: =N24*$B$27 -> 0 | P27: =P24*$B$27 -> 0 | Q27: =Q24*$B$27 -> 0 | S27: =S24*$B$27 -> 0 | T27: =T24*$B$27 -> 0 | V27: =V24*$B$27 -> 0 | W27: =W24*$B$27 -> 0 | Y27: =Y24*$B$27 -> 0 | Z27: =Z24*$B$27 -> 0 | AB27: =AB24*$B$27 -> 0 | AC27: =AC24*$B$27 -> 0
A28: Deemed LT Debt | D28: =D24*$B$28 -> 0 | E28: =E24*$B$28 -> 0 | G28: =G24*$B$28 -> 0 | H28: =H24*$B$28 -> 0 | J28: =J24*$B$28 -> 0 | K28: =K24*$B$28 -> 0 | M28: =M24*$B$28 -> 0 | N28: =N24*$B$28 -> 0 | P28: =P24*$B$28 -> 0 | Q28: =Q24*$B$28 -> 0 | S28: =S24*$B$28 -> 0 | T28: =T24*$B$28 -> 0 | V28: =V24*$B$28 -> 0 | W28: =W24*$B$28 -> 0 | Y28: =Y24*$B$28 -> 0 | Z28: =Z24*$B$28 -> 0 | AB28: =AB24*$B$28 -> 0 | AC28: =AC24*$B$28 -> 0
A29: Deemed Equity | D29: =D24*$B$29 -> 0 | E29: =E24*$B$29 -> 0 | G29: =G24*$B$29 -> 0 | H29: =H24*$B$29 -> 0 | J29: =J24*$B$29 -> 0 | K29: =K24*$B$29 -> 0 | M29: =M24*$B$29 -> 0 | N29: =N24*$B$29 -> 0 | P29: =P24*$B$29 -> 0 | Q29: =Q24*$B$29 -> 0 | S29: =S24*$B$29 -> 0 | T29: =T24*$B$29 -> 0 | V29: =V24*$B$29 -> 0 | W29: =W24*$B$29 -> 0 | Y29: =Y24*$B$29 -> 0 | Z29: =Z24*$B$29 -> 0 | AB29: =AB24*$B$29 -> 0 | AC29: =AC24*$B$29 -> 0
A31: ST Interest | D31: =D27*$B31 -> 0 | E31: 0 | G31: =G27*$B31 -> 0 | H31: 0 | J31: =J27*$B31 -> 0 | K31: 0 | M31: =M27*$B31 -> 0 | N31: 0 | P31: =P27*$B31 -> 0 | Q31: 0 | S31: =S27*$B31 -> 0 | T31: 0 | V31: =V27*$B31 -> 0 | W31: 0 | Y31: =Y27*$B31 -> 0 | Z31: 0 | AB31: =AB27*$B31 -> 0 | AC31: 0
A32: LT Interest | D32: 0 | E32: 0 | G32: 0 | H32: 0 | J32: 0 | K32: 0 | M32: 0 | N32: 0 | P32: 0 | Q32: 0 | S32: 0 | T32: 0 | V32: 0 | W32: 0 | Y32: 0 | Z32: 0 | AB32: 0 | AC32: 0
A33: ROE | D33: 0 | E33: 0 | G33: 0 | H33: 0 | J33: 0 | K33: 0 | M33: 0 | N33: 0 | P33: 0 | Q33: 0 | S33: 0 | T33: 0 | V33: 0 | W33: 0 | Y33: 0 | Z33: 0 | AB33: 0 | AC33: 0
A34: Cost of Capital Total | D34: =SUM(D31:D33) -> 0 | E34: =SUM(E31:E33) -> 0 | G34: =SUM(G31:G33) -> 0 | H34: =SUM(H31:H33) -> 0 | J34: =SUM(J31:J33) -> 0 | K34: =SUM(K31:K33) -> 0 | M34: =SUM(M31:M33) -> 0 | N34: =SUM(N31:N33) -> 0 | P34: =SUM(P31:P33) -> 0 | Q34: =SUM(Q31:Q33) -> 0 | S34: =SUM(S31:S33) -> 0 | T34: =SUM(T31:T33) -> 0 | V34: =SUM(V31:V33) -> 0 | W34: =SUM(W31:W33) -> 0 | Y34: =SUM(Y31:Y33) -> 0 | Z34: =SUM(Z31:Z33) -> 0 | AB34: =SUM(AB31:AB33) -> 0 | AC34: =SUM(AC31:AC33) -> 0
A36: OM&A | D36: =D21+D22 -> 0 | E36: =E22 -> 0 | G36: =G21+G22 -> 0 | H36: =H22 -> 0 | J36: =J21+J22 -> 0 | K36: =K22 -> 0 | M36: =M21+M22 -> 0 | N36: =N22 -> 0 | P36: =P21+P22 -> 0 | Q36: =Q22 -> 0 | S36: =S21+S22 -> 0 | T36: =T22 -> 0 | V36: =V21+V22 -> 0 | W36: =W22 -> 0 | Y36: =Y21+Y22 -> 0 | Z36: =Z22 -> 0 | AB36: =AB21+AB22 -> 0 | AC36: =AC22 -> 0
A37: Amortization | C37: =D77 -> 0 | D37: =C37*D$19 -> 0 | E37: =C37*E$19 -> 0 | F37: =E77 -> 0 | G37: =F37*G$19 -> 0 | H37: =F37*H$19 -> 0 | I37: =F77 -> 0 | J37: =I37*J$19 -> 0 | K37: =I37*K$19 -> 0 | L37: =G77 -> 0 | M37: =L37*M$19 -> 0 | N37: =L37*N$19 -> 0 | O37: =H77 -> 0 | P37: =O37*P$19 -> 0 | Q37: =O37*Q$19 -> 0 | R37: =I76+I77 -> 0 | S37: =R37*S$19 -> 0 | T37: =R37*T$19 -> 0 | U37: =J76+J77 -> 0 | V37: =U37*V$19 -> 0 | W37: =U37*W$19 -> 0 | X37: =K76+K77 -> 0 | Y37: =X37*Y$19 -> 0 | Z37: =X37*Z$19 -> 0 | AA37: =L76+L77 -> 0 | AB37: =AA37*AB$19 -> 0 | AC37: =AA37*AC$19 -> 0
A38: Grossed-up PILs | D38: =D65 -> 0 | E38: =E65 -> 0 | G38: =G65 -> 0 | H38: =H65 -> 0 | J38: =J65 -> 0 | K38: =K65 -> 0 | M38: =M65 -> 0 | N38: =N65 -> 0 | P38: =P65 -> 0 | Q38: =Q65 -> 0 | S38: =S65 -> 0 | T38: =T65 -> 0 | V38: =V65 -> 0 | W38: =W65 -> 0 | Y38: =Y65 -> 0 | Z38: =Z65 -> 0 | AB38: =AB65 -> 0 | AC38: =AC65 -> 0
A40: Revenue Requirement | D40: =SUM(D34:D38) -> 0 | E40: =SUM(E34:E38) -> 0 | G40: =SUM(G34:G38) -> 0 | H40: =SUM(H34:H38) -> 0 | J40: =SUM(J34:J38) -> 0 | K40: =SUM(K34:K38) -> 0 | M40: =SUM(M34:M38) -> 0 | N40: =SUM(N34:N38) -> 0 | P40: =SUM(P34:P38) -> 0 | Q40: =SUM(Q34:Q38) -> 0 | S40: =SUM(S34:S38) -> 0 | T40: =SUM(T34:T38) -> 0 | V40: =SUM(V34:V38) -> 0 | W40: =SUM(W34:W38) -> 0 | Y40: =SUM(Y34:Y38) -> 0 | Z40: =SUM(Z34:Z38) -> 0 | AB40: =SUM(AB34:AB38) -> 0 | AC40: =SUM(AC34:AC38) -> 0
A43: Provincial Rate Protection | E43: =E40 -> 0 | H43: =H40 -> 0 | K43: =K40 -> 0 | N43: =N40 -> 0 | Q43: =Q40 -> 0 | T43: =T40 -> 0 | W43: =W40 -> 0 | Z43: =Z40 -> 0 | AC43: =AC40 -> 0
A45: Monthly Amount Paid by IESO | E45: =E43/12 -> 0 | H45: =H43/12 -> 0 | K45: =K43/12 -> 0 | N45: =N43/12 -> 0 | Q45: =Q43/12 -> 0 | T45: =T43/12 -> 0 | W45: =W43/12 -> 0 | Z45: =Z43/12 -> 0 | AC45: =AC43/12 -> 0
A47: Note 1: The difference between the actual costs of approved eligible investments and revenue received from the IESO should be recorded in a variance account. The Board may provide
A48: regulatory accounting guidance regarding a variance account either in an individual proceeding or on a generic basis.
A49: Note 2: For the 2016 Test Year, Costs and Revenues of the Direct Benefit are to be included in the test year applicant Rate Base and Revenues.
A51: PILs Calculation
D52: 2012 | G52: 2013 | J52: 2014 | M52: 2015 | P52: 2016 | S52: =P52+1 -> 2017 | V52: =S52+1 -> 2018 | Y52: =V52+1 -> 2019 | AB52: =Y52+1 -> 2020
A53: Income Tax | D53: Direct Benefit | E53: Provincial | G53: Direct Benefit | H53: Provincial | J53: Direct Benefit | K53: Provincial | M53: Direct Benefit | N53: Provincial | P53: Direct Benefit | Q53: Provincial | S53: Direct Benefit | T53: Provincial | V53: Direct Benefit | W53: Provincial | Y53: Direct Benefit | Z53: Provincial | AB53: Direct Benefit | AC53: Provincial
X54: Total | AA54: Total
A55: Net Income - ROE on Rate Base | D55: =D33 -> 0 | E55: =E33 -> 0 | G55: =G33 -> 0 | H55: =H33 -> 0 | J55: =J33 -> 0 | K55: =K33 -> 0 | M55: =M33 -> 0 | N55: =N33 -> 0 | P55: =P33 -> 0 | Q55: =Q33 -> 0 | S55: =S33 -> 0 | T55: =T33 -> 0 | V55: =V33 -> 0 | W55: =W33 -> 0 | Y55: =Y33 -> 0 | Z55: =Z33 -> 0 | AB55: =AB33 -> 0 | AC55: =AC33 -> 0
A56: Amortization (6% DB and 94% P) | D56: =D37 -> 0 | E56: =E37 -> 0 | G56: =G37 -> 0 | H56: =H37 -> 0 | J56: =J37 -> 0 | K56: =K37 -> 0 | M56: =M37 -> 0 | N56: =N37 -> 0 | P56: =P37 -> 0 | Q56: =Q37 -> 0 | S56: =S37 -> 0 | T56: =T37 -> 0 | V56: =V37 -> 0 | W56: =W37 -> 0 | Y56: =Y37 -> 0 | Z56: =Z37 -> 0 | AB56: =AB37 -> 0 | AC56: =AC37 -> 0
A57: CCA (6% DB and 94% P) | D57: =-D94*D$19 -> 0 | E57: =-D94*E$19 -> 0 | G57: =-E94*G19 -> 0 | H57: =-E94*H$19 -> 0 | J57: =-F94*J$19 -> 0 | K57: =-F94*K$19 -> 0 | M57: =-G94*M$19 -> 0 | N57: =-G94*N$19 -> 0 | P57: =-H94*P$19 -> 0 | Q57: =-H94*Q$19 -> 0 | S57: =-I94*S$19 -> 0 | T57: =-I94*T$19 -> 0 | V57: =-J94*V$19 -> 0 | W57: =-J94*W$19 -> 0 | Y57: =-K94*Y$19 -> 0 | Z57: =-K94*Z$19 -> 0 | AB57: =-L94*AB$19 -> 0 | AC57: =-L94*AC$19 -> 0
A58: Taxable income | D58: =SUM(D55:D57) -> 0 | E58: =SUM(E55:E57) -> 0 | G58: =SUM(G55:G57) -> 0 | H58: =SUM(H55:H57) -> 0 | J58: =SUM(J55:J57) -> 0 | K58: =SUM(K55:K57) -> 0 | M58: =SUM(M55:M57) -> 0 | N58: =SUM(N55:N57) -> 0 | P58: =SUM(P55:P57) -> 0 | Q58: =SUM(Q55:Q57) -> 0 | S58: =SUM(S55:S57) -> 0 | T58: =SUM(T55:T57) -> 0 | V58: =SUM(V55:V57) -> 0 | W58: =SUM(W55:W57) -> 0 | Y58: =SUM(Y55:Y57) -> 0 | Z58: =SUM(Z55:Z57) -> 0 | AB58: =SUM(AB55:AB57) -> 0 | AC58: =SUM(AC55:AC57) -> 0
A60: Tax Rate (to be entered)
A62: Income Taxes Payable | D62: =D58*D60 -> 0 | E62: =E58*E60 -> 0 | G62: =G58*G60 -> 0 | H62: =H58*H60 -> 0 | J62: =J58*J60 -> 0 | K62: =K58*K60 -> 0 | M62: =M58*M60 -> 0 | N62: =N58*N60 -> 0 | P62: =P58*P60 -> 0 | Q62: =Q58*Q60 -> 0 | S62: =S58*S60 -> 0 | T62: =T58*T60 -> 0 | V62: =V58*V60 -> 0 | W62: =W58*W60 -> 0 | Y62: =Y58*Y60 -> 0 | Z62: =Z58*Z60 -> 0 | AB62: =AB58*AB60 -> 0 | AC62: =AC58*AC60 -> 0
A63: Gross Up
A64: Income Taxes Payable | D64: =D62/(1-D60) -> 0 | E64: =E62/(1-E60) -> 0 | G64: =G62/(1-G60) -> 0 | H64: =H62/(1-H60) -> 0 | J64: =J62/(1-J60) -> 0 | K64: =K62/(1-K60) -> 0 | M64: =M62/(1-M60) -> 0 | N64: =N62/(1-N60) -> 0 | P64: =P62/(1-P60) -> 0 | Q64: =Q62/(1-Q60) -> 0 | S64: =S62/(1-S60) -> 0 | T64: =T62/(1-T60) -> 0 | V64: =V62/(1-V60) -> 0 | W64: =W62/(1-W60) -> 0 | Y64: =Y62/(1-Y60) -> 0 | Z64: =Z62/(1-Z60) -> 0 | AB64: =AB62/(1-AB60) -> 0 | AC64: =AC62/(1-AC60) -> 0
A65: Grossed Up PILs | D65: =SUM(D64:D64) -> 0 | E65: =SUM(E64:E64) -> 0 | G65: =SUM(G64:G64) -> 0 | H65: =SUM(H64:H64) -> 0 | J65: =SUM(J64:J64) -> 0 | K65: =SUM(K64:K64) -> 0 | M65: =SUM(M64:M64) -> 0 | N65: =SUM(N64:N64) -> 0 | P65: =SUM(P64:P64) -> 0 | Q65: =SUM(Q64:Q64) -> 0 | S65: =SUM(S64:S64) -> 0 | T65: =SUM(T64:T64) -> 0 | V65: =SUM(V64:V64) -> 0 | W65: =SUM(W64:W64) -> 0 | Y65: =SUM(Y64:Y64) -> 0 | Z65: =SUM(Z64:Z64) -> 0 | AB65: =SUM(AB64:AB64) -> 0 | AC65: =SUM(AC64:AC64) -> 0
D68: 2012 | E68: 2013 | F68: 2014 | G68: 2015 | H68: 2016 | I68: =H68+1 -> 2017 | J68: =I68+1 -> 2018 | K68: =J68+1 -> 2019 | L68: =K68+1 -> 2020
A69: Net Fixed Assets
B70: Enter applicable amortization in years: | C70: 25
A71: Opening Gross Fixed Assets | E71: =D73 -> 0 | F71: 0 | G71: 0 | H71: 0 | I71: 0 | J71: 0 | K71: 0 | L71: 0
A72: Gross Capital Additions | D72: ='App.2-FA Proposed REG Invest.'!C62 -> 0 | E72: ='App.2-FA Proposed REG Invest.'!D62 -> 0 | F72: ='App.2-FA Proposed REG Invest.'!E62 -> 0 | G72: ='App.2-FA Proposed REG Invest.'!F62 -> 0 | H72: ='App.2-FA Proposed REG Invest.'!G62 -> 0 | I72: ='App.2-FA Proposed REG Invest.'!H62 -> 0 | J72: ='App.2-FA Proposed REG Invest.'!I62 -> 0 | K72: ='App.2-FA Proposed REG Invest.'!J62 -> 0 | L72: ='App.2-FA Proposed REG Invest.'!K62 -> 0
A73: Closing Gross Fixed Assets | D73: =SUM(D71:D72) -> 0 | E73: 0 | F73: 0 | G73: 0 | H73: 0 | I73: 0 | J73: 0 | K73: 0 | L73: 0
A75: Opening Accumulated Amortization | E75: =+D78 -> 0 | F75: =E78 -> 0 | G75: 0 | H75: 0 | I75: 0 | J75: 0 | K75: 0 | L75: 0
A76: Current Year Amortization (before additions) | D76: =IF(ISERROR(D71/$C$70), 0, D71/$C$70) -> 0 | E76: 0 | F76: 0 | G76: 0 | H76: 0 | I76: 0 | J76: 0 | K76: 0 | L76: 0
A77: Additions (half year) | D77: =D72/$C$70/2 -> 0 | E77: =E72/$C$70/2 -> 0 | F77: =F72/$C$70/2 -> 0 | G77: =G72/$C$70/2 -> 0 | H77: =H72/$C$70/2 -> 0 | I77: =I72/C70/2 -> 0 | J77: =J72/C70/2 -> 0 | K77: =K72/C70/2 -> 0 | L77: =L72/C70/2 -> 0
A78: Closing Accumulated Amortization | D78: =SUM(D75+D76+D77) -> 0 | E78: =SUM(E75+E76+E77) -> 0 | F78: =SUM(F75+F76+F77) -> 0 | G78: =SUM(G75+G76+G77) -> 0 | H78: =SUM(H75+H76+H77) -> 0 | I78: =SUM(I75:I77) -> 0 | J78: =SUM(J75:J77) -> 0 | K78: =SUM(K75:K77) -> 0 | L78: =SUM(L75:L77) -> 0
A80: Opening Net Fixed Assets | D80: =D71-D75 -> 0 | E80: =E71-E75 -> 0 | F80: =F71-F75 -> 0 | G80: =G71-G75 -> 0 | H80: =H71-H75 -> 0 | I80: =H81 -> 0 | J80: =I81 -> 0 | K80: =J81 -> 0 | L80: =K81 -> 0
A81: Closing Net Fixed Assets | D81: =D73-D78 -> 0 | E81: 0 | F81: 0 | G81: 0 | H81: 0 | I81: 0 | J81: 0 | K81: 0 | L81: 0
A82: Average Net Fixed Assets | D82: =SUM(D80:D81)/2 -> 0 | E82: 0 | F82: 0 | G82: 0 | H82: 0 | I82: 0 | J82: 0 | K82: 0 | L82: 0
A84: UCC for PILs Calculation
D85: 2012 | E85: 2013 | F85: 2014 | G85: 2015 | H85: 2016 | I85: =H85+1 -> 2017 | J85: =I85+1 -> 2018 | K85: =J85+1 -> 2019 | L85: =K85+1 -> 2020
A87: Opening UCC | E87: =D95 -> 0 | F87: 0 | G87: 0 | H87: 0 | I87: 0 | J87: 0 | K87: 0 | L87: 0
A88: Capital Additions (from Appendix 2-FA) | D88: =D72 -> 0 | E88: 0 | F88: 0 | G88: 0 | H88: 0 | I88: 0 | J88: 0 | K88: 0 | L88: 0
A89: UCC Before Half Year Rule | D89: =SUM(D87:D88) -> 0 | E89: 0 | F89: 0 | G89: 0 | H89: 0 | I89: 0 | J89: 0 | K89: 0 | L89: 0
A90: Half Year Rule (1/2 Additions - Disposals) | D90: =D88/2 -> 0 | E90: 0 | F90: 0 | G90: 0 | H90: 0 | I90: 0 | J90: 0 | K90: 0 | L90: 0
A91: Reduced UCC | D91: =D89-D90 -> 0 | E91: 0 | F91: 0 | G91: 0 | H91: 0 | I91: 0 | J91: 0 | K91: 0 | L91: 0
A92: CCA Rate Class (to be entered) | C92: 47 | D92: =C92 -> 47 | E92: =D92 -> 47 | F92: 47 | G92: 47 | H92: 47 | I92: 47 | J92: 47 | K92: 47 | L92: 47
A93: CCA Rate (to be entered) | C93: 0.08 | D93: =C93 -> 0.08 | E93: 0.08 | F93: 0.08 | G93: 0.08 | H93: 0.08 | I93: 0.08 | J93: 0.08 | K93: 0.08 | L93: 0.08
A94: CCA | D94: =D91*D93 -> 0 | E94: 0 | F94: 0 | G94: 0 | H94: 0 | I94: 0 | J94: 0 | K94: 0 | L94: 0
A95: Closing UCC | D95: =D89-D94 -> 0 | E95: 0 | F95: 0 | G95: 0 | H95: 0 | I95: 0 | J95: 0 | K95: 0 | L95: 0

Sheet App.2-FC Calc of REG Expansion
N1: File Number: | O1: =EBNUMBER -> EB-2015-0100
N2: Exhibit:
N3: Tab:
N4: Schedule:
N5: Page:
N7: Date:
A9: Appendix 2-FC
A10: Calculation of Renewable Generation Connection Direct Benefits/Provincial Amount: Renewable Expansion Investments
A12: This table will calculate the distributor/provincial shares of the investments entered in Part B of Appendix 2-FA.
A13: Enter values in green shaded cells: WCA percentage, debt percentages, interest rates, kWh, tax rates, amortization period, CCA Class and percentage.
A14: For historical investments, enter these variables for your last cost of service test year. For 2016 and beyond, enter variables as in the application.
A15: Rate Riders are not calculated for Test Year as these assets and costs are already in the distributor's rate base.
D18: 2012 | G18: 2013 | J18: 2014 | M18: 2015 | P18: 2016 TEST YEAR | S18: 2017 | T18: 2016 | V18: 2018 | Y18: 2019 | AB18: 2020
E19: Direct Benefit | F19: Provincial | H19: Direct Benefit | I19: Provincial | K19: Direct Benefit | L19: Provincial | N19: Direct Benefit | O19: Provincial | Q19: Direct Benefit | R19: Provincial | T19: Direct Benefit | U19: Provincial | W19: Direct Benefit | X19: Provincial | Z19: Direct Benefit | AA19: Provincial | AC19: Direct Benefit | AD19: Provincial
D20: Total | E20: 0.17 | F20: 0.83 | G20: Total | H20: 0.17 | I20: 0.83 | J20: Total | K20: 0.17 | L20: 0.83 | M20: Total | N20: 0.17 | O20: 0.83 | P20: Total | Q20: 0.17 | R20: 0.83 | S20: Total | T20: 0.17 | U20: 0.83 | V20: Total | W20: 0.17 | X20: 0.83 | Y20: Total | Z20: 0.17 | AA20: 0.83 | AB20: Total | AC20: 0.17 | AD20: 0.83
A21: Net Fixed Assets (average) | D21: =D82 -> 0 | E21: =D21*E20 -> 0 | F21: =D21*F20 -> 0 | G21: =E82 -> 0 | H21: =G21*H20 -> 0 | I21: =G21*I20 -> 0 | J21: =F82 -> 0 | K21: =J21*K20 -> 0 | L21: =J21*L20 -> 0 | M21: =G82 -> 0 | N21: =M21*N20 -> 0 | O21: =M21*O20 -> 0 | P21: =H82 -> 0 | Q21: =P21*Q20 -> 0 | R21: =P21*R20 -> 0 | S21: =I82 -> 0 | T21: =S21*T20 -> 0 | U21: =S21*U20 -> 0 | V21: =J82 -> 0 | W21: =V21*W20 -> 0 | X21: =V21*X20 -> 0 | Y21: =K82 -> 0 | Z21: =Y21*Z20 -> 0 | AA21: =Y21*AA20 -> 0 | AB21: =L82 -> 0 | AC21: =AB21*AC20 -> 0 | AD21: =AB21*AD20 -> 0
A22: Incremental OM&A (on-going, N/A for Provincial Recovery) | D22: ='App.2-FA Proposed REG Invest.'!C101 -> 0 | E22: =D22 -> 0 | G22: ='App.2-FA Proposed REG Invest.'!D$101 -> 0 | H22: =G22 -> 0 | J22: ='App.2-FA Proposed REG Invest.'!E$101 -> 0 | K22: =J22 -> 0 | M22: ='App.2-FA Proposed REG Invest.'!F$101 -> 0 | N22: =M22 -> 0 | P22: ='App.2-FA Proposed REG Invest.'!G$101 -> 0 | Q22: =P22 -> 0 | S22: ='App.2-FA Proposed REG Invest.'!H$101 -> 0 | T22: =S22 -> 0 | V22: ='App.2-FA Proposed REG Invest.'!I$101 -> 0 | W22: =V22 -> 0 | Y22: ='App.2-FA Proposed REG Invest.'!J$101 -> 0 | Z22: =Y22 -> 0 | AB22: ='App.2-FA Proposed REG Invest.'!K$101 -> 0 | AC22: =AB22 -> 0
A23: Incremental OM&A (start-up, applicable for Provincial Recovery) | D23: ='App.2-FA Proposed REG Invest.'!C100 -> 0 | E23: =D23*E20 -> 0 | F23: =D23*F20 -> 0 | G23: ='App.2-FA Proposed REG Invest.'!D$100 -> 0 | H23: =G23*H20 -> 0 | I23: =G23*I20 -> 0 | J23: ='App.2-FA Proposed REG Invest.'!E$100 -> 0 | K23: =J23*K20 -> 0 | L23: =J23*L20 -> 0 | M23: ='App.2-FA Proposed REG Invest.'!F$100 -> 0 | N23: =M23*N20 -> 0 | O23: =M23*O20 -> 0 | P23: ='App.2-FA Proposed REG Invest.'!G$100 -> 0 | Q23: =P23*Q20 -> 0 | R23: =P23*R20 -> 0 | S23: ='App.2-FA Proposed REG Invest.'!H$100 -> 0 | T23: =S23*T20 -> 0 | U23: =S23*U20 -> 0 | V23: ='App.2-FA Proposed REG Invest.'!I$100 -> 0 | W23: =V23*W20 -> 0 | X23: =V23*X20 -> 0 | Y23: ='App.2-FA Proposed REG Invest.'!J$100 -> 0 | Z23: =Y23*Z20 -> 0 | AA23: =Y23*AA20 -> 0 | AB23: ='App.2-FA Proposed REG Invest.'!K$100 -> 0 | AC23: =AB23*AC20 -> 0 | AD23: =AB23*AD20 -> 0
A24: WCA | E24: =(E22+E23)*$B$24 -> 0 | F24: =F23*$B$24 -> 0 | H24: =(H22+H23)*$B$24 -> 0 | I24: =I23*$B$24 -> 0 | K24: =(K22+K23)*$B$24 -> 0 | L24: =L23*$B$24 -> 0 | N24: =(N22+N23)*$B$24 -> 0 | O24: =O23*$B$24 -> 0 | Q24: =(Q22+Q23)*$B$24 -> 0 | R24: =R23*$B$24 -> 0 | T24: =(T22+T23)*$B$24 -> 0 | U24: =U23*$B$24 -> 0 | W24: =(W22+W23)*$B$24 -> 0 | X24: =X23*$B$24 -> 0 | Z24: =(Z22+Z23)*$B$24 -> 0 | AA24: =AA23*$B$24 -> 0 | AC24: =(AC22+AC23)*$B$24 -> 0 | AD24: =AD23*$B$24 -> 0
A25: Rate Base | E25: =SUM(E21+E24) -> 0 | F25: =SUM(F21+F24) -> 0 | H25: =SUM(H21+H24) -> 0 | I25: =SUM(I21+I24) -> 0 | K25: =SUM(K21+K24) -> 0 | L25: =SUM(L21+L24) -> 0 | N25: =SUM(N21+N24) -> 0 | O25: =SUM(O21+O24) -> 0 | Q25: =SUM(Q21+Q24) -> 0 | R25: =SUM(R21+R24) -> 0 | T25: =SUM(T21+T24) -> 0 | U25: =SUM(U21+U24) -> 0 | W25: =SUM(W21+W24) -> 0 | X25: =SUM(X21+X24) -> 0 | Z25: =SUM(Z21+Z24) -> 0 | AA25: =SUM(AA21+AA24) -> 0 | AC25: =SUM(AC21+AC24) -> 0 | AD25: =SUM(AD21+AD24) -> 0
A28: Deemed ST Debt | E28: =E25*$B$28 -> 0 | F28: =F25*$B$28 -> 0 | H28: =H25*$B$28 -> 0 | I28: =I25*$B$28 -> 0 | K28: =K25*$B$28 -> 0 | L28: =L25*$B$28 -> 0 | N28: =N25*$B$28 -> 0 | O28: =O25*$B$28 -> 0 | Q28: =Q25*$B$28 -> 0 | R28: =R25*$B$28 -> 0 | T28: =T25*$B$28 -> 0 | U28: =U25*$B$28 -> 0 | W28: =W25*$B$28 -> 0 | X28: =X25*$B$28 -> 0 | Z28: =Z25*$B$28 -> 0 | AA28: =AA25*$B$28 -> 0 | AC28: =AC25*$B$28 -> 0 | AD28: =AD25*$B$28 -> 0
A29: Deemed LT Debt | E29: =E25*$B$29 -> 0 | F29: =F25*$B$29 -> 0 | H29: =H25*$B$29 -> 0 | I29: =I25*$B$29 -> 0 | K29: =K25*$B$29 -> 0 | L29: =L25*$B$29 -> 0 | N29: =N25*$B$29 -> 0 | O29: =O25*$B$29 -> 0 | Q29: =Q25*$B$29 -> 0 | R29: =R25*$B$29 -> 0 | T29: =T25*$B$29 -> 0 | U29: =U25*$B$29 -> 0 | W29: =W25*$B$29 -> 0 | X29: =X25*$B$29 -> 0 | Z29: =Z25*$B$29 -> 0 | AA29: =AA25*$B$29 -> 0 | AC29: =AC25*$B$29 -> 0 | AD29: =AD25*$B$29 -> 0
A30: Deemed Equity | E30: =E25*$B$30 -> 0 | F30: =F25*$B$30 -> 0 | H30: =H25*$B$30 -> 0 | I30: =I25*$B$30 -> 0 | K30: =K25*$B$30 -> 0 | L30: =L25*$B$30 -> 0 | N30: =N25*$B$30 -> 0 | O30: =O25*$B$30 -> 0 | Q30: =Q25*$B$30 -> 0 | R30: =R25*$B$30 -> 0 | T30: =T25*$B$30 -> 0 | U30: =U25*$B$30 -> 0 | W30: =W25*$B$30 -> 0 | X30: =X25*$B$30 -> 0 | Z30: =Z25*$B$30 -> 0 | AA30: =AA25*$B$30 -> 0 | AC30: =AC25*$B$30 -> 0 | AD30: =AD25*$B$30 -> 0
A32: ST Interest | E32: =E28*$B$32 -> 0 | F32: =F28*$B$32 -> 0 | H32: =H28*$B$32 -> 0 | I32: =I28*$B$32 -> 0 | K32: =K28*$B$32 -> 0 | L32: =L28*$B$32 -> 0 | N32: =N28*$B$32 -> 0 | O32: =O28*$B$32 -> 0 | Q32: =Q28*$B$32 -> 0 | R32: =R28*$B$32 -> 0 | T32: =T28*$B$32 -> 0 | U32: =U28*$B$32 -> 0 | W32: =W28*$B$32 -> 0 | X32: =X28*$B$32 -> 0 | Z32: =Z28*$B$32 -> 0 | AA32: =AA28*$B$32 -> 0 | AC32: =AC28*$B$32 -> 0 | AD32: =AD28*$B$32 -> 0
A33: LT Interest | E33: =E29*$B$33 -> 0 | F33: =F29*$B$33 -> 0 | H33: =H29*$B$33 -> 0 | I33: =I29*$B$33 -> 0 | K33: =K29*$B$33 -> 0 | L33: =L29*$B$33 -> 0 | N33: =N29*$B$33 -> 0 | O33: =O29*$B$33 -> 0 | Q33: =Q29*$B$33 -> 0 | R33: =R29*$B$33 -> 0 | T33: =T29*$B$33 -> 0 | U33: =U29*$B$33 -> 0 | W33: =W29*$B$33 -> 0 | X33: =X29*$B$33 -> 0 | Z33: =Z29*$B$33 -> 0 | AA33: =AA29*$B$33 -> 0 | AC33: =AC29*$B$33 -> 0 | AD33: =AD29*$B$33 -> 0
A34: ROE | E34: =E30*$B$34 -> 0 | F34: =F30*$B$34 -> 0 | H34: =H30*$B$34 -> 0 | I34: =I30*$B$34 -> 0 | K34: =K30*$B$34 -> 0 | L34: =L30*$B$34 -> 0 | N34: =N30*$B$34 -> 0 | O34: =O30*$B$34 -> 0 | Q34: =Q30*$B$34 -> 0 | R34: =R30*$B$34 -> 0 | T34: =T30*$B$34 -> 0 | U34: =U30*$B$34 -> 0 | W34: =W30*$B$34 -> 0 | X34: =X30*$B$34 -> 0 | Z34: =Z30*$B$34 -> 0 | AA34: =AA30*$B$34 -> 0 | AC34: =AC30*$B$34 -> 0 | AD34: =AD30*$B$34 -> 0
A35: Cost of Capital Total | E35: =SUM(E32:E34) -> 0 | F35: =SUM(F32:F34) -> 0 | H35: =SUM(H32:H34) -> 0 | I35: =SUM(I32:I34) -> 0 | K35: =SUM(K32:K34) -> 0 | L35: =SUM(L32:L34) -> 0 | N35: =SUM(N32:N34) -> 0 | O35: =SUM(O32:O34) -> 0 | Q35: =SUM(Q32:Q34) -> 0 | R35: =SUM(R32:R34) -> 0 | T35: =SUM(T32:T34) -> 0 | U35: =SUM(U32:U34) -> 0 | W35: =SUM(W32:W34) -> 0 | X35: =SUM(X32:X34) -> 0 | Z35: =SUM(Z32:Z34) -> 0 | AA35: =SUM(AA32:AA34) -> 0 | AC35: =SUM(AC32:AC34) -> 0 | AD35: =SUM(AD32:AD34) -> 0
A37: OM&A | E37: =E22+E23 -> 0 | F37: =F23 -> 0 | H37: =H22+H23 -> 0 | I37: =I23 -> 0 | K37: =K22+K23 -> 0 | L37: =L23 -> 0 | N37: =N22+N23 -> 0 | O37: =O23 -> 0 | Q37: =Q22+Q23 -> 0 | R37: =R23 -> 0 | T37: =T22+T23 -> 0 | U37: =U23 -> 0 | W37: =W22+W23 -> 0 | X37: =X23 -> 0 | Z37: =Z22+Z23 -> 0 | AA37: =AA23 -> 0 | AC37: =AC22+AC23 -> 0 | AD37: =AD23 -> 0
A38: Amortization | D38: =D78 -> 0 | E38: =D38*E$20 -> 0 | F38: =D38*F$20 -> 0 | G38: =E78 -> 0 | H38: =G38*H$20 -> 0 | I38: =G38*I$20 -> 0 | J38: =F78 -> 0 | K38: =J38*K$20 -> 0 | L38: =J38*L$20 -> 0 | M38: =G78 -> 0 | N38: =M38*N$20 -> 0 | O38: =M38*O$20 -> 0 | P38: =H76+H77 -> 0 | Q38: =P38*Q$20 -> 0 | R38: =P38*R$20 -> 0 | S38: =I76+I77 -> 0 | T38: =S38*T$20 -> 0 | U38: =S38*U$20 -> 0 | V38: =J76+J77 -> 0 | W38: =V38*W$20 -> 0 | X38: =V38*X$20 -> 0 | Y38: =K76+K77 -> 0 | Z38: =Y38*Z$20 -> 0 | AA38: =Y38*AA$20 -> 0 | AB38: =L76+L77 -> 0 | AC38: =AB38*AC$20 -> 0 | AD38: =AB38*AD$20 -> 0
A39: Grossed-up PILs | E39: =E66 -> 0 | F39: =F66 -> 0 | H39: =H66 -> 0 | I39: =I66 -> 0 | K39: =K66 -> 0 | L39: =L66 -> 0 | N39: =N66 -> 0 | O39: =O66 -> 0 | Q39: =Q66 -> 0 | R39: =R66 -> 0 | T39: =T66 -> 0 | U39: =U66 -> 0 | W39: =W66 -> 0 | X39: =X66 -> 0 | Z39: =Z66 -> 0 | AA39: =AA66 -> 0 | AC39: =AC66 -> 0 | AD39: =AD66 -> 0
A41: Revenue Requirement | E41: =SUM(E35:E39) -> 0 | F41: =SUM(F35:F39) -> 0 | H41: =SUM(H35:H39) -> 0 | I41: =SUM(I35:I39) -> 0 | K41: =SUM(K35:K39) -> 0 | L41: =SUM(L35:L39) -> 0 | N41: =SUM(N35:N39) -> 0 | O41: =SUM(O35:O39) -> 0 | Q41: =SUM(Q35:Q39) -> 0 | R41: =SUM(R35:R39) -> 0 | T41: =SUM(T35:T39) -> 0 | U41: =SUM(U35:U39) -> 0 | W41: =SUM(W35:W39) -> 0 | X41: =SUM(X35:X39) -> 0 | Z41: =SUM(Z35:Z39) -> 0 | AA41: =SUM(AA35:AA39) -> 0 | AC41: =SUM(AC35:AC39) -> 0 | AD41: =SUM(AD35:AD39) -> 0
A44: Provincial Rate Protection | F44: =F41 -> 0 | I44: =I41 -> 0 | L44: =L41 -> 0 | O44: =O41 -> 0 | R44: =R41 -> 0 | U44: =U41 -> 0 | X44: =X41 -> 0 | AA44: =AA41 -> 0 | AD44: =AD41 -> 0
A46: Monthly Amount Paid by IESO | F46: =F44/12 -> 0 | I46: =I44/12 -> 0 | L46: =L44/12 -> 0 | O46: =O44/12 -> 0 | R46: =R44/12 -> 0 | U46: =U44/12 -> 0 | X46: =X44/12 -> 0 | AA46: =AA44/12 -> 0 | AD46: =AD44/12 -> 0
A48: Note 1: The difference between the actual costs of approved eligible investments and revenue received from the IESO should be recorded in a variance account. The Board may provide
A49: regulatory accounting guidance regarding a variance account either in an individual proceeding or on a generic basis.
A50: Note 2: For the 2016 Test Year, Costs and Revenues of the Direct Benefit are to be included in the test year applicant Rate Base and Revenues.
A52: PILs Calculation
E53: 2012 | H53: 2013 | K53: 2014 | N53: 2015 | Q53: 2016 TEST YEAR | T53: 2017 | W53: 2018 | Z53: 2019 | AC53: 2020
A54: Income Tax | E54: Direct Benefit | F54: Provincial | H54: Direct Benefit | I54: Provincial | K54: Direct Benefit | L54: Provincial | N54: Direct Benefit | O54: Provincial | Q54: Direct Benefit | R54: Provincial | T54: Direct Benefit | U54: Provincial | W54: Direct Benefit | X54: Provincial | Z54: Direct Benefit | AA54: Provincial | AC54: Direct Benefit | AD54: Provincial
V55: Total | Y55: Total | AB55: Total
A56: Net Income - ROE on Rate Base | E56: =E34 -> 0 | F56: =F34 -> 0 | H56: =H34 -> 0 | I56: =I34 -> 0 | K56: =K34 -> 0 | L56: =L34 -> 0 | N56: =N34 -> 0 | O56: =O34 -> 0 | Q56: =Q34 -> 0 | R56: =R34 -> 0 | T56: =T34 -> 0 | U56: =U34 -> 0 | W56: =W34 -> 0 | X56: =X34 -> 0 | Z56: =Z34 -> 0 | AA56: =AA34 -> 0 | AC56: =AC34 -> 0 | AD56: =AD34 -> 0
A57: Amortization (17% DB and 83% P) | E57: =E38 -> 0 | F57: =F38 -> 0 | H57: =H38 -> 0 | I57: =I38 -> 0 | K57: =K38 -> 0 | L57: =L38 -> 0 | N57: =N38 -> 0 | O57: =O38 -> 0 | Q57: =Q38 -> 0 | R57: =R38 -> 0 | T57: =T38 -> 0 | U57: =U38 -> 0 | W57: =W38 -> 0 | X57: =X38 -> 0 | Z57: =Z38 -> 0 | AA57: =AA38 -> 0 | AC57: =AC38 -> 0 | AD57: =AD38 -> 0
A58: CCA (17% DB and 83% P) | E58: =-D94*E$20 -> 0 | F58: =-D94*F$20 -> 0 | H58: =-E94*H$20 -> 0 | I58: =-E94*I$20 -> 0 | K58: =-F94*K$20 -> 0 | L58: =-F94*L$20 -> 0 | N58: =-G94*N$20 -> 0 | O58: =-G94*O$20 -> 0 | Q58: =-H94*Q$20 -> 0 | R58: =-H94*R$20 -> 0 | T58: =-I94*T$20 -> 0 | U58: =-I94*U$20 -> 0 | W58: =-J94*W$20 -> 0 | X58: =-J94*X$20 -> 0 | Z58: =-K94*Z$20 -> 0 | AA58: =-K94*AA$20 -> 0 | AC58: =-L94*AC$20 -> 0 | AD58: =-L94*AD$20 -> 0
A59: Taxable income | E59: =SUM(E56:E58) -> 0 | F59: =SUM(F56:F58) -> 0 | H59: =SUM(H56:H58) -> 0 | I59: =SUM(I56:I58) -> 0 | K59: =SUM(K56:K58) -> 0 | L59: =SUM(L56:L58) -> 0 | N59: =SUM(N56:N58) -> 0 | O59: =SUM(O56:O58) -> 0 | Q59: =SUM(Q56:Q58) -> 0 | R59: =SUM(R56:R58) -> 0 | T59: =SUM(T56:T58) -> 0 | U59: =SUM(U56:U58) -> 0 | W59: =SUM(W56:W58) -> 0 | X59: =SUM(X56:X58) -> 0 | Z59: =SUM(Z56:Z58) -> 0 | AA59: =SUM(AA56:AA58) -> 0 | AC59: =SUM(AC56:AC58) -> 0 | AD59: =SUM(AD56:AD58) -> 0
A61: Tax Rate (to be entered)
A63: Income Taxes Payable | E63: =E59*E61 -> 0 | F63: =F59*F61 -> 0 | H63: =H59*H61 -> 0 | I63: =I59*I61 -> 0 | K63: =K59*K61 -> 0 | L63: =L59*L61 -> 0 | N63: =N59*N61 -> 0 | O63: =O59*O61 -> 0 | Q63: =Q59*Q61 -> 0 | R63: =R59*R61 -> 0 | T63: =T59*T61 -> 0 | U63: =U59*U61 -> 0 | W63: =W59*W61 -> 0 | X63: =X59*X61 -> 0 | Z63: =Z59*Z61 -> 0 | AA63: =AA59*AA61 -> 0 | AC63: =AC59*AC61 -> 0 | AD63: =AD59*AD61 -> 0
A64: Gross Up
A65: Income Taxes Payable | E65: =E63/(1-E61) -> 0 | F65: =F63/(1-F61) -> 0 | H65: =H63/(1-H61) -> 0 | I65: =I63/(1-I61) -> 0 | K65: =K63/(1-K61) -> 0 | L65: =L63/(1-L61) -> 0 | N65: =N63/(1-N61) -> 0 | O65: =O63/(1-O61) -> 0 | Q65: =Q63/(1-Q61) -> 0 | R65: =R63/(1-R61) -> 0 | T65: =T63/(1-T61) -> 0 | U65: =U63/(1-U61) -> 0 | W65: =W63/(1-W61) -> 0 | X65: =X63/(1-X61) -> 0 | Z65: =Z63/(1-Z61) -> 0 | AA65: =AA63/(1-AA61) -> 0 | AC65: =AC63/(1-AC61) -> 0 | AD65: =AD63/(1-AD61) -> 0
A66: Grossed Up PILs | E66: =SUM(E65:E65) -> 0 | F66: =SUM(F65:F65) -> 0 | H66: =SUM(H65:H65) -> 0 | I66: =SUM(I65:I65) -> 0 | K66: =SUM(K65:K65) -> 0 | L66: =SUM(L65:L65) -> 0 | N66: =SUM(N65:N65) -> 0 | O66: =SUM(O65:O65) -> 0 | Q66: =SUM(Q65:Q65) -> 0 | R66: =SUM(R65:R65) -> 0 | T66: =SUM(T65:T65) -> 0 | U66: =SUM(U65:U65) -> 0 | W66: =SUM(W65:W65) -> 0 | X66: =SUM(X65:X65) -> 0 | Z66: =SUM(Z65:Z65) -> 0 | AA66: =SUM(AA65:AA65) -> 0 | AC66: =SUM(AC65:AC65) -> 0 | AD66: =SUM(AD65:AD65) -> 0
A69: Net Fixed Assets | D69: 2011 | E69: 2012 | F69: 2013 | G69: 2014 | H69: 2015 | I69: 2016 | J69: 2017 | K69: 2018 | L69: 2019
B70: Enter applicable amortization in years: | C70: 25
A71: Opening Gross Fixed Assets | E71: =D73 -> 0 | F71: 0 | G71: 0 | H71: 0 | I71: 0 | J71: 0 | K71: 0 | L71: 0
A72: Gross Capital Additions | D72: ='App.2-FA Proposed REG Invest.'!C99 -> 0 | E72: ='App.2-FA Proposed REG Invest.'!D99 -> 0 | F72: ='App.2-FA Proposed REG Invest.'!E99 -> 0 | G72: ='App.2-FA Proposed REG Invest.'!F99 -> 0 | H72: ='App.2-FA Proposed REG Invest.'!G99 -> 0 | I72: ='App.2-FA Proposed REG Invest.'!H99 -> 0 | J72: ='App.2-FA Proposed REG Invest.'!I99 -> 0 | K72: ='App.2-FA Proposed REG Invest.'!J99 -> 0 | L72: ='App.2-FA Proposed REG Invest.'!K99 -> 0
A73: Closing Gross Fixed Assets | D73: =SUM(D71:D72) -> 0 | E73: 0 | F73: 0 | G73: 0 | H73: 0 | I73: 0 | J73: 0 | K73: 0 | L73: 0
A75: Opening Accumulated Amortization | E75: =+D78 -> 0 | F75: =E78 -> 0 | G75: 0 | H75: 0 | I75: 0 | J75: 0 | K75: 0 | L75: 0
A76: Current Year Amortization (before additions) | E76: =IF(ISERROR(E71/$C$70), 0, E71/$C$70) -> 0 | F76: =IF(ISERROR(F71/$C$70), 0, F71/$C$70) -> 0 | G76: =IF(ISERROR(G71/$C$70), 0, G71/$C$70) -> 0 | H76: =H71/$C$70 -> 0 | I76: =I71/$C$70 -> 0 | J76: =J71/$C$70 -> 0 | K76: =K71/$C$70 -> 0 | L76: =L71/$C$70 -> 0
A77: Additions (half year) | D77: =D72/C70/2 -> 0 | E77: =E72/C70/2 -> 0 | F77: =F72/C70/2 -> 0 | G77: =G72/C70/2 -> 0 | H77: =H72/C70/2 -> 0 | I77: =I72/C70/2 -> 0 | J77: =J72/C70/2 -> 0 | K77: =K72/C70/2 -> 0 | L77: =L72/C70/2 -> 0
A78: Closing Accumulated Amortization | D78: =SUM(D75+D77) -> 0 | E78: =SUM(E75:E77) -> 0 | F78: 0 | G78: 0 | H78: 0 | I78: 0 | J78: 0 | K78: 0 | L78: 0
A80: Opening Net Fixed Assets | D80: =D71-D75 -> 0 | E80: =E71-E75 -> 0 | F80: =F71-F75 -> 0 | G80: =G71-G75 -> 0 | H80: =G81 -> 0 | I80: =H81 -> 0 | J80: =I81 -> 0 | K80: =J81 -> 0 | L80: =K81 -> 0
A81: Closing Net Fixed Assets | D81: =D73-D78 -> 0 | E81: 0 | F81: 0 | G81: 0 | H81: 0 | I81: 0 | J81: 0 | K81: 0 | L81: 0
A82: Average Net Fixed Assets | D82: =SUM(D80:D81)/2 -> 0 | E82: 0 | F82: 0 | G82: 0 | H82: 0 | I82: 0 | J82: 0 | K82: 0 | L82: 0
A84: UCC for PILs Calculation
D85: 2014 | E85: 2014 | F85: 2014 | G85: 2014 | H85: 2015 | I85: 2016 | J85: 2017 | K85: 2018 | L85: 2019
A87: Opening UCC | E87: =D95 -> 0 | F87: 0 | G87: 0 | H87: 0 | I87: 0 | J87: 0 | K87: 0 | L87: 0
A88: Capital Additions (from Appendix 2-FA) | D88: =D72 -> 0 | E88: 0 | F88: 0 | G88: 0 | H88: 0 | I88: 0 | J88: 0 | K88: 0 | L88: 0
A89: UCC Before Half Year Rule | D89: =SUM(D87:D88) -> 0 | E89: 0 | F89: 0 | G89: 0 | H89: 0 | I89: 0 | J89: 0 | K89: 0 | L89: 0
A90: Half Year Rule (1/2 Additions - Disposals) | D90: =D88/2 -> 0 | E90: 0 | F90: 0 | G90: 0 | H90: 0 | I90: 0 | J90: 0 | K90: 0 | L90: 0
A91: Reduced UCC | D91: =D89-D90 -> 0 | E91: 0 | F91: 0 | G91: 0 | H91: 0 | I91: 0 | J91: 0 | K91: 0 | L91: 0
A92: CCA Rate Class (to be entered) | C92: 47 | D92: =$C$92 -> 47 | E92: =$C$92 -> 47 | F92: 47 | G92: 47 | H92: 47 | I92: 47 | J92: 47 | K92: 47 | L92: 47
A93: CCA Rate (to be entered) | C93: 0.08 | D93: =$C$93 -> 0.08 | E93: =$C$93 -> 0.08 | F93: 0.08 | G93: 0.08 | H93: 0.08 | I93: 0.08 | J93: 0.08 | K93: 0.08 | L93: 0.08
A94: CCA | D94: =D91*D$93 -> 0 | E94: 0 | F94: 0 | G94: 0 | H94: 0 | I94: 0 | J94: 0 | K94: 0 | L94: 0
A95: Closing UCC | D95: =D89-D94 -> 0 | E95: 0 | F95: 0 | G95: 0 | H95: 0 | I95: 0 | J95: 0 | K95: 0 | L95: 0

Sheet App.2-G SQI
I1: File Number: | K1: =EBNUMBER -> EB-2015-0100
I2: Exhibit:
I3: Tab:
I4: Schedule:
I5: Page:
I7: Date:
A9: Appendix 2-G
A10: Service Reliability Indicators
A11: 2010 - 2014
A13: Index | B13: Including outages caused by loss of supply | G13: Excluding outages caused by loss of supply
B14: 2010 | C14: 2011 | D14: 2012 | E14: 2013 | F14: 2014 | G14: 2010 | H14: 2011 | I14: 2012 | J14: 2013 | K14: 2014
A15: SAIDI | B15: 0.91 | C15: 2.4 | D15: 3.82 | E15: 4.41 | F15: 0.83 | G15: 0.08 | H15: 0.09 | I15: 0.48 | J15: 0.62 | K15: 0.3
A16: SAIFI | B16: 1.75 | C16: 0.94 | D16: 1.59 | E16: 2.09 | F16: 0.8 | G16: 0.03 | H16: 0.05 | I16: 0.17 | J16: 0.24 | K16: 0.14
A18: 5 Year Historical Average
A19: SAIDI | F19: =IF(ISERROR(AVERAGE(B15:F15)), "", AVERAGE(B15:F15)) -> 2.474 | K19: =IF(ISERROR(AVERAGE(G15:K15)), "", AVERAGE(G15:K15)) -> 0.314
A20: SAIFI | F20: =IF(ISERROR(AVERAGE(B16:F16)), "", AVERAGE(B16:F16)) -> 1.434 | K20: =IF(ISERROR(AVERAGE(G16:K16)), "", AVERAGE(G16:K16)) -> 0.126
A22: SAIDI = System Average Interruption Duration Index
A23: SAIFI = System Average Interruption Frequency Index
A26: Indicator | C26: OEB Minimum Standard | D26: 2010 | E26: 2011 | F26: 2012 | G26: 2013 | H26: 2014
A27: Low Voltage Connections | C27: 0.9 | D27: 1 | E27: 1 | F27: =9920%/100 -> 0.992 | G27: =9680%/100 -> 0.968 | H27: 0.914
A28: High Voltage Connections | C28: 0.9 | D28: N/A | E28: N/A | F28: N/A | G28: N/A | H28: N/A
A29: Telephone Accessibility | C29: 0.65 | D29: 0.97 | E29: =9710%/100 -> 0.971 | F29: =9830%/100 -> 0.983 | G29: =9830%/100 -> 0.983 | H29: 0.985
A30: Appointments Met | C30: 0.9 | D30: 1 | E30: =9820%/100 -> 0.982 | F30: =9860%/100 -> 0.986 | G30: =9810%/100 -> 0.981 | H30: 0.988
A31: Written Response to Enquires | C31: 0.8 | D31: 1 | E31: 1 | F31: 1 | G31: 1 | H31: 1
A32: Emergency Urban Response | C32: 0.8 | D32: 1 | E32: 1 | F32: 1 | G32: 1 | H32: 1
A33: Emergency Rural Response | C33: 0.8 | D33: N/A | E33: N/A | F33: N/A | G33: N/A | H33: N/A
A34: Telephone Call Abandon Rate | C34: 0.1 | D34: 0 | E34: =60%/100 -> 0.006 | F34: =160%/100 -> 0.016 | G34: =150%/100 -> 0.015 | H34: 0.014
A35: Appointment Scheduling | C35: 0.9 | D35: 1 | E35: =9820%/100 -> 0.982 | F35: =9760%/100 -> 0.976 | G35: =9490%/100 -> 0.949 | H35: 0.943
A36: Rescheduling a Missed Appointment | C36: 1 | D36: N/A | E36: 1 | F36: 1 | G36: 1 | H36: 1
A37: Reconnection Performance Standard | C37: 0.85 | D37: N/A | E37: 1 | F37: 1 | G37: 1 | H37: 1

Sheet App.2-H_Other_Oper_Rev
G1: File Number: | H1: =EBNUMBER -> EB-2015-0100
G2: Exhibit:
G3: Tab:
G4: Schedule:
G5: Page:
G7: Date:
A9: Appendix 2-H
A10: Other Operating Revenue
A12: USoA # | B12: USoA Description | C12: Actual Year² | D12: Actual Year² | E12: ="Actual Year" & CHAR(178) -> Actual Year² | F12: ="Actual Year" & CHAR(178) -> Actual Year² | G12: ="Bridge Year" & CHAR(178) -> Bridge Year² | H12: Test Year
C13: 2012 | D13: =+E13-1 -> 2013 | E13: =G13-1 -> 2014 | F13: 2014 | G13: =BridgeYear -> 2015 | H13: =TestYear -> 2016
B14: Reporting Basis | C14: CGAAP | D14: CGAAP | E14: CGAAP | F14: MIFRS | G14: MIFRS | H14: MIFRS
A15: 4235 | B15: Specific Service Charges | C15: =('[39]1.2 TB Historical Balances'!$H$322)*-1 -> 113461.25 | D15: =('[39]1.2 TB Historical Balances'!$K$322)*-1-0.4 -> 98803.45 | E15: =('[39]1.2 TB Historical Balances'!$N$322)*-1 -> 116016.3 | F15: =E15 -> 116016.3 | G15: =G62 -> 105241.84 | H15: =H62 -> 113950.7682
A16: 4225 | B16: Late Payment Charges | C16: =('[39]1.2 TB Historical Balances'!$H$320)*-1 -> 57518.62 | D16: =('[39]1.2 TB Historical Balances'!$K$320)*-1 -> 59435.51 | E16: =('[39]1.2 TB Historical Balances'!$N$320)*-1 -> 66569.21 | F16: =E16 -> 66569.21 | G16: =+'[40]Other revenue'!$C$124 -> 72601.59 | H16: 76000
A17: 4082 | B17: Retail Services Revenues | C17: =('[39]1.2 TB Historical Balances'!$H$308)*-1 -> 6062.39 | D17: =('[39]1.2 TB Historical Balances'!$K$308)*-1-0.01 -> 6345.37 | E17: =('[39]1.2 TB Historical Balances'!$N$308)*-1 -> 6564.08 | F17: 6564.08 | G17: =G72 -> 6663.94 | H17: =H72 -> 6600
A18: 4084 | B18: Service Transaction Requests | C18: =('[39]1.2 TB Historical Balances'!$H$309)*-1 -> 78.25 | D18: =('[39]1.2 TB Historical Balances'!$K$309)*-1 -> 79.5 | E18: =('[39]1.2 TB Historical Balances'!$N$309)*-1 -> 81 | F18: 81 | G18: =G81 -> 62.25 | H18: =H81 -> 62.25
A19: 4086 | B19: SSS Administration Revenue | C19: =('[39]1.2 TB Historical Balances'!$H$310)*-1 -> 23748.96 | D19: =('[39]1.2 TB Historical Balances'!$K$310)*-1 -> 22339.68 | E19: =('[39]1.2 TB Historical Balances'!$N$310)*-1 -> 19664.69 | F19: 19664.69 | G19: 21605.89 | H19: 21000
A20: 4210 | B20: Rent from Electric Property | C20: =('[39]1.2 TB Historical Balances'!$H$317)*-1 -> 44454.03 | D20: =('[39]1.2 TB Historical Balances'!$K$317)*-1 -> 44476.38 | E20: =('[39]1.2 TB Historical Balances'!$N$317)*-1 -> 44476.38 | F20: 44476.38 | G20: =G91 -> 43738.83 | H20: =H91 -> 43739
A22: 4355 | B22: Gain on Disposition | C22: =('[39]1.2 TB Historical Balances'!$H$338)*-1 -> 9339.8
A23: 4360 | B23: Loss on Disposition | C23: =('[39]1.2 TB Historical Balances'!$H$339)*-1 -> -8639.95 | D23: =('[39]1.2 TB Historical Balances'!$K$339)*-1 -> -8678.41 | E23: =('[39]1.2 TB Historical Balances'!$N$339)*-1 -> -5664.92 | F23: -5664.92 | G23: ='[40]Other revenue'!B114 -> -5528.82 | H23: ='[40]Other revenue'!C114 -> -7780.041386
A24: 4375 | B24: Revenues from Non-Utility Operations | C24: =('[39]1.2 TB Historical Balances'!$H$342)*-1 -> 22151 | D24: =('[39]1.2 TB Historical Balances'!$K$342)*-1 -> 14919.86 | E24: =('[39]1.2 TB Historical Balances'!$N$342)*-1 -> 3321.57 | F24: 3321.57 | G24: ='[40]Other revenue'!$F$109 -> 29432.3 | H24: 0
A25: 4380 | B25: Expenses of Non-Utility Operations | C25: =('[39]1.2 TB Historical Balances'!$H$344)*-1 -> 1106.49 | D25: =('[39]1.2 TB Historical Balances'!$K$344)*-1 -> -2302.01 | E25: =('[39]1.2 TB Historical Balances'!$N$344)*-1 -> 641.65 | F25: 641.65 | G25: 0 | H25: 0
A26: 4390 | B26: Miscellaneous Non-Operating Income | C26: =('[39]1.2 TB Historical Balances'!$H$347)*-1 -> 1410.99 | D26: =('[39]1.2 TB Historical Balances'!$K$347)*-1 -> 2940 | E26: =('[39]1.2 TB Historical Balances'!$N$347)*-1 -> 671.25 | F26: 671.25 | G26: 0 | H26: 0
A27: 4405 | B27: Interest and Dividend Income | C27: =('[39]1.2 TB Historical Balances'!$H$352)*-1 -> 2110.44 | D27: =('[39]1.2 TB Historical Balances'!$K$352)*-1 -> 14881.39 | E27: =('[39]1.2 TB Historical Balances'!$N$352)*-1 -> 17713.82 | F27: 17713.82 | G27: =G102 -> 15305.69 | H27: =H102 -> 14000
A31: Specific Service Charges | C31: =C15 -> 113461.25 | D31: 98803.45 | E31: 116016.3 | F31: 116016.3 | G31: =G15 -> 105241.84 | H31: =H15 -> 113950.7682
A32: Late Payment Charges | C32: 57518.62 | D32: 59435.51 | E32: 66569.21 | F32: 66569.21 | G32: =G16 -> 72601.59 | H32: =H16 -> 76000
A33: Other Operating Revenues | C33: =SUM(C17:C20) -> 74343.63 | D33: 73240.93 | E33: 70786.15 | F33: 70786.15 | G33: 72070.91 | H33: 71401.25
A34: Other Income or Deductions | C34: =SUM(C22:C27) -> 27478.77 | D34: 21760.83 | E34: 16683.37 | F34: 16683.37 | G34: 39209.17 | H34: 6219.958614
A35: Total | C35: =SUM(C31:C34) -> 272802.27 | D35: 253240.72 | E35: 270055.03 | F35: 270055.03 | G35: 289123.51 | H35: 267571.9768
A37: Description | C37: Account(s)
A38: Specific Service Charges: | C38: 4235
A39: Late Payment Charges: | C39: 4225
A40: Other Distribution Revenues: | C40: 4080, 4082, 4084, 4090, 4205, 4210, 4215, 4220, 4240, 4245
A41: Other Income and Expenses: | C41: 4305, 4310, 4315, 4320, 4325, 4330, 4335, 4340, 4345, 4350, 4355, 4360, 4365, 4370, 4375, 4380, 4385, 4390, 4395, 4398, 4405, 4415
A44: Note: Add all applicable accounts listed above to the table and include all relevant information.
A46: Account Breakdown Details
A48: For each "Other Operating Revenue" and "Other Income or Deductions" Account, a detailed breakdown of the account components is required. See the example below for Account 4405, Interest and Dividend Income.
A51: Account 4235 - Specific Service Charges | C51: Actual Year² | D51: Actual Year² | E51: Actual Year² | F51: Actual Year² | G51: Bridge Year² | H51: Test Year
C52: 2012 | D52: 2013 | E52: 2014 | F52: 2014 | G52: 2015 | H52: 2016
A53: Reporting Basis | C53: CGAAP | D53: CGAAP | E53: CGAAP | F53: MIFRS | G53: MIFRS | H53: MIFRS
A54: Collection Charges | C54: 81596.25 | D54: 66600 | E54: 83272.5 | F54: 83272.5 | G54: ='[40]Other revenue'!G7 -> 70713.32 | H54: ='[40]Other revenue'!H7 -> 80000
A55: Account History Charges | C55: 422.5 | D55: 389 | E55: 375 | F55: 375 | G55: ='[40]Other revenue'!G8 -> 60 | H55: ='[40]Other revenue'!H8 -> 60
A56: Occupancy Charges | C56: 25410 | D56: 26636.1 | E56: 26970 | F56: 26970 | G56: ='[40]Other revenue'!G9 -> 27855 | H56: ='[40]Other revenue'!H9 -> 27000
A57: Returned Cheque Charges (NSF) | C57: 887.5 | D57: 1067.5 | E57: 1170 | F57: 1170 | G57: ='[40]Other revenue'!G10 -> 900 | H57: ='[40]Other revenue'!H10 -> 900
A58: Disconnect/Reconnect Charges | C58: 4830 | D58: 3805 | E58: 3795 | F58: 3795 | G58: ='[40]Other revenue'!G11 -> 4930 | H58: ='[40]Other revenue'!H11 -> 4500
A59: Micro-Fit Service Charges | C59: 315 | D59: 320.85 | E59: 433.8 | F59: 433.8 | G59: ='[40]Other revenue'!G12 -> 453.6 | H59: ='[40]Other revenue'!H12 -> 1490.76816
A60: Miscellaneous Charges | C60: 0 | D60: -15 | E60: 0 | F60: 0 | G60: ='[40]Other revenue'!G13 -> 329.92 | H60: 0
A62: Total | C62: =SUM(C54:C61) -> 113461.25 | D62: 98803.45 | E62: 116016.3 | F62: 116016.3 | G62: 105241.84 | H62: 113950.7682
C63: =C15-C62 -> 0 | D63: 0 | E63: 0 | F63: 0 | G63: 0 | H63: 0
A65: Account 4082 - Retail Services Revenues | C65: Actual Year² | D65: Actual Year² | E65: Actual Year² | F65: Actual Year² | G65: Bridge Year² | H65: Test Year
C66: 2012 | D66: 2013 | E66: 2014 | F66: 2014 | G66: 2015 | H66: 2016
A67: Reporting Basis | C67: CGAAP | D67: CGAAP | E67: CGAAP | F67: MIFRS | G67: MIFRS | H67: MIFRS
A68: Misc Bill Ready Charges (BRC) | C68: 1066.662357 | D68: 960.8736786 | E68: 1051.225841 | F68: 1051.225841 | G68: ='[40]Other revenue'!G21 -> 962.8386667 | H68: ='[40]Other revenue'!H21 -> 1000
A69: Fixed Charges | C69: 2795.329804 | D69: =3497.63700434573 -> 3497.637004 | E69: 3231.502885 | F69: 3231.502885 | G69: ='[40]Other revenue'!G22 -> 3570.736766 | H69: ='[40]Other revenue'!H22 -> 3500
A70: Variable charges | C70: 2200.397839 | D70: 1886.85976 | E70: 2281.351273 | F70: 2281.351273 | G70: ='[40]Other revenue'!G23 -> 2130.364567 | H70: ='[40]Other revenue'!H23 -> 2100
A72: Total | C72: =SUM(C68:C71) -> 6062.39 | D72: 6345.370442 | E72: 6564.08 | F72: 6564.08 | G72: 6663.94 | H72: 6600
C73: =C17-C72 -> 0 | D73: =ROUND((D17-D72),2) -> 0 | E73: 0 | F73: 0 | G73: 0 | H73: 0
A75: Account 4084 - Service Transaction Requests (STR) | C75: Actual Year² | D75: Actual Year² | E75: Actual Year² | F75: Actual Year² | G75: Bridge Year² | H75: Test Year
C76: 2012 | D76: 2013 | E76: 2014 | F76: 2014 | G76: 2015 | H76: 2016
A77: Reporting Basis | C77: CGAAP | D77: CGAAP | E77: CGAAP | F77: MIFRS | G77: MIFRS | H77: MIFRS
A78: STR Processed | C78: 25.5 | D78: 25.5 | E78: 26.5 | F78: 26.5 | G78: ='[40]Other revenue'!G47 -> 22.29039301 | H78: ='[40]Other revenue'!H47 -> 22.29039301
A79: STR Request | C79: 52.75 | D79: 54 | E79: 54.5 | F79: 54.5 | G79: ='[40]Other revenue'!G48 -> 39.95960699 | H79: ='[40]Other revenue'!H48 -> 39.95960699
A81: Total | C81: =SUM(C78:C80) -> 78.25 | D81: 79.5 | E81: 81 | F81: 81 | G81: 62.25 | H81: 62.25
C82: =C18-C81 -> 0 | D82: 0 | E82: 0 | F82: 0 | G82: 0 | H82: 0
A84: Account 4210 - Rent from Electric Property | C84: Actual Year² | D84: Actual Year² | E84: Actual Year² | F84: Actual Year² | G84: Bridge Year² | H84: Test Year
C85: 2012 | D85: 2013 | E85: 2014 | F85: 2014 | G85: 2015 | H85: 2016
A86: Reporting Basis | C86: CGAAP | D86: CGAAP | E86: CGAAP | F86: MIFRS | G86: MIFRS | H86: MIFRS
A87: Joint Use - Bell Canada | C87: 17745.9 | D87: 17768.25 | E87: 17768.25 | F87: 17768.25 | G87: ='[40]Other revenue'!G70 -> 17768.25 | H87: ='[40]Other revenue'!H70 -> 17768
A88: Joint Use - WTC Communications | C88: 3642.93 | D88: 3642.93 | E88: 3642.93 | F88: 3642.93 | G88: ='[40]Other revenue'!G71 -> 3642.92 | H88: ='[40]Other revenue'!H71 -> 3643
A89: Joint Use - Cable Companies | C89: 23065.2 | D89: 23065.2 | E89: 23065.2 | F89: 23065.2 | G89: ='[40]Other revenue'!G72 -> 22327.66 | H89: ='[40]Other revenue'!H72 -> 22328
A91: Total | C91: =SUM(C87:C90) -> 44454.03 | D91: 44476.38 | E91: 44476.38 | F91: 44476.38 | G91: 43738.83 | H91: 43739
C92: =C20-C91 -> 0 | D92: 0 | E92: 0 | F92: 0 | G92: 0 | H92: 0
A94: Account 4405 - Interest and Dividend Income | C94: Actual Year² | D94: Actual Year² | E94: Actual Year² | F94: Actual Year² | G94: Bridge Year² | H94: Test Year
C95: 2012 | D95: 2013 | E95: 2014 | F95: 2014 | G95: 2015 | H95: 2016
C96: CGAAP | D96: CGAAP | E96: CGAAP | F96: MIFRS | G96: MIFRS | H96: MIFRS
A97: Reporting Basis
A98: Short-term Investment Interest
A99: Bank Deposit Interest | C99: 13301.61 | D99: 1674.16 | E99: 6247.52 | F99: 6247.52 | G99: ='[40]Other revenue'!G82 -> 6625.03 | H99: ='[40]Other revenue'!H82 -> 6500
A100: Regulatory Interest Income | C100: -11191.17 | D100: 13207.23 | E100: 11466.3 | F100: 11466.3 | G100: ='[40]Other revenue'!G83 -> 8680.66 | H100: ='[40]Other revenue'!H83 -> 7500
A102: Total | C102: =SUM(C97:C101) -> 2110.44 | D102: =28996.06-14114.67 -> 14881.39 | E102: 17713.82 | F102: 17713.82 | G102: 15305.69 | H102: 14000
A103: Total | C103: =C27-C102 -> 0 | D103: 0 | E103: 0 | F103: 0 | G103: 0 | H103: 0
A106: Notes: | B106: List and specify any other interest revenue.
A107: 1 | B107: In the transition year to IFRS, the applicant is to present information in both MIFRS and CGAAP. For the typical applicant that adopted IFRS on January 1, 2015, 2014 must be presented in both a CGAAP and MIFRS basis.
A108: 2
E110: 810
E114: 120
E115: 30

Sheet App_2-I LF_CDM
G1: File Number: | H1: =EBNUMBER -> EB-2015-0100
G2: Exhibit:
G3: Tab:
G4: Schedule:
G5: Page:
G7: Date:
A9: Appendix 2-I
A10: Load Forecast CDM Adjustment Work Form (2016)
A12: 2014 is the last year of the current four year (2011-2014) CDM program, and 2015 is the first year of a new six year (2015-2020) CDM program, per the Ministerial directives of March 31, 2014. With 2016, there is a need to recognize the full year impact of the current 2011-2014 CDM program, as well as to estimate reasonable impacts for each year for the new 2015-2020 CDM program. These are combined to estimate the adjustment for CDM program impacts on the 2016 load forecast.
A14: Appendix 2-I was developed to help determine what would be the amount of CDM savings needed in each year to cumulatively achieve the four year 2011-2014 CDM target. This then determined the amount of kWh (and with translation, kW of demand) savings that were converted in dollars balances for the LRAMVA, and also to determine the related adjustment to the load forecast to account for OPA-reported savings. Beginning for the 2015 year, it has been adjusted because of the persistence of 2011-2014 CDM programs will be an adjustment to the load forecast in addition to the estimated savings for the first year (2015) for the new 2015-2020 CDM plan.
A16: It is assumed that the new six year (2015-2020) CDM program will work similar to the existing 2011-2014 CDM program, meaning that distributors will offer programs each year that, cumulatively over the six years (from January 1, 2015 to December 31, 2020) will cumulatively achieve the new six year CDM target. This is the approach contemplated in the Ministerial directive letters of March 31, 2014 to the Board and to the OPA. Thus, distributors will be able to offer programs on a basis so that cumulatively over the period, the impacts, including persistence, of the CDM programs will accumulate towards achieving each distributor's 2015-2020 CDM target.
A18: With this approach, it is necessary to account for estimated savings for the last year of the current program, particularly the estimated savings for new CDM programs offered in 2014, as well as the estimated savings for new CDM programs that the distributor will offer in 2015 towards achievement of the new six year (2015-2020) CDM program. This necessitates expansion of this Appendix 2-I to deal with both the 2011-2014 and 2015-2020 CDM plans. It is expected that this approach will be updated each year.
A20: 2011-2014 CDM Program - 2014, last year of the current CDM plan
A22: Input the 2011-2014 CDM target in Cell B21.
A24: Input the measured results for 2011 CDM programs for each of the years 2011 and persistence into 2012, 2013 and 2014 into cells B31 to E31. These results are taken from the final 2011 CDM Report issued by the OPA for that distributor in the fall of 2012.
A26: Measured results for 2012 CDM programs for each of the years 2012 and persistence into 2013 and 2014 are input into cells C32 to E32. These results are taken from the final 2012 CDM Report issued by the OPA for that distributor in the fall of 2013.
A28: Measured results for 2013 CDM programs for each of the years 2013 and persistence into 2014 are input into cells C33 to E33. These results are taken from the final 2013 CDM Report issued by the OPA for that distributor in the fall of 2014. Until that report is issued, the distributor should use the results from the preliminary 2013 CDM Report issued in the spring of 2014.
A30: Measured results for 2014 CDM programs for each of the years 2013 and persistence into 2014 are input into cells C33 to E33. These results are taken from the final 2013 CDM Report issued by the OPA for that distributor in the fall of 2014. Until that report is issued, the distributor should use the results from the preliminary 2013 CDM Report issued in the spring of 2014. The distributor also needs to input the persistence of 2014 CDM programs into 2015 and 2016 in cells G45 and G46.
A33: 4 Year (2011-2014) kWh Target: | G33: Persistence of 2014 CDM Program into 2015 and 2016
A34: ='[41]CDM Activity'!$D$19 -> 5100000
B35: 2011 | C35: 2012 | D35: 2013 | E35: 2014 | F35: Total | G35: 2015 | H35: 2016 | K35: =B35 -> 2011 | L35: =C35 -> 2012 | M35: =D35 -> 2013 | N35: =E35 -> 2014
A36: 2011 CDM Programs | B36: =B42/$A$34 -> 0.1988235294 | C36: 0.1988235294 | D36: 0.1988235294 | E36: 0.1819607843 | F36: =SUM(B36:E36) -> 0.7784313725 | J36: =A36 -> 2011 CDM Programs | K36: =50% -> 0.5 | L36: 1 | M36: 1 | N36: 1
A37: 2012 CDM Programs | B37: -0.02882352941 | C37: 0.0931372549 | D37: 0.0931372549 | E37: 0.0931372549 | F37: =SUM(B37:E37) -> 0.2505882353 | J37: =A37 -> 2012 CDM Programs | L37: 0.5 | M37: 1 | N37: 1
A38: 2013 CDM Programs | C38: =C44/$A$34 -> 0.00137254902 | D38: 0.05490196078 | E38: 0.05490196078 | F38: =SUM(B38:E38) -> 0.1111764706 | J38: =A38 -> 2013 CDM Programs | M38: 0.5 | N38: 1
A39: 2014 CDM Programs | E39: 0.2374509804 | F39: =SUM(B39:E39) -> 0.2374509804 | J39: =A39 -> 2014 CDM Programs | N39: 0.5
A40: Total in Year | B40: =SUM(B36:B39) -> 0.17 | C40: =SUM(C36:C39) -> 0.2933333333 | D40: =SUM(D36:D39) -> 0.3468627451 | E40: =SUM(E36:E39) -> 0.5674509804 | F40: =SUM(B40:E40) -> 1.377647059
A41: kWh
A42: 2011 CDM Programs | B42: ='[41]CDM Activity'!B27 -> 1014000 | C42: ='[41]CDM Activity'!C27 -> 1014000 | D42: ='[41]CDM Activity'!D27 -> 1014000 | E42: ='[41]CDM Activity'!E27 -> 928000 | F42: =SUM(B42:E42) -> 3970000
A43: 2012 CDM Programs | B43: ='[41]CDM Activity'!B28 -> -147000 | C43: ='[41]CDM Activity'!C28 -> 475000 | D43: ='[41]CDM Activity'!D28 -> 475000 | E43: ='[41]CDM Activity'!E28 -> 475000 | F43: =SUM(B43:E43) -> 1278000
A44: 2013 CDM Programs | C44: ='[41]CDM Activity'!C29 -> 7000 | D44: ='[41]CDM Activity'!D29 -> 280000 | E44: ='[41]CDM Activity'!E29 -> 280000 | F44: =SUM(B44:E44) -> 567000
A45: 2014 CDM Programs | C45: ='[41]CDM Activity'!C30 -> 99000 | D45: ='[41]CDM Activity'!D30 -> 126000 | E45: ='[41]CDM Activity'!E30 -> 1211000 | F45: =SUM(B45:E45) -> 1436000 | G45: ='[41]CDM Activity'!K49 -> 1211000 | H45: ='[41]CDM Activity'!L49 -> 1211000
A46: Total in Year | B46: =SUM(B42:B45) -> 867000 | C46: =SUM(C42:C45) -> 1595000 | D46: =SUM(D42:D45) -> 1895000 | E46: =SUM(E42:E45) -> 2894000 | F46: =SUM(F42:F45) -> 7251000
A48: 2015-2020 CDM Program - 2016, second year of the current CDM plan
A50: For the first year of the new 2015-2020 CDM plan, it is assumed that each year's program will achieve an equal amount of new CDM savings. The new targets for 2015-2020 do not take into account persistence beyond the first year, but the IESO will encourage distributors to promote and implement CDM plans that will have longer term persistence of savings. This results in each year's program being about 1/6 (18.67%) of the cumulative 2015-2020 CDM target for kWh savings. A distributor may propose an alternative approach but would be expected to document in its application why it believes that its proposal is more reasonable. In its proposal, the distributor should ensure that the sum of the results for each year's CDM program from 2015 to 2020 add up to its 2015-2020 CDM target as established by the IESO.
A52: 6 Year (2015-2020) kWh Target:
A53: ='[41]CDM Activity'!$M$19 -> 5000000
B54: 2015 | C54: 2016 | D54: 2017 | E54: 2018 | F54: 2019 | G54: 2020 | H54: Total
A55: %
A56: 2015 CDM Programs | B56: =B64/$H$70 -> 0.1666666667 | H56: =SUM(B56:G56) -> 0.1666666667
A57: 2016 CDM Programs | C57: =C65/$H$70 -> 0.1666666667 | H57: =SUM(B57:G57) -> 0.1666666667
A58: 2017 CDM Programs | D58: =D66/$H$70 -> 0.1666666667 | H58: =SUM(B58:G58) -> 0.1666666667
A59: 2018 CDM Programs | E59: =E67/$H$70 -> 0.1666666667 | H59: =SUM(E59:G59) -> 0.1666666667
A60: 2019 CDM Programs | F60: =F68/$H$70 -> 0.1666666667 | H60: =SUM(F60:G60) -> 0.1666666667
A61: 2020 CDM Programs | G61: =G69/$H$70 -> 0.1666666667 | H61: =SUM(B61:G61) -> 0.1666666667
A62: Total in Year | B62: =SUM(B56:B61) -> 0.1666666667 | C62: =SUM(C56:C61) -> 0.1666666667 | D62: =SUM(D56:D61) -> 0.1666666667 | E62: =SUM(E56:E59) -> 0.1666666667 | F62: =SUM(F56:F60) -> 0.1666666667 | G62: =SUM(G56:G61) -> 0.1666666667 | H62: =SUM(B62:G62) -> 1
A63: kWh
A64: =A56 -> 2015 CDM Programs | B64: =1/6*A53 -> 833333.3333 | H64: =SUM(B64:G64) -> 833333.3333
A65: 2016 CDM Programs | C65: =B64 -> 833333.3333 | H65: =SUM(B65:G65) -> 833333.3333
A66: 2017 CDM Programs | D66: =C65 -> 833333.3333 | H66: =SUM(B66:G66) -> 833333.3333
A67: 2018 CDM Programs | E67: =D66 -> 833333.3333 | H67: =SUM(E67:G67) -> 833333.3333
A68: 2019 CDM Programs | F68: =E67 -> 833333.3333 | H68: =SUM(F68:G68) -> 833333.3333
A69: 2020 CDM Programs | G69: =F68 -> 833333.3333 | H69: =SUM(B69:G69) -> 833333.3333
A70: Total in Year | B70: =SUM(B64:B69) -> 833333.3333 | C70: =SUM(C64:C69) -> 833333.3333 | D70: =SUM(D64:D69) -> 833333.3333 | E70: =SUM(E64:E67) -> 833333.3333 | F70: =SUM(F64:F68) -> 833333.3333 | G70: =SUM(G64:G69) -> 833333.3333 | H70: =A53 -> 5000000
A72: Determination of 2016 Load Forecast Adjustment
A74: The Board has determined that the "net" number should be used in its Decision and Order with respect to Centre Wellington Hydro Ltd.'s 2013 Cost of Service rates (EB-2012-0113). This approach has also been used in Settlement Agreements accepted by the Board in other 2013 and 2-14 applications. The distributor should select whether the adjustment is done on a "net" or "gross" basis, but must support a proposal for the adjustment being done on a "gross" basis. Sheet 2-I defaults to the adjustment being done on a "net" basis consistent with Board policy and practice.
A76: From each of the 2006-2010 CDM Final Report, and the 2011, 2012, 2013 and 2014 CDM Final Reports, issued by the OPA (now IESO) for the distributor, the distributor should input the "gross" and "net" results of the cumulative CDM savings for 2014 into cells D84 to E88. The model will calculate the cumulative savings for all programs from 2006 to 2012 and determine the "net" to "gross" factor "g".
A78: Net-to-Gross Conversion
A80: Is CDM adjustment being done on a "net" or "gross" basis? | F80: net
C82: "Gross" | D82: "Net" | E82: Difference | F82: "Net-to-Gross" Conversion Factor
A83: Persistence of Historical CDM programs to 2014 | C83: kWh | D83: kWh | E83: kWh | F83: ('g')
A84: 2006-2010 CDM programs
A85: 2011 CDM program
A86: 2012 CDM program
A87: 2013 CDM program
A88: 2014 CDM program
A89: 2006 to 2014 OPA CDM programs: Persistence to 2016 | C89: =SUM(C84:C88) -> 0 | D89: =SUM(D84:D88) -> 0 | E89: =C89-D89 -> 0 | F89: =IF(D89=0,0,IF(F80="net",0,E89/D89)) -> 0
A91: The default values represent the factor that each year's CDM program is factored into the manual CDM adjustment. Distributors can choose alternative weights of "0", "0.5" or "1" from the drop-down menu for each cell, but must support its alternatives.
A93: These factors do not mean that CDM programs are excluded, but the assumption that impacts of previous year CDM programs are already implicitly reflected in the actual data for the historical years that are the basis for the load forecast prior to any manual CDM adjustment for the 2016 test year.
A95: Weight Factor for Inclusion in CDM Adjustment to 2014 Load Forecast
B96: 2011 | C96: 2012 | D96: 2013 | E96: 2014 | F96: 2015 | G96: 2016
A97: Weight Factor for each year's CDM program impact on 2014 load forecast | B97: 0 | C97: 0 | D97: 0 | E97: 0 | F97: 1 | G97: 0.5 | H97: Distributor can select "0", "0.5", or "1" from drop-down list
A98: Default Value selection rationale. | B98: Full year persistence of 2011 CDM programs on 2015 load forecast. Full impact assumed because of 50% impact in 2011 (first year) but full year persistence impact on 2012 and 2013, and thus reflected in base forecast before the CDM adjustment. | C98: Full year persistence of 2012 CDM programs on 2015 load forecast. Full impact assumed because of 50% impact in 2012 (first year) but full year persistence impact on 2013, and thus reflected in base forecast before the CDM adjustment. | D98: Default is 0, but one option is for full year impact of persistence of 2013 CDM programs on 2015 load forecast, but 50% impact in base forecast (first year impact of 2013 CDM programs on 2013 load forecast, which is part of the data for the load forecast. | E98: Default is 0, but one option is for full year impact of persistence of 2014 CDM programs on 2014 load forecast, but 50% impact in base forecast (first year impact of 2014 CDM programs on 2014 actuals, which is part of the data for the load forecast. | F98: Full year impact of persistence of 2015 programs on 2015 load forecast. 2015 CDM program impacts are not in the base forecast. | G98: Only 50% of 2016 CDM programs are assumed to impact the 2016 load forecast based on the "half-year" rule.
A100: 2011-2014 and 2015-2020 LRAMVA and 2015 CDM adjustment to Load Forecast
A102: One manual adjustment for CDM impacts to the 2015 load forecast is made. However, the distributor will have two associated annualized CDM impacts, one for the 2011-2014 CDM program and the second for the 2015-2020 CDM plan. In addition, the distributor needs to reflect the CDM adjustment that was explicitly factored into its 2011 load forecast in its 2011 cost of service application (assuming that it rebased in that year). this amount, and equal persistence for 2012, 2013 and 2014 is used as an offset to determine what the net balance of the 2011-2014 LRAMVA balance should be for disposition.
A104: The Amount used for the CDM threshold of the LRAMVA is the kWh that will be used to determine the base amount for the LRAMVA balance for 2014, for assessing performance against the four-year target. The base amount for 2011-2013 is 0 (zero) for 2014 Cost of Service applications, as the utility rebased prior to the 2011-2014 CDM programs, and there was no adjustment to reflect the impacts of the 2011-2014 programs on the load forecast used to determine their last cost of service-based rates.
A106: The proposed loss factor should correspond with the loss factor calculated in Appendix 2-R
A108: The Manual Adjustment for the 2016 Load Forecast is the amount manually subtracted from the load forecast derived from the base forecast from historical data.
A110: If the distributor has developed their load forecast on a system purchased basis, then the manual adjustment should be on system purchased basis, including the adjustment for losses. If the load forecast has been developed on a billed basis, either on a system basis or on a class-specific basis, the manual adjustment should be on a billed basis, excluding losses.
A112: The distributor should determine the allocation of the savings to all customer classes in a reasonable manner (e.g. taking into account what programs and what OPA-measured impacts were directed at specific customer classes), for both the LRAMVA and for the load forecast adjustment.
B114: 2011 | C114: 2012 | D114: 2013 | E114: 2014 | F114: 2015 | G114: 2016 | H114: Total for 2016
B115: kWh
A116: Amount used for CDM threshold for LRAMVA (2014) | C116: =C46 -> 1595000 | D116: 1895000 | E116: 2894000 | H116: =SUM(C116:G116) -> 6384000
A118: CDM adjustment for test year forecast (per Board Decision in distributor's most recent Cost of Service Application) (enter as negative) | C118: -944691 | D118: =C118 -> -944691 | E118: =C118 -> -944691 | H118: =SUM(C118:G118) -> -2834073
A120: Amount used for CDM threshold for LRAMVA (2016) | F120: =B64 -> 833333.3333 | G120: =C65 -> 833333.3333 | H120: =SUM(B120:G120) -> 1666666.667
A122: Manual Adjustment for 2016 Load Forecast (billed basis) | B122: =B116*(1+F89)*B97 -> 0 | C122: =C116*(1+F89)*C97 -> 0 | D122: =D116*(1+F89)*D97 -> 0 | E122: =E116*(1+F89)*E97 -> 0 | F122: =F120*(1+F89)*F97 -> 833333.3333 | G122: =G120*(1+F89)*G97 -> 416666.6667 | H122: =SUM(B122:G122) -> 1250000
A124: Proposed Loss Factor (TLF) | B124: =ROUND('App.2-R_Loss Factors'!$H$27,4)-1 -> 0.083
A125: Manual Adjustment for 2016 Load Forecast (system purchased basis) | B125: =B122*(1+$B124) -> 0 | C125: 0 | D125: 0 | E125: 0 | F125: 902500 | G125: 451250 | H125: =SUM(B125:G125) -> 1353750
A127: Manual adjustment uses "gross" versus "net" (i.e. numbers multiplied by (1 + g). The Weight factor is also used calculate the impact of each year's program on the CDM adjustment to the 2016 load forecast.

Sheet App.2-IA_Act_Frcst_Data
F1: File Number: | G1: =EBNUMBER -> EB-2015-0100
F2: Exhibit:
F3: Tab:
F4: Schedule:
F5: Page:
F7: Date:
A9: Appendix 2-IA
A10: Summary and Variances of Actual and Forecast Data
A12: Replace "Rate Class #" with the appropriate rate classification.
B14: =RebaseYear & " Board Approved" -> 2012 Board Approved | C14: =TestYear - 4 -> 2012 | D14: =TestYear - 3 -> 2013 | E14: =TestYear - 2 -> 2014 | F14: =TestYear -1 &" Bridge" -> 2015 Bridge | G14: =TestYear&" Test" -> 2016 Test
A15: Residential
A16: # of Customers | B16: 5016 | C16: =[41]Summary!I15 -> 5025 | D16: =[41]Summary!J15 -> 5035 | E16: =[41]Summary!K15 -> 5040 | F16: =[41]Summary!L15 -> 5054 | G16: =[41]Summary!M15 -> 5066
A17: kWh | B17: 44584446 | C17: =[41]Summary!I16 -> 42116982 | D17: =[41]Summary!J16 -> 42764838 | E17: =[41]Summary!K16 -> 42272228 | F17: =[41]Summary!L16 -> 40938310.96 | G17: =[41]Summary!M16 -> 41307918.06
A18: kW
A19: Variance Analysis
A20: =A16 -> # of Customers | C20: =IF(ISERROR((C16-$B16)/$B16), 0, (C16-$B16)/$B16) -> 0.001794258373 | D20: 0.003787878788 | E20: 0.004784688995 | F20: 0.007575757576 | G20: 0.009968102073
A21: kWh | C21: -0.05534360571 | D21: -0.04081261882 | E21: -0.05186153934 | F21: -0.08178042719 | G21: -0.07349038133
A22: kW | C22: 0 | D22: 0 | E22: 0 | F22: 0 | G22: 0
A24: GS < 50 kW
A25: # of Customers | B25: 770 | C25: =[41]Summary!I19 -> 770 | D25: =[41]Summary!J19 -> 759 | E25: =[41]Summary!K19 -> 754 | F25: =[41]Summary!L19 -> 742 | G25: =[41]Summary!M19 -> 739
A26: kWh | B26: 19806495 | C26: =[41]Summary!I20 -> 19669183 | D26: =[41]Summary!J20 -> 20094189 | E26: =[41]Summary!K20 -> 20739791 | F26: =[41]Summary!L20 -> 20653133 | G26: =[41]Summary!M20 -> 20781605.36
A27: kW
A28: Variance Analysis
A29: =A25 -> # of Customers | C29: =IF(ISERROR((C25-$B25)/$B25), 0, (C25-$B25)/$B25) -> 0 | D29: -0.01428571429 | E29: -0.02077922078 | F29: -0.03636363636 | G29: -0.04025974026
A30: kWh | C30: -0.006932675367 | D30: 0.01452523528 | E30: 0.0471207046 | F30: 0.04274547324 | G30: 0.04923184852
A31: kW | C31: 0 | D31: 0 | E31: 0 | F31: 0 | G31: 0
A33: GS 50 to 4,999 kW
A34: # of Customers | B34: 66 | C34: =[41]Summary!I23 -> 67 | D34: =[41]Summary!J23 -> 65 | E34: =[41]Summary!K23 -> 64 | F34: =[41]Summary!L23 -> 64 | G34: =[41]Summary!M23 -> 64
A35: kWh | B35: 38166401 | C35: =[41]Summary!I24 -> 42549997 | D35: =[41]Summary!J24 -> 42246503 | E35: =[41]Summary!K24 -> 42584416 | F35: =[41]Summary!L24 -> 40918077 | G35: =[41]Summary!M24 -> 39831072.44
A36: kW | B36: 126652 | C36: =[41]Summary!I25 -> 125469 | D36: =[41]Summary!J25 -> 133148 | E36: =[41]Summary!K25 -> 131947 | F36: =[41]Summary!L25 -> 125734.44 | G36: =[41]Summary!M25 -> 116926.7709
A37: Variance Analysis
A38: =A34 -> # of Customers | C38: =IF(ISERROR((C34-$B34)/$B34), 0, (C34-$B34)/$B34) -> 0.01515151515 | D38: -0.01515151515 | E38: -0.0303030303 | F38: -0.0303030303 | G38: -0.0303030303
A39: kWh | C39: 0.1148548431 | D39: 0.1069029799 | E39: 0.1157566573 | F39: 0.07209681625 | G39: 0.04361614909
A40: kW | C40: -0.009340555222 | D40: 0.05129014939 | E40: 0.04180747244 | F40: -0.007244733601 | G40: -0.07678701582
A42: Street Lighting
A43: # of Connections | B43: 1709 | C43: =[41]Summary!I28 -> 1703 | D43: =[41]Summary!J28 -> 1707 | E43: =[41]Summary!K28 -> 1707 | F43: =[41]Summary!L28 -> 1711 | G43: =[41]Summary!M28 -> 1711
A44: kWh | B44: 1441722 | C44: =[41]Summary!I29 -> 1453808 | D44: =[41]Summary!J29 -> 1447303 | E44: =[41]Summary!K29 -> 1321505 | F44: =[41]Summary!L29 -> 1052678 | G44: =[41]Summary!M29 -> 730852.2181
A45: kW | B45: 3843 | C45: =[41]Summary!I30 -> 3919 | D45: =[41]Summary!J30 -> 3920 | E45: =[41]Summary!K30 -> 3620 | F45: =[41]Summary!L30 -> 2861.6 | G45: =[41]Summary!M30 -> 1992.148075
A46: Variance Analysis
A47: =A43 -> # of Connections | C47: =IF(ISERROR((C43-$B43)/$B43), 0, (C43-$B43)/$B43) -> -0.003510825044 | D47: -0.001170275015 | E47: -0.001170275015 | F47: 0.001170275015 | G47: 0.001170275015
A48: kWh | C48: 0.008383030848 | D48: 0.003871065296 | E48: -0.08338431404 | F48: -0.2698467527 | G48: -0.4930699413
A49: kW | C49: 0.0197762165 | D49: 0.02003642987 | E49: -0.05802758262 | F49: -0.2553734062 | G49: -0.4816164259
A51: Sentinel Lighting
A52: # of Connections | B52: 75 | C52: =[41]Summary!I33 -> 75 | D52: =[41]Summary!J33 -> 75 | E52: =[41]Summary!K33 -> 75 | F52: =[41]Summary!L33 -> 75 | G52: =[41]Summary!M33 -> 75
A53: kWh | B53: 108277 | C53: =[41]Summary!I34 -> 108266 | D53: =[41]Summary!J34 -> 108281 | E53: =[41]Summary!K34 -> 109302 | F53: =[41]Summary!L34 -> 109502 | G53: =[41]Summary!M34 -> 107884.1476
A54: kW | B54: 301 | C54: =[41]Summary!I35 -> 300 | D54: =[41]Summary!J35 -> 300 | E54: =[41]Summary!K35 -> 302 | F54: =[41]Summary!L35 -> 302 | G54: =[41]Summary!M35 -> 298.7855351
A55: Variance Analysis
A56: =A52 -> # of Connections | C56: =IF(ISERROR((C52-$B52)/$B52), 0, (C52-$B52)/$B52) -> 0 | D56: 0 | E56: 0 | F56: 0 | G56: 0
A57: kWh | C57: -0.000101591289 | D57: 3.694228691e-05 | E57: 0.009466461021 | F57: 0.01131357537 | G57: -0.003628216717
A58: kW | C58: -0.003322259136 | D58: -0.003322259136 | E58: 0.003322259136 | F58: 0.003322259136 | G58: -0.007357026336
A60: Unmetered Scattered Load
A61: # of Customers | B61: 58 | C61: =[41]Summary!I38 -> 60 | D61: =[41]Summary!J38 -> 61 | E61: =[41]Summary!K38 -> 61 | F61: =[41]Summary!L38 -> 59 | G61: =[41]Summary!M38 -> 59
A62: kWh | B62: 429961 | C62: =[41]Summary!I39 -> 499265 | D62: =[41]Summary!J39 -> 531898 | E62: =[41]Summary!K39 -> 565759 | F62: =[41]Summary!L39 -> 543571 | G62: =[41]Summary!M39 -> 572371.2932
A63: kW
A64: Variance Analysis
A65: =A61 -> # of Customers | C65: =IF(ISERROR((C61-$B61)/$B61), 0, (C61-$B61)/$B61) -> 0.03448275862 | D65: 0.05172413793 | E65: 0.05172413793 | F65: 0.01724137931 | G65: 0.01724137931
A66: kWh | C66: 0.1611867123 | D66: 0.2370842937 | E66: 0.3158379481 | F66: 0.2642332677 | G66: 0.3312167689
A67: kW | C67: 0 | D67: 0 | E67: 0 | F67: 0 | G67: 0
A69: Rate Class 7
A70: # of Customers
A71: kWh
A72: kW
A73: Variance Analysis
A74: =A70 -> # of Customers | C74: =IF(ISERROR((C70-$B70)/$B70), 0, (C70-$B70)/$B70) -> 0 | D74: 0 | E74: 0 | F74: 0 | G74: 0
A75: kWh | C75: 0 | D75: 0 | E75: 0 | F75: 0 | G75: 0
A76: kW | C76: 0 | D76: 0 | E76: 0 | F76: 0 | G76: 0
A78: Rate Class 8
A79: # of Customers
A80: kWh
A81: kW
A82: Variance Analysis
A83: =A79 -> # of Customers | C83: =IF(ISERROR((C79-$B79)/$B79), 0, (C79-$B79)/$B79) -> 0 | D83: 0 | E83: 0 | F83: 0 | G83: 0
A84: kWh | C84: 0 | D84: 0 | E84: 0 | F84: 0 | G84: 0
A85: kW | C85: 0 | D85: 0 | E85: 0 | F85: 0 | G85: 0
A87: Rate Class 9
A88: # of Customers
A89: kWh
A90: kW
A91: Variance Analysis
A92: =A88 -> # of Customers | C92: =IF(ISERROR((C88-$B88)/$B88), 0, (C88-$B88)/$B88) -> 0 | D92: 0 | E92: 0 | F92: 0 | G92: 0
A93: kWh | C93: 0 | D93: 0 | E93: 0 | F93: 0 | G93: 0
A94: kW | C94: 0 | D94: 0 | E94: 0 | F94: 0 | G94: 0
A96: Rate Class 10
A97: # of Customers
A98: kWh
A99: kW
A100: Variance Analysis
A101: =A97 -> # of Customers | C101: =IF(ISERROR((C97-$B97)/$B97), 0, (C97-$B97)/$B97) -> 0 | D101: 0 | E101: 0 | F101: 0 | G101: 0
A102: kWh | C102: 0 | D102: 0 | E102: 0 | F102: 0 | G102: 0
A103: kW | C103: 0 | D103: 0 | E103: 0 | F103: 0 | G103: 0
A106: Totals
A107: Customers / Connections | B107: =SUM(B16,B25,B34,B43,B52,B61,B70,B79,B88,B97) -> 7694 | C107: 7700 | D107: 7702 | E107: 7701 | F107: 7705 | G107: 7714
A108: kWh | B108: =SUM(B17,B26,B35,B44,B53,B62,B71,B80,B89,B98) -> 104537302 | C108: 106397501 | D108: 107193012 | E108: 107593001 | F108: 104215272 | G108: 103331703.5
A109: kW from applicable classes | B109: 130796 | C109: 129688 | D109: 137368 | E109: 135869 | F109: 128898.04 | G109: 119217.7045
A111: Totals - Variance
A112: Customers / Connections | C112: =IF(ISERROR((C107-$B107)/$B107), 0, (C107-$B107)/$B107) -> 0.0007798284377 | D112: 0.00103977125 | E112: 0.000909799844 | F112: 0.001429685469 | G112: 0.002599428126
A113: kWh | C113: 0.01779459546 | D113: 0.02540442454 | E113: 0.02923070465 | F113: -0.003080527542 | G113: -0.01153271089
A114: kW from applicable classes | C114: -0.008471207071 | D114: 0.0502461849 | E114: 0.03878558977 | F114: -0.01451084131 | G114: -0.08852178597

Sheet App.2-JA_OM&A_Summary_Analys
K1: File Number: | L1: =EBNUMBER -> EB-2015-0100
K2: Exhibit:
K3: Tab:
K4: Schedule:
K5: Page:
K7: Date:
A9: Appendix 2-JA
A10: Summary of Recoverable OM&A Expenses
B13: ="Last Rebasing Year (" & RebaseYear & " Board-Approved)" -> Last Rebasing Year (2012 Board-Approved) | C13: ="Last Rebasing Year (" & RebaseYear & " Actuals)" -> Last Rebasing Year (2012 Actuals) | D13: =BridgeYear -2 & " Actuals" -> 2013 Actuals | E13: =BridgeYear -1 & " Actuals" -> 2014 Actuals | F13: =BridgeYear & " Bridge Year" -> 2015 Bridge Year | G13: =TestYear & " Test Year" -> 2016 Test Year
A14: Reporting Basis
A15: Operations | B15: =298000-79000 -> 219000 | C15: =304403.25-82561 -> 221842.25 | D15: 172501.69 | E15: 202676.09 | F15: =[37]Sheet1!E140 -> 282484.61 | G15: =[37]Sheet1!F140 -> 311123.4648
A16: Maintenance | B16: 395500 | C16: 355486.06 | D16: 442916.05 | E16: 377141.99 | F16: =[37]Sheet1!E141 -> 400282.2 | G16: =[37]Sheet1!F141 -> 399157.0478
A17: SubTotal | B17: =SUM(B15:B16) -> 614500 | C17: 577328.31 | D17: 615417.74 | E17: 579818.08 | F17: 682766.81 | G17: 710280.5126
A18: %Change (year over year) | D18: =IF(ISERROR((D17-C17)/C17), "", (D17-C17)/C17) -> 0.06597533733 | E18: =IF(ISERROR((E17-D17)/D17), "", (E17-D17)/D17) -> -0.05784633378 | F18: =IF(ISERROR((F17-E17)/E17), "", (F17-E17)/E17) -> 0.1775535009 | G18: =IF(ISERROR((G17-F17)/F17), "", (G17-F17)/F17) -> 0.04029736393
A19: %Change (Test Year vs Last Rebasing Year - Actual) | G19: =IF(ISERROR((G17-C17)/C17), "", (G17-C17)/C17) -> 0.2302887288
A20: Billing and Collecting | B20: =376500+79000 -> 455500 | C20: =453545.59+82561 -> 536106.59 | D20: 526499.8 | E20: 553159.94 | F20: =[37]Sheet1!E142 -> 531696.3772 | G20: =[37]Sheet1!F142 -> 544820.1843
A21: Community Relations | B21: 0 | C21: =4972.78+33.75-3500 -> 1506.53 | D21: =7873.88-3500 -> 4373.88 | E21: 6146.12 | F21: =[37]Sheet1!E143 -> 6463.82 | G21: =[37]Sheet1!F143 -> 26597
A22: Administrative and General | B22: =746600+3400 -> 750000 | C22: =724797.89+225+3500 -> 728522.89 | D22: =727760+3500 -> 731260 | E22: =820268+3500 -> 823768 | F22: =[37]Sheet1!E144 -> 901391.63 | G22: =[37]Sheet1!F144 -> 901088.9597
A23: SubTotal | B23: =SUM(B20:B22) -> 1205500 | C23: 1266136.01 | D23: 1262133.68 | E23: 1383074.06 | F23: 1439551.827 | G23: 1472506.144
A24: %Change (year over year) | D24: =IF(ISERROR((D23-C23)/C23), "", (D23-C23)/C23) -> -0.003161058503 | E24: =IF(ISERROR((E23-D23)/D23), "", (E23-D23)/D23) -> 0.09582216362 | F24: =IF(ISERROR((F23-E23)/E23), "", (F23-E23)/E23) -> 0.04083495515 | G24: =IF(ISERROR((G23-F23)/F23), "", (G23-F23)/F23) -> 0.0228920669
A25: %Change (Test Year vs Last Rebasing Year - Actual) | G25: =IF(ISERROR((G23-C23)/C23), "", (G23-C23)/C23) -> 0.1629920738 | H25: Check
A26: Total | B26: =SUM(B23,B17) -> 1820000 | C26: 1843464.32 | D26: 1877551.42 | E26: 1962892.14 | F26: 2122318.637 | G26: 2182786.657 | H26: =[37]Sheet1!E45 -> 36568 | I26: =[37]Sheet1!F45 -> -103939
A27: %Change (year over year) | D27: =IF(ISERROR((D26-C26)/C26), "", (D26-C26)/C26) -> 0.0184907837 | E27: =IF(ISERROR((E26-D26)/D26), "", (E26-D26)/D26) -> 0.04545319989 | F27: =IF(ISERROR((F26-E26)/E26), "", (F26-E26)/E26) -> 0.08122020256 | G27: =IF(ISERROR((G26-F26)/F26), "", (G26-F26)/F26) -> 0.02849148959 | H27: =F26-H26 -> 2085750.637 | I27: =G26-I26 -> 2286725.657
B30: =B13 -> Last Rebasing Year (2012 Board-Approved) | C30: Last Rebasing Year (2012 Actuals) | D30: 2013 Actuals | E30: 2014 Actuals | F30: 2015 Bridge Year | G30: 2016 Test Year
A31: Operations | B31: =B15 -> 219000 | C31: 221842.25 | D31: 172501.69 | E31: 202676.09 | F31: 282484.61 | G31: 311123.4648
A32: Maintenance | B32: 395500 | C32: 355486.06 | D32: 442916.05 | E32: 377141.99 | F32: 400282.2 | G32: 399157.0478
A33: Billing and Collecting | B33: =B20 -> 455500 | C33: 536106.59 | D33: 526499.8 | E33: 553159.94 | F33: 531696.3772 | G33: 544820.1843
A34: Community Relations | B34: 0 | C34: 1506.53 | D34: 4373.88 | E34: 6146.12 | F34: 6463.82 | G34: 26597
A35: Administrative and General | B35: 750000 | C35: 728522.89 | D35: 731260 | E35: 823768 | F35: 901391.63 | G35: 901088.9597
A36: Total | B36: =SUM(B31:B35) -> 1820000 | C36: 1843464.32 | D36: 1877551.42 | E36: 1962892.14 | F36: 2122318.637 | G36: 2182786.657
A37: %Change (year over year) | D37: =IF(ISERROR((D36-C36)/C36), "", (D36-C36)/C36) -> 0.0184907837 | E37: =IF(ISERROR((E36-D36)/D36), "", (E36-D36)/D36) -> 0.04545319989 | F37: =IF(ISERROR((F36-E36)/E36), "", (F36-E36)/E36) -> 0.08122020256 | G37: =IF(ISERROR((G36-F36)/F36), "", (G36-F36)/F36) -> 0.02849148959
B40: =B13 -> Last Rebasing Year (2012 Board-Approved) | C40: =C13 -> Last Rebasing Year (2012 Actuals) | D40: ="Variance " & 'LDC Info'!E28 & " BA – " & 'LDC Info'!E28 & " Actuals" -> Variance 2012 BA – 2012 Actuals | E40: =D13 -> 2013 Actuals | F40: ="Variance " & 'LDC Info'!E26 -2 & " Actuals vs. " & 'LDC Info'!E28 & " Actuals" -> Variance 2013 Actuals vs. 2012 Actuals | G40: =E13 -> 2014 Actuals | H40: ="Variance " & 'LDC Info'!E26 -1 & " Actuals vs. " & 'LDC Info'!E26-2 & " Actuals" -> Variance 2014 Actuals vs. 2013 Actuals | I40: =F13 -> 2015 Bridge Year | J40: ="Variance " & 'LDC Info'!E26 & " Bridge vs. " & 'LDC Info'!E26 -1 & " Actuals" -> Variance 2015 Bridge vs. 2014 Actuals | K40: =G13 -> 2016 Test Year | L40: ="Variance " & TestYear & " Test vs. " & BridgeYear & " Bridge" -> Variance 2016 Test vs. 2015 Bridge
A41: Operations | B41: =B15 -> 219000 | C41: =C15 -> 221842.25 | D41: =B41-C41 -> -2842.25 | E41: =D15 -> 172501.69 | F41: =E41-C41 -> -49340.56 | G41: =E15 -> 202676.09 | H41: =G41-E41 -> 30174.4 | I41: =F15 -> 282484.61 | J41: =I41-G41 -> 79808.52 | K41: =G15 -> 311123.4648 | L41: =K41-I41 -> 28638.85482
A42: Maintenance | B42: =B16 -> 395500 | C42: =C16 -> 355486.06 | D42: =B42-C42 -> 40013.94 | E42: =D16 -> 442916.05 | F42: =E42-C42 -> 87429.99 | G42: =E16 -> 377141.99 | H42: =G42-E42 -> -65774.06 | I42: =F16 -> 400282.2 | J42: 23140.21 | K42: =G16 -> 399157.0478 | L42: -1125.152204
A43: Billing and Collecting | B43: =B20 -> 455500 | C43: 536106.59 | D43: =B43-C43 -> -80606.59 | E43: =D20 -> 526499.8 | F43: =E43-C43 -> -9606.79 | G43: =E20 -> 553159.94 | H43: 26660.14 | I43: =F20 -> 531696.3772 | J43: -21463.56279 | K43: =G20 -> 544820.1843 | L43: 13123.80707
A44: Community Relations | B44: 0 | C44: 1506.53 | D44: =B44-C44 -> -1506.53 | E44: =D21 -> 4373.88 | F44: =E44-C44 -> 2867.35 | G44: =E21 -> 6146.12 | H44: 1772.24 | I44: =F21 -> 6463.82 | J44: 317.7 | K44: =G21 -> 26597 | L44: 20133.18
A45: Administrative and General | B45: 750000 | C45: 728522.89 | D45: =B45-C45 -> 21477.11 | E45: =D22 -> 731260 | F45: =E45-C45 -> 2737.11 | G45: =E22 -> 823768 | H45: 92508 | I45: =F22 -> 901391.63 | J45: 77623.63 | K45: =G22 -> 901088.9597 | L45: -302.6703374
A46: Total OM&A Expenses | B46: =SUM(B41:B45) -> 1820000 | C46: =SUM(C41:C45) -> 1843464.32 | D46: -23464.32 | E46: 1877551.42 | F46: 34087.1 | G46: 1962892.14 | H46: 85340.72 | I46: 2122318.637 | J46: 159426.4972 | K46: 2182786.657 | L46: 60468.01935
A47: Adjustments for Total non-recoverable items (from Appendices 2-JA and 2-JB)
A48: Total Recoverable OM&A Expenses | B48: =B46-B47 -> 1820000 | C48: =C46-C47 -> 1843464.32 | D48: -23464.32 | E48: 1877551.42 | F48: 34087.1 | G48: 1962892.14 | H48: 85340.72 | I48: 2122318.637 | J48: 159426.4972 | K48: 2182786.657 | L48: 60468.01935
A49: Variance from previous year | E49: =E48-C48 -> 34087.1 | G49: =G48-E48 -> 85340.72 | I49: =I48-G48 -> 159426.4972 | K49: =K48-I48 -> 60468.01935
A50: Percent change (year over year) | E50: =IF(ISERROR(E49/C48), "", E49/C48) -> 0.0184907837 | G50: =IF(ISERROR(G49/E48), "", G49/E48) -> 0.04545319989 | I50: =IF(ISERROR(I49/G48), "", I49/G48) -> 0.08122020256 | K50: =IF(ISERROR(K49/I48), "", K49/I48) -> 0.02849148959
A51: Percent Change: Test year vs. Most Current Actual | G51: =IF(ISERROR((K48-G48)/G48), "", (K48-G48)/G48) -> 0.1120257767
A52: Simple average of % variance for all years | G52: =IF(ISERROR((K46-C46)/C46), "", (K46-C46)/C46) -> 0.1840677538 | L52: =IF(ISERROR(AVERAGE(E50,G50,I50,K50)), "", AVERAGE(E50,G50,I50,K50)) -> 0.04341391893
A53: Compound Annual Growth Rate for all years | G53: =IF(ISERROR((K49-C49)/C49), "", (K49-C49)/C49) ->  | L53: =IF((K48-C48)=0, "", (K48/C48)^(1/5)-1) -> 0.03436855822
A54: ="Compound Growth Rate (" & E13 & " vs. " & 'LDC Info'!E28 & " Actuals)" -> Compound Growth Rate (2014 Actuals vs. 2012 Actuals) | G54: =IF(ISERROR((G48/C48)^(1/(3)) - 1), "", (G48/C48)^(1/(3)) - 1) -> 0.02114457216
A56: Note:
A58: 1 "BA" = Board-Approved
A59: 2 If it has been more than three years since the applicant last filed a cost of service application, additional years of historical actuals should be incorporated into the table, as necessary, to go back to the last cost of service application. If the applicant last filed a cost of service application less than three years ago, a minimum of three years of actual information is required.
A61: 3 Recoverable OM&A that is included on these tables should be identical to the recoverable OM&A that is shown for the corresponding periods on Appendix 2-JB.

Sheet App.2-JB_OM&A_Cost _Drivers
F1: File Number: | G1: =EBNUMBER -> EB-2015-0100
F2: Exhibit:
F3: Tab:
F4: Schedule:
F5: Page:
F7: Date:
A10: Appendix 2-JB
A11: Recoverable OM&A Cost Driver Table
